Workbook

Sheet Modification
A1: Auto+Hide
B2: Modification
C5: Version 1 | D5: 2016-05-08 | E5: first version presented to board

Sheet Overview
A1: Auto+Hide
B2: Overview
B5: Revenue
B6: General Fund no increase in assessments | E6: reduction in on-roll due revenue to merging of A-2, M, F, and H-2. more acreage
E7: and units allocated to off-roll parcels and A-2 and M
B9: Added some Facility revenue
B11: Assessment Series 2014 | E11: reduction in on-roll due revenue to merging of A-2, M, F, and H-2.
B12: Assessment Series 2014 | E12: More acreage and units allocated to off-roll parcels and A-2 and M
B15: Expenditures
B17: Administration
B18: No increase with Severn Trent Services
B19: Insurance increase of 10%
B20: Misc.-Assessment Collection Cost increase due to moving assessments to tax collector from direct billed
B22: Field
B23: No changes per Gerhard
B25: Landscape Service
B26: Contracts-Ground increase due to new neighborhood
B28: Utilities
B29: Some line items could be reduced
B31: O&M Maintenance
B32: Contracts Lake and Wetland - service was cancelled with BioTech
B33: R&M-Pond new item
B34: R&M-Vehicles instead of R&M-Equipment Vehicles
B35: OP Supplies - Fuel Oil new item
B36: Cap Outlay reduced to keep assessment the same
B37: Cap Outlay Vehicles reduced to keep assessment the same

Sheet COVER_PAGE
A1: Auto+Hide | S1: Hide
U3: =B5 -> Community Development District
B4: =UPPER(IF(OVERRIDE_DN="",CDD,OVERRIDE_DN)) -> HARMONY | P4: Reminder: Make sure the iteration box is checked at all times.
B5: =IF(OVERRIDE_TYPE="",CDD_NAME,OVERRIDE_TYPE) -> Community Development District
P7: FORMATTING OPTIONS
P8: Page Orientation | Q8: Do Not Change | S8: Page Orientation
P9: Header Format | Q9: Align Left | S9: Do Not Change
S10: Portrait
A11: CoverTitle | B11: ="Annual Operating and Debt Service Budget" -> Annual Operating and Debt Service Budget | S11: Landscape
A13: CoverTitle2 | B13: ="Fiscal Year " & Budget_Fiscal_Year -> Fiscal Year 2017
B15: Version 1 - Proposed Budget: | S15: Header Format
B16: (Printed on 5/9/16) | P16: OVERRIDE DISTRICT NAME | S16: Align Left
S17: Align Center
S18: Align Other
S19: No Header
Q22: 10
P23: Font Conversion Chart
P24: Scale % | Q24: Font Size
P25: 0.95 | Q25: =ROUND(($Q$22/P25),0) -> 11
P26: =P25-5% -> 0.9 | Q26: 11
P27: 0.85 | Q27: 12
P28: 0.8 | Q28: 13
P29: 0.75 | Q29: 13
P30: 0.7 | Q30: 14
P31: 0.65 | Q31: 15
P32: 0.6 | Q32: 17
B35: Prepared by:

Sheet Balance_Sheet (hidden)
A1: Auto+Hide+Lock+Formulas=Sheet1,Sheet7,Sheet8 | B1: Hide+? | C1: Hide | D1: Hide | E1: Hide | F1: Hide | G1: =IF(F$4="no","Hide","Show") -> Hide | H1: =G1 -> Hide | I1: fit | J1: show | K1: Hide | L1: Hide | M1: Hide | P1: Hide+Auto | Q1: Auto | R1: Auto | S1: Hide+Auto | T1: Auto | U1: Auto | V1: Hide+Auto | W1: Auto | X1: Auto | Y1: Hide+Auto | Z1: Auto | AA1: Auto | AD1: Hide
A2: Hide+? | B2: =IF(AC196<10,"hidesheet","showsheet") -> hidesheet | D2: naturals | F2: subaccounts | I2: Report Date: | N2: =IF(N$183=0,"Hide","Show") -> Show | O2: =IF($AC$9=1,"HIDE",N2) -> Show | Q2: =IF(Q$183=0,"Hide","Show") -> Hide | R2: =IF($AC$9=1,"HIDE",Q2) -> Hide | T2: =IF(T$183=0,"Hide","Show") -> Hide | U2: =IF($AC$9=1,"HIDE",T2) -> Hide | W2: =IF(W$183=0,"Hide","Show") -> Show | X2: =IF($AC$9=1,"HIDE",W2) -> Show | Z2: =IF(Z$183=0,"Hide","Show") -> Show | AA2: =IF($AC$9=1,"HIDE",Z2) -> Show | AB2: Hide | AC2: =IF(AC$183=0,"Hide",IF($AC$9=1,"hide","Show")) -> Show
A3: Hide | B3: CDD Change | C3: Harmony CDD | D3: 02/29/2016 | E3: USE NET ASSETS FORMAT | F3: =IF(E12<>"Balance Sheet","Yes","No") -> No | I3: =(TEXT($D$3,"MMMM DD, YYYY")) -> February 29, 2016
A4: Hide | B4: CDD | C4: =IF(ISERROR(FIND("CDD",$C$3)),0,FIND("CDD",$C$3)) -> 9 | D4: HARMONY CDD | E4: SHOW GL ACCOUNT # | F4: No | I4: Global Dimension 1 Code
A5: Hide | B5: WCD | C5: =IF(ISERROR(FIND("WCD",$C$3)),0,FIND("WCD",$C$3)) -> 0 | D5: Actual | E5: GASB 54 | F5: No | I5: G/L Account No.
A6: Hide | C6: =TRIM(IF($C$12=0,IF($C$4+$C$5+$C$11=0,$C$3,IF($C$4=0,IF($C$11=0,REPLACE($C$3,$C$5,4,$C$2),REPLACE($C$3,$C$11,4,$C$2)),REPLACE($C$3,$C$4,4,$C$2))),$C$12)) -> Harmony | D6: =TEXT($D$3,"mm/dd/yyyy") -> 02/29/2016 | E6: =E7&E8&E9&E10 -> Governmental Funds | F6: SUBACCT | I6: Transaction Type
A7: Hide | C7: =PROPER(LOWER("COMMUNITY DEVELOPMENT DISTRICT")) -> Community Development District | D7: =CONCATENATE("01/01/1911..",TEXT($D$3,"MM/DD/YYYY")) -> 01/01/1911..02/29/2016 | E7: =IF($I110="NET ASSETS","","Governmental ") -> Governmental | I7: Posting Date
A8: Hide | C8: =PROPER(LOWER("WATER CONTROL DISTRICT")) -> Water Control District | D8: 001..299|400..450 | E8: =IF(OR(E7="",E9=""),"","and ") ->  | I8: Fund No.
A9: Hide | C9: =IF($C$13=0,IF($C$4+$C$5+$C$11=0,"",IF($C$4=0,IF($C$5=0,$C$10,$C$8),$C$7)),$C$13) -> Community Development District | D9: =+D8 -> 001..299|400..450 | E9: =IF($AD163=0,"","Enterprise ") ->  | I9: Global Dimension 2 Code | N9: =IF(N183=0,"",VALUE(M15)) -> 1 | Q9: =IF(Q183=0,"",VALUE(P15)) ->  | T9: =IF(T183=0,"",VALUE(S15)) ->  | W9: =IF(W183=0,"",VALUE(V15)) -> 203 | Z9: =IF(Z183=0,"",VALUE(Y15)) -> 204 | AC9: =COUNT(M9:AB9) -> 3
A10: Hide | C10: Community Improvement District | E10: =IF(OR($AC$9>1,$F$5="YES"),"Funds","Fund") -> Funds | I10: Dimension Code | N10: =M15 -> 001 | Q10: =P15 -> 201 | T10: =S15 -> 202 | W10: =V15 -> 203 | Z10: =Y15 -> 204
A11: Hide | B11: CID | C11: =IF(ISERROR(FIND("CID",$C$3)),0,FIND("CID",$C$3)) -> 0 | N11: =N176 -> 1172130 | Q11: =Q176 -> 0 | T11: =T176 -> 0 | W11: =W176 -> 1690940 | Z11: =Z176 -> 485290
A12: hide | C12: =OVERRIDE_DN -> 0 | E12: =IF($I110="Net Assets","Statement of Net Assets","Balance Sheet") -> Balance Sheet
A13: hide | C13: 0
A14: hide
A15: FIT | G15: ACCOUNT NO. | I15: ACCOUNT DESCRIPTION | M15: 001 | N15: GENERAL FUND | P15: ="201" -> 201 | S15: ="202" -> 202 | V15: ="203" -> 203 | W15: 2014 DEBT SERVICE FUND | Y15: ="204" -> 204 | Z15: 2015 DEBT SERVICE FUND | AC15: TOTAL
M16: =IF(M$15="",0,VALUE(M$15)) -> 1 | P16: =IF(P$15="",0,VALUE(P$15)) -> 201 | S16: =IF(S$15="",0,VALUE(S$15)) -> 202 | V16: =IF(V$15="",0,VALUE(V$15)) -> 203 | Y16: =IF(Y$15="",0,VALUE(Y$15)) -> 204
B17: hide | D17: 100000..199999
B18: =IF(AD81=0,"Hide","Show") -> Show | C18: Assets - Normal | I18: =IF($AC196<10,"ASSETS","ERROR, ERROR, THIS REPORT CONTAINS AN ERROR") -> ASSETS
B19: =IF($F$3="No","Hide","Show") -> Hide
B20: =IF($F$3="No","Hide","Show") -> Hide | I20: Current Assets
B21: Show | D21: 101031..130999|133000..139999 | G21: 101000..101030 | I21: Cash - Checking Account | N21: 316932 | Q21: 0 | T21: 0 | W21: 0 | Z21: 0 | AC21: =SUM(N21:AB21) -> 316932 | AD21: =ABS(SUM(N21:AB21)) -> 316932
B22: =IF(AD22=0,"Hide","Show") -> Hide | G22: 102000 | I22: Cash On Hand/Petty Cash | N22: 0 | Q22: 0 | T22: 0 | W22: 0 | Z22: 0 | AC22: =SUM(N22:AB22) -> 0 | AD22: =ABS(SUM(N22:AB22)) -> 0
A23: Auto | B23: =IF(AD23=0,"Hide","Show") -> Hide | G23: ="103000" -> 103000 | I23: Cash with Fiscal Agent | N23: 0 | Q23: 0 | T23: 0 | W23: 0 | Z23: 0 | AC23: =SUM(N23:AB23) -> 0 | AD23: =ABS(SUM(N23:AB23)) -> 0
A24: Auto | B24: Hide | G24: ="115000" -> 115000 | I24: Accounts Receivable | N24: 0 | Q24: 0 | T24: 0 | W24: 0 | Z24: 0 | AC24: 0 | AD24: 0
A25: Auto | B25: Show | G25: ="115150" -> 115150 | I25: Acct Receivable-Returned Items | N25: 20 | Q25: 0 | T25: 0 | W25: 0 | Z25: 0 | AC25: 20 | AD25: 20
A26: Auto | B26: Show | G26: ="121000" -> 121000 | I26: Assessments Receivable | N26: 68782 | Q26: 0 | T26: 0 | W26: 0 | Z26: 0 | AC26: 68782 | AD26: 68782
A27: Auto | B27: Hide | G27: ="122000" -> 122000 | I27: Allow-Doubtful Collections | N27: 0 | Q27: 0 | T27: 0 | W27: 0 | Z27: 0 | AC27: 0 | AD27: 0
A28: Auto | B28: Hide | G28: ="125000" -> 125000 | I28: Interest/Penalties Receivables | N28: 0 | Q28: 0 | T28: 0 | W28: 0 | Z28: 0 | AC28: 0 | AD28: 0
A29: Auto | B29: Hide | G29: ="130000" -> 130000 | I29: Due From Developer | N29: 0 | Q29: 0 | T29: 0 | W29: 0 | Z29: 0 | AC29: 0 | AD29: 0
A30: Auto | B30: Hide | G30: ="133000" -> 133000 | I30: Due From Other Gov'tl Units | N30: 0 | Q30: 0 | T30: 0 | W30: 0 | Z30: 0 | AC30: 0 | AD30: 0
A31: Auto | B31: Hide | G31: ="135000" -> 135000 | I31: Interest/Dividend Receivables | N31: 0 | Q31: 0 | T31: 0 | W31: 0 | Z31: 0 | AC31: 0 | AD31: 0
B32: Hide | C32: Assets - Due To Due From | D32: 131000..131999|132900..132999|207000..207999|236000..236999
B33: Hide | G33: 131000 | I33: Due From Other Funds | N33: 0 | Q33: 0 | T33: 0 | W33: 0 | Z33: 0 | AC33: =SUM(N33:AB33) -> 0 | AD33: =ABS(SUM(N33:AB33)) -> 0
A34: Auto | B34: Hide | G34: ="131002" -> 131002 | I34: Due To/From 001/201 | N34: 0 | Q34: 0 | T34: 0 | W34: 0 | Z34: 0 | AC34: =SUM(N34:AB34) -> 0 | AD34: =ABS(SUM(N34:AB34)) -> 0
A35: Auto | B35: Hide | G35: ="131008" -> 131008 | I35: Due To/From 001/202 | N35: 0 | Q35: 0 | T35: 0 | W35: 0 | Z35: 0 | AC35: 0 | AD35: 0
A36: Auto | B36: Hide | G36: ="131009" -> 131009 | I36: Due To/From 001/302 | N36: 0 | Q36: 0 | T36: 0 | W36: 0 | Z36: 0 | AC36: 0 | AD36: 0
A37: Auto | B37: Hide | G37: ="131010" -> 131010 | I37: Due To/From 202/302 | N37: 0 | Q37: 0 | T37: 0 | W37: 0 | Z37: 0 | AC37: 0 | AD37: 0
A38: Auto | B38: Hide | G38: ="131011" -> 131011 | I38: Due To/From 001/203 | N38: 0 | Q38: 0 | T38: 0 | W38: 0 | Z38: 0 | AC38: 0 | AD38: 0
A39: Auto | B39: Hide | G39: ="131014" -> 131014 | I39: Due To/From 001/204 | N39: 0 | Q39: 0 | T39: 0 | W39: 0 | Z39: 0 | AC39: 0 | AD39: 0
A40: Auto | B40: Hide | G40: ="131015" -> 131015 | I40: Due To/From 001/304 | N40: 15240 | Q40: 0 | T40: 0 | W40: 0 | Z40: 0 | AC40: 15240 | AD40: 15240
A41: Auto | B41: Hide | G41: ="131073" -> 131073 | I41: Due To/From 201/202 | N41: 0 | Q41: 0 | T41: 0 | W41: 0 | Z41: 0 | AC41: 0 | AD41: 0
A42: Auto | B42: Hide | G42: ="207000" -> 207000 | I42: Due To Other Funds | N42: 0 | Q42: 0 | T42: 0 | W42: 0 | Z42: 0 | AC42: 0 | AD42: 0
B43: Hide
B44: Hide | G44: 131000 | I44: Due From Other Funds | N44: =SUM(N32:N43) -> 15240 | Q44: =SUM(Q32:Q43) -> 0 | T44: =SUM(T32:T43) -> 0 | W44: =SUM(W32:W43) -> 0 | Z44: =SUM(Z32:Z43) -> 0 | AB44: =SUM(AB32:AB43) -> 0 | AC44: =SUM(N44:AB44) -> 15240 | AD44: =ABS(SUM(N44:AB44)) -> 15240
B45: =IF(AD45=0,"Hide","Show") -> Show | G45: 131000 | I45: Due From Other Funds | N45: =IF(N44>0,N44,0) -> 15240 | Q45: =IF(Q44>0,Q44,0) -> 0 | T45: =IF(T44>0,T44,0) -> 0 | W45: =IF(W44>0,W44,0) -> 0 | Z45: =IF(Z44>0,Z44,0) -> 0 | AC45: =SUM(N45:AB45) -> 15240 | AD45: =ABS(SUM(N45:AB45)) -> 15240
B46: =IF(ABS(SUM(AC46:AC48))=0,"Hide","Show") -> Hide | C46: Inventory | D46: 140000..149999 | G46: 140000..149999 | I46: Inventory:
B47: =IF(AD47=0,"Hide","Show") -> Hide | N47: 0 | Q47: 0 | T47: 0 | W47: 0 | Z47: 0 | AC47: =SUM(N47:AB47) -> 0 | AD47: =ABS(SUM(N47:AB47)) -> 0
B48: =IF(ABS(SUM(AC48:AC63))=0,"Hide","Show") -> Show | C48: Investments with Sub Accounts | D48: 150000..151000 | F48: 1000..1005|1081..1091|1100..1108 | G48: 150000..151000 | I48: Investments:
B49: =IF(AD49=0,"Hide","Show") -> Hide | G49: 1000 | I49: Default - Assets | N49: 0 | Q49: 0 | T49: 0 | W49: 0 | Z49: 0 | AC49: =SUM(N49:AB49) -> 0 | AD49: =ABS(SUM(N49:AB49)) -> 0
A50: Auto | B50: Show | G50: ="1086" -> 1086 | I50: Certificates of Deposit - 12 Months | N50: 100801 | Q50: 0 | T50: 0 | W50: 0 | Z50: 0 | AC50: 100801 | AD50: 100801
A51: Auto | B51: Hide | G51: ="1105" -> 1105 | I51: Certificates of Deposit - 15 Months | N51: 0 | Q51: 0 | T51: 0 | W51: 0 | Z51: 0 | AC51: 0 | AD51: 0
A52: Auto | B52: Hide | G52: ="1108" -> 1108 | I52: Certificates of Deposit - 36 Months | N52: 0 | Q52: 0 | T52: 0 | W52: 0 | Z52: 0 | AC52: 0 | AD52: 0
A53: Auto | B53: Hide | G53: ="1103" -> 1103 | I53: Certificates of Deposit - Other | N53: 0 | Q53: 0 | T53: 0 | W53: 0 | Z53: 0 | AC53: 0 | AD53: 0
A54: Auto | B54: Show | G54: ="1088" -> 1088 | I54: Money Market Account | N54: 766386 | Q54: 0 | T54: 0 | W54: 0 | Z54: 0 | AC54: 766386 | AD54: 766386
B55: HIDE | F55: 1006..1080|1092..1099|1110..1170
B56: =IF(AD56=0,"Hide","Show") -> Hide | G56: 1011 | I56: Capitalized Interest Account | N56: 0 | Q56: 0 | T56: 0 | W56: 0 | Z56: 0 | AC56: =SUM(N56:AB56) -> 0 | AD56: =ABS(SUM(N56:AB56)) -> 0
A57: Auto | B57: =IF(AD57=0,"Hide","Show") -> Hide | G57: ="1021" -> 1021 | I57: Cost of Issuance Fund | N57: 0 | Q57: 0 | T57: 0 | W57: 0 | Z57: 0 | AC57: =SUM(N57:AB57) -> 0 | AD57: =ABS(SUM(N57:AB57)) -> 0
A58: Auto | B58: Show | G58: ="1029" -> 1029 | I58: Interest Account | N58: 0 | Q58: 0 | T58: 0 | W58: 32763 | Z58: 16787 | AC58: 49550 | AD58: 49550
A59: Auto | B59: Show | G59: ="1038" -> 1038 | I59: Prepayment Account | N59: 0 | Q59: 0 | T59: 0 | W59: 12338 | Z59: 0 | AC59: 12338 | AD59: 12338
A60: Auto | B60: Show | G60: ="1053" -> 1053 | I60: Reserve Fund | N60: 0 | Q60: 0 | T60: 0 | W60: 607313 | Z60: 340000 | AC60: 947313 | AD60: 947313
A61: Auto | B61: Show | G61: ="1060" -> 1060 | I61: Revenue Fund | N61: 0 | Q61: 0 | T61: 0 | W61: 1042820 | Z61: 128503 | AC61: 1171323 | AD61: 1171323
A62: Auto | B62: Hide | G62: ="1066" -> 1066 | I62: Sinking fund | N62: 0 | Q62: 0 | T62: 0 | W62: 0 | Z62: 0 | AC62: 0 | AD62: 0
B63: Hide | C63: Other current assets | D63: 151001..153999|154001..156899
B64: =IF(AD64=0,"Hide","Show") -> Hide | G64: 152899 | I64: FMV Adjustment | N64: 0 | Q64: 0 | T64: 0 | W64: 0 | Z64: 0 | AC64: =SUM(N64:AB64) -> 0 | AD64: =ABS(SUM(N64:AB64)) -> 0
A65: Auto | B65: =IF(AD65=0,"Hide","Show") -> Hide | G65: ="152900" -> 152900 | I65: Unamort Premiums/Investments | N65: 0 | Q65: 0 | T65: 0 | W65: 0 | Z65: 0 | AC65: =SUM(N65:AB65) -> 0 | AD65: =ABS(SUM(N65:AB65)) -> 0
A66: Auto | B66: =IF(AD66=0,"Hide","Show") -> Hide | G66: ="155000" -> 155000 | I66: Prepaid Items | N66: 0 | Q66: 0 | T66: 0 | W66: 0 | Z66: 0 | AC66: =SUM(N66:AB66) -> 0 | AD66: =ABS(SUM(N66:AB66)) -> 0
A67: Auto | B67: =IF(AD67=0,"Hide","Show") -> Hide | G67: ="156100" -> 156100 | I67: Deposits | N67: 0 | Q67: 0 | T67: 0 | W67: 0 | Z67: 0 | AC67: =SUM(N67:AB67) -> 0 | AD67: =ABS(SUM(N67:AB67)) -> 0
B68: =IF($F$3="No","Hide","Show") -> Hide
B69: =IF($F$3="No","Hide","Show") -> Hide | I69: Total Current Assets | N69: =SUM(N20:N32)+SUM(N45:N68) -> 1268161 | Q69: =SUM(Q20:Q32)+SUM(Q45:Q68) -> 0 | T69: =SUM(T20:T32)+SUM(T45:T68) -> 0 | W69: =SUM(W20:W32)+SUM(W45:W68) -> 1695234 | Z69: =SUM(Z20:Z32)+SUM(Z45:Z68) -> 485290 | AC69: =SUM(N69:AB69) -> 3448685 | AD69: =ABS(SUM(N69:AB69)) -> 3448685
B70: =IF($F$3="No","Hide","Show") -> Hide
B71: =IF($F$3="No","Hide","Show") -> Hide | I71: Noncurrent Assets
B72: =IF(SUM(AD73:AD74)=0,"Hide","Show") -> Hide | C72: fixed assets | D72: 160000..169999 | I72: Fixed Assets
B73: =IF(AD73=0,"Hide","Show") -> Hide | G73: 165900 | I73: Accum Depr - Infrastructure | N73: 0 | Q73: 0 | T73: 0 | W73: 0 | Z73: 0 | AC73: =SUM(N73:AB73) -> 0 | AD73: =ABS(SUM(N73:AB73)) -> 0
B74: Hide
B75: Hide | C75: noncurrent assets | D75: 154000|156900..159999|170000..199999
B76: =IF(AD76=0,"Hide","Show") -> Hide | G76: 154000 | I76: Deferred Charges (Bond Amtz) | N76: 0 | Q76: 0 | T76: 0 | W76: 0 | Z76: 0 | AC76: =SUM(N76:AB76) -> 0 | AD76: =ABS(SUM(N76:AB76)) -> 0
A77: Auto | B77: =IF(AD77=0,"Hide","Show") -> Hide | G77: ="156900" -> 156900 | I77: Other Assets-Non-Current | N77: 0 | Q77: 0 | T77: 0 | W77: 0 | Z77: 0 | AC77: =SUM(N77:AB77) -> 0 | AD77: =ABS(SUM(N77:AB77)) -> 0
B78: =IF($F$3="No","Hide","Show") -> Hide
B79: =IF($F$3="No","Hide","Show") -> Hide | I79: Total Noncurrent Assets | N79: =SUM(N70:N78) -> 0 | Q79: =SUM(Q70:Q78) -> 0 | T79: =SUM(T70:T78) -> 0 | W79: =SUM(W70:W78) -> 0 | Z79: =SUM(Z70:Z78) -> 0 | AC79: =SUM(AC70:AC78) -> 0 | AD79: =ABS(SUM(N79:AB79)) -> 0
B80: Show
B81: =IF(AD81=0,"Hide","Show") -> Show | I81: TOTAL ASSETS | N81: =N79+N69 -> 1268161 | Q81: =Q79+Q69 -> 0 | T81: =T79+T69 -> 0 | W81: =W79+W69 -> 1695234 | Z81: =Z79+Z69 -> 485290 | AC81: =SUM(N81:AB81) -> 3448685 | AD81: =ABS(SUM(N81:AB81)) -> 3448685
B82: Show
B83: hide | D83: 200000..239999
B84: hide | I84: LIABILITIES & FUND BALANCES
B85: hide
B86: =IF(AD107=0,"Hide","Show") -> Show | C86: Liabilities - Normal | I86: LIABILITIES
B87: =IF($F$3="No","Hide","Show") -> Hide
B88: =IF($F$3="No","Hide","Show") -> Hide | I88: Current Liabilities
B89: SHOW | D89: 200000..201999|202001..203089|203091..206999|208000..210089|210091..224089|224096..225089|225091..226089|226091..227089|227091..228089|228091..230089|230091..232089|232091..234089|234091..235089 | G89: 202000 | I89: Accounts Payable | N89: 58979 | Q89: 0 | T89: 0 | W89: 0 | Z89: 0 | AC89: =SUM(N89:AB89) -> 58979 | AD89: =ABS(SUM(N89:AB89)) -> 58979
B90: =IF(AD90=0,"Hide","Show") -> Show | G90: 202100 | I90: Accrued Expenses | N90: 33430 | Q90: 0 | T90: 0 | W90: 0 | Z90: 0 | AC90: =SUM(N90:AB90) -> 33430 | AD90: =ABS(SUM(N90:AB90)) -> 33430
A91: Auto | B91: =IF(AD91=0,"Hide","Show") -> Hide | G91: ="205500" -> 205500 | I91: Retainage Payable | N91: 0 | Q91: 0 | T91: 0 | W91: 0 | Z91: 0 | AC91: =SUM(N91:AB91) -> 0 | AD91: =ABS(SUM(N91:AB91)) -> 0
A92: Auto | B92: Hide | G92: ="208000" -> 208000 | I92: Due To Other Gov'tl Units | N92: 0 | Q92: 0 | T92: 0 | W92: 0 | Z92: 0 | AC92: 0 | AD92: 0
A93: Auto | B93: Hide | G93: ="216000" -> 216000 | I93: Accrued Wages Payable | N93: 0 | Q93: 0 | T93: 0 | W93: 0 | Z93: 0 | AC93: 0 | AD93: 0
A94: Auto | B94: Show | G94: ="217000" -> 217000 | I94: Accrued Taxes Payable | N94: 122 | Q94: 0 | T94: 0 | W94: 0 | Z94: 0 | AC94: 122 | AD94: 122
A95: Auto | B95: Hide | G95: ="220000" -> 220000 | I95: Deposits | N95: 0 | Q95: 0 | T95: 0 | W95: 0 | Z95: 0 | AC95: 0 | AD95: 0
A96: Auto | B96: Show | G96: ="223000" -> 223000 | I96: Deferred Revenue | N96: 3500 | Q96: 0 | T96: 0 | W96: 4294 | Z96: 0 | AC96: 7794 | AD96: 7794
A97: Auto | B97: Hide | G97: ="229000" -> 229000 | I97: Other Current Liabilities | N97: 0 | Q97: 0 | T97: 0 | W97: 0 | Z97: 0 | AC97: 0 | AD97: 0
B98: =IF(AD98=0,"Hide","Show") -> Hide | G98: 207000 | I98: Due To Other Funds | N98: =IF(N44>0,0,-N44) -> 0 | Q98: =IF(Q44>0,0,-Q44) -> 0 | T98: =IF(T44>0,0,-T44) -> 0 | W98: =IF(W44>0,0,-W44) -> 0 | Z98: =IF(Z44>0,0,-Z44) -> 0 | AC98: =SUM(N98:AB98) -> 0 | AD98: =ABS(SUM(N98:AB98)) -> 0
B99: =IF($F$3="No","Hide","Show") -> Hide
B100: =IF($F$3="No","Hide","Show") -> Hide | I100: Total Current Liabilities | N100: =SUM(N88:N99) -> 96031 | Q100: =SUM(Q88:Q99) -> 0 | T100: =SUM(T88:T99) -> 0 | W100: =SUM(W88:W99) -> 4294 | Z100: =SUM(Z88:Z99) -> 0 | AC100: =SUM(N100:AB100) -> 100325 | AD100: =ABS(SUM(N100:AB100)) -> 100325
B101: =IF($F$3="No","Hide","Show") -> Hide
B102: =IF($F$3="No","Hide","Show") -> Hide | I102: Long-Term Liabilities
B103: =IF(AD103=0,"Hide","Show") -> Hide | C103: Liabilities - Normal | D103: 203090|210090|224090..224095|225090|226090|227090|228090|230090|232090|234090|235090..239999 | N103: 0 | Q103: 0 | T103: 0 | W103: 0 | Z103: 0 | AC103: =SUM(N103:AB103) -> 0 | AD103: =ABS(SUM(N103:AB103)) -> 0
B104: =IF($F$3="No","Hide","Show") -> Hide
B105: =IF($F$3="No","Hide","Show") -> Hide | I105: Total Long-Term Liabilities | N105: =SUM(N103:N104) -> 0 | Q105: =SUM(Q103:Q104) -> 0 | T105: =SUM(T103:T104) -> 0 | W105: =SUM(W103:W104) -> 0 | Z105: =SUM(Z103:Z104) -> 0 | AC105: =SUM(N105:AB105) -> 0 | AD105: =ABS(SUM(N105:AB105)) -> 0
B106: SHOW
B107: SHOW | I107: TOTAL LIABILITIES | N107: =N105+N100 -> 96031 | Q107: =Q105+Q100 -> 0 | T107: =T105+T100 -> 0 | W107: =W105+W100 -> 4294 | Z107: =Z105+Z100 -> 0 | AC107: =AC105+AC100 -> 100325 | AD107: =ABS(SUM(N107:AB107)) -> 100325
B108: SHOW
B109: hide | D109: 240000..270999|273000..299999 | E109: 240000..599999
B110: =IF(AD176=0,"Hide","Show") -> Show | C110: Fund Balances | I110: =IF($AD163=0,"FUND BALANCES",IF($AD110=0,"NET ASSETS","FUND BALANCES / NET ASSETS")) -> FUND BALANCES | AD110: =AD112 -> 3348360
B111: =IF(OR($AD163=0,$AD112=0),"Hide","SHOW") -> Hide | D111: 240000..270999|273000..299999 | AD111: =AD180 -> 0
B112: =IF(OR($AD163=0,$AD112=0),"Hide","SHOW") -> Hide | D112: 240000..247999 | I112: Fund Balances | AD112: =SUM(AD113:AD126) -> 3348360
B113: =IF(AD113=0,"Hide","Show") -> Show | G113: 271100 | I113: Reserved for Debt Service | M113: =IF(AND(M$16>=200,M$16<=299),"200..299","0") -> 0 | N113: =IF(OR($F$5="YES",M113="0"),0,SUM(N81-N107-N175)) -> 0 | P113: =IF(AND(P$16>=200,P$16<=299),"200..299","0") -> 200..299 | Q113: =IF(OR($F$5="YES",P113="0"),0,SUM(Q81-Q107-Q175)) -> 0 | S113: =IF(AND(S$16>=200,S$16<=299),"200..299","0") -> 200..299 | T113: =IF(OR($F$5="YES",S113="0"),0,SUM(T81-T107-T175)) -> 0 | V113: =IF(AND(V$16>=200,V$16<=299),"200..299","0") -> 200..299 | W113: =IF(OR($F$5="YES",V113="0"),0,SUM(W81-W107-W175)) -> 1690940 | Y113: =IF(AND(Y$16>=200,Y$16<=299),"200..299","0") -> 200..299 | Z113: =IF(OR($F$5="YES",Y113="0"),0,SUM(Z81-Z107-Z175)) -> 485290 | AC113: =SUM(N113:AB113) -> 2176230 | AD113: =ABS(SUM(N113:AB113)) -> 2176230
B114: =IF(AD114=0,"Hide","Show") -> Hide | G114: 271110 | I114: Reserved for Capital Projects | M114: =IF(AND(M$16>=300,M$16<=399),"300..399","0") -> 0 | N114: =IF(OR($F$5="YES",M114="0"),0,SUM(N81-N107-N175)) -> 0 | P114: =IF(AND(P$16>=300,P$16<=399),"300..399","0") -> 0 | Q114: =IF(OR($F$5="YES",P114="0"),0,SUM(Q81-Q107-Q175)) -> 0 | S114: =IF(AND(S$16>=300,S$16<=399),"300..399","0") -> 0 | T114: =IF(OR($F$5="YES",S114="0"),0,SUM(T81-T107-T175)) -> 0 | V114: =IF(AND(V$16>=300,V$16<=399),"300..399","0") -> 0 | W114: =IF(OR($F$5="YES",V114="0"),0,SUM(W81-W107-W175)) -> 0 | Y114: =IF(AND(Y$16>=300,Y$16<=399),"300..399","0") -> 0 | Z114: =IF(OR($F$5="YES",Y114="0"),0,SUM(Z81-Z107-Z175)) -> 0 | AC114: =SUM(N114:AB114) -> 0 | AD114: =ABS(SUM(N114:AB114)) -> 0
B115: =IF(AD115=0,"Hide","Show") -> Hide | G115: 271110 | I115: Reserved for Special Revenue | M115: =IF(AND(M$16>=100,M$16<=199),"100..199","0") -> 0 | N115: =IF(OR($F$5="YES",M115="0"),0,SUM(N81-N107-N175)) -> 0 | P115: =IF(AND(P$16>=100,P$16<=199),"100..199","0") -> 0 | Q115: =IF(OR($F$5="YES",P115="0"),0,SUM(Q81-Q107-Q175)) -> 0 | S115: =IF(AND(S$16>=100,S$16<=199),"100..199","0") -> 0 | T115: =IF(OR($F$5="YES",S115="0"),0,SUM(T81-T107-T175)) -> 0 | V115: =IF(AND(V$16>=100,V$16<=199),"100..199","0") -> 0 | W115: =IF(OR($F$5="YES",V115="0"),0,SUM(W81-W107-W175)) -> 0 | Y115: =IF(AND(Y$16>=100,Y$16<=199),"100..199","0") -> 0 | Z115: =IF(OR($F$5="YES",Y115="0"),0,SUM(Z81-Z107-Z175)) -> 0 | AC115: =SUM(N115:AB115) -> 0 | AD115: =ABS(SUM(N115:AB115)) -> 0
B116: =IF(AD116=0,"Hide","Show") -> Hide | D116: 240000..270999|273000..299999 | G116: 247045 | I116: Reserves-Renewal & Replacement | M116: =IF(AND(M$16>=400,M$16<=499),0,"001..399") -> 001..399 | N116: 0 | P116: =IF(AND(P$16>=400,P$16<=499),0,"001..399") -> 001..399 | Q116: 0 | S116: =IF(AND(S$16>=400,S$16<=499),0,"001..399") -> 001..399 | T116: 0 | V116: =IF(AND(V$16>=400,V$16<=499),0,"001..399") -> 001..399 | W116: 0 | Y116: =IF(AND(Y$16>=400,Y$16<=499),0,"001..399") -> 001..399 | Z116: 0 | AC116: =SUM(N116:AB116) -> 0 | AD116: =ABS(SUM(N116:AB116)) -> 0
A117: Auto | B117: =IF(AD117=0,"Hide","Show") -> Hide | D117: 240000..270999|273000..299999 | G117: ="247118" -> 247118 | I117: Reserves - Self Insurance | M117: =IF(AND(M$16>=400,M$16<=499),0,"001..399") -> 001..399 | N117: 0 | P117: 001..399 | Q117: 0 | S117: 001..399 | T117: 0 | V117: 001..399 | W117: 0 | Y117: 001..399 | Z117: 0 | AC117: =SUM(N117:AB117) -> 0 | AD117: =ABS(SUM(N117:AB117)) -> 0
A118: Auto | B118: Hide | D118: 240000..270999|273000..299999 | G118: ="247199" -> 247199 | I118: Operating Reserve | M118: 001..399 | N118: 0 | P118: 001..399 | Q118: 0 | S118: 001..399 | T118: 0 | V118: 001..399 | W118: 0 | Y118: 001..399 | Z118: 0 | AC118: 0 | AD118: 0
A119: Auto | B119: Show | D119: 240000..270999|273000..299999 | G119: ="283010" -> 283010 | I119: Operating Reserves | M119: 001..399 | N119: 250000 | P119: 001..399 | Q119: 0 | S119: 001..399 | T119: 0 | V119: 001..399 | W119: 0 | Y119: 001..399 | Z119: 0 | AC119: 250000 | AD119: 250000
A120: Auto | B120: Show | D120: 240000..270999|273000..299999 | G120: ="283720" -> 283720 | I120: Reserves-Renewal & Replacement | M120: 001..399 | N120: 99188 | P120: 001..399 | Q120: 0 | S120: 001..399 | T120: 0 | V120: 001..399 | W120: 0 | Y120: 001..399 | Z120: 0 | AC120: 99188 | AD120: 99188
A121: Auto | B121: Show | D121: 240000..270999|273000..299999 | G121: ="283780" -> 283780 | I121: Reserves - Self Insurance | M121: 001..399 | N121: 50000 | P121: 001..399 | Q121: 0 | S121: 001..399 | T121: 0 | V121: 001..399 | W121: 0 | Y121: 001..399 | Z121: 0 | AC121: 50000 | AD121: 50000
A122: Auto | B122: Show | D122: 240000..270999|273000..299999 | G122: ="283790" -> 283790 | I122: Reserves - Sidewalks | M122: 001..399 | N122: 60000 | P122: 001..399 | Q122: 0 | S122: 001..399 | T122: 0 | V122: 001..399 | W122: 0 | Y122: 001..399 | Z122: 0 | AC122: 60000 | AD122: 60000
A123: Auto | B123: Show | D123: 240000..270999|273000..299999 | G123: ="283825" -> 283825 | I123: Reserves - Streetlights | M123: 001..399 | N123: 105000 | P123: 001..399 | Q123: 0 | S123: 001..399 | T123: 0 | V123: 001..399 | W123: 0 | Y123: 001..399 | Z123: 0 | AC123: 105000 | AD123: 105000
B124: hide
B125: =IF(AD125=0,"Hide","Show") -> Show | G125: 271000 | I125: Unreserved/Undesignated | M125: =IF(AND(M$16>=0,M$16<=199),"0..199|600..999",IF(AND(M$16>=600,M$16<=999),"0..199|600..999","0")) -> 0..199|600..999 | N125: =IF(OR($F$5="YES",M125="0"),0,SUM(N81-N107-N175)) -> 607942 | P125: =IF(AND(P$16>=0,P$16<=199),"0..199|600..999",IF(AND(P$16>=600,P$16<=999),"0..199|600..999","0")) -> 0 | Q125: =IF(OR($F$5="YES",P125="0"),0,SUM(Q81-Q107-Q175)) -> 0 | S125: =IF(AND(S$16>=0,S$16<=199),"0..199|600..999",IF(AND(S$16>=600,S$16<=999),"0..199|600..999","0")) -> 0 | T125: =IF(OR($F$5="YES",S125="0"),0,SUM(T81-T107-T175)) -> 0 | V125: =IF(AND(V$16>=0,V$16<=199),"0..199|600..999",IF(AND(V$16>=600,V$16<=999),"0..199|600..999","0")) -> 0 | W125: =IF(OR($F$5="YES",V125="0"),0,SUM(W81-W107-W175)) -> 0 | Y125: =IF(AND(Y$16>=0,Y$16<=199),"0..199|600..999",IF(AND(Y$16>=600,Y$16<=999),"0..199|600..999","0")) -> 0 | Z125: =IF(OR($F$5="YES",Y125="0"),0,SUM(Z81-Z107-Z175)) -> 0 | AC125: =SUM(N125:AB125) -> 607942 | AD125: =ABS(SUM(N125:AB125)) -> 607942
B126: =B163 -> Hide
D127: 280000..280999 | I127: Nonspendable:
M128: =IF(AND(M$16>=0,M$16<=99),"0..099|600..999",IF(AND(M$16>=600,M$16<=999),"0..099|600..999","0")) -> 0..099|600..999 | N128: 0 | P128: =IF(AND(P$16>=0,P$16<=99),"0..099|600..999",IF(AND(P$16>=600,P$16<=999),"0..099|600..999","0")) -> 0 | Q128: 0 | S128: =IF(AND(S$16>=0,S$16<=99),"0..099|600..999",IF(AND(S$16>=600,S$16<=999),"0..099|600..999","0")) -> 0 | T128: 0 | V128: =IF(AND(V$16>=0,V$16<=99),"0..099|600..999",IF(AND(V$16>=600,V$16<=999),"0..099|600..999","0")) -> 0 | W128: 0 | Y128: =IF(AND(Y$16>=0,Y$16<=99),"0..099|600..999",IF(AND(Y$16>=600,Y$16<=999),"0..099|600..999","0")) -> 0 | Z128: 0 | AC128: =SUM(N128:AB128) -> 0 | AD128: =ABS(SUM(N128:AB128)) -> 0
I130: Total Nonspendable | N130: =SUM(N127:N129) -> 0 | Q130: =SUM(Q127:Q129) -> 0 | T130: =SUM(T127:T129) -> 0 | W130: =SUM(W127:W129) -> 0 | Z130: =SUM(Z127:Z129) -> 0 | AC130: =SUM(N130:AB130) -> 0 | AD130: =ABS(SUM(N130:AB130)) -> 0
D131: 281000..281009|281011..281013|281015..281017|281019..281999 | I131: Restricted for:
G132: 281010 | I132: Debt Service | M132: =IF(AND(M$16>=200,M$16<=299),"200..299","0") -> 0 | N132: =IF(OR($F$5="NO",M132="0"),0,IF(SUM(N81-N107-N175)<0,0,SUM(N81-N107-N175))) -> 0 | P132: =IF(AND(P$16>=200,P$16<=299),"200..299","0") -> 200..299 | Q132: =IF(OR($F$5="NO",P132="0"),0,IF(SUM(Q81-Q107-Q175)<0,0,SUM(Q81-Q107-Q175))) -> 0 | S132: =IF(AND(S$16>=200,S$16<=299),"200..299","0") -> 200..299 | T132: =IF(OR($F$5="NO",S132="0"),0,IF(SUM(T81-T107-T175)<0,0,SUM(T81-T107-T175))) -> 0 | V132: =IF(AND(V$16>=200,V$16<=299),"200..299","0") -> 200..299 | W132: =IF(OR($F$5="NO",V132="0"),0,IF(SUM(W81-W107-W175)<0,0,SUM(W81-W107-W175))) -> 0 | Y132: =IF(AND(Y$16>=200,Y$16<=299),"200..299","0") -> 200..299 | Z132: =IF(OR($F$5="NO",Y132="0"),0,IF(SUM(Z81-Z107-Z175)<0,0,SUM(Z81-Z107-Z175))) -> 0 | AC132: =SUM(N132:AB132) -> 0 | AD132: =ABS(SUM(N132:AB132)) -> 0
G133: 281014 | I133: Capital Projects | M133: =IF(AND(M$16>=300,M$16<=399),"300..399","0") -> 0 | N133: =IF(OR($F$5="NO",M133="0"),0,IF(SUM(N81-N107-N175)<0,0,SUM(N81-N107-N175))) -> 0 | P133: =IF(AND(P$16>=300,P$16<=399),"300..399","0") -> 0 | Q133: =IF(OR($F$5="NO",P133="0"),0,IF(SUM(Q81-Q107-Q175)<0,0,SUM(Q81-Q107-Q175))) -> 0 | S133: =IF(AND(S$16>=300,S$16<=399),"300..399","0") -> 0 | T133: =IF(OR($F$5="NO",S133="0"),0,IF(SUM(T81-T107-T175)<0,0,SUM(T81-T107-T175))) -> 0 | V133: =IF(AND(V$16>=300,V$16<=399),"300..399","0") -> 0 | W133: =IF(OR($F$5="NO",V133="0"),0,IF(SUM(W81-W107-W175)<0,0,SUM(W81-W107-W175))) -> 0 | Y133: =IF(AND(Y$16>=300,Y$16<=399),"300..399","0") -> 0 | Z133: =IF(OR($F$5="NO",Y133="0"),0,IF(SUM(Z81-Z107-Z175)<0,0,SUM(Z81-Z107-Z175))) -> 0 | AC133: =SUM(N133:AB133) -> 0 | AD133: =ABS(SUM(N133:AB133)) -> 0
G134: 281018 | I134: Special Revenue | M134: =IF(AND(M$16>=100,M$16<=199),"100..199","0") -> 0 | N134: =IF(OR($F$5="NO",M134="0"),0,IF(SUM(N81-N107-N175)<0,0,SUM(N81-N107-N175))) -> 0 | P134: =IF(AND(P$16>=100,P$16<=199),"100..199","0") -> 0 | Q134: =IF(OR($F$5="NO",P134="0"),0,IF(SUM(Q81-Q107-Q175)<0,0,SUM(Q81-Q107-Q175))) -> 0 | S134: =IF(AND(S$16>=100,S$16<=199),"100..199","0") -> 0 | T134: =IF(OR($F$5="NO",S134="0"),0,IF(SUM(T81-T107-T175)<0,0,SUM(T81-T107-T175))) -> 0 | V134: =IF(AND(V$16>=100,V$16<=199),"100..199","0") -> 0 | W134: =IF(OR($F$5="NO",V134="0"),0,IF(SUM(W81-W107-W175)<0,0,SUM(W81-W107-W175))) -> 0 | Y134: =IF(AND(Y$16>=100,Y$16<=199),"100..199","0") -> 0 | Z134: =IF(OR($F$5="NO",Y134="0"),0,IF(SUM(Z81-Z107-Z175)<0,0,SUM(Z81-Z107-Z175))) -> 0 | AC134: =SUM(N134:AB134) -> 0 | AD134: =ABS(SUM(N134:AB134)) -> 0
D136: 240000..270999|273000..299999 | M136: =IF(AND(M$16>=400,M$16<=499),0,"001..399") -> 001..399 | N136: 0 | P136: =IF(AND(P$16>=400,P$16<=499),0,"001..399") -> 001..399 | Q136: 0 | S136: =IF(AND(S$16>=400,S$16<=499),0,"001..399") -> 001..399 | T136: 0 | V136: =IF(AND(V$16>=400,V$16<=499),0,"001..399") -> 001..399 | W136: 0 | Y136: =IF(AND(Y$16>=400,Y$16<=499),0,"001..399") -> 001..399 | Z136: 0 | AC136: =SUM(N136:AB136) -> 0 | AD136: =ABS(SUM(N136:AB136)) -> 0
I138: Total Restricted | N138: =SUM(N131:N137) -> 0 | Q138: =SUM(Q131:Q137) -> 0 | T138: =SUM(T131:T137) -> 0 | W138: =SUM(W131:W137) -> 0 | Z138: =SUM(Z131:Z137) -> 0 | AC138: =SUM(N138:AB138) -> 0 | AD138: =ABS(SUM(N138:AB138)) -> 0
D139: 282000..282999 | I139: Committed to:
M140: =IF(AND(M$16>=0,M$16<=99),"0..099|600..999",IF(AND(M$16>=600,M$16<=999),"0..099|600..999","0")) -> 0..099|600..999 | N140: 0 | P140: =IF(AND(P$16>=0,P$16<=99),"0..099|600..999",IF(AND(P$16>=600,P$16<=999),"0..099|600..999","0")) -> 0 | Q140: 0 | S140: =IF(AND(S$16>=0,S$16<=99),"0..099|600..999",IF(AND(S$16>=600,S$16<=999),"0..099|600..999","0")) -> 0 | T140: 0 | V140: =IF(AND(V$16>=0,V$16<=99),"0..099|600..999",IF(AND(V$16>=600,V$16<=999),"0..099|600..999","0")) -> 0 | W140: 0 | Y140: =IF(AND(Y$16>=0,Y$16<=99),"0..099|600..999",IF(AND(Y$16>=600,Y$16<=999),"0..099|600..999","0")) -> 0 | Z140: 0 | AC140: =SUM(N140:AB140) -> 0 | AD140: =ABS(SUM(N140:AB140)) -> 0
I142: Total Committed | N142: =SUM(N139:N141) -> 0 | Q142: =SUM(Q139:Q141) -> 0 | T142: =SUM(T139:T141) -> 0 | W142: =SUM(W139:W141) -> 0 | Z142: =SUM(Z139:Z141) -> 0 | AC142: =SUM(N142:AB142) -> 0 | AD142: =ABS(SUM(N142:AB142)) -> 0
D143: 283000..283999 | I143: Assigned to:
G144: 283010 | I144: Operating Reserves | M144: =IF(AND(M$16>=0,M$16<=99),"0..099|600..999",IF(AND(M$16>=600,M$16<=999),"0..099|600..999","0")) -> 0..099|600..999 | N144: 0 | P144: =IF(AND(P$16>=0,P$16<=99),"0..099|600..999",IF(AND(P$16>=600,P$16<=999),"0..099|600..999","0")) -> 0 | Q144: 0 | S144: =IF(AND(S$16>=0,S$16<=99),"0..099|600..999",IF(AND(S$16>=600,S$16<=999),"0..099|600..999","0")) -> 0 | T144: 0 | V144: =IF(AND(V$16>=0,V$16<=99),"0..099|600..999",IF(AND(V$16>=600,V$16<=999),"0..099|600..999","0")) -> 0 | W144: 0 | Y144: =IF(AND(Y$16>=0,Y$16<=99),"0..099|600..999",IF(AND(Y$16>=600,Y$16<=999),"0..099|600..999","0")) -> 0 | Z144: 0 | AC144: =SUM(N144:AB144) -> 0 | AD144: =ABS(SUM(N144:AB144)) -> 0
A145: Auto | G145: ="283720" -> 283720 | I145: Reserves-Renewal & Replacement | M145: =IF(AND(M$16>=0,M$16<=99),"0..099|600..999",IF(AND(M$16>=600,M$16<=999),"0..099|600..999","0")) -> 0..099|600..999 | N145: 0 | P145: =IF(AND(P$16>=0,P$16<=99),"0..099|600..999",IF(AND(P$16>=600,P$16<=999),"0..099|600..999","0")) -> 0 | Q145: 0 | S145: =IF(AND(S$16>=0,S$16<=99),"0..099|600..999",IF(AND(S$16>=600,S$16<=999),"0..099|600..999","0")) -> 0 | T145: 0 | V145: =IF(AND(V$16>=0,V$16<=99),"0..099|600..999",IF(AND(V$16>=600,V$16<=999),"0..099|600..999","0")) -> 0 | W145: 0 | Y145: =IF(AND(Y$16>=0,Y$16<=99),"0..099|600..999",IF(AND(Y$16>=600,Y$16<=999),"0..099|600..999","0")) -> 0 | Z145: 0 | AC145: =SUM(N145:AB145) -> 0 | AD145: =ABS(SUM(N145:AB145)) -> 0
A146: Auto | G146: ="283780" -> 283780 | I146: Reserves - Self Insurance | M146: =IF(AND(M$16>=0,M$16<=99),"0..099|600..999",IF(AND(M$16>=600,M$16<=999),"0..099|600..999","0")) -> 0..099|600..999 | N146: 0 | P146: =IF(AND(P$16>=0,P$16<=99),"0..099|600..999",IF(AND(P$16>=600,P$16<=999),"0..099|600..999","0")) -> 0 | Q146: 0 | S146: =IF(AND(S$16>=0,S$16<=99),"0..099|600..999",IF(AND(S$16>=600,S$16<=999),"0..099|600..999","0")) -> 0 | T146: 0 | V146: =IF(AND(V$16>=0,V$16<=99),"0..099|600..999",IF(AND(V$16>=600,V$16<=999),"0..099|600..999","0")) -> 0 | W146: 0 | Y146: =IF(AND(Y$16>=0,Y$16<=99),"0..099|600..999",IF(AND(Y$16>=600,Y$16<=999),"0..099|600..999","0")) -> 0 | Z146: 0 | AC146: =SUM(N146:AB146) -> 0 | AD146: =ABS(SUM(N146:AB146)) -> 0
A147: Auto | G147: ="283790" -> 283790 | I147: Reserves - Sidewalks | M147: =IF(AND(M$16>=0,M$16<=99),"0..099|600..999",IF(AND(M$16>=600,M$16<=999),"0..099|600..999","0")) -> 0..099|600..999 | N147: 0 | P147: =IF(AND(P$16>=0,P$16<=99),"0..099|600..999",IF(AND(P$16>=600,P$16<=999),"0..099|600..999","0")) -> 0 | Q147: 0 | S147: =IF(AND(S$16>=0,S$16<=99),"0..099|600..999",IF(AND(S$16>=600,S$16<=999),"0..099|600..999","0")) -> 0 | T147: 0 | V147: =IF(AND(V$16>=0,V$16<=99),"0..099|600..999",IF(AND(V$16>=600,V$16<=999),"0..099|600..999","0")) -> 0 | W147: 0 | Y147: =IF(AND(Y$16>=0,Y$16<=99),"0..099|600..999",IF(AND(Y$16>=600,Y$16<=999),"0..099|600..999","0")) -> 0 | Z147: 0 | AC147: =SUM(N147:AB147) -> 0 | AD147: =ABS(SUM(N147:AB147)) -> 0
A148: Auto | G148: ="283825" -> 283825 | I148: Reserves - Streetlights | M148: =IF(AND(M$16>=0,M$16<=99),"0..099|600..999",IF(AND(M$16>=600,M$16<=999),"0..099|600..999","0")) -> 0..099|600..999 | N148: 0 | P148: =IF(AND(P$16>=0,P$16<=99),"0..099|600..999",IF(AND(P$16>=600,P$16<=999),"0..099|600..999","0")) -> 0 | Q148: 0 | S148: =IF(AND(S$16>=0,S$16<=99),"0..099|600..999",IF(AND(S$16>=600,S$16<=999),"0..099|600..999","0")) -> 0 | T148: 0 | V148: =IF(AND(V$16>=0,V$16<=99),"0..099|600..999",IF(AND(V$16>=600,V$16<=999),"0..099|600..999","0")) -> 0 | W148: 0 | Y148: =IF(AND(Y$16>=0,Y$16<=99),"0..099|600..999",IF(AND(Y$16>=600,Y$16<=999),"0..099|600..999","0")) -> 0 | Z148: 0 | AC148: =SUM(N148:AB148) -> 0 | AD148: =ABS(SUM(N148:AB148)) -> 0
I150: Total Assigned | N150: =SUM(N143:N149) -> 0 | Q150: =SUM(Q143:Q149) -> 0 | T150: =SUM(T143:T149) -> 0 | W150: =SUM(W143:W149) -> 0 | Z150: =SUM(Z143:Z149) -> 0 | AC150: =SUM(N150:AB150) -> 0 | AD150: =ABS(SUM(N150:AB150)) -> 0
D151: 284000..284999 | I151: Unassigned to: (hidden)
M152: =IF(AND(M$16>=0,M$16<=99),"0..099|600..999",IF(AND(M$16>=600,M$16<=999),"0..099|600..999","0")) -> 0..099|600..999 | N152: 0 | P152: =IF(AND(P$16>=0,P$16<=99),"0..099|600..999",IF(AND(P$16>=600,P$16<=999),"0..099|600..999","0")) -> 0 | Q152: 0 | S152: =IF(AND(S$16>=0,S$16<=99),"0..099|600..999",IF(AND(S$16>=600,S$16<=999),"0..099|600..999","0")) -> 0 | T152: 0 | V152: =IF(AND(V$16>=0,V$16<=99),"0..099|600..999",IF(AND(V$16>=600,V$16<=999),"0..099|600..999","0")) -> 0 | W152: 0 | Y152: =IF(AND(Y$16>=0,Y$16<=99),"0..099|600..999",IF(AND(Y$16>=600,Y$16<=999),"0..099|600..999","0")) -> 0 | Z152: 0 | AC152: =SUM(N152:AB152) -> 0 | AD152: =ABS(SUM(N152:AB152)) -> 0
I154: Total Unassigned (hidden) | N154: =SUM(N151:N153) -> 0 | Q154: =SUM(Q151:Q153) -> 0 | T154: =SUM(T151:T153) -> 0 | W154: =SUM(W151:W153) -> 0 | Z154: =SUM(Z151:Z153) -> 0 | AC154: =SUM(N154:AB154) -> 0 | AD154: =ABS(SUM(N154:AB154)) -> 0
G155: 284100 | I155: Unassigned: | M155: =IF(AND(M$16>=0,M$16<=399),"0..399|600..999",IF(AND(M$16>=600,M$16<=999),"0..399|600..999","0")) -> 0..399|600..999 | N155: =IF(OR($F$5="NO",M155="0"),0,SUM(N81-N107-N175-N132-N133-N134)) -> 0 | P155: =IF(AND(P$16>=0,P$16<=399),"0..399|600..999",IF(AND(P$16>=600,P$16<=999),"0..399|600..999","0")) -> 0..399|600..999 | Q155: =IF(OR($F$5="NO",P155="0"),0,SUM(Q81-Q107-Q175-Q132-Q133-Q134)) -> 0 | S155: =IF(AND(S$16>=0,S$16<=399),"0..399|600..999",IF(AND(S$16>=600,S$16<=999),"0..399|600..999","0")) -> 0..399|600..999 | T155: =IF(OR($F$5="NO",S155="0"),0,SUM(T81-T107-T175-T132-T133-T134)) -> 0 | V155: =IF(AND(V$16>=0,V$16<=399),"0..399|600..999",IF(AND(V$16>=600,V$16<=999),"0..399|600..999","0")) -> 0..399|600..999 | W155: =IF(OR($F$5="NO",V155="0"),0,SUM(W81-W107-W175-W132-W133-W134)) -> 0 | Y155: =IF(AND(Y$16>=0,Y$16<=399),"0..399|600..999",IF(AND(Y$16>=600,Y$16<=999),"0..399|600..999","0")) -> 0..399|600..999 | Z155: =IF(OR($F$5="NO",Y155="0"),0,SUM(Z81-Z107-Z175-Z132-Z133-Z134)) -> 0 | AC155: =SUM(N155:AB155) -> 0 | AD155: =ABS(SUM(N155:AB155)) -> 0
B157: Hide | C157: Restricted investments | D157: 151000 | E157: 1006..1080|1092..1099 | M157: 0 | P157: 0 | S157: 0 | V157: -1695234 | Y157: -485290 | AD157: =ABS(SUM(N157:AB157)) -> 2180524
B158: Hide | D158: 151001..152999 | M158: 0 | P158: 0 | S158: 0 | V158: 0 | Y158: 0 | AD158: 0
B159: Hide | C159: Restrcited for Debt Service | D159: 275100 | M159: 0 | P159: 0 | S159: 0 | V159: 0 | Y159: 0 | AD159: 0
B160: Hide | C160: Accrued Interest | D160: 215000 | M160: 0 | P160: 0 | S160: 0 | V160: 0 | Y160: 0 | AD160: 0
B161: Hide | C161: Capital Assets | D161: 154000|158000..170998 | M161: 0 | P161: 0 | S161: 0 | V161: 0 | Y161: 0 | AD161: 0
B162: Hide | C162: Bond Debt | D162: 203000..204999|224090..234999 | M162: 0 | P162: 0 | S162: 0 | V162: 0 | Y162: 0 | AD162: 0
B163: =IF(OR($AD163=0,$AD112=0),"Hide","SHOW") -> Hide | I163: Net Assets | AD163: =SUM(AD164:AD172) -> 0
B164: =IF(AD165=0,"Hide","Show") -> Hide | G164: 274000 | I164: Invested in capital assets,
B165: =IF(AD165=0,"Hide","Show") -> Hide | I165: net of related debt | M165: =IF(AND(M$16>=400,M$16<=599),"400..599","0") -> 0 | N165: =IF(M165="0",0,-(SUM(M161+M162))) -> 0 | P165: =IF(AND(P$16>=400,P$16<=599),"400..599","0") -> 0 | Q165: =IF(P165="0",0,-(SUM(P161+P162))) -> 0 | S165: =IF(AND(S$16>=400,S$16<=599),"400..599","0") -> 0 | T165: =IF(S165="0",0,-(SUM(S161+S162))) -> 0 | V165: =IF(AND(V$16>=400,V$16<=599),"400..599","0") -> 0 | W165: =IF(V165="0",0,-(SUM(V161+V162))) -> 0 | Y165: =IF(AND(Y$16>=400,Y$16<=599),"400..599","0") -> 0 | Z165: =IF(Y165="0",0,-(SUM(Y161+Y162))) -> 0 | AC165: =SUM(N165:AB165) -> 0 | AD165: =ABS(SUM(N165:AB165)) -> 0
B166: Hide | G166: 275100 | I166: Restricted for Debt Service | M166: 0 | N166: =IF(M166="0",0,IF(M159<>0,M159,IF(-SUM(M157+M158+M160)<0,0,-(SUM(M157+M158+M160))))) -> 0 | P166: 0 | Q166: =IF(P166="0",0,IF(P159<>0,P159,IF(-SUM(P157+P158+P160)<0,0,-(SUM(P157+P158+P160))))) -> 0 | S166: 0 | T166: =IF(S166="0",0,IF(S159<>0,S159,IF(-SUM(S157+S158+S160)<0,0,-(SUM(S157+S158+S160))))) -> 0 | V166: 0 | W166: =IF(V166="0",0,IF(V159<>0,V159,IF(-SUM(V157+V158+V160)<0,0,-(SUM(V157+V158+V160))))) -> 0 | Y166: 0 | Z166: =IF(Y166="0",0,IF(Y159<>0,Y159,IF(-SUM(Y157+Y158+Y160)<0,0,-(SUM(Y157+Y158+Y160))))) -> 0 | AC166: 0 | AD166: 0
B167: Hide | G167: 275000 | I167: Restricted for Other | M167: 0 | N167: 0 | P167: 0 | Q167: 0 | S167: 0 | T167: 0 | V167: 0 | W167: 0 | Y167: 0 | Z167: 0 | AC167: 0 | AD167: 0
B168: Hide | G168: 247045 | I168: Reserves-Renewal & Replacement | M168: 0 | N168: 0 | P168: 0 | Q168: 0 | S168: 0 | T168: 0 | V168: 0 | W168: 0 | Y168: 0 | Z168: 0 | AC168: 0 | AD168: 0
A169: Auto | B169: Hide | G169: ="247118" -> 247118 | I169: Reserves - Self Insurance | M169: 0 | N169: 0 | P169: 0 | Q169: 0 | S169: 0 | T169: 0 | V169: 0 | W169: 0 | Y169: 0 | Z169: 0 | AC169: 0 | AD169: 0
A170: Auto | B170: Hide | G170: ="247199" -> 247199 | I170: Operating Reserve | M170: 0 | N170: 0 | P170: 0 | Q170: 0 | S170: 0 | T170: 0 | V170: 0 | W170: 0 | Y170: 0 | Z170: 0 | AC170: 0 | AD170: 0
B171: hide
B172: =IF(AD172=0,"Hide","Show") -> Hide | G172: 276000 | I172: Unrestricted/Unreserved | M172: =IF(AND(M$16>=400,M$16<=599),"400..599","0") -> 0 | N172: =IF(M172="0",0,SUM(N81-N107-N175)) -> 0 | P172: =IF(AND(P$16>=400,P$16<=599),"400..599","0") -> 0 | Q172: =IF(P172="0",0,SUM(Q81-Q107-Q175)) -> 0 | S172: =IF(AND(S$16>=400,S$16<=599),"400..599","0") -> 0 | T172: =IF(S172="0",0,SUM(T81-T107-T175)) -> 0 | V172: =IF(AND(V$16>=400,V$16<=599),"400..599","0") -> 0 | W172: =IF(V172="0",0,SUM(W81-W107-W175)) -> 0 | Y172: =IF(AND(Y$16>=400,Y$16<=599),"400..599","0") -> 0 | Z172: =IF(Y172="0",0,SUM(Z81-Z107-Z175)) -> 0 | AC172: =SUM(N172:AB172) -> 0 | AD172: =ABS(SUM(N172:AB172)) -> 0
B173: =IF(AD173=0,"Hide","Show") -> Hide | AD173: =ABS(SUM(N173:AB173)) -> 0
B174: =IF(SUM(AD110:AD173)=0,"Hide","Show") -> Show
B175: Hide | I175: Hidden Sum | N175: =SUM(N158,N150,N142,N130,N135:N137)+SUM(N116:N124)+SUM(N165:N171) -> 564188 | Q175: =SUM(Q158,Q150,Q142,Q130,Q135:Q137)+SUM(Q116:Q124)+SUM(Q165:Q171) -> 0 | T175: =SUM(T158,T150,T142,T130,T135:T137)+SUM(T116:T124)+SUM(T165:T171) -> 0 | W175: =SUM(W158,W150,W142,W130,W135:W137)+SUM(W116:W124)+SUM(W165:W171) -> 0 | Z175: =SUM(Z158,Z150,Z142,Z130,Z135:Z137)+SUM(Z116:Z124)+SUM(Z165:Z171) -> 0 | AC175: =SUM(N175:AB175) -> 564188 | AD175: =ABS(SUM(N175:AB175)) -> 564188
B176: =IF(AD176=0,"Hide","Show") -> Show | I176: ="TOTAL "&I110 -> TOTAL FUND BALANCES | N176: =N113+N114+N172+N125+N175 -> 1172130 | Q176: =Q113+Q114+Q172+Q125+Q175 -> 0 | T176: =T113+T114+T172+T125+T175 -> 0 | W176: =W113+W114+W172+W125+W175 -> 1690940 | Z176: =Z113+Z114+Z172+Z125+Z175 -> 485290 | AC176: =AC113+AC114+AC172+AC125+AC175 -> 3348360 | AD176: =ABS(SUM(N176:AB176)) -> 3348360
B177: =IF(I181<>"net assets","Hide","Show") -> Hide
B178: =IF(OR(I181="net assets",AD176=0),"Hide","Show") -> Show
B179: =IF(OR(I181="net assets",AD176=0),"Hide","Show") -> Show
B180: =B181 -> Show | I180: TOTAL LIABILITIES & | AD180: =IF(OR(AD163=0,AD110=0),0,AD163+AD110) -> 0
B181: =IF(OR(I181="net assets",AD181=0),"Hide","Show") -> Show | I181: =I110 -> FUND BALANCES | N181: =SUM(N176+N107) -> 1268161 | Q181: =SUM(Q176+Q107) -> 0 | T181: =SUM(T176+T107) -> 0 | W181: =SUM(W176+W107) -> 1695234 | Z181: =SUM(Z176+Z107) -> 485290 | AC181: =SUM(N181:AB181) -> 3448685 | AD181: =ABS(SUM(N181:AB181)) -> 3448685
B182: Hide
B183: Hide | I183: Complete Totals | N183: =ABS(SUM(N81+N107+N181)) -> 2632353 | Q183: =ABS(SUM(Q81+Q107+Q181)) -> 0 | T183: =ABS(SUM(T81+T107+T181)) -> 0 | W183: =ABS(SUM(W81+W107+W181)) -> 3394762 | Z183: =ABS(SUM(Z81+Z107+Z181)) -> 970580 | AC183: =SUM(N183:AB183) -> 6997695 | AD183: =ABS(SUM(N183:AB183)) -> 6997695
B184: Hide
B185: Hide
B186: Hide
B187: Hide
B188: Hide
B189: =B190 -> hide
B190: hide
B191: hide | N191: CHECK TOTAL REPORT | Q191: CHECK TOTAL REPORT | T191: CHECK TOTAL REPORT | W191: CHECK TOTAL REPORT | Z191: CHECK TOTAL REPORT
B192: hide | N192: =SUM(N107+N176-N81) -> 0 | Q192: =SUM(Q107+Q176-Q81) -> 0 | T192: =SUM(T107+T176-T81) -> 0 | W192: =SUM(W107+W176-W81) -> 0 | Z192: =SUM(Z107+Z176-Z81) -> 0 | AC192: =SUM(N192:AB192) -> 0
B193: hide
B194: hide | D194: 100000..199999 | I194: Assets | N194: 1268161.16 | Q194: 0 | T194: 0.01 | W194: 1695234.29 | Z194: 485289.74 | AC194: =SUM(N194:AB194) -> 3448685.2
B195: hide | D195: 200000..239999 | I195: Liabilities | N195: -96031.66 | Q195: 0 | T195: 0 | W195: -4294.16 | Z195: 0 | AC195: =SUM(N195:AB195) -> -100325.82
B196: =IF(AC196<10,"hide","show") -> hide | I196: Difference (report and Navigator) | N196: =ABS((N81-N107)-(N194+N195)) -> 0.5 | Q196: =ABS((Q81-Q107)-(Q194+Q195)) -> 0 | T196: =ABS((T81-T107)-(T194+T195)) -> 0.01 | W196: =ABS((W81-W107)-(W194+W195)) -> 0.1300000001 | Z196: =ABS((Z81-Z107)-(Z194+Z195)) -> 0.26 | AC196: =SUM(N196:AB196) -> 0.9000000001
B197: =B196 -> hide
B198: =B197 -> hide | D198: 100000..299999 | N198: 581826.44 | Q198: 0 | T198: 0 | W198: 561385.72 | Z198: 128515.78 | AC198: =SUM(N198:AB198) -> 1271727.94
B199: =B198 -> hide | D199: 300000..599999 | N199: -581826.44 | Q199: 0 | T199: 0 | W199: -561385.72 | Z199: -128515.78 | AC199: =SUM(N199:AB199) -> -1271727.94
B200: =B199 -> hide | N200: CHECK TOTAL NAVIGATOR | Q200: CHECK TOTAL NAVIGATOR | T200: CHECK TOTAL NAVIGATOR | W200: CHECK TOTAL NAVIGATOR | Z200: CHECK TOTAL NAVIGATOR
B201: =B200 -> hide | N201: =SUM(N198+N199) -> 0 | Q201: =SUM(Q198+Q199) -> 0 | T201: =SUM(T198+T199) -> 0 | W201: =SUM(W198+W199) -> 0 | Z201: =SUM(Z198+Z199) -> 0 | AC201: =SUM(N201:AB201) -> 0

Sheet Remove_Empty (hidden)
A1: Auto+Hide+Lock+Formulas=Sheet2,Sheet9,Sheet10 | B1: Hide+? | C1: Hide
A2: Hide+? | B2: Hidesheet | C2: naturals
A3: Hide | C3: 02/29/16
A4: Hide | C4: HARMONY CDD | E4: This sheet eliminated funds that have no activity
A5: Hide | C5: Actual
A6: Hide | C6: =TEXT($C$3,"mm/dd/yyyy") -> 02/29/2016
A7: Hide | C7: =CONCATENATE("01/01/1911..",TEXT($C$3,"MM/DD/YYYY")) -> 01/01/1911..02/29/2016
A8: Hide | C8: 001..299|400..450
A9: Hide | C9: 9999
A10: Hide
A11: Hide
A12: Show
A13: Show
A14: Show
A15: Show
A16: FIT
I18: Balance Sheet
D19: Fund No. | E19: Assets | F19: Liability | G19: Equity | H19: Rev/Exp | I19: Funds
E21: 100000..199999 | F21: 200000..239999 | G21: 240000..299999 | H21: 300000..599999
D22: 001 | E22: 1268161.16 | F22: -96031.66 | G22: -590303.06 | H22: -581826.44 | I22: =IF((ABS(E22)+ABS(F22))+ABS(G22)+ABS(H22)=0,"..",D22) -> 001
A23: Auto | D23: ="201" -> 201 | E23: 0 | F23: 0 | G23: 0 | H23: 0 | I23: ..
A24: Auto | D24: ="202" -> 202 | E24: 0.01 | F24: 0 | G24: -0.01 | H24: 0 | I24: 202
A25: Auto | D25: ="203" -> 203 | E25: 1695234.29 | F25: -4294.16 | G25: -1129554.41 | H25: -561385.72 | I25: 203
A26: Auto | D26: ="204" -> 204 | E26: 485289.74 | F26: 0 | G26: -356773.96 | H26: -128515.78 | I26: 204
A27: Auto | D27: ="401" -> 401 | E27: 0 | F27: 0 | G27: 0 | H27: 0 | I27: ..
I29: 001|..|202|203|204|..|
I30: =SUBSTITUTE(I29,"..|","") -> 001|202|203|204|
I31: =LEN(I30) -> 16
I32: =IF(LEFT(I30,I31-1)="",0,LEFT(I30,I31-1)) -> 001|202|203|204
F37: To be reclassed
F39: To be reclassed/
F40: =SUBSTITUTE(F39,"!/","") -> To be reclassed/
F41: =LEN(F40) -> 16
F42: =IF(ISERROR(IF(LEFT(F40,F41-1)="","",LEFT(F40,F41-1))),"",(IF(LEFT(F40,F41-1)="","",LEFT(F40,F41-1)))) -> To be reclassed

Sheet Options (hidden)
A1: Auto+Hide+Hidesheet+Values+Formulas=Sheet3,Sheet11,Sheet12 | C1: Title | D1: Value | E1: Lookup
A3: Option | C3: Company | D3: ="HARMONY CDD" -> HARMONY CDD | E3: Lookup
A4: Option | C4: New Budget Fiscal Year | D4: ="2017" -> 2017
A5: Option | C5: Actual Date | D5: ="02/29/16" -> 02/29/16
A6: Option | C6: Fund No. | D6: 001..299|400..450 | E6: Lookup
A7: Option | C7: # of PY Actuals (max - 4) | D7: ="1" -> 1 | E7: Lookup | F7: 0 | G7: 1 | H7: 2 | I7: 3 | J7: 4
A8: Option | C8: # of PY Budgets (max -2) | D8: ="1" -> 1 | E8: Lookup | F8: 0 | G8: 1 | H8: 2
A9: Option | C9: Balance Budget | D9: Yes | E9: Lookup | F9: Yes | G9: No
A10: Option | C10: Copy Adopted budget to proposed | D10: Yes | E10: Lookup | F10: Yes | G10: No
A11: Option | C11: Hide Projected Totals | D11: No | E11: Lookup | F11: Yes | G11: No
A12: Option | C12: Show Account # | D12: No | E12: Lookup | F12: Yes | G12: No
A13: Option | C13: Show Total w/o Reserves | D13: No | E13: Lookup | F13: Yes | G13: No
A14: Option | C14: Show COGS | D14: No | E14: Lookup | F14: Yes | G14: No
A15: Option | C15: Sub Account | D15: * | E15: Lookup
A16: Option | C16: Budget Worksheet | D16: No | E16: Lookup | F16: Yes | G16: No
A17: Option | C17: Balance Sheet - GASB 54 | D17: No | E17: Lookup | F17: Yes | G17: No
A18: Option | C18: Subtotal Revenue | D18: No | E18: Lookup | F18: Yes | G18: No

Sheet TOC
A1: Auto+Hide
B2: Table of Contents
I4: Page #
C5: General Fund
C6: Summary of Revenues, Expenditures and Changes in Fund Balances | H6: …………………… | I6: 1-3
C7: Exhibit A - Allocation of Fund Balances | H7: …………………………………………………………… | I7: 4
C8: Budget Narrative | H8: ………………………………………………………………………………… | I8: 5-10
B10: DEBT SERVICE BUDGETS
C11: Series 2014
C12: Summary of Revenues, Expenditures and Changes in Fund Balances | H12: …………………… | I12: 11
C13: Amortization Schedule | H13: ……………………………………………………………………………… | I13: 12
C14: Series 2015
C15: Summary of Revenues, Expenditures and Changes in Fund Balances | H15: …………………… | I15: 13
C16: Amortization Schedule | H16: ……………………………………………………………………………… | I16: 14
C17: Budget Narrative | H17: ……………………………………………………………………………………….. | I17: 15
B19: SUPPORTING BUDGET SCHEDULES
C20: 2017 -2016 Non-Ad Valorem Assessment Summary | H20: ……………………………………………… | I20: 16-17

Sheet TABS
A1: Auto+Hide
B9: =IF(OVERRIDE_DN="",CDD,OVERRIDE_DN) -> Harmony
B10: =IF(OVERRIDE_TYPE="",CDD_NAME,OVERRIDE_TYPE) -> Community Development District
B13: Budget Overview
B14: =COVER_PAGE!B13 -> Fiscal Year 2017
B26: =+B9 -> Harmony
B27: =+B10 -> Community Development District
B30: Operating Budget
B31: =B14 -> Fiscal Year 2017
B43: =B26 -> Harmony
B44: =B27 -> Community Development District
B47: Debt Service Budgets
B48: =B31 -> Fiscal Year 2017
B61: =B43 -> Harmony
B62: =B44 -> Community Development District
B65: Supporting Budget Schedules
B66: =B48 -> Fiscal Year 2017

Sheet Assess_Detail (hidden)
A1: Harmony
A2: Community Development District
A3: 2016-2017 Non-Ad Valorem Assessment Summary | AH3: Assumption
A4: Summary of Assessment Rates | AH4: GF allocation is based on same allocation as DS
AH5: DS for 2014 Bond is based on MADS
AC6: O&M | AD6: ='001'!AP246-'001'!AP38-'001'!AP52-'001'!AP97 -> 1855042 | AH6: DS for 2015 Bond is based on MADS
A7: Platted | E7: O& M | H7: Series 2014 Debt Service | K7: Series 2015 Debt Service | N7: Total | U7: Calcs for | Y7: Total | AD7: = Total Exped. - Interest - Misc-Assessmnt Collection Cost | AH7: Series 2004 will continue to collect actual assessments per acre with a fixed amount to the golf course
E8: FY 2017 | F8: FY 2016 | G8: % Change | H8: =N8 -> FY 2017 | I8: =O8 -> FY 2016 | J8: % Change | K8: =H8 -> FY 2017 | L8: =I8 -> FY 2016 | M8: % Change | N8: =E8 -> FY 2017 | O8: =F8 -> FY 2016 | P8: % Change | U8: Original | W8: Lots Size | Y8: Acres | Z8: Remaining | AA8: Remaining Acreage
A9: Neighborhood | C9: Type | D9: Width | E9: O & M | F9: O & M | G9: (Decrease)/ Increase | H9: Debt Service | I9: Debt Service | J9: (Decrease) | K9: Debt Service | L9: Debt Service | M9: (Decrease)/ Increase | N9: Total | O9: Total | P9: (Decrease)/ Increase | Q9: Units | R9: Acres | S9: Acres | T9: FF | U9: Acreage | W9: per acre | X9: Prepaids | Y9: Prepaid | Z9: Acreage | AA9: for 2004 Bond | AC9: GF | AD9: DS1 | AE9: DS2 | AF9: GROSS | AH9: 2014 DS Meth | AI9: Units according
C10: Type | Q10: Units | R10: Acres
AH11: Report | AI11: to Meth Report | AJ11: Variance | AK11: $ Variance
A12: A-1 | B12: A-1 | C12: MF | D12: n/a | E12: =ROUND(AC12/Q12,2) -> 487.96 | F12: 486.65 | G12: =(+E12-F12)/F12 -> 0.002691873009 | H12: 605.7146367 | I12: 605.7146367 | J12: =(+H12-I12)/I12 -> 0 | K12: 0 | L12: 0 | M12: 0 | N12: =H12+E12 -> 1093.674637 | O12: 1092.364637 | P12: =(+N12-O12)/O12 -> 0.001199233256 | Q12: 186 | S12: 19.77 | U12: =S12/S52 -> 0.04599093538 | W12: =S12/Q12 -> 0.1062903226 | X12: 2 | Y12: =W12*X12 -> 0.2125806452 | Z12: =W12*Q12-Y12 -> 19.55741935 | AC12: =AD$6*U12/0.94 -> 90760.76249 | AD12: =H12*(Q12-X12) -> 111451.4932 | AF12: =SUM(AD12:AE12) -> 111451.4932 | AH12: 111451.4932 | AI12: 184 | AJ12: =AI12-(Q12-X12) -> 0 | AK12: =AJ12*H12 -> 0
A13: B | B13: SF | C13: B | D13: 80 | E13: 1542.6 | F13: 1538.44 | G13: 0.002704037857 | H13: 1914.868155 | I13: 1914.868155 | J13: 0 | K13: 0 | L13: 0 | M13: 0 | N13: 3457.468155 | O13: 3453.308155 | P13: 0.001204641988 | Q13: 9 | S13: 23.58 | T13: =+D13*Q13 -> 720 | U13: =(T13/SUM(T$13:T$17))*S$13/S$52 -> 0.00703508683 | W13: =S$13*(T13/SUM(T$13:T$17))/Q13 -> 0.3360171001 | X13: 1 | Y13: 0.3360171001 | Z13: 2.688136801 | AC13: 13883.38462 | AD13: 15318.94524 | AF13: 15318.94524 | AH13: 15318.94524 | AI13: 8 | AJ13: =AI13-(Q13-X13) -> 0 | AK13: 0
B14: SF | C14: C | D14: 65 | E14: 1253.36 | F14: 1249.99 | G14: 0.002696021568 | H14: 1555.831474 | I14: 1555.831474 | J14: 0 | K14: 0 | L14: 0 | M14: 0 | N14: 2809.191474 | O14: 2805.821474 | P14: 0.001201074277 | Q14: 25 | T14: 1625 | U14: =(T14/SUM(T$13:T$17))*S$13/S$52 -> 0.01587780014 | W14: =S$13*(T14/SUM(T$13:T$17))/Q14 -> 0.2730138938 | X14: 3 | Y14: 0.8190416815 | Z14: 6.006305664 | AC14: 31334.02779 | AD14: 34228.29244 | AF14: 34228.29244 | AH14: 37339.95538 | AI14: 24 | AJ14: 2 | AK14: 3111.662949
B15: SF | C15: E | D15: 52 | E15: 1002.69 | F15: 999.99 | G15: 0.002700027 | H15: 1244.659909 | I15: 1244.659909 | J15: 0 | K15: 0 | L15: 0 | M15: 0 | N15: 2247.349909 | O15: 2244.649909 | P15: 0.001202860183 | Q15: 35 | T15: 1820 | U15: =(T15/SUM(T$13:T$17))*S$13/S$52 -> 0.01778313615 | W15: =S$13*(T15/SUM(T$13:T$17))/Q15 -> 0.2184111151 | X15: 9 | Y15: 1.965700036 | Z15: 5.678688992 | AC15: 35094.11112 | AD15: 32361.15763 | AF15: 32361.15763 | AH15: 33605.81754 | AI15: 27 | AJ15: 1 | AK15: 1244.659909
B16: SF | C16: G | D16: 42 | E16: 809.86 | F16: 807.68 | G16: 0.002699088748 | H16: 1005.307978 | I16: 1005.307978 | J16: 0 | K16: 0 | L16: 0 | M16: 0 | N16: 1815.167978 | O16: 1812.987978 | P16: 0.00120243489 | Q16: 22 | T16: 924 | U16: =(T16/SUM(T$13:T$17))*S$13/S$52 -> 0.009028361432 | W16: =S$13*(T16/SUM(T$13:T$17))/Q16 -> 0.1764089776 | X16: 1 | Y16: 0.1764089776 | Z16: 3.704588529 | AC16: 17817.01026 | AD16: 21111.46753 | AF16: 21111.46753 | AH16: 22116.77551 | AI16: 22 | AJ16: 1 | AK16: 1005.307978
B17: SF | C17: H | D17: 35 | E17: 674.89 | F17: 673.07 | G17: 0.002704027813 | H17: 837.7493279 | I17: 837.7493279 | J17: 0 | K17: 0 | L17: 0 | M17: 0 | N17: 1512.639328 | O17: 1510.819328 | P17: 0.001204644372 | Q17: 15 | T17: 525 | U17: =(T17/SUM(T$13:T$17))*S$13/S$52 -> 0.005129750813 | W17: =S$13*(T17/SUM(T$13:T$17))/Q17 -> 0.1470074813 | X17: 3 | Y17: 0.4410224439 | Z17: 1.764089776 | AC17: 10123.30129 | AD17: 10052.99193 | AF17: 10052.99193 | AH17: 10052.99193 | AI17: 12 | AJ17: 0 | AK17: 0
A18: C-1 | B18: SF | C18: B | D18: =D13 -> 80 | E18: =ROUND(AC18/Q18,2) -> 1517.25 | F18: 1513.17 | G18: 0.002696326255 | H18: 1883.403145 | I18: 1883.403145 | J18: 0 | K18: 0 | L18: 0 | M18: 0 | N18: 3400.653145 | O18: 3396.573145 | P18: 0.001201210699 | Q18: 10 | S18: 25.82 | T18: 800 | U18: =(T18/SUM(T$18:T$22))*S$18/S$52 -> 0.007688325836 | W18: =S$18*(T18/SUM(T$18:T$22))/Q18 -> 0.330496 | X18: 2 | Y18: 0.660992 | Z18: 2.643968 | AC18: =AD$6*U18/0.94 -> 15172.51844 | AD18: 15067.22516 | AF18: 15067.22516 | AH18: 15067.22516 | AI18: 8 | AJ18: 0 | AK18: 0
B19: SF | C19: C | D19: 65 | E19: 1232.77 | F19: 1229.45 | G19: 0.002700394485 | H19: 1530.260663 | I19: 1530.260663 | J19: 0 | K19: 0 | L19: 0 | M19: 0 | N19: 2763.030663 | O19: 2759.710663 | P19: 0.001203024667 | Q19: 30 | T19: 1950 | U19: =(T19/SUM(T$18:T$22))*S$18/S$52 -> 0.01874029423 | W19: =S$18*(T19/SUM(T$18:T$22))/Q19 -> 0.268528 | X19: 4 | Y19: 1.074112 | Z19: 6.981728 | AC19: 36983.0137 | AD19: 39786.77723 | AF19: 39786.77723 | AH19: 39786.77723 | AI19: 26 | AJ19: 0 | AK19: 0
B20: SF | C20: E | D20: 52 | E20: 986.21 | F20: 983.56 | G20: 0.002694294197 | H20: 1224.210287 | I20: 1224.210287 | J20: 0 | K20: 0 | L20: 0 | M20: 0 | N20: 2210.420287 | O20: 2207.770287 | P20: 0.001200306035 | Q20: 35 | T20: 1820 | U20: =(T20/SUM(T$18:T$22))*S$18/S$52 -> 0.01749094128 | W20: =S$18*(T20/SUM(T$18:T$22))/Q20 -> 0.2148224 | X20: 2 | Y20: 0.4296448 | Z20: 7.0891392 | AC20: 34517.47946 | AD20: 40398.93948 | AF20: 40398.93948 | AH20: 40398.93948 | AI20: 33 | AJ20: 0 | AK20: 0
B21: SF | C21: G | D21: 42 | E21: 796.56 | F21: 794.41 | G21: 0.002706411047 | H21: 988.7848941 | I21: 988.7848941 | J21: 0 | K21: 0 | L21: 0 | M21: 0 | N21: 1785.344894 | O21: 1783.194894 | P21: 0.001205701075 | Q21: 30 | T21: 1260 | U21: =(T21/SUM(T$18:T$22))*S$18/S$52 -> 0.01210911319 | W21: =S$18*(T21/SUM(T$18:T$22))/Q21 -> 0.1735104 | X21: 3 | Y21: 0.5205312 | Z21: 4.6847808 | AC21: 23896.71655 | AD21: 26697.19214 | AF21: 26697.19214 | AH21: 26697.19214 | AI21: 27 | AJ21: 0 | AK21: 0
B22: SF | C22: H | D22: 35 | E22: 663.8 | F22: 662.01 | G22: 0.002703886648 | H22: 823.9844836 | I22: 823.9844836 | J22: 0 | K22: 0 | L22: 0 | M22: 0 | N22: 1487.784484 | O22: 1485.994484 | P22: 0.001204580515 | Q22: 12 | T22: 420 | U22: =(T22/SUM(T$18:T$22))*S$18/S$52 -> 0.004036371064 | W22: =S$18*(T22/SUM(T$18:T$22))/Q22 -> 0.144592 | X22: 1 | Y22: 0.144592 | Z22: 1.590512 | AC22: 7965.572182 | AD22: 9063.82932 | AF22: 9063.82932 | AH22: 9063.82932 | AI22: 11 | AJ22: 0 | AK22: 0
A23: C-2 | B23: SF | C23: B | D23: 80 | E23: 1577.73 | F23: 1573.48 | G23: 0.002701019396 | H23: 1958.472933 | I23: 1958.472933 | J23: 0 | K23: 0 | L23: 0 | M23: 0 | N23: 3536.202933 | O23: 3531.952933 | P23: 0.001203300293 | Q23: 4 | S23: 17.54 | T23: 320 | U23: =(T23/SUM(T$23:T$27))*S$23/S$52 -> 0.003197906491 | W23: =S$23*(T23/SUM(T$23:T$27))/Q23 -> 0.3436688709 | Y23: 0 | Z23: 1.374675484 | AC23: 6310.905163 | AD23: 7833.891733 | AF23: 7833.891733 | AH23: 7833.891733 | AI23: 4 | AJ23: 0 | AK23: 0
B24: SF | C24: C | D24: 65 | E24: 1281.9 | F24: 1278.45 | G24: 0.002698580312 | H24: 1591.25816 | I24: 1591.25816 | J24: 0 | K24: 0 | L24: 0 | M24: 0 | N24: 2873.15816 | O24: 2869.70816 | P24: 0.001202212841 | Q24: 14 | T24: 910 | U24: =(T24/SUM(T$23:T$27))*S$23/S$52 -> 0.009094046585 | W24: =S$23*(T24/SUM(T$23:T$27))/Q24 -> 0.2792309576 | Y24: 0 | Z24: 3.909233407 | AC24: 17946.63656 | AD24: 22277.61424 | AF24: 22277.61424 | AH24: 22277.61424 | AI24: 14 | AJ24: 0 | AK24: 0
B25: SF | C25: E | D25: 52 | E25: 1025.52 | F25: 1022.76 | G25: 0.002698580312 | H25: 1273.006528 | I25: 1273.006528 | J25: 0 | K25: 0 | L25: 0 | M25: 0 | N25: 2298.526528 | O25: 2295.766528 | P25: 0.001202212841 | Q25: 13 | T25: 676 | U25: =(T25/SUM(T$23:T$27))*S$23/S$52 -> 0.006755577463 | W25: =S$23*(T25/SUM(T$23:T$27))/Q25 -> 0.2233847661 | Y25: 0 | Z25: 2.904001959 | AC25: 13331.78716 | AD25: 16549.08487 | AF25: 16549.08487 | AH25: 16549.08487 | AI25: 13 | AJ25: 0 | AK25: 0
B26: SF | C26: G | D26: 42 | E26: 828.31 | F26: 826.08 | G26: 0.002699496417 | H26: 1028.199608 | I26: 1028.199608 | J26: 0 | K26: 0 | L26: 0 | M26: 0 | N26: 1856.509608 | O26: 1854.279608 | P26: 0.001202623375 | Q26: 31 | T26: 1302 | U26: =(T26/SUM(T$23:T$27))*S$23/S$52 -> 0.01301148204 | W26: =S$23*(T26/SUM(T$23:T$27))/Q26 -> 0.1804261572 | X26: 1 | Y26: 0.1804261572 | Z26: 5.412784717 | AC26: 25677.49538 | AD26: 30845.98823 | AF26: 30845.98823 | AH26: 30845.98823 | AI26: 30 | AJ26: 0 | AK26: 0
B27: SF | C27: H | D27: 35 | E27: 690.26 | F27: 688.4 | G27: 0.00270191749 | H27: 856.8286143 | I27: 856.8286143 | J27: 0 | K27: 0 | L27: 0 | M27: 0 | N27: 1547.088614 | O27: 1545.228614 | P27: 0.001203705382 | Q27: 25 | T27: 875 | U27: =(T27/SUM(T$23:T$27))*S$23/S$52 -> 0.008744275562 | W27: =S$23*(T27/SUM(T$23:T$27))/Q27 -> 0.150355131 | X27: 1 | Y27: 0.150355131 | Z27: 3.608523145 | AC27: 17256.38131 | AD27: 20563.88674 | AF27: 20563.88674 | AH27: 20563.88674 | AI27: 24 | AJ27: 0 | AK27: 0
A28: D-1 | B28: SF | C28: B | D28: 80 | E28: 1630.02 | F28: 1625.63 | G28: 0.002700491502 | H28: 2023.388185 | I28: 2023.388185 | J28: 0 | K28: 0 | L28: 0 | M28: 0 | N28: 3653.408185 | O28: 3649.018185 | P28: 0.001203063339 | Q28: 9 | S28: 10.35 | T28: 720 | U28: =(T28/SUM(T$28:T$30))*S$28/S$52 -> 0.007433782895 | W28: =S$28*(T28/SUM(T$28:T$30))/Q28 -> 0.3550600343 | X28: 1 | Y28: 0.3550600343 | Z28: 2.840480274 | AC28: 14670.19095 | AD28: 16187.10548 | AF28: 16187.10548 | AH28: 16187.10548 | AI28: 8 | AJ28: 0 | AK28: 0
B29: SF | C29: C | D29: 65 | E29: 1324.39 | F29: 1320.82 | G29: 0.002702866401 | H29: 1643.998508 | I29: 1643.998508 | J29: 0 | K29: 0 | L29: 0 | M29: 0 | N29: 2968.388508 | O29: 2964.818508 | P29: 0.001204120924 | Q29: 20 | T29: 1300 | U29: =(T29/SUM(T$28:T$30))*S$28/S$52 -> 0.013422108 | W29: =S$28*(T29/SUM(T$28:T$30))/Q29 -> 0.2884862779 | Y29: 0 | Z29: 5.769725557 | AC29: 26487.84476 | AD29: 32879.97016 | AF29: 32879.97016 | AH29: 32879.97016 | AI29: 20 | AJ29: 0 | AK29: 0
B30: SF | C30: E | D30: 52 | E30: 1059.51 | F30: 1056.66 | G30: 0.0026971779 | H30: 1315.19705 | I30: 1315.19705 | J30: 0 | K30: 0 | L30: 0 | M30: 0 | N30: 2374.70705 | O30: 2371.85705 | P30: 0.001201590121 | Q30: 6 | T30: 312 | U30: =(T30/SUM(T$28:T$30))*S$28/S$52 -> 0.003221305921 | W30: =S$28*(T30/SUM(T$28:T$30))/Q30 -> 0.2307890223 | Y30: 0 | Z30: 1.384734134 | AC30: 6357.082743 | AD30: 7891.182298 | AF30: 7891.182298 | AH30: 7891.182298 | AI30: 6 | AJ30: 0 | AK30: 0
A31: D-2 | B31: SF | C31: E | D31: n/a | E31: 968.25 | F31: 965.64 | G31: 0.002702870635 | H31: 1201.907199 | I31: 1201.907199 | J31: 0 | K31: 0 | L31: 0 | M31: 0 | N31: 2170.157199 | O31: 2167.547199 | P31: 0.001204126029 | Q31: 11 | S31: 2.32 | U31: =S31/S$52 -> 0.005397014167 | W31: =S31/Q31 -> 0.2109090909 | Y31: 0 | Z31: 2.32 | AC31: 10650.73187 | AD31: 13220.97919 | AF31: 13220.97919 | AH31: 13220.97919 | AI31: 11 | AJ31: 0 | AK31: 0
A32: E | B32: SF | C32: Custom | D32: n/a | E32: 2583.47 | F32: 2576.51 | G32: 0.002701328541 | H32: 3206.918833 | I32: 3206.918833 | J32: 0 | K32: 0 | L32: 0 | M32: 0 | N32: 5790.388833 | O32: 5783.428833 | P32: 0.001203438341 | Q32: 51 | S32: 28.7 | U32: =S32/S$52 -> 0.06676478732 | W32: =S32/Q32 -> 0.562745098 | X32: 5 | Y32: 2.81372549 | Z32: 25.88627451 | AC32: 131756.8985 | AD32: 147518.2663 | AF32: 147518.2663 | AH32: 163552.8605 | AI32: 51 | AJ32: 5 | AK32: 16034.59417
A33: G | B33: SF | C33: E | D33: =D20 -> 52 | E33: =ROUND(AC33/Q33,2) -> 1166.26 | F33: 1163.12 | G33: 0.002699635463 | H33: 1447.706734 | I33: 1447.706734 | J33: 0 | K33: 0 | L33: 0 | M33: 0 | N33: 2613.966734 | O33: 2610.826734 | P33: 0.001202684176 | Q33: 62 | S33: 39.86 | T33: =+D33*Q33 -> 3224 | U33: =(T33/SUM(T$33:T$35))*S$33/S$52 -> 0.03664046423 | W33: =S$33*(T33/SUM(T$33:T$35))/Q33 -> 0.2540409364 | X33: 2 | Y33: =W33*X33 -> 0.5080818728 | Z33: =W33*Q33-Y33 -> 15.24245618 | AC33: 72308.08516 | AD33: 86862.40405 | AF33: 86862.40405 | AH33: 86862.40405 | AI33: 60 | AJ33: 0 | AK33: 0
B34: SF | C34: G | D34: =D21 -> 42 | E34: =ROUND(AC34/Q34,2) -> 941.98 | F34: 939.44 | G34: 0.002703738397 | H34: 1169.300242 | I34: 1169.300242 | J34: 0 | K34: 0 | L34: 0 | M34: 0 | N34: 2111.280242 | O34: 2108.740242 | P34: 0.001204510613 | Q34: 85 | T34: 3570 | U34: =(T34/SUM(T$33:T$35))*S$33/S$52 -> 0.04057272249 | W34: =S$33*(T34/SUM(T$33:T$35))/Q34 -> 0.2051869102 | X34: 1 | Y34: =W34*X34 -> 0.2051869102 | Z34: =W34*Q34-Y34 -> 17.23570045 | AC34: 80068.19604 | AD34: 98221.22029 | AF34: 98221.22029 | AH34: 99390.52053 | AI34: 85 | AJ34: 1 | AK34: 1169.300242
B35: SF | C35: H | D35: =D22 -> 35 | E35: =ROUND(AC35/Q35,2) -> 784.98 | F35: 782.87 | G35: 0.00269521121 | H35: 974.4139399 | I35: 974.4139399 | J35: 0 | K35: 0 | L35: 0 | M35: 0 | N35: 1759.39394 | O35: 1757.28394 | P35: 0.001200716601 | Q35: 39 | T35: 1365 | U35: =(T35/SUM(T$33:T$35))*S$33/S$52 -> 0.01551309978 | W35: =S$33*(T35/SUM(T$33:T$35))/Q35 -> 0.1709890918 | X35: 3 | Y35: =W35*X35 -> 0.5129672754 | Z35: =W35*Q35-Y35 -> 6.155607305 | AC35: 30614.31025 | AD35: 35078.90184 | AF35: 35078.90184 | AH35: 36053.31578 | AI35: 37 | AJ35: 1 | AK35: 974.4139399
A36: H-1 | B36: SF | C36: H | D36: 35 | E36: =AC36/Q36 -> 877.3728321 | F36: 875.0096326 | G36: 0.002700769682 | H36: 1073.541122 | I36: 1073.541122 | J36: 0 | K36: 0 | L36: 0 | M36: 0 | N36: 1950.913954 | O36: 1948.550755 | P36: 0.001212798528 | Q36: 39 | S36: 20.34 | T36: 1365 | U36: =(T36/SUM(T$36:T$39))*S$36/S$52 -> 0.01733895406 | W36: =S$36*(T36/SUM(T$36:T$39))/Q36 -> 0.191114094 | Y36: 0 | Z36: =W36*Q36-Y36 -> 7.453449664 | AC36: 34217.54045 | AD36: 41868.10377 | AF36: 41868.10377 | AH36: 41868.10377 | AI36: 39 | AJ36: 0 | AK36: 0
B37: SF | C37: G | D37: 40 | E37: 1002.711808 | F37: 1000.011009 | G37: 0.002700769682 | H37: 1288.249254 | I37: 1288.249254 | J37: 0 | K37: 0 | L37: 0 | M37: 0 | N37: 2290.961063 | O37: 2288.260263 | P37: 0.001180285065 | Q37: 14 | T37: 560 | U37: =(T37/SUM(T$36:T$39))*S$36/S$52 -> 0.007113417052 | W37: =S$36*(T37/SUM(T$36:T$39))/Q37 -> 0.2184161074 | Z37: 3.057825503 | AC37: 14037.96531 | AD37: 18035.48956 | AF37: 18035.48956 | AH37: 18035.48956 | AI37: 14 | AJ37: 0 | AK37: 0
B38: SF | C38: E | D38: 50 | E38: 1253.38976 | F38: 1250.013761 | G38: 0.002700769682 | H38: 1594.975272 | I38: 1594.975272 | J38: 0 | K38: 0 | L38: 0 | M38: 0 | N38: 2848.365032 | O38: 2844.989033 | P38: 0.001186647551 | Q38: 13 | T38: 650 | U38: =(T38/SUM(T$36:T$39))*S$36/S$52 -> 0.008256644792 | W38: =S$36*(T38/SUM(T$36:T$39))/Q38 -> 0.2730201342 | Z38: 3.549261745 | AC38: 16294.06688 | AD38: 20734.67854 | AF38: 20734.67854 | AH38: 20734.67854 | AI38: 13 | AJ38: 0 | AK38: 0
B39: TH | C39: th | D39: 25 | E39: 626.6948801 | F39: 625.0068804 | G39: 0.002700769682 | H39: 766.8151105 | I39: 766.8151105 | J39: 0 | K39: 0 | L39: 0 | M39: 0 | N39: 1393.509991 | O39: 1391.821991 | P39: 0.001212798508 | Q39: 46 | T39: 1150 | U39: =(T39/SUM(T$36:T$39))*S$36/S$52 -> 0.01460791002 | W39: =S$36*(T39/SUM(T$36:T$39))/Q39 -> 0.1365100671 | Z39: 6.279463087 | AC39: 28827.96448 | AD39: 35273.49508 | AF39: 35273.49508 | AH39: 35273.49508 | AI39: 46 | AJ39: 0 | AK39: 0
A40: H-2/F | C40: MF | D40: 50 | E40: 1275.355719 | F40: 0 | G40: N/A | H40: 1592.888622 | I40: 0 | J40: N/A | K40: 0 | L40: 0 | M40: 0 | N40: 2868.244341 | O40: 0 | P40: N/A | Q40: =40+66 -> 106 | R40: =S40 -> 29.44731707 | S40: =S57*(66+40) -> 29.44731707 | U40: =S40/S$52 -> 0.06850327044 | Y40: =W40*X40 -> 0 | Z40: =S40 -> 29.44731707 | AC40: =AD$6*U40/0.94 -> 135187.7062 | AD40: =H40*(Q40-X40) -> 168846.194 | AF40: 168846.194
A41: Office | C41: Office | E41: =AC41 -> 1285.433156 | F41: 1281.970848 | G41: 0.002700769682 | H41: 0 | I41: 0 | J41: N/A | K41: 1541.52192 | L41: 1541.52192 | M41: =(+K41-L41)/L41 -> 0 | N41: =K41+E41 -> 2826.955076 | O41: =L41+F41 -> 2823.492768 | P41: =(+N41-O41)/O41 -> 0.001226249998 | R41: =S41 -> 0.28 | S41: 0.28 | U41: =S41/S$52 -> 0.0006513637787 | Y41: =W41*X41 -> 0 | Z41: =S41 -> 0.28 | AA41: =Z41 -> 0.28 | AC41: 1285.433156 | AE41: =K41 -> 1541.52192 | AF41: 1541.52192 | AH41: =SUM(AH12:AH39) -> 1030920.513 | AI41: =SUM(AI12:AI39) -> 857 | AJ41: =SUM(AJ12:AJ39) -> 11 | AK41: =SUM(AK12:AK39) -> 23539.93918
A42: GC | C42: Golf Course | E42: 0 | F42: 0 | G42: N/A | H42: 0 | I42: 0 | J42: N/A | K42: 52624.27614 | L42: 52624.27614 | M42: =(+K42-L42)/L42 -> 0 | N42: =K42+E42 -> 52624.27614 | O42: =L42+F42 -> 52624.27614 | P42: =(+N42-O42)/O42 -> 0 | Y42: =W42*X42 -> 0 | Z42: =S42 -> 0 | AE42: =K42 -> 52624.27614 | AI42: DS per Meth
A43: Unplatted | AH43: 2014 DS per Table | AI43: less $ Variance
A44: A-2/M | C44: MF | E44: =AC44/$Q44 -> 1198.634757 | F44: 0 | G44: N/A | H44: 1497.315305 | I44: 0 | J44: N/A | K44: 0 | L44: 0 | M44: 0 | N44: =H44+E44+K44 -> 2695.950062 | O44: =I44+F44+L44 -> 0 | P44: 0 | Q44: 58 | R44: =S44 -> 16.11 | S44: 16.11 | U44: =S44/S$52 -> 0.03747668027 | Y44: =W44*X44 -> 0 | Z44: =S44 -> 16.11 | AC44: =AD$6*U44 -> 69520.81592 | AD44: =Q44*H44 -> 86844.28768 | AF44: =SUM(AE44:AE44)/0.94 -> 0 | AH44: =SUM(AD12:AD39) -> 1007380.574 | AI44: =AH41-AK41 -> 1007380.574
A46: I/J/K/L/O | C46: SF | D46: 40 | E46: =AC46/$Q46 -> 1202.984228 | F46: 0 | G46: 0 | H46: 0 | I46: 0 | J46: 0 | K46: 1442.647586 | L46: 0 | M46: 0 | N46: =H46+E46+K46 -> 2645.631814 | O46: =I46+F46+L46 -> 0 | P46: 0 | Q46: 186 | S46: =131.86+26.34 -> 158.2 | T46: =+D46*Q46 -> 7440 | U46: =(T46/SUM(T$46:T$48))*S$46/S$52 -> 0.1206199463 | W46: =S$46*(T46/SUM(T$46:T$48))/Q46 -> 0.2787665198 | Y46: 0 | Z46: =W46*Q46-Y46 -> 51.85057269 | AA46: =Z46 -> 51.85057269 | AC46: =AD$6*U46 -> 223755.0664 | AE46: =Q46*K46 -> 268332.451 | AF46: =SUM(AD46:AE46)/0.94 -> 285460.0543
C47: SF | D47: 50 | E47: =AC47/Q47 -> 1503.730285 | F47: 0 | G47: 0 | H47: 0 | I47: 0 | J47: 0 | K47: 1803.309483 | L47: 0 | M47: 0 | N47: 3307.039767 | O47: 0 | P47: 0 | Q47: 220 | T47: =+D47*Q47 -> 11000 | U47: =(T47/SUM(T$46:T$48))*S$46/S$52 -> 0.1783359421 | W47: =S$46*(T47/SUM(T$46:T$48))/Q47 -> 0.3484581498 | Y47: 0 | Z47: =W47*Q47-Y47 -> 76.66079295 | AA47: 76.66079295 | AC47: =AD$6*U47 -> 330820.6626 | AE47: =Q47*K47 -> 396728.0862 | AF47: 422051.1555
C48: SF | D48: 60 | E48: =AC48/Q48 -> 1804.476342 | F48: 0 | G48: 0 | H48: 0 | I48: 0 | J48: 0 | K48: 2163.971379 | L48: 0 | M48: 0 | N48: 3968.447721 | O48: 0 | P48: 0 | Q48: 71 | T48: =+D48*Q48 -> 4260 | U48: =(T48/SUM(T$46:T$48))*S$46/S$52 -> 0.06906464665 | W48: =S$46*(T48/SUM(T$46:T$48))/Q48 -> 0.4181497797 | Y48: 0 | Z48: =W48*Q48-Y48 -> 29.68863436 | AA48: 29.68863436 | AC48: =AD$6*U48 -> 128117.8203 | AE48: =Q48*K48 -> 153641.9679 | AF48: 163448.902
A49: TC | C49: Town Center | E49: =AD6/S52 -> 4315.382739 | F49: 4303.759276 | G49: =(+E49-F49)/F49 -> 0.002700769682 | H49: 0 | I49: 0 | J49: 0 | K49: 5175.11064 | L49: 5175.11064 | M49: =(+K49-L49)/L49 -> 0 | N49: 9490.493378 | O49: 9478.869916 | P49: =(+N49-O49)/O49 -> 0.001226249825 | R49: =S49 -> 29.97 | S49: =30.25-0.28 -> 29.97 | U49: =S49/S$52 -> 0.06971918732 | Y49: 0 | Z49: 29.97 | AA49: 29.97 | AC49: =E49*S49 -> 129332.0207 | AE49: =R49*K49 -> 155098.0659 | AF49: 164997.9424
A50: Comm | E50: =E49 -> 4315.382739 | F50: 4303.759276 | G50: 0.002700769682 | H50: 0 | I50: 0 | J50: 0 | K50: 5175.110668 | L50: 5175.110668 | M50: =(+K50-L50)/L50 -> 0 | N50: 9490.493406 | O50: 9478.869944 | P50: 0.001226249821 | R50: 7.58 | S50: 7.58 | U50: =S50/S$52 -> 0.01763334801 | Y50: 0 | Z50: 7.58 | AA50: 7.58 | AC50: =E50*S50 -> 32710.60116 | AE50: =R50*K50 -> 39227.33886 | AF50: 41731.21155
B52: *** Prior assessments not reflected in table as these parcels have been combined, therefore prior assessments are no longer applicable | P52: Total | Q52: =SUM(Q12:Q50) -> 1532 | R52: =SUM(R12:R50) -> 83.38731707 | S52: =SUM(S12:S50) -> 429.8673171 | U52: 1 | X52: =SUM(X12:X50) -> 45 | Y52: =SUM(Y12:Y50) -> 11.50644575 | Z52: =SUM(Z12:Z50) -> 418.3608713 | AA52: =SUM(AA41:AA50) -> 196.03 | AC52: =SUM(AC12:AC50) -> 1915092.107 | AD52: =SUM(AD12:AD50) -> 1263071.055 | AE52: =SUM(AE12:AE50) -> 1067193.708 | AF52: =SUM(AF12:AF50) -> 2255457.555
AB54: variance | AC54: =AC56+AC57-AC52 -> 0 | AD54: =AD56+AD57-AD52 -> 0 | AE54: =AE56+AE57-AE52 -> 0
S56: For A-2, H-2. F, and M- All parcels have been merged | AB56: On | AC56: =SUM(AC12:AC42) -> 1000835.12 | AD56: =SUM(AD12:AD42) -> 1176226.768 | AE56: =SUM(AE12:AE42) -> 54165.79806 | AF56: =AE56*0.94 -> 50915.85018
S57: =45.56/164 -> 0.277804878 | T57: As lots are added to tax roll, acreage must be proportionally deducted from 45.56 | AB57: Off | AC57: =SUM(AC44:AC50) -> 914256.987 | AD57: =SUM(AD44:AD50) -> 86844.28768 | AE57: =SUM(AE46:AE50) -> 1013027.91 | AF57: =AE57 -> 1013027.91
T58: to ensure O&M stays the same otal acres divide by number of units | AC58: =SUM(AC56:AC57) -> 1915092.107 | AD58: =SUM(AD56:AD57) -> 1263071.055 | AE58: =SUM(AE56:AE57) -> 1067193.708 | AF58: =SUM(AF56:AF57) -> 1063943.76
AC60: =AC56*0.94 -> 940785.013 | AE60: 1067193.708 | AF60: MADS Includes gross Office and GC on roll
AC61: =AC57 -> 914256.987
AB62: Total | AC62: =AC60+AC61 -> 1855042
AB64: Budget | AC64: =AD6 -> 1855042 | AE64: =AE58 -> 1067193.708
AC65: =AC64-AC62 -> 0 | AE65: =AE64-AE60 -> 0
AC115: DS Levied | AD115: =#REF!+#REF! ->  | AE115: =#REF! ->  | AF115: DS Levied
AC116: gross up | AD116: 73981.99863 | AE116: 0 | AF116: gross up
AC117: interest | AD117: 500 | AE117: 100 | AF117: interest
AC118: 2001 ANNUAL DS | AD118: 1413187.5 | AE118: 1223187.5 | AF118: 2004 ANNUAL DS
AD119: =AD115-AD116+AD117-AD118 ->  | AE119: =AE115-AE116+AE117-AE118 -> 

Sheet Assess_Detail Revised
A1: Harmony
A2: Community Development District
A3: 2017-2016 Non-Ad Valorem Assessment Summary | AH3: Assumption
A4: Summary of Assessment Rates | AH4: GF allocation is based on same allocation as DS
AH5: DS for 2014 Bond is based on MADS
AC6: O&M | AD6: ='001'!AP246-'001'!AP38-'001'!AP52-'001'!AP97-'001'!AP54-'001'!AP53 -> 1850042 | AH6: DS for 2015 Bond is based on MADS
A7: Platted | E7: O& M | H7: Series 2014 Debt Service | K7: Series 2015 Debt Service | N7: Total | U7: Calcs for | Y7: Total | AD7: = Total Exped. - Interest - Misc-Assessmnt Collection Cost | AH7: Series 2004 will continue to collect actual assessments per acre with a fixed amount to the golf course
E8: FY 2017 | F8: FY 2016 | G8: % Change | H8: =N8 -> FY 2017 | I8: =O8 -> FY 2016 | J8: % Change | K8: =H8 -> FY 2017 | L8: =I8 -> FY 2016 | M8: % Change | N8: =E8 -> FY 2017 | O8: =F8 -> FY 2016 | P8: % Change | U8: Original | W8: Lots Size | Y8: Acres | Z8: Remaining | AA8: Remaining Acreage
A9: Neighborhood | C9: Type | D9: Width | E9: O & M | F9: O & M | G9: (Decrease)/ Increase | H9: Debt Service | I9: Debt Service | J9: (Decrease) | K9: Debt Service | L9: Debt Service | M9: (Decrease)/ Increase | N9: Total | O9: Total | P9: (Decrease)/ Increase | Q9: Units | R9: Acres | S9: Acres | T9: FF | U9: Acreage | W9: per acre | X9: Prepaids | Y9: Prepaid | Z9: Acreage | AA9: for 2004 Bond | AC9: GF | AD9: DS1 | AE9: DS2 | AF9: GROSS | AH9: 2014 DS Meth | AI9: Units according
C10: Type | Q10: Units | R10: Acres
AH11: Report | AI11: to Meth Report | AJ11: Variance | AK11: $ Variance
A12: A-1 | B12: A-1 | C12: MF | D12: n/a | E12: =ROUND(AC12/Q12,2) -> 486.65 | F12: 486.65 | G12: =(+E12-F12)/F12 -> 0 | H12: 605.7146367 | I12: 605.7146367 | J12: =(+H12-I12)/I12 -> 0 | K12: 0 | L12: 0 | M12: 0 | N12: =H12+E12 -> 1092.364637 | O12: 1092.364637 | P12: =(+N12-O12)/O12 -> 0 | Q12: 186 | S12: 19.77 | U12: =S12/S57 -> 0.04599093538 | W12: =S12/Q12 -> 0.1062903226 | X12: 2 | Y12: =W12*X12 -> 0.2125806452 | Z12: =W12*Q12-Y12 -> 19.55741935 | AC12: =AD$6*U12/0.94 -> 90516.12986 | AD12: =H12*(Q12-X12) -> 111451.4932 | AF12: =SUM(AD12:AE12) -> 111451.4932 | AH12: 111451.4932 | AI12: 184 | AJ12: =AI12-(Q12-X12) -> 0 | AK12: =AJ12*H12 -> 0
A13: B | B13: SF | C13: B | D13: 80 | E13: 1538.44 | F13: 1538.44 | G13: 0 | H13: 1914.868155 | I13: 1914.868155 | J13: 0 | K13: 0 | L13: 0 | M13: 0 | N13: 3453.308155 | O13: 3453.308155 | P13: 0 | Q13: 9 | S13: 23.58 | T13: =+D13*Q13 -> 720 | U13: =(T13/SUM(T$13:T$17))*S$13/S$57 -> 0.00703508683 | W13: =S$13*(T13/SUM(T$13:T$17))/Q13 -> 0.3360171001 | X13: 1 | Y13: 0.3360171001 | Z13: 2.688136801 | AC13: 13845.96395 | AD13: 15318.94524 | AF13: 15318.94524 | AH13: 15318.94524 | AI13: 8 | AJ13: =AI13-(Q13-X13) -> 0 | AK13: 0
B14: SF | C14: C | D14: 65 | E14: 1249.98 | F14: 1249.99 | G14: -8.000064001e-06 | H14: 1555.831474 | I14: 1555.831474 | J14: 0 | K14: 0 | L14: 0 | M14: 0 | N14: 2805.811474 | O14: 2805.821474 | P14: -3.564018627e-06 | Q14: 25 | T14: 1625 | U14: =(T14/SUM(T$13:T$17))*S$13/S$57 -> 0.01587780014 | W14: =S$13*(T14/SUM(T$13:T$17))/Q14 -> 0.2730138938 | X14: 3 | Y14: 0.8190416815 | Z14: 6.006305664 | AC14: 31249.57141 | AD14: 34228.29244 | AF14: 34228.29244 | AH14: 37339.95538 | AI14: 24 | AJ14: 2 | AK14: 3111.662949
B15: SF | C15: E | D15: 52 | E15: 999.99 | F15: 999.99 | G15: 0 | H15: 1244.659909 | I15: 1244.659909 | J15: 0 | K15: 0 | L15: 0 | M15: 0 | N15: 2244.649909 | O15: 2244.649909 | P15: 0 | Q15: 35 | T15: 1820 | U15: =(T15/SUM(T$13:T$17))*S$13/S$57 -> 0.01778313615 | W15: =S$13*(T15/SUM(T$13:T$17))/Q15 -> 0.2184111151 | X15: 9 | Y15: 1.965700036 | Z15: 5.678688992 | AC15: 34999.51997 | AD15: 32361.15763 | AF15: 32361.15763 | AH15: 33605.81754 | AI15: 27 | AJ15: 1 | AK15: 1244.659909
B16: SF | C16: G | D16: 42 | E16: 807.68 | F16: 807.68 | G16: 0 | H16: 1005.307978 | I16: 1005.307978 | J16: 0 | K16: 0 | L16: 0 | M16: 0 | N16: 1812.987978 | O16: 1812.987978 | P16: 0 | Q16: 22 | T16: 924 | U16: =(T16/SUM(T$13:T$17))*S$13/S$57 -> 0.009028361432 | W16: =S$13*(T16/SUM(T$13:T$17))/Q16 -> 0.1764089776 | X16: 1 | Y16: 0.1764089776 | Z16: 3.704588529 | AC16: 17768.98706 | AD16: 21111.46753 | AF16: 21111.46753 | AH16: 22116.77551 | AI16: 22 | AJ16: 1 | AK16: 1005.307978
B17: SF | C17: H | D17: 35 | E17: 673.07 | F17: 673.07 | G17: 0 | H17: 837.7493279 | I17: 837.7493279 | J17: 0 | K17: 0 | L17: 0 | M17: 0 | N17: 1510.819328 | O17: 1510.819328 | P17: 0 | Q17: 15 | T17: 525 | U17: =(T17/SUM(T$13:T$17))*S$13/S$57 -> 0.005129750813 | W17: =S$13*(T17/SUM(T$13:T$17))/Q17 -> 0.1470074813 | X17: 3 | Y17: 0.4410224439 | Z17: 1.764089776 | AC17: 10096.01538 | AD17: 10052.99193 | AF17: 10052.99193 | AH17: 10052.99193 | AI17: 12 | AJ17: 0 | AK17: 0
A18: C-1 | B18: SF | C18: B | D18: =D13 -> 80 | E18: =ROUND(AC18/Q18,2) -> 1513.16 | F18: 1513.17 | G18: -6.608642783e-06 | H18: 1883.403145 | I18: 1883.403145 | J18: 0 | K18: 0 | L18: 0 | M18: 0 | N18: 3396.563145 | O18: 3396.573145 | P18: -2.944143869e-06 | Q18: 10 | S18: 25.82 | T18: 800 | U18: =(T18/SUM(T$18:T$22))*S$18/S$57 -> 0.007688325836 | W18: =S$18*(T18/SUM(T$18:T$22))/Q18 -> 0.330496 | X18: 2 | Y18: 0.660992 | Z18: 2.643968 | AC18: =AD$6*U18/0.94 -> 15131.62309 | AD18: 15067.22516 | AF18: 15067.22516 | AH18: 15067.22516 | AI18: 8 | AJ18: 0 | AK18: 0
B19: SF | C19: C | D19: 65 | E19: 1229.44 | F19: 1229.45 | G19: -8.133718329e-06 | H19: 1530.260663 | I19: 1530.260663 | J19: 0 | K19: 0 | L19: 0 | M19: 0 | N19: 2759.700663 | O19: 2759.710663 | P19: -3.623568273e-06 | Q19: 30 | T19: 1950 | U19: =(T19/SUM(T$18:T$22))*S$18/S$57 -> 0.01874029423 | W19: =S$18*(T19/SUM(T$18:T$22))/Q19 -> 0.268528 | X19: 4 | Y19: 1.074112 | Z19: 6.981728 | AC19: 36883.33129 | AD19: 39786.77723 | AF19: 39786.77723 | AH19: 39786.77723 | AI19: 26 | AJ19: 0 | AK19: 0
B20: SF | C20: E | D20: 52 | E20: 983.56 | F20: 983.56 | G20: 0 | H20: 1224.210287 | I20: 1224.210287 | J20: 0 | K20: 0 | L20: 0 | M20: 0 | N20: 2207.770287 | O20: 2207.770287 | P20: 0 | Q20: 35 | T20: 1820 | U20: =(T20/SUM(T$18:T$22))*S$18/S$57 -> 0.01749094128 | W20: =S$18*(T20/SUM(T$18:T$22))/Q20 -> 0.2148224 | X20: 2 | Y20: 0.4296448 | Z20: 7.0891392 | AC20: 34424.44253 | AD20: 40398.93948 | AF20: 40398.93948 | AH20: 40398.93948 | AI20: 33 | AJ20: 0 | AK20: 0
B21: SF | C21: G | D21: 42 | E21: 794.41 | F21: 794.41 | G21: 0 | H21: 988.7848941 | I21: 988.7848941 | J21: 0 | K21: 0 | L21: 0 | M21: 0 | N21: 1783.194894 | O21: 1783.194894 | P21: 0 | Q21: 30 | T21: 1260 | U21: =(T21/SUM(T$18:T$22))*S$18/S$57 -> 0.01210911319 | W21: =S$18*(T21/SUM(T$18:T$22))/Q21 -> 0.1735104 | X21: 3 | Y21: 0.5205312 | Z21: 4.6847808 | AC21: 23832.30637 | AD21: 26697.19214 | AF21: 26697.19214 | AH21: 26697.19214 | AI21: 27 | AJ21: 0 | AK21: 0
B22: SF | C22: H | D22: 35 | E22: 662.01 | F22: 662.01 | G22: 0 | H22: 823.9844836 | I22: 823.9844836 | J22: 0 | K22: 0 | L22: 0 | M22: 0 | N22: 1485.994484 | O22: 1485.994484 | P22: 0 | Q22: 12 | T22: 420 | U22: =(T22/SUM(T$18:T$22))*S$18/S$57 -> 0.004036371064 | W22: =S$18*(T22/SUM(T$18:T$22))/Q22 -> 0.144592 | X22: 1 | Y22: 0.144592 | Z22: 1.590512 | AC22: 7944.102123 | AD22: 9063.82932 | AF22: 9063.82932 | AH22: 9063.82932 | AI22: 11 | AJ22: 0 | AK22: 0
A23: C-2 | B23: SF | C23: B | D23: 80 | E23: 1573.47 | F23: 1573.48 | G23: -6.355339756e-06 | H23: 1958.472933 | I23: 1958.472933 | J23: 0 | K23: 0 | L23: 0 | M23: 0 | N23: 3531.942933 | O23: 3531.952933 | P23: -2.831294807e-06 | Q23: 4 | S23: 17.54 | T23: 320 | U23: =(T23/SUM(T$23:T$27))*S$23/S$57 -> 0.003197906491 | W23: =S$23*(T23/SUM(T$23:T$27))/Q23 -> 0.3436688709 | Y23: 0 | Z23: 1.374675484 | AC23: 6293.895023 | AD23: 7833.891733 | AF23: 7833.891733 | AH23: 7833.891733 | AI23: 4 | AJ23: 0 | AK23: 0
B24: SF | C24: C | D24: 65 | E24: 1278.45 | F24: 1278.45 | G24: 0 | H24: 1591.25816 | I24: 1591.25816 | J24: 0 | K24: 0 | L24: 0 | M24: 0 | N24: 2869.70816 | O24: 2869.70816 | P24: 0 | Q24: 14 | T24: 910 | U24: =(T24/SUM(T$23:T$27))*S$23/S$57 -> 0.009094046585 | W24: =S$23*(T24/SUM(T$23:T$27))/Q24 -> 0.2792309576 | Y24: 0 | Z24: 3.909233407 | AC24: 17898.26397 | AD24: 22277.61424 | AF24: 22277.61424 | AH24: 22277.61424 | AI24: 14 | AJ24: 0 | AK24: 0
B25: SF | C25: E | D25: 52 | E25: 1022.76 | F25: 1022.76 | G25: 0 | H25: 1273.006528 | I25: 1273.006528 | J25: 0 | K25: 0 | L25: 0 | M25: 0 | N25: 2295.766528 | O25: 2295.766528 | P25: 0 | Q25: 13 | T25: 676 | U25: =(T25/SUM(T$23:T$27))*S$23/S$57 -> 0.006755577463 | W25: =S$23*(T25/SUM(T$23:T$27))/Q25 -> 0.2233847661 | Y25: 0 | Z25: 2.904001959 | AC25: 13295.85324 | AD25: 16549.08487 | AF25: 16549.08487 | AH25: 16549.08487 | AI25: 13 | AJ25: 0 | AK25: 0
B26: SF | C26: G | D26: 42 | E26: 826.07 | F26: 826.08 | G26: -1.21053651e-05 | H26: 1028.199608 | I26: 1028.199608 | J26: 0 | K26: 0 | L26: 0 | M26: 0 | N26: 1854.269608 | O26: 1854.279608 | P26: -5.392929933e-06 | Q26: 31 | T26: 1302 | U26: =(T26/SUM(T$23:T$27))*S$23/S$57 -> 0.01301148204 | W26: =S$23*(T26/SUM(T$23:T$27))/Q26 -> 0.1804261572 | X26: 1 | Y26: 0.1804261572 | Z26: 5.412784717 | AC26: 25608.28537 | AD26: 30845.98823 | AF26: 30845.98823 | AH26: 30845.98823 | AI26: 30 | AJ26: 0 | AK26: 0
B27: SF | C27: H | D27: 35 | E27: 688.39 | F27: 688.4 | G27: -1.452643812e-05 | H27: 856.8286143 | I27: 856.8286143 | J27: 0 | K27: 0 | L27: 0 | M27: 0 | N27: 1545.218614 | O27: 1545.228614 | P27: -6.471534314e-06 | Q27: 25 | T27: 875 | U27: =(T27/SUM(T$23:T$27))*S$23/S$57 -> 0.008744275562 | W27: =S$23*(T27/SUM(T$23:T$27))/Q27 -> 0.150355131 | X27: 1 | Y27: 0.150355131 | Z27: 3.608523145 | AC27: 17209.8692 | AD27: 20563.88674 | AF27: 20563.88674 | AH27: 20563.88674 | AI27: 24 | AJ27: 0 | AK27: 0
A28: D-1 | B28: SF | C28: B | D28: 80 | E28: 1625.63 | F28: 1625.63 | G28: 0 | H28: 2023.388185 | I28: 2023.388185 | J28: 0 | K28: 0 | L28: 0 | M28: 0 | N28: 3649.018185 | O28: 3649.018185 | P28: 0 | Q28: 9 | S28: 10.35 | T28: 720 | U28: =(T28/SUM(T$28:T$30))*S$28/S$57 -> 0.007433782895 | W28: =S$28*(T28/SUM(T$28:T$30))/Q28 -> 0.3550600343 | X28: 1 | Y28: 0.3550600343 | Z28: 2.840480274 | AC28: 14630.64955 | AD28: 16187.10548 | AF28: 16187.10548 | AH28: 16187.10548 | AI28: 8 | AJ28: 0 | AK28: 0
B29: SF | C29: C | D29: 65 | E29: 1320.82 | F29: 1320.82 | G29: 0 | H29: 1643.998508 | I29: 1643.998508 | J29: 0 | K29: 0 | L29: 0 | M29: 0 | N29: 2964.818508 | O29: 2964.818508 | P29: 0 | Q29: 20 | T29: 1300 | U29: =(T29/SUM(T$28:T$30))*S$28/S$57 -> 0.013422108 | W29: =S$28*(T29/SUM(T$28:T$30))/Q29 -> 0.2884862779 | Y29: 0 | Z29: 5.769725557 | AC29: 26416.45057 | AD29: 32879.97016 | AF29: 32879.97016 | AH29: 32879.97016 | AI29: 20 | AJ29: 0 | AK29: 0
B30: SF | C30: E | D30: 52 | E30: 1056.66 | F30: 1056.66 | G30: 0 | H30: 1315.19705 | I30: 1315.19705 | J30: 0 | K30: 0 | L30: 0 | M30: 0 | N30: 2371.85705 | O30: 2371.85705 | P30: 0 | Q30: 6 | T30: 312 | U30: =(T30/SUM(T$28:T$30))*S$28/S$57 -> 0.003221305921 | W30: =S$28*(T30/SUM(T$28:T$30))/Q30 -> 0.2307890223 | Y30: 0 | Z30: 1.384734134 | AC30: 6339.948137 | AD30: 7891.182298 | AF30: 7891.182298 | AH30: 7891.182298 | AI30: 6 | AJ30: 0 | AK30: 0
A31: D-2 | B31: SF | C31: E | D31: n/a | E31: 965.64 | F31: 965.64 | G31: 0 | H31: 1201.907199 | I31: 1201.907199 | J31: 0 | K31: 0 | L31: 0 | M31: 0 | N31: 2167.547199 | O31: 2167.547199 | P31: 0 | Q31: 11 | S31: 2.32 | U31: =S31/S$57 -> 0.005397014167 | W31: =S31/Q31 -> 0.2109090909 | Y31: 0 | Z31: 2.32 | AC31: 10622.02434 | AD31: 13220.97919 | AF31: 13220.97919 | AH31: 13220.97919 | AI31: 11 | AJ31: 0 | AK31: 0
A32: E | B32: SF | C32: Custom | D32: n/a | E32: 2576.51 | F32: 2576.51 | G32: 0 | H32: 3206.918833 | I32: 3206.918833 | J32: 0 | K32: 0 | L32: 0 | M32: 0 | N32: 5783.428833 | O32: 5783.428833 | P32: 0 | Q32: 51 | S32: 28.7 | U32: =S32/S$57 -> 0.06676478732 | W32: =S32/Q32 -> 0.562745098 | X32: 5 | Y32: 2.81372549 | Z32: 25.88627451 | AC32: 131401.7667 | AD32: 147518.2663 | AF32: 147518.2663 | AH32: 163552.8605 | AI32: 51 | AJ32: 5 | AK32: 16034.59417
A33: G | B33: SF | C33: E | D33: =D20 -> 52 | E33: =ROUND(AC33/Q33,2) -> 1163.12 | F33: 1163.12 | G33: 0 | H33: 1447.706734 | I33: 1447.706734 | J33: 0 | K33: 0 | L33: 0 | M33: 0 | N33: 2610.826734 | O33: 2610.826734 | P33: 0 | Q33: 62 | S33: 39.86 | T33: =+D33*Q33 -> 3224 | U33: =(T33/SUM(T$33:T$35))*S$33/S$57 -> 0.03664046423 | W33: =S$33*(T33/SUM(T$33:T$35))/Q33 -> 0.2540409364 | X33: 2 | Y33: =W33*X33 -> 0.5080818728 | Z33: =W33*Q33-Y33 -> 15.24245618 | AC33: 72113.18907 | AD33: 86862.40405 | AF33: 86862.40405 | AH33: 86862.40405 | AI33: 60 | AJ33: 0 | AK33: 0
B34: SF | C34: G | D34: =D21 -> 42 | E34: =ROUND(AC34/Q34,2) -> 939.44 | F34: 939.44 | G34: 0 | H34: 1169.300242 | I34: 1169.300242 | J34: 0 | K34: 0 | L34: 0 | M34: 0 | N34: 2108.740242 | O34: 2108.740242 | P34: 0 | Q34: 85 | T34: 3570 | U34: =(T34/SUM(T$33:T$35))*S$33/S$57 -> 0.04057272249 | W34: =S$33*(T34/SUM(T$33:T$35))/Q34 -> 0.2051869102 | X34: 1 | Y34: =W34*X34 -> 0.2051869102 | Z34: =W34*Q34-Y34 -> 17.23570045 | AC34: 79852.38368 | AD34: 98221.22029 | AF34: 98221.22029 | AH34: 99390.52053 | AI34: 85 | AJ34: 1 | AK34: 1169.300242
B35: SF | C35: H | D35: =D22 -> 35 | E35: =ROUND(AC35/Q35,2) -> 782.87 | F35: 782.87 | G35: 0 | H35: 974.4139399 | I35: 974.4139399 | J35: 0 | K35: 0 | L35: 0 | M35: 0 | N35: 1757.28394 | O35: 1757.28394 | P35: 0 | Q35: 39 | T35: 1365 | U35: =(T35/SUM(T$33:T$35))*S$33/S$57 -> 0.01551309978 | W35: =S$33*(T35/SUM(T$33:T$35))/Q35 -> 0.1709890918 | X35: 3 | Y35: =W35*X35 -> 0.5129672754 | Z35: =W35*Q35-Y35 -> 6.155607305 | AC35: 30531.79376 | AD35: 35078.90184 | AF35: 35078.90184 | AH35: 36053.31578 | AI35: 37 | AJ35: 1 | AK35: 974.4139399
A36: H-1 | B36: SF | C36: H | D36: 35 | E36: =AC36/Q36 -> 875.0079993 | F36: 875.0096326 | G36: -1.86661834e-06 | H36: 1073.541122 | I36: 1073.541122 | J36: 0 | K36: 0 | L36: 0 | M36: 0 | N36: 1948.549122 | O36: 1948.550755 | P36: -8.382173384e-07 | Q36: 39 | S36: 20.34 | T36: 1365 | U36: =(T36/SUM(T$36:T$39))*S$36/S$57 -> 0.01733895406 | W36: =S$36*(T36/SUM(T$36:T$39))/Q36 -> 0.191114094 | Y36: 0 | Z36: =W36*Q36-Y36 -> 7.453449664 | AC36: 34125.31197 | AD36: 41868.10377 | AF36: 41868.10377 | AH36: 41868.10377 | AI36: 39 | AJ36: 0 | AK36: 0
B37: SF | C37: G | D37: 40 | E37: 1000.009142 | F37: 1000.011009 | G37: -1.866618339e-06 | H37: 1288.249254 | I37: 1288.249254 | J37: 0 | K37: 0 | L37: 0 | M37: 0 | N37: 2288.258396 | O37: 2288.260263 | P37: -8.157458829e-07 | Q37: 14 | T37: 560 | U37: =(T37/SUM(T$36:T$39))*S$36/S$57 -> 0.007113417052 | W37: =S$36*(T37/SUM(T$36:T$39))/Q37 -> 0.2184161074 | Z37: 3.057825503 | AC37: 14000.12799 | AD37: 18035.48956 | AF37: 18035.48956 | AH37: 18035.48956 | AI37: 14 | AJ37: 0 | AK37: 0
B38: SF | C38: E | D38: 50 | E38: 1250.011428 | F38: 1250.013761 | G38: -1.866618339e-06 | H38: 1594.975272 | I38: 1594.975272 | J38: 0 | K38: 0 | L38: 0 | M38: 0 | N38: 2844.9867 | O38: 2844.989033 | P38: -8.201432705e-07 | Q38: 13 | T38: 650 | U38: =(T38/SUM(T$36:T$39))*S$36/S$57 -> 0.008256644792 | W38: =S$36*(T38/SUM(T$36:T$39))/Q38 -> 0.2730201342 | Z38: 3.549261745 | AC38: =AD$6*U38/0.94 -> 16250.14856 | AD38: 20734.67854 | AF38: 20734.67854 | AH38: 20734.67854 | AI38: 13 | AJ38: 0 | AK38: 0
B39: TH | C39: th | D39: 25 | E39: 625.0057138 | F39: 625.0068804 | G39: -1.86661834e-06 | H39: 766.8151105 | I39: 766.8151105 | J39: 0 | K39: 0 | L39: 0 | M39: 0 | N39: 1391.820824 | O39: 1391.821991 | P39: -8.382173245e-07 | Q39: 46 | T39: 1150 | U39: =(T39/SUM(T$36:T$39))*S$36/S$57 -> 0.01460791002 | W39: =S$36*(T39/SUM(T$36:T$39))/Q39 -> 0.1365100671 | Z39: 6.279463087 | AC39: 28750.26283 | AD39: 35273.49508 | AF39: 35273.49508 | AH39: 35273.49508 | AI39: 46 | AJ39: 0 | AK39: 0
A40: H-2/F | C40: MF | D40: 50 | E40: 1271.91818 | F40: 0 | G40: N/A | H40: 1592.888622 | I40: 0 | J40: N/A | K40: 0 | L40: 0 | M40: 0 | N40: 2864.806802 | O40: 0 | P40: N/A | Q40: =40+66 -> 106 | R40: =S40 -> 29.44731707 | S40: =S62*(66+40) -> 29.44731707 | U40: =S40/S$57 -> 0.06850327044 | Y40: =W40*X40 -> 0 | Z40: =S40 -> 29.44731707 | AC40: =AD$6*U40/0.94 -> 134823.3271 | AD40: =H40*(Q40-X40) -> 168846.194 | AF40: 168846.194
A41: I | D41: 40 | E41: =E51/0.94 -> 1276.321017 | F41: 0 | G41: 0 | H41: 0 | I41: 0 | J41: 0 | K41: =K48/0.94 -> 1534.731475 | L41: 0 | M41: 0 | N41: =E41+K41 -> 2811.052492 | O41: 0 | P41: 0 | Q41: =E62 -> 84 | AC41: =Q41*E41 -> 107210.9654 | AE41: =K41*Q41 -> 128917.4439 | AF41: =SUM(AC41:AE41) -> 236128.4093
D42: 50 | E42: =E52/0.94 -> 1595.401271 | F42: 0 | G42: 0 | H42: 0 | I42: 0 | J42: 0 | K42: =K49/0.94 -> 1918.414343 | L42: 0 | M42: 0 | N42: =E42+K42 -> 3513.815615 | O42: 0 | P42: 0 | Q42: =E63 -> 66 | AC42: =Q42*E42 -> 105296.4839 | AE42: =K42*Q42 -> 126615.3466 | AF42: =SUM(AC42:AE42) -> 231911.8306
D43: 60 | E43: 1914.481526 | F43: 0 | G43: 0 | H43: 0 | I43: 0 | J43: 0 | K43: 2302.097212 | L43: 0 | M43: 0 | N43: 4216.578737 | O43: 0 | P43: 0 | Q43: 22 | AC43: 42118.59356 | AE43: 50646.13866 | AF43: 92764.73222
A44: Office | C44: Office | E44: =AC44 -> 1281.968455 | F44: 1281.970848 | G44: -1.866618339e-06 | H44: 0 | I44: 0 | J44: N/A | K44: 1541.52192 | L44: 1541.52192 | M44: =(+K44-L44)/L44 -> 0 | N44: =K44+E44 -> 2823.490375 | O44: =L44+F44 -> 2823.492768 | P44: =(+N44-O44)/O44 -> -8.475142286e-07 | R44: =S44 -> 0.28 | S44: 0.28 | U44: =S44/S$57 -> 0.0006513637787 | Y44: =W44*X44 -> 0 | Z44: =S44 -> 0.28 | AA44: =Z44 -> 0.28 | AC44: 1281.968455 | AE44: =K44 -> 1541.52192 | AF44: 1541.52192 | AH44: =SUM(AH12:AH39) -> 1030920.513 | AI44: =SUM(AI12:AI39) -> 857 | AJ44: =SUM(AJ12:AJ39) -> 11 | AK44: =SUM(AK12:AK39) -> 23539.93918
A45: GC | C45: Golf Course | E45: 0 | F45: 0 | G45: N/A | H45: 0 | I45: 0 | J45: N/A | K45: 52624.27614 | L45: 52624.27614 | M45: =(+K45-L45)/L45 -> 0 | N45: =K45+E45 -> 52624.27614 | O45: =L45+F45 -> 52624.27614 | P45: =(+N45-O45)/O45 -> 0 | Y45: =W45*X45 -> 0 | Z45: =S45 -> 0 | AE45: =K45 -> 52624.27614 | AI45: DS per Meth
A46: Unplatted | AH46: 2014 DS per Table | AI46: less $ Variance
A47: A-2/M | C47: MF | E47: =AC47/$Q47 -> 1195.404009 | F47: 0 | G47: N/A | H47: 1497.315305 | I47: 0 | J47: N/A | K47: 0 | L47: 0 | M47: 0 | N47: =H47+E47+K47 -> 2692.719314 | O47: =I47+F47+L47 -> 0 | P47: 0 | Q47: 58 | R47: =S47 -> 16.11 | S47: 16.11 | U47: =S47/S$57 -> 0.03747668027 | Y47: =W47*X47 -> 0 | Z47: =S47 -> 16.11 | AC47: =AD$6*U47 -> 69333.43252 | AD47: =Q47*H47 -> 86844.28768 | AF47: =SUM(AE47:AE47)/0.94 -> 0 | AH47: =SUM(AD12:AD39) -> 1007380.574 | AI47: =AH44-AK44 -> 1007380.574
A48: J/K/l/O | D48: 40 | E48: =E51 -> 1199.741756 | F48: 0 | G48: 0 | H48: =H51 -> 0 | I48: 0 | J48: 0 | K48: =K51 -> 1442.647586 | L48: 0 | M48: 0 | N48: =H48+E48+K48 -> 2642.389342 | O48: 0 | P48: 0 | Q48: =F62 -> 102 | AC48: =Q48*E48 -> 122373.6591 | AE48: =Q48*K48 -> 147150.0538
D49: 50 | E49: =E52 -> 1499.677195 | F49: 0 | G49: 0 | H49: =H52 -> 0 | I49: 0 | J49: 0 | K49: =K52 -> 1803.309483 | L49: 0 | M49: 0 | N49: 3302.986678 | O49: 0 | P49: 0 | Q49: =F63 -> 154 | AC49: =Q49*E49 -> 230950.288 | AE49: =Q49*K49 -> 277709.6603
D50: 60 | E50: 1799.612634 | F50: 0 | G50: 0 | H50: 0 | I50: 0 | J50: 0 | K50: 2163.971379 | L50: 0 | M50: 0 | N50: 3963.584013 | O50: 0 | P50: 0 | Q50: 49 | AC50: 88181.01907 | AE50: 106034.5976
A51: I/J/K/L/O | C51: SF | D51: 40 | E51: =AD$6*U51/Q51 -> 1199.741756 | F51: 0 | G51: 0 | H51: 0 | I51: 0 | J51: 0 | K51: 1442.647586 | L51: 0 | M51: 0 | N51: =H51+E51+K51 -> 2642.389342 | O51: 0 | P51: 0 | Q51: 186 | S51: =131.86+26.34 -> 158.2 | T51: =+D51*Q51 -> 7440 | U51: =(T51/SUM(T$51:T$53))*S$51/S$57 -> 0.1206199463 | W51: =S$51*(T51/SUM(T$51:T$53))/Q51 -> 0.2787665198 | Y51: 0 | Z51: =W51*Q51-Y51 -> 51.85057269 | AA51: =Z51 -> 51.85057269
C52: SF | D52: 50 | E52: =AD$6*U52/Q52 -> 1499.677195 | F52: 0 | G52: 0 | H52: 0 | I52: 0 | J52: 0 | K52: 1803.309483 | L52: 0 | M52: 0 | N52: 3302.986678 | O52: 0 | P52: 0 | Q52: 220 | T52: =+D52*Q52 -> 11000 | U52: =(T52/SUM(T$51:T$53))*S$51/S$57 -> 0.1783359421 | W52: =S$51*(T52/SUM(T$51:T$53))/Q52 -> 0.3484581498 | Y52: 0 | Z52: =W52*Q52-Y52 -> 76.66079295 | AA52: 76.66079295
C53: SF | D53: 60 | E53: 1799.612634 | F53: 0 | G53: 0 | H53: 0 | I53: 0 | J53: 0 | K53: 2163.971379 | L53: 0 | M53: 0 | N53: 3963.584013 | O53: 0 | P53: 0 | Q53: 71 | T53: =+D53*Q53 -> 4260 | U53: =(T53/SUM(T$51:T$53))*S$51/S$57 -> 0.06906464665 | W53: =S$51*(T53/SUM(T$51:T$53))/Q53 -> 0.4181497797 | Y53: 0 | Z53: =W53*Q53-Y53 -> 29.68863436 | AA53: 29.68863436
A54: TC | C54: Town Center | E54: =AD6/S57 -> 4303.751243 | F54: 4303.759276 | G54: =(+E54-F54)/F54 -> -1.866618339e-06 | H54: 0 | I54: 0 | J54: 0 | K54: 5175.11064 | L54: 5175.11064 | M54: =(+K54-L54)/L54 -> 0 | N54: 9478.861882 | O54: 9478.869916 | P54: =(+N54-O54)/O54 -> -8.475141094e-07 | R54: =S54 -> 29.97 | S54: =30.25-0.28 -> 29.97 | U54: =S54/S$57 -> 0.06971918732 | Y54: 0 | Z54: 29.97 | AA54: 29.97 | AC54: =E54*S54 -> 128983.4247 | AE54: =R54*K54 -> 155098.0659 | AF54: =SUM(AD54:AE54)/0.94 -> 164997.9424
A55: Comm | E55: =E54 -> 4303.751243 | F55: 4303.759276 | G55: -1.866618339e-06 | H55: 0 | I55: 0 | J55: 0 | K55: 5175.110668 | L55: 5175.110668 | M55: =(+K55-L55)/L55 -> 0 | N55: 9478.86191 | O55: 9478.869944 | P55: -8.475141067e-07 | R55: 7.58 | S55: 7.58 | U55: =S55/S$57 -> 0.01763334801 | Y55: 0 | Z55: 7.58 | AA55: 7.58 | AC55: =E55*S55 -> 32622.43442 | AE55: =R55*K55 -> 39227.33886 | AF55: 41731.21155
B57: *** Prior assessments not reflected in table as these parcels have been combined, therefore prior assessments are no longer applicable | P57: Total | Q57: =SUM(Q12:Q50) -> 1532 | R57: =SUM(R12:R55) -> 83.38731707 | S57: =SUM(S12:S55) -> 429.8673171 | U57: 1 | X57: =SUM(X12:X55) -> 45 | Y57: =SUM(Y12:Y55) -> 11.50644575 | Z57: =SUM(Z12:Z55) -> 418.3608713 | AA57: =SUM(AA44:AA55) -> 196.03 | AC57: =SUM(AC12:AC55) -> 1925207.813 | AD57: =SUM(AD12:AD55) -> 1263071.055 | AE57: =SUM(AE12:AE55) -> 1085564.444 | AF57: =SUM(AF12:AF55) -> 1945302.416
AB59: variance | AC59: =AC61+AC62-AC57 -> 0 | AD59: =AD61+AD62-AD57 -> 0
E61: Parcel I | F61: J/K/l/O | G61: Hidden Rows 51-53 to avoid affecting platted and unplatted I/J/K/L formulas | S61: For A-2, H-2. F, and M- All parcels have been merged | AB61: On | AC61: =SUM(AC12:AC45) -> 1252763.555 | AD61: =SUM(AD12:AD45) -> 1176226.768 | AE61: =SUM(AE41:AE45) -> 360344.7272
D62: 40' | E62: 84 | F62: =Q51-E62 -> 102 | G62: When J/K/L or O are platted add lots to rows 41-43 and subtract lots from rows 48-50 | S62: =45.56/164 -> 0.277804878 | T62: As lots are added to tax roll, acreage must be proportionally deducted from 45.56 | AB62: Off | AC62: =SUM(AC47:AC55) -> 672444.2579 | AD62: =SUM(AD47:AD55) -> 86844.28768 | AE62: =SUM(AE48:AE55) -> 725219.7164
D63: 50' | E63: 66 | F63: =Q52-E63 -> 154 | G63: Do not adjust unit count on rows 51-53 | T63: to ensure O&M stays the same otal acres divide by number of units | AC63: =SUM(AC61:AC62) -> 1925207.813 | AD63: =SUM(AD61:AD62) -> 1263071.055 | AE63: =SUM(AE61:AE62) -> 1085564.444
D64: 60' | E64: 22 | F64: 49
AC65: =AC61*0.94 -> 1177597.742 | AE65: 1067193.708 | AF65: MADS Includes gross Office and GC on roll on Methodology Report
AC66: =AC62 -> 672444.2579
AB67: Total | AC67: =AC65+AC66 -> 1850042
AB69: Budget | AC69: =AD6 -> 1850042 | AE69: =SUM(AE41:AE43)*0.94 -> 287808.1934 | AF69: Net Assessments for Parcel I
AB70: Variance | AC70: =AC69-AC67 -> 0 | AE70: =AE44+AE45 -> 54165.79806 | AF70: Gross Office and Golf Course
AE71: =SUM(AE48:AE55) -> 725219.7164 | AF71: Net Assessments for Unplatted
AE72: =SUM(AE69:AE71) -> 1067193.708 | AF72: Total On budget
AE73: =AE72-AE65 -> -3.259629011e-09 | AF73: Variance
AC120: DS Levied | AD120: =#REF!+#REF! ->  | AE120: =#REF! ->  | AF120: DS Levied
AC121: gross up | AD121: 73981.99863 | AE121: 0 | AF121: gross up
AC122: interest | AD122: 500 | AE122: 100 | AF122: interest
AC123: 2001 ANNUAL DS | AD123: 1413187.5 | AE123: 1223187.5 | AF123: 2004 ANNUAL DS
AD124: =AD120-AD121+AD122-AD123 ->  | AE124: =AE120-AE121+AE122-AE123 -> 

Sheet 001
A1: Auto+Hide+Values+Formulas=Sheet4,Sheet13,Sheet14 | B1: Hide+? | C1: Hide | D1: Hide | E1: Hide | F1: Hide | G1: Keyname+Hide | H1: Hide | I1: Hide | J1: Hide | K1: Hide | L1: Key+Hide | M1: Key+Hide | N1: Key+Hide | O1: Key+Hide | P1: =IF($F$9="no","Hide","Show") -> Hide | Q1: =P1 -> Hide | R1: Show | S1: Hide | T1: Hide | V1: =IF($F$7=4,"Show","Hide") -> Hide | W1: =V1 -> Hide | X1: =IF($F$7>=3,"Show","Hide") -> Hide | Y1: =X1 -> Hide | Z1: =IF($F$7>=2,"Show","Hide") -> Hide | AA1: =Z1 -> Hide | AB1: =IF($F$7>=1,"Show","Hide") -> Show | AC1: =AB1 -> Show | AD1: =IF($F$8>=2,"Show","Hide") -> Hide | AE1: =AD1 -> Hide | AF1: =IF($F$8>=1,"Show","Hide") -> Show | AG1: =AF1 -> Show | AH1: =IF($F$9="no","Show","hide") -> Show | AI1: =AH1 -> Show | AJ1: ="Data+"&AH1 -> Data+Show | AK1: =AH1 -> Show | AL1: Show | AM1: =AL1 -> Show | AN1: Hide | AO1: Hide | AP1: Data | AQ1: Hide | AS1: Data | AT1: HIDE | AU1: HIDE | AV1: HIDE | AW1: HIDE | AX1: HIDE | AY1: HIDE | AZ1: HIDE | BA1: HIDE | BB1: HIDE | BC1: HIDE | BD1: HIDE | BE1: HIDE | BF1: HIDE
B2: =IF(AQ273=0,"hidesheet","Hide") -> Hide | C2: Harmony | T2: =TEXT("..C"&$F$5,"MM/DD/YYYY") -> ..C42505 | V2: =I9 -> ..C9/30/2012 | X2: =I8 -> ..C9/30/2013 | Z2: =I7 -> ..C9/30/2014 | AB2: =I6 -> ..C9/30/2015 | AD2: =AB2 -> ..C9/30/2015 | AF2: =I5 -> ..C9/30/2016 | AH2: =TEXT("..C"&$F$5,"MM/DD/YYYY") -> ..C42505 | AJ2: =AH2 -> ..C42505
B3: Hide | C3: Community Development District | H3: Year | I3: FY_End_date | J3: FY_begin_Date | T3: =$J$4 -> 10/1/2015..42505 | V3: 10/1/2011..9/30/2012 | X3: 10/1/2012..9/30/2013 | Z3: 10/1/2013..9/30/2014 | AB3: 10/1/2014..9/30/2015 | AD3: 10/1/2014..9/30/2015 | AF3: 10/1/2015..9/30/2016 | AH3: =$J$4 -> 10/1/2015..42505 | AJ3: 3/1/2016..9/30/2016 | AN3: 10/1/2016..9/30/2017 | AP3: 10/1/2016..9/30/2017
B4: Hide | E4: Budget Fiscal Year | F4: 2017 | H4: =F4 -> 2017 | I4: ="..C9/30/"&H4 -> ..C9/30/2017 | J4: ="10/1/"&H6&".."&F5 -> 10/1/2015..42505 | T4: ACTUAL | V4: ACTUAL | X4: ACTUAL | Z4: ACTUAL | AB4: ACTUAL | AD4: BUDGET | AF4: BUDGET | AH4: ACTUAL | AJ4: BUDGET | AL4: BUDGET | AN4: BUDGET | AP4: BUDGET
B5: Hide | C5: No. | D5: 300000..599999 | E5: Actual Date | F5: =VALUE(TEXT(G5,"yyyy")&"/"&TEXT(G5,"mm")&"/15") -> 2016-05-15 | G5: =TODAY() -> 2016-05-23 | H5: =H4-1 -> 2016 | I5: ..C9/30/2016 | J5: 10/1/2010..9/30/2017 | T5: =AF5 -> ..C9/30/2015 | V5: =I10 -> ..C9/30/2011 | X5: =V2 -> ..C9/30/2012 | Z5: =X2 -> ..C9/30/2013 | AB5: =Z2 -> ..C9/30/2014 | AD5: =AB5 -> ..C9/30/2014 | AF5: =AD2 -> ..C9/30/2015 | AH5: =AF5 -> ..C9/30/2015 | AJ5: =I11 -> ..C9/30/2016 | AN5: =$I$4 -> ..C9/30/2017 | AP5: =$I$4 -> ..C9/30/2017
B6: Hide | C6: District Name | D6: HARMONY CDD | E6: Show Ttl w/o reserves | F6: No | H6: 2015 | I6: ..C9/30/2015 | J6: 10/1/2014..9/30/2017 | AD6: * | AF6: * | AJ6: * | AN6: * | AP6: *
B7: Hide | C7: Fund No. | D7: 001..299|400..450 | E7: PY_actuals | F7: 1 | H7: 2014 | I7: ..C9/30/2014 | J7: 10/1/2016..9/30/2017 | AD7: Budget Plan No. | AF7: Budget Plan No. | AN7: Budget Plan No. | AP7: Budget Plan No.
B8: Hide | C8: Department | D8: * | E8: PY_budgets | F8: 1 | H8: 2013 | I8: ..C9/30/2013 | AD8: =RIGHT(AD2,4)&"BUDA" -> 2015BUDA | AF8: =RIGHT(AF2,4)&"BUDA" -> 2016BUDA
B9: Hide | C9: Transaction Type | D9: Actual | E9: Hide Proj Total | F9: No | H9: 2012 | I9: ..C9/30/2012
B10: Hide | C10: DistrictName | D10: Harmony | E10: Show Gl | F10: No | H10: 2011 | I10: ..C9/30/2011
B11: Hide | C11: DistrictType | D11: Community Development District | E11: Bal Bud | F11: Yes | H11: =RIGHT(I11,4) -> 2016 | I11: ="..C9/30/"&IF(MONTH(F5)<10,YEAR(F5),YEAR(F5)+1) -> ..C9/30/2016
B12: Hide | E12: Subacct | F12: * | J12: Summary of Revenues, Expenditures and Changes in Fund Balances
B13: Hide | E13: Include nav bal | F13: Yes | J13: Summary of Revenues, Expenses and Changes in Net Assets
B14: Hide | E14: Show COGS | F14: No
B15: Hide | E15: Budget Draft | F15: No | I15: =VALUE(TEXT(G5,"yyyy")&"/"&TEXT(G5,"mm")&"/15") -> 2016-05-15
B16: Hide | E16: Subtotal Revenue | F16: No | I16: =TEXT(G5,"mm") -> 05 | J16: =VALUE(I16) -> 5
B17: Hide | E17: Fund No. | F17: 001 | I17: =TEXT(G5,"yyyy") -> 2016 | J17: =VALUE(I17) -> 2016
B18: Hide | I18: =I17&"/"&I16&"/15" -> 2016/05/15 | J18: =VALUE(I18) -> 2016-05-15
B19: Hide | E19: Field Names | H19: SUBACCT | I19: =I18 -> 2016/05/15 | J19: =J18 -> 2016-05-15
B20: Hide | E20: G/L Account No. | H20: General Fund
B21: Hide | E21: Orgunit code | H21: To be reclassed
B22: Hide | E22: Fund No. | F22: =IF(F17="",0,F17) -> 001 | H22: =IF(F12="*",H20,H21) -> General Fund
B23: Hide | E23: subacct
A24: Key+Hide | B24: Hide | E24: Fund Code | G24: ColumnNo | AJ24: Col1 | AP24: Col2 | AS24: Col3
B25: Show | O25: reporttitle1 | R25: =IF(ISERROR(IF(AND(VALUE($F$22)>399,VALUE($F$22)<500),$J$13,$J$12)),"",IF(AND(VALUE($F$22)>399,VALUE($F$22)<500),$J$13,$J$12)) -> Summary of Revenues, Expenditures and Changes in Fund Balances
O26: reporttitle2 | R26: =H22 -> General Fund
B27: Show | O27: reporttitle3 | R27: ="Fiscal Year " &F4& " Proposed Budget" -> Fiscal Year 2017 Proposed Budget
B29: =IF(F15="yes","show","Hide") -> Hide | P29: THIS TEMPLATE IS ONLY INTENDED TO BE USED AS A BUDGETING WORKSHEET
B30: =B29 -> Hide
B31: Show | AD31: =IF(AD290=0,"ADOPTED","AMENDED") -> ADOPTED | AF31: =IF(AF290=0,"ADOPTED","AMENDED") -> ADOPTED | AH31: ACTUAL | AJ31: PROJECTED | AL31: TOTAL | AN31: NAVIGATOR | AP31: ANNUAL
B32: Show | P32: Account | T32: ACTUAL | V32: ACTUAL | X32: ACTUAL | Z32: ACTUAL | AB32: ACTUAL | AD32: BUDGET | AF32: BUDGET | AH32: THRU | AJ32: =UPPER(TEXT(F5, "MMM"))&" thru" -> MAY thru | AL32: PROJECTED | AN32: BALANCE | AP32: BUDGET
A33: Keyname | B33: Show | L33: Fund No. | M33: Date | N33: District Name | O33: No. | P33: # | R33: ACCOUNT DESCRIPTION | T33: TEST | V33: ="FY "&RIGHT(V2,4) -> FY 2012 | X33: ="FY "&RIGHT(X2,4) -> FY 2013 | Z33: ="FY "&RIGHT(Z2,4) -> FY 2014 | AB33: ="FY - "&RIGHT(AB2,4) -> FY - 2015 | AD33: ="FY - "&RIGHT(AD2,4) -> FY - 2015 | AF33: ="FY - "&$H$5 -> FY - 2016 | AH33: =UPPER(TEXT(F5-30, "MMM"))&" - "&$H$11 -> APR - 2016 | AJ33: ="EoFY - "&$H$11 -> EoFY - 2016 | AL33: ="FY - "&$H$11 -> FY - 2016 | AN33: ="FY - "&$H$4 -> FY - 2017 | AP33: ="FY - "&$H$4 -> FY - 2017 | AS33: NOTES
B34: Show
B35: Show | O35: Remindermessage | P35: REMINDER! - Run the "Update Report" Macro.
B36: Show | R36: =IF(R284=0,IF(AND($F$22>"399",$F$22<"500"),"OPERATING REVENUES","REVENUES"),"THIS REPORT HAS AN ERROR, THIS REPORT HAS AN ERROR, THIS REPORT HAS AN ERROR") -> REVENUES
B37: Show
A38: Data | B38: Show | E38: =IF(OR($D$7=0,$F$16="YES"),0,"300001..361000|361002..369999") -> 300001..361000|361002..369999 | K38: 361001 | L38: =$F$22 -> 001 | M38: =$J$7 -> 10/1/2016..9/30/2017 | N38: =$D$6 -> HARMONY CDD | O38: =K38 -> 361001 | P38: =K38 -> 361001 | R38: Interest - Investments | T38: 414 | V38: 0 | X38: 0 | Z38: 0 | AB38: 2625 | AD38: 0 | AF38: 2500 | AH38: 1064 | AJ38: =2500-AH38 -> 1436 | AL38: =IF(ISERROR(AH38+AJ38),0,(AH38+AJ38)) -> 2500 | AN38: 0 | AP38: 2500 | AQ38: =ABS(SUMIF(V38:AP38,">0")-SUMIF(V38:AP38,"<0")) -> 12625
A39: Data | B39: =IF(AQ39=0,"Hide","Show") -> Show | K39: 347005 | L39: =$F$22 -> 001 | M39: =$J$7 -> 10/1/2016..9/30/2017 | N39: =$D$6 -> HARMONY CDD | O39: =IF(K39="","8888888",K39) -> 347005 | P39: =K39 -> 347005 | R39: Soccer Fees | T39: 0 | V39: 0 | X39: 0 | Z39: 0 | AB39: 750 | AD39: 0 | AF39: 0 | AH39: 0 | AJ39: =+AF39-AH39 -> 0 | AL39: =IF(ISERROR(AH39+AJ39),0,(AH39+AJ39)) -> 0 | AN39: 0 | AP39: 0 | AQ39: =ABS(SUMIF(V39:AP39,">0")-SUMIF(V39:AP39,"<0")) -> 750
A40: Data+Auto | B40: =IF(AQ40=0,"Hide","Show") -> Hide | K40: ="351000" -> 351000 | L40: =$F$22 -> 001 | M40: =$J$7 -> 10/1/2016..9/30/2017 | N40: =$D$6 -> HARMONY CDD | O40: =IF(K40="","8888888",K40) -> 351000 | P40: =K40 -> 351000 | R40: Judgements and Fines | T40: 0 | V40: 0 | X40: 0 | Z40: 0 | AB40: 0 | AD40: 0 | AF40: 0 | AH40: 0 | AJ40: =+AF40-AH40 -> 0 | AL40: =IF(ISERROR(AH40+AJ40),0,(AH40+AJ40)) -> 0 | AN40: 0 | AP40: =IF($F$13="YES",AF40,AN40) -> 0 | AQ40: =ABS(SUMIF(V40:AP40,">0")-SUMIF(V40:AP40,"<0")) -> 0
A41: Data+Auto | B41: Show | K41: ="361006" -> 361006 | L41: 001 | M41: 10/1/2016..9/30/2017 | N41: HARMONY CDD | O41: 361006 | P41: 361006 | R41: Interest - Tax Collector | T41: 38 | V41: 0 | X41: 0 | Z41: 0 | AB41: 50 | AD41: 0 | AF41: 0 | AH41: 56 | AJ41: 0 | AL41: 56 | AN41: 0 | AP41: 0 | AQ41: 162
A42: Data+Auto | B42: Show | K42: ="363010" -> 363010 | L42: 001 | M42: 10/1/2016..9/30/2017 | N42: HARMONY CDD | O42: 363010 | P42: 363010 | R42: Special Assmnts- Tax Collector | T42: 798724 | V42: 0 | X42: 0 | Z42: 0 | AB42: 811191 | AD42: 0 | AF42: 1017931 | AH42: 986289 | AJ42: 31642 | AL42: 1017931 | AN42: 0 | AP42: =ROUND('Assess_Detail Revised'!AC61,0) -> 1252764 | AQ42: 5117748
A43: Data+Auto | B43: Hide | K43: ="363030" -> 363030 | L43: 001 | M43: 10/1/2016..9/30/2017 | N43: HARMONY CDD | O43: 363030 | P43: 363030 | R43: Special Assmnts- Prepayment | T43: 0 | V43: 0 | X43: 0 | Z43: 0 | AB43: 0 | AD43: 0 | AF43: 0 | AH43: 0 | AJ43: 0 | AL43: 0 | AN43: 0 | AP43: 0 | AQ43: 0
A44: Data+Auto | B44: Show | K44: ="363040" -> 363040 | L44: 001 | M44: 10/1/2016..9/30/2017 | N44: HARMONY CDD | O44: 363040 | P44: 363040 | R44: Special Assmnts- CDD Collected | T44: 411731 | V44: 0 | X44: 0 | Z44: 0 | AB44: 975831 | AD44: 0 | AF44: 893202 | AH44: 549294 | AJ44: 343908 | AL44: 893202 | AN44: 0 | AP44: =ROUND('Assess_Detail Revised'!AC62,0) -> 672444 | AQ44: 4327881
A45: Data+Auto | B45: Hide | K45: ="363050" -> 363050 | L45: 001 | M45: 10/1/2016..9/30/2017 | N45: HARMONY CDD | O45: 363050 | P45: 363050 | R45: Special Assmnts- Delinquent | T45: 0 | V45: 0 | X45: 0 | Z45: 0 | AB45: 0 | AD45: 0 | AF45: 0 | AH45: 0 | AJ45: 0 | AL45: 0 | AN45: 0 | AP45: 0 | AQ45: 0
A46: Data+Auto | B46: Show | K46: ="363090" -> 363090 | L46: 001 | M46: 10/1/2016..9/30/2017 | N46: HARMONY CDD | O46: 363090 | P46: 363090 | R46: Special Assmnts- Discounts | T46: -30179 | V46: 0 | X46: 0 | Z46: 0 | AB46: -21930 | AD46: 0 | AF46: -40717 | AH46: -30385 | AJ46: 0 | AL46: -30385 | AN46: 0 | AP46: =ROUND(-AP42*0.04,0) -> -50111 | AQ46: 173528
A47: Data+Auto | B47: Show | K47: ="364010" -> 364010 | L47: 001 | M47: 10/1/2016..9/30/2017 | N47: HARMONY CDD | O47: 364010 | P47: 364010 | R47: Sale of Surplus Equipment | T47: 0 | V47: 0 | X47: 0 | Z47: 0 | AB47: 50 | AD47: 0 | AF47: 0 | AH47: 0 | AJ47: 0 | AL47: 0 | AN47: 0 | AP47: 0 | AQ47: 50
A48: Data+Auto | B48: Hide | K48: ="366010" -> 366010 | L48: 001 | M48: 10/1/2016..9/30/2017 | N48: HARMONY CDD | O48: 366010 | P48: 366010 | R48: Developer Contribution | T48: 0 | V48: 0 | X48: 0 | Z48: 0 | AB48: 0 | AD48: 0 | AF48: 0 | AH48: 0 | AJ48: 0 | AL48: 0 | AN48: 0 | AP48: 0 | AQ48: 0
A49: Data+Auto | B49: Show | K49: ="369300" -> 369300 | L49: 001 | M49: 10/1/2016..9/30/2017 | N49: HARMONY CDD | O49: 369300 | P49: 369300 | R49: Settlements | T49: 0 | V49: 0 | X49: 0 | Z49: 0 | AB49: 0 | AD49: 0 | AF49: 0 | AH49: 7864 | AJ49: 0 | AL49: 7864 | AN49: 0 | AP49: 0 | AQ49: 15728
A50: Data+Auto | B50: Show | K50: ="369900" -> 369900 | L50: 001 | M50: 10/1/2016..9/30/2017 | N50: HARMONY CDD | O50: 369900 | P50: 369900 | R50: Other Miscellaneous Revenues | T50: 7373 | V50: 0 | X50: 0 | Z50: 0 | AB50: 1205 | AD50: 0 | AF50: 0 | AH50: 7373 | AJ50: 0 | AL50: 7373 | AN50: 0 | AP50: 0 | AQ50: 15951
A51: Data+Auto | B51: Hide | K51: ="369940" -> 369940 | L51: 001 | M51: 10/1/2016..9/30/2017 | N51: HARMONY CDD | O51: 369940 | P51: 369940 | R51: Gate Bar Code/Remotes | T51: 0 | V51: 0 | X51: 0 | Z51: 0 | AB51: 0 | AD51: 0 | AF51: 0 | AH51: 0 | AJ51: 0 | AL51: 0 | AN51: 0 | AP51: 0 | AQ51: 0
A52: Data+Auto | B52: Show | K52: ="369941" -> 369941 | L52: 001 | M52: 10/1/2016..9/30/2017 | N52: HARMONY CDD | O52: 369941 | P52: 369941 | R52: Access Cards | T52: 410 | V52: 0 | X52: 0 | Z52: 0 | AB52: 2065 | AD52: 0 | AF52: 1200 | AH52: 740 | AJ52: 460 | AL52: 1200 | AN52: 0 | AP52: 1200 | AQ52: 6865
A53: Data+Auto | B53: Show | K53: ="369980" -> 369980 | L53: 001 | M53: 10/1/2016..9/30/2017 | N53: HARMONY CDD | O53: 369980 | P53: 369980 | R53: Facility Revenue | T53: 1250 | V53: 0 | X53: 0 | Z53: 0 | AB53: 0 | AD53: 0 | AF53: 0 | AH53: 2790 | AJ53: =4000-AH53 -> 1210 | AL53: 4000 | AN53: 0 | AP53: 4000 | AQ53: 12000 | AS53: Did not exist prior to 2016; so what is basis/origin of actual/projected funds?
A54: Data+Auto | B54: =IF(AQ54=0,"Hide","Show") -> Show | K54: ="369922" -> 369922 | L54: 001 | M54: 10/1/2016..9/30/2017 | N54: HARMONY CDD | O54: =IF(K54="","8888888",K54) -> 369922 | P54: =K54 -> 369922 | R54: Facility Membership Fee | T54: 1000 | V54: 0 | X54: 0 | Z54: 0 | AB54: 0 | AD54: 0 | AF54: 0 | AH54: 1000 | AJ54: 0 | AL54: =IF(ISERROR(AH54+AJ54),0,(AH54+AJ54)) -> 1000 | AN54: 0 | AP54: 1000 | AQ54: =ABS(SUMIF(V54:AP54,">0")-SUMIF(V54:AP54,"<0")) -> 3000
B55: Show
B56: Hide | E56: =IF(OR($D$7=0,$F$16="NO"),0,"300001..361000|361002..369999") -> 0
B57: Hide
B58: =B61 -> Hide | I58: =IF(I57="","9999999",I57) -> 9999999 | AU58: TEST | AV58: =$V$33 -> FY 2012 | AW58: =$X$33 -> FY 2013 | AX58: =$Z$33 -> FY 2014 | AY58: =$AB$33 -> FY - 2015 | AZ58: AB | BA58: AB1 | BB58: ACT | BC58: PROJ | BD58: TOTAL | BE58: NAV | BF58: NEW AB
A59: Data | B59: =IF(AQ59=0,"Hide","Show") -> Hide | I59: =I58 -> 9999999 | L59: =$F$22 -> 001 | M59: =$J$7 -> 10/1/2016..9/30/2017 | N59: =$D$6 -> HARMONY CDD | O59: =K59 &" "&I59 -> 9999999 | P59: =K59 ->  | T59: 0 | V59: 0 | X59: 0 | Z59: 0 | AB59: 0 | AD59: 0 | AF59: 0 | AH59: 0 | AJ59: =+AF59-AH59 -> 0 | AL59: =IF(ISERROR(AH59+AJ59),0,(AH59+AJ59)) -> 0 | AN59: 0 | AP59: =IF($F$13="YES",AF59,AN59) -> 0 | AQ59: =ABS(SUMIF(V59:AP59,">0")-SUMIF(V59:AP59,"<0")) -> 0
B60: =B61 -> Hide | I60: =I59 -> 9999999
B61: =IF(AQ61=0,"Hide","Show") -> Hide | I61: =I60 -> 9999999 | R61: Total | T61: =SUM(T58:T60) -> 0 | V61: =SUM(V58:V60) -> 0 | X61: =SUM(X58:X60) -> 0 | Z61: =SUM(Z58:Z60) -> 0 | AB61: =SUM(AB58:AB60) -> 0 | AD61: =SUM(AD58:AD60) -> 0 | AF61: =SUM(AF58:AF60) -> 0 | AH61: =SUM(AH58:AH60) -> 0 | AJ61: =SUM(AJ58:AJ60) -> 0 | AL61: =SUM(AL58:AL60) -> 0 | AN61: =SUM(AN58:AN60) -> 0 | AP61: =SUM(AP58:AP60) -> 0 | AQ61: =ABS(SUMIF(V61:AP61,">0")-SUMIF(V61:AP61,"<0")) -> 0 | AU61: =SUM(T58:T60) -> 0 | AV61: =SUM(V58:V60) -> 0 | AW61: =SUM(X58:X60) -> 0 | AX61: =SUM(Z58:Z60) -> 0 | AY61: =SUM(AB58:AB60) -> 0 | AZ61: =SUM(AD58:AD60) -> 0 | BA61: =SUM(AF58:AF60) -> 0 | BB61: =SUM(AH58:AH60) -> 0 | BC61: =SUM(AJ58:AJ60) -> 0 | BD61: =SUM(AL58:AL60) -> 0 | BE61: =SUM(AN58:AN60) -> 0 | BF61: =SUM(AP58:AP60) -> 0
B62: =B61 -> Hide | I62: =I61 -> 9999999
B63: Show
B64: Show | R64: =IF(AND($F$22>"399",$F$22<"500"),"TOTAL OPERATING REVENUES","TOTAL REVENUES") -> TOTAL REVENUES | T64: =SUM(T37:T55)+SUM(AU59:AU63) -> 1190761 | V64: =SUM(V37:V55)+SUM(AV59:AV63) -> 0 | X64: =SUM(X37:X55)+SUM(AW59:AW63) -> 0 | Z64: =SUM(Z37:Z55)+SUM(AX59:AX63) -> 0 | AB64: =SUM(AB37:AB55)+SUM(AY59:AY63) -> 1771837 | AD64: =SUM(AD37:AD55)+SUM(AZ59:AZ63) -> 0 | AF64: =SUM(AF37:AF55)+SUM(BA59:BA63) -> 1874116 | AH64: =SUM(AH37:AH55)+SUM(BB59:BB63) -> 1526085 | AJ64: =SUM(AJ37:AJ55)+SUM(BC59:BC63) -> 378656 | AL64: =SUM(AL37:AL55)+SUM(BD59:BD63) -> 1904741 | AN64: =SUM(AN37:AN55)+SUM(BE59:BE63) -> 0 | AP64: =SUM(AP37:AP55)+SUM(BF59:BF63) -> 1883797 | AQ64: =ABS(SUMIF(V64:AP64,">0")-SUMIF(V64:AP64,"<0")) -> 9339232
B65: Show
B66: =IF(AQ70=0,"Hide","Show") -> Hide | E66: =IF(OR($F$22=0,VALUE($F$22)<=399,VALUE($F$22)>499,$F$14="NO"),0,"552099..552199") -> 0 | R66: COST OF GOODS SOLD
B67: Hide
A68: Data | B68: =IF(AQ68=0,"Hide","Show") -> Hide | L68: =$F$22 -> 001 | M68: =$J$7 -> 10/1/2016..9/30/2017 | N68: =$D$6 -> HARMONY CDD | O68: =IF(K68="","500000 50000",K68&" "&"50000") -> 500000 50000 | P68: =K68 ->  | T68: 0 | V68: 0 | X68: 0 | Z68: 0 | AB68: 0 | AD68: 0 | AF68: 0 | AH68: 0 | AJ68: 0 | AL68: =IF(ISERROR(AH68+AJ68),0,(AH68+AJ68)) -> 0 | AN68: 0 | AP68: =IF($F$13="YES",AF68,AN68) -> 0 | AQ68: =ABS(SUMIF(V68:AP68,">0")-SUMIF(V68:AP68,"<0")) -> 0
B69: Hide
B70: =IF(AQ70=0,"Hide","Show") -> Hide | R70: =IF(AND($F$22>"399",$F$22<"500",$F$14="yes"),"Total Cost of Goods Sold","") ->  | T70: =SUM(T67:T69) -> 0 | V70: =SUM(V67:V69) -> 0 | X70: =SUM(X67:X69) -> 0 | Z70: =SUM(Z67:Z69) -> 0 | AB70: =SUM(AB67:AB69) -> 0 | AD70: =SUM(AD67:AD69) -> 0 | AF70: =SUM(AF67:AF69) -> 0 | AH70: =SUM(AH67:AH69) -> 0 | AJ70: =SUM(AJ67:AJ69) -> 0 | AL70: =SUM(AL67:AL69) -> 0 | AN70: =SUM(AN67:AN69) -> 0 | AP70: =SUM(AP67:AP69) -> 0 | AQ70: =ABS(SUMIF(V70:AP70,">0")-SUMIF(V70:AP70,"<0")) -> 0
B71: =B70 -> Hide
B72: =B71 -> Hide | R72: =IF(AND($F$22>"399",$F$22<"500",$F$14="yes"),"GROSS PROFIT","") ->  | T72: =IF(OR(VALUE($F$22)<=399,VALUE($F$22)>499,$F$14="NO"),0,T64-T70) -> 0 | V72: =IF(OR(VALUE($F$22)<=399,VALUE($F$22)>499,$F$14="NO"),0,V64-V70) -> 0 | X72: =IF(OR(VALUE($F$22)<=399,VALUE($F$22)>499,$F$14="NO"),0,X64-X70) -> 0 | Z72: =IF(OR(VALUE($F$22)<=399,VALUE($F$22)>499,$F$14="NO"),0,Z64-Z70) -> 0 | AB72: =IF(OR(VALUE($F$22)<=399,VALUE($F$22)>499,$F$14="NO"),0,AB64-AB70) -> 0 | AD72: =IF(OR(VALUE($F$22)<=399,VALUE($F$22)>499,$F$14="NO"),0,AD64-AD70) -> 0 | AF72: =IF(OR(VALUE($F$22)<=399,VALUE($F$22)>499,$F$14="NO"),0,AF64-AF70) -> 0 | AH72: =IF(OR(VALUE($F$22)<=399,VALUE($F$22)>499,$F$14="NO"),0,AH64-AH70) -> 0 | AJ72: =IF(OR(VALUE($F$22)<=399,VALUE($F$22)>499,$F$14="NO"),0,AJ64-AJ70) -> 0 | AL72: =IF(OR(VALUE($F$22)<=399,VALUE($F$22)>499,$F$14="NO"),0,AL64-AL70) -> 0 | AN72: =IF(OR(VALUE($F$22)<=399,VALUE($F$22)>499,$F$14="NO"),0,AN64-AN70) -> 0 | AP72: =IF(OR(VALUE($F$22)<=399,VALUE($F$22)>499,$F$14="NO"),0,AP64-AP70) -> 0 | AQ72: =ABS(SUMIF(V72:AP72,">0")-SUMIF(V72:AP72,"<0")) -> 0
B73: =B72 -> Hide
B74: Show | R74: =IF(AND($F$22>"399",$F$22<"500"),"OPERATING EXPENSES","EXPENDITURES") -> EXPENDITURES
B75: Show
B76: =B103 -> Show | R76: =IF(AND($F$22>"399",$F$22<"500"),"Personnel and Administration","Administrative") -> Administrative
B77: Hide | E77: =IF($F$22=0,0,IF(OR($F$14="No",VALUE($F$22)<=399,VALUE($F$22)>499),"500000..564999|566000..579999","500000..552098|552200..564999|566000..579999")) -> 500000..564999|566000..579999 | H77: 51000..51699
A78: Data | B78: =IF(AQ78=0,"Hide","Show") -> Show | K78: 511001 | L78: =$F$22 -> 001 | M78: =$J$7 -> 10/1/2016..9/30/2017 | N78: =$D$6 -> HARMONY CDD | O78: =IF(K78="","500000 51699",K78&" "&"51699") -> 511001 51699 | P78: =K78 -> 511001 | R78: P/R-Board of Supervisors | T78: 4800 | V78: 0 | X78: 0 | Z78: 0 | AB78: 11800 | AD78: 0 | AF78: 11200 | AH78: 6400 | AJ78: =+AF78-AH78 -> 4800 | AL78: =IF(ISERROR(AH78+AJ78),0,(AH78+AJ78)) -> 11200 | AN78: 0 | AP78: =800*14 -> 11200 | AQ78: =ABS(SUMIF(V78:AP78,">0")-SUMIF(V78:AP78,"<0")) -> 56600
A79: Data+Auto | B79: =IF(AQ79=0,"Hide","Show") -> Show | K79: ="521001" -> 521001 | L79: =$F$22 -> 001 | M79: =$J$7 -> 10/1/2016..9/30/2017 | N79: =$D$6 -> HARMONY CDD | O79: =IF(K79="","500000 51699",K79&" "&"51699") -> 521001 51699 | P79: =K79 -> 521001 | R79: FICA Taxes | T79: 367 | V79: 0 | X79: 0 | Z79: 0 | AB79: 903 | AD79: 0 | AF79: 857 | AH79: 490 | AJ79: =+AJ78*0.0765 -> 367.2 | AL79: =IF(ISERROR(AH79+AJ79),0,(AH79+AJ79)) -> 857.2 | AN79: 0 | AP79: =ROUND(+AP78*0.0765,0) -> 857 | AQ79: =ABS(SUMIF(V79:AP79,">0")-SUMIF(V79:AP79,"<0")) -> 4331.4
A80: Data+Auto | B80: Show | K80: ="531002" -> 531002 | L80: 001 | M80: 10/1/2016..9/30/2017 | N80: HARMONY CDD | O80: 531002 51699 | P80: 531002 | R80: ProfServ-Arbitrage Rebate | T80: 600 | V80: 0 | X80: 0 | Z80: 0 | AB80: 1800 | AD80: 0 | AF80: 1200 | AH80: 600 | AJ80: 600 | AL80: 1200 | AN80: 0 | AP80: =600*2 -> 1200 | AQ80: 6600
A81: Data+Auto | B81: Show | K81: ="531012" -> 531012 | L81: 001 | M81: 10/1/2016..9/30/2017 | N81: HARMONY CDD | O81: 531012 51699 | P81: 531012 | R81: ProfServ-Dissemination Agent | T81: 1500 | V81: 0 | X81: 0 | Z81: 0 | AB81: 1500 | AD81: 0 | AF81: 1500 | AH81: 1500 | AJ81: 0 | AL81: 1500 | AN81: 0 | AP81: 1500 | AQ81: 7500
A82: Data+Auto | B82: Show | K82: ="531013" -> 531013 | L82: 001 | M82: 10/1/2016..9/30/2017 | N82: HARMONY CDD | O82: 531013 51699 | P82: 531013 | R82: ProfServ-Engineering | T82: 978 | V82: 0 | X82: 0 | Z82: 0 | AB82: 7041 | AD82: 0 | AF82: 8000 | AH82: 978 | AJ82: =+AF82-AH82 -> 7022 | AL82: 8000 | AN82: 0 | AP82: 8000 | AQ82: 39041
A83: Data+Auto | B83: Show | K83: ="531023" -> 531023 | L83: 001 | M83: 10/1/2016..9/30/2017 | N83: HARMONY CDD | O83: 531023 51699 | P83: 531023 | R83: ProfServ-Legal Services | T83: 26496 | V83: 0 | X83: 0 | Z83: 0 | AB83: 47556 | AD83: 0 | AF83: 35000 | AH83: 29122 | AJ83: =45000-AH83 -> 15878 | AL83: 45000 | AN83: 0 | AP83: 35000 | AQ83: 207556 | AS83: Budget consistently exceeded; so should amount be increased to $45K?
A84: Data+Auto | B84: Show | K84: ="531027" -> 531027 | L84: 001 | M84: 10/1/2016..9/30/2017 | N84: HARMONY CDD | O84: 531027 51699 | P84: 531027 | R84: ProfServ-Mgmt Consulting Serv | T84: 23327 | V84: 0 | X84: 0 | Z84: 0 | AB84: 55984 | AD84: 0 | AF84: 55984 | AH84: 32657 | AJ84: =+AF84-AH84 -> 23327 | AL84: 55984 | AN84: 0 | AP84: 55984 | AQ84: 279920
A85: Data+Auto | B85: Show | K85: ="531035" -> 531035 | L85: 001 | M85: 10/1/2016..9/30/2017 | N85: HARMONY CDD | O85: 531035 51699 | P85: 531035 | R85: ProfServ-Property Appraiser | T85: 0 | V85: 0 | X85: 0 | Z85: 0 | AB85: 418 | AD85: 0 | AF85: 779 | AH85: 406 | AJ85: 0 | AL85: 406 | AN85: 0 | AP85: 779 | AQ85: 2788
A86: Data+Auto | B86: Show | K86: ="531038" -> 531038 | L86: 001 | M86: 10/1/2016..9/30/2017 | N86: HARMONY CDD | O86: 531038 51699 | P86: 531038 | R86: ProfServ-Special Assessment | T86: 8822 | V86: 0 | X86: 0 | Z86: 0 | AB86: 7890 | AD86: 0 | AF86: 8822 | AH86: 8822 | AJ86: 0 | AL86: 8822 | AN86: 0 | AP86: 8822 | AQ86: 43178
A87: Data+Auto | B87: Show | K87: ="531045" -> 531045 | L87: 001 | M87: 10/1/2016..9/30/2017 | N87: HARMONY CDD | O87: 531045 51699 | P87: 531045 | R87: ProfServ-Trustee Fees | T87: 0 | V87: 0 | X87: 0 | Z87: 0 | AB87: 9727 | AD87: 0 | AF87: 10024 | AH87: 0 | AJ87: 10024 | AL87: 10024 | AN87: 0 | AP87: =5500+4524 -> 10024 | AQ87: 49823
A88: Data+Auto | B88: Show | K88: ="532002" -> 532002 | L88: 001 | M88: 10/1/2016..9/30/2017 | N88: HARMONY CDD | O88: 532002 51699 | P88: 532002 | R88: Auditing Services | T88: 0 | V88: 0 | X88: 0 | Z88: 0 | AB88: 4700 | AD88: 0 | AF88: 4900 | AH88: 4900 | AJ88: 0 | AL88: 4900 | AN88: 0 | AP88: 4900 | AQ88: 24300
A89: Data+Auto | B89: Hide | K89: ="541003" -> 541003 | L89: 001 | M89: 10/1/2016..9/30/2017 | N89: HARMONY CDD | O89: 541003 51699 | P89: 541003 | R89: Communication - Telephone | T89: 0 | V89: 0 | X89: 0 | Z89: 0 | AB89: 0 | AD89: 0 | AF89: 0 | AH89: 0 | AJ89: 0 | AL89: 0 | AN89: 0 | AP89: =IF($F$13="YES",AF89,AN89) -> 0 | AQ89: 0
A90: Data+Auto | B90: Show | K90: ="541006" -> 541006 | L90: 001 | M90: 10/1/2016..9/30/2017 | N90: HARMONY CDD | O90: 541006 51699 | P90: 541006 | R90: Postage and Freight | T90: 261 | V90: 0 | X90: 0 | Z90: 0 | AB90: 634 | AD90: 0 | AF90: 750 | AH90: 324 | AJ90: =+AH90/7*5 -> 231.4285714 | AL90: 555.4285714 | AN90: 0 | AP90: 750 | AQ90: 3244.857143
A91: Data+Auto | B91: Show | K91: ="544004" -> 544004 | L91: 001 | M91: 10/1/2016..9/30/2017 | N91: HARMONY CDD | O91: 544004 51699 | P91: 544004 | R91: Rental - Meeting Room | T91: 0 | V91: 0 | X91: 0 | Z91: 0 | AB91: 500 | AD91: 0 | AF91: 1500 | AH91: 0 | AJ91: 0 | AL91: 0 | AN91: 0 | AP91: 1500 | AQ91: 3500
A92: Data+Auto | B92: Show | K92: ="545002" -> 545002 | L92: 001 | M92: 10/1/2016..9/30/2017 | N92: HARMONY CDD | O92: 545002 51699 | P92: 545002 | R92: Insurance - General Liability | T92: 26759 | V92: 0 | X92: 0 | Z92: 0 | AB92: 25512 | AD92: 0 | AF92: 25512 | AH92: 26759 | AJ92: 0 | AL92: 26759 | AN92: 0 | AP92: =ROUND(+AL92*1.1,0) -> 29435 | AQ92: 133977
A93: Data+Auto | B93: Show | K93: ="547001" -> 547001 | L93: 001 | M93: 10/1/2016..9/30/2017 | N93: HARMONY CDD | O93: 547001 51699 | P93: 547001 | R93: Printing and Binding | T93: 817 | V93: 0 | X93: 0 | Z93: 0 | AB93: 2826 | AD93: 0 | AF93: 2500 | AH93: 1110 | AJ93: =+AH93/7*5 -> 792.8571429 | AL93: 1902.857143 | AN93: 0 | AP93: 2500 | AQ93: 11631.71429
A94: Data+Auto | B94: Show | K94: ="548002" -> 548002 | L94: 001 | M94: 10/1/2016..9/30/2017 | N94: HARMONY CDD | O94: 548002 51699 | P94: 548002 | R94: Legal Advertising | T94: 110 | V94: 0 | X94: 0 | Z94: 0 | AB94: 1015 | AD94: 0 | AF94: 900 | AH94: 110 | AJ94: =+AF94-AH94 -> 790 | AL94: 900 | AN94: 0 | AP94: 900 | AQ94: 4615
A95: Data+Auto | B95: Hide | K95: ="549001" -> 549001 | L95: 001 | M95: 10/1/2016..9/30/2017 | N95: HARMONY CDD | O95: 549001 51699 | P95: 549001 | R95: Miscellaneous Services | T95: 0 | V95: 0 | X95: 0 | Z95: 0 | AB95: 0 | AD95: 0 | AF95: 0 | AH95: 0 | AJ95: 0 | AL95: 0 | AN95: 0 | AP95: 0 | AQ95: 0
A96: Data+Auto | B96: Show | K96: ="549069" -> 549069 | L96: 001 | M96: 10/1/2016..9/30/2017 | N96: HARMONY CDD | O96: 549069 51699 | P96: 549069 | R96: Misc-Records Storage | T96: 0 | V96: 0 | X96: 0 | Z96: 0 | AB96: 0 | AD96: 0 | AF96: 150 | AH96: 0 | AJ96: 150 | AL96: 150 | AN96: 0 | AP96: 150 | AQ96: 600
A97: Data+Auto | B97: Show | K97: ="549070" -> 549070 | L97: 001 | M97: 10/1/2016..9/30/2017 | N97: HARMONY CDD | O97: 549070 51699 | P97: 549070 | R97: Misc-Assessmnt Collection Cost | T97: 15371 | V97: 0 | X97: 0 | Z97: 0 | AB97: 10562 | AD97: 0 | AF97: 20359 | AH97: 19118 | AJ97: =+AJ42*0.02 -> 632.84 | AL97: 19750.84 | AN97: 0 | AP97: =ROUND(+AP42*0.02,0) -> 25055 | AQ97: 95477.68
A98: Data+Auto | B98: Show | K98: ="549900" -> 549900 | L98: 001 | M98: 10/1/2016..9/30/2017 | N98: HARMONY CDD | O98: 549900 51699 | P98: 549900 | R98: Misc-Contingency | T98: 69 | V98: 0 | X98: 0 | Z98: 0 | AB98: 50 | AD98: 0 | AF98: 2600 | AH98: 124 | AJ98: =+AH98/7*5 -> 88.57142857 | AL98: 212.5714286 | AN98: 0 | AP98: 2600 | AQ98: 5675.142857
A99: Data+Auto | B99: Show | K99: ="551002" -> 551002 | L99: 001 | M99: 10/1/2016..9/30/2017 | N99: HARMONY CDD | O99: 551002 51699 | P99: 551002 | R99: Office Supplies | T99: 11 | V99: 0 | X99: 0 | Z99: 0 | AB99: 44 | AD99: 0 | AF99: 300 | AH99: 22 | AJ99: =+AH99/7*5 -> 15.71428571 | AL99: 37.71428571 | AN99: 0 | AP99: 300 | AQ99: 719.4285714
A100: Data+Auto | B100: Show | K100: ="554007" -> 554007 | L100: 001 | M100: 10/1/2016..9/30/2017 | N100: HARMONY CDD | O100: 554007 51699 | P100: 554007 | R100: Annual District Filing Fee | T100: 175 | V100: 0 | X100: 0 | Z100: 0 | AB100: 175 | AD100: 0 | AF100: 175 | AH100: 175 | AJ100: 0 | AL100: 175 | AN100: 0 | AP100: 175 | AQ100: 875
A101: Data+Auto | B101: Hide | K101: ="564043" -> 564043 | L101: 001 | M101: 10/1/2016..9/30/2017 | N101: HARMONY CDD | O101: 564043 51699 | P101: 564043 | R101: Capital Outlay | T101: 0 | V101: 0 | X101: 0 | Z101: 0 | AB101: 0 | AD101: 0 | AF101: 0 | AH101: 0 | AJ101: 0 | AL101: 0 | AN101: 0 | AP101: 0 | AQ101: 0
B102: =B103 -> Show
B103: =IF(AQ103=0,"Hide","Show") -> Show | R103: ="Total "&R76 -> Total Administrative | T103: =SUM(T78:T102) -> 110463 | V103: =SUM(V78:V102) -> 0 | X103: =SUM(X78:X102) -> 0 | Z103: =SUM(Z78:Z102) -> 0 | AB103: =SUM(AB78:AB102) -> 190637 | AD103: =SUM(AD78:AD102) -> 0 | AF103: =SUM(AF78:AF102) -> 193012 | AH103: =SUM(AH78:AH102) -> 133617 | AJ103: =SUM(AJ78:AJ102) -> 64719.61143 | AL103: =SUM(AL78:AL102) -> 198336.6114 | AN103: =SUM(AN78:AN102) -> 0 | AP103: =SUM(AP78:AP102) -> 201631 | AQ103: =ABS(SUMIF(V103:AP103,">0")-SUMIF(V103:AP103,"<0")) -> 981953.2229
B104: =B103 -> Show
B105: Hide | E105: =IF($F$22=0,0,IF(OR($F$14="No",VALUE($F$22)<=399,VALUE($F$22)>499),"500000..564999|566000..579999","500000..552098|552200..564999|566000..579999")) -> 500000..564999|566000..579999 | H105: 51800..57999|58001|99999 | AH105: =$Z$294+$Z$295 -> 0
B106: Hide
B107: Hide | H107: ORGUNIT | I107: 52901
B108: =IF(AQ111=0,"Hide","Show") -> Hide | I108: =I107 -> 52901 | R108: Other Public Safety | AU108: TEST | AV108: =$V$33 -> FY 2012 | AW108: =$X$33 -> FY 2013 | AX108: =$Z$33 -> FY 2014 | AY108: =$AB$33 -> FY - 2015 | AZ108: AB | BA108: AB1 | BB108: ACT | BC108: PROJ | BD108: TOTAL | BE108: NAV | BF108: NEW AB
A109: Data | B109: =IF(AQ109=0,"Hide","Show") -> Hide | I109: =I108 -> 52901 | K109: 531013 | L109: =$F$22 -> 001 | M109: =$J$7 -> 10/1/2016..9/30/2017 | N109: =$D$6 -> HARMONY CDD | O109: =IF(I109="","500000 51800",K109&" "&I109) -> 531013 52901 | P109: =K109 -> 531013 | R109: ProfServ-Engineering | T109: 0 | V109: 0 | X109: 0 | Z109: 0 | AB109: 0 | AD109: 0 | AF109: 0 | AH109: 0 | AJ109: 0 | AL109: =IF(ISERROR(AH109+AJ109),0,(AH109+AJ109)) -> 0 | AN109: 0 | AP109: =IF($F$13="YES",AF109,AN109) -> 0 | AQ109: =ABS(SUMIF(V109:AP109,">0")-SUMIF(V109:AP109,"<0")) -> 0
B110: Hide | I110: =I109 -> 52901
B111: =IF(AQ111=0,"Hide","Show") -> Hide | I111: =I110 -> 52901 | R111: ="Total " &($R108) -> Total Other Public Safety | T111: =SUM(T109:T110) -> 0 | V111: =SUM(V109:V110) -> 0 | X111: =SUM(X109:X110) -> 0 | Z111: =SUM(Z109:Z110) -> 0 | AB111: =SUM(AB109:AB110) -> 0 | AD111: =SUM(AD109:AD110) -> 0 | AF111: =SUM(AF109:AF110) -> 0 | AH111: =SUM(AH109:AH110) -> 0 | AJ111: =SUM(AJ109:AJ110) -> 0 | AL111: =SUM(AL109:AL110) -> 0 | AN111: =SUM(AN109:AN110) -> 0 | AP111: =SUM(AP109:AP110) -> 0 | AQ111: =ABS(SUMIF(V111:AP111,">0")-SUMIF(V111:AP111,"<0")) -> 0 | AU111: =SUM(T108:T110) -> 0 | AV111: =SUM(V108:V110) -> 0 | AW111: =SUM(X108:X110) -> 0 | AX111: =SUM(Z108:Z110) -> 0 | AY111: =SUM(AB108:AB110) -> 0 | AZ111: =SUM(AD108:AD110) -> 0 | BA111: =SUM(AF108:AF110) -> 0 | BB111: =SUM(AH108:AH110) -> 0 | BC111: =SUM(AJ108:AJ110) -> 0 | BD111: =SUM(AL108:AL110) -> 0 | BE111: =SUM(AN108:AN110) -> 0 | BF111: =SUM(AP108:AP110) -> 0
B112: =B111 -> Hide | I112: =I111 -> 52901
A113: Auto | B113: Hide | H113: ORGUNIT | I113: ="53901" -> 53901
A114: Auto | B114: =IF(AQ129=0,"Hide","Show") -> Show | I114: =I113 -> 53901 | R114: Field | AU114: TEST | AV114: =$V$33 -> FY 2012 | AW114: =$X$33 -> FY 2013 | AX114: =$Z$33 -> FY 2014 | AY114: =$AB$33 -> FY - 2015 | AZ114: AB | BA114: AB1 | BB114: ACT | BC114: PROJ | BD114: TOTAL | BE114: NAV | BF114: NEW AB
A115: Data+Auto | B115: =IF(AQ115=0,"Hide","Show") -> Hide | I115: =I114 -> 53901 | K115: 512001 | L115: =$F$22 -> 001 | M115: =$J$7 -> 10/1/2016..9/30/2017 | N115: =$D$6 -> HARMONY CDD | O115: =IF(I115="","500000 51800",K115&" "&I115) -> 512001 53901 | P115: =K115 -> 512001 | R115: Payroll-Salaries | T115: 0 | V115: 0 | X115: 0 | Z115: 0 | AB115: 0 | AD115: 0 | AF115: 0 | AH115: 0 | AJ115: 0 | AL115: =IF(ISERROR(AH115+AJ115),0,(AH115+AJ115)) -> 0 | AN115: 0 | AP115: =IF($F$13="YES",AF115,AN115) -> 0 | AQ115: =ABS(SUMIF(V115:AP115,">0")-SUMIF(V115:AP115,"<0")) -> 0
A116: Data+Auto | B116: =IF(AQ116=0,"Hide","Show") -> Hide | I116: =I115 -> 53901 | K116: ="531006" -> 531006 | L116: 001 | M116: 10/1/2016..9/30/2017 | N116: HARMONY CDD | O116: =IF(I116="","500000 51800",K116&" "&I116) -> 531006 53901 | P116: =K116 -> 531006 | R116: ProfServ-Coding Ordinance | T116: 0 | V116: 0 | X116: 0 | Z116: 0 | AB116: 0 | AD116: 0 | AF116: 0 | AH116: 0 | AJ116: 0 | AL116: =IF(ISERROR(AH116+AJ116),0,(AH116+AJ116)) -> 0 | AN116: 0 | AP116: =IF($F$13="YES",AF116,AN116) -> 0 | AQ116: =ABS(SUMIF(V116:AP116,">0")-SUMIF(V116:AP116,"<0")) -> 0
A117: Data+Auto | B117: Hide | I117: 53901 | K117: ="531013" -> 531013 | L117: 001 | M117: 10/1/2016..9/30/2017 | N117: HARMONY CDD | O117: 531013 53901 | P117: 531013 | R117: ProfServ-Engineering | T117: 0 | V117: 0 | X117: 0 | Z117: 0 | AB117: 0 | AD117: 0 | AF117: 0 | AH117: 0 | AJ117: 0 | AL117: 0 | AN117: 0 | AP117: 0 | AQ117: 0
A118: Data+Auto | B118: Show | I118: 53901 | K118: ="531016" -> 531016 | L118: 001 | M118: 10/1/2016..9/30/2017 | N118: HARMONY CDD | O118: 531016 53901 | P118: 531016 | R118: ProfServ-Field Management | T118: 75963 | V118: 0 | X118: 0 | Z118: 0 | AB118: 165998 | AD118: 0 | AF118: 200000 | AH118: 104574 | AJ118: =+AH118/7*5 -> 74695.71429 | AL118: 179269.7143 | AN118: 0 | AP118: 200000 | AQ118: 924537.4286
A119: Data+Auto | B119: Hide | I119: 53901 | K119: ="531045" -> 531045 | L119: 001 | M119: 10/1/2016..9/30/2017 | N119: HARMONY CDD | O119: 531045 53901 | P119: 531045 | R119: ProfServ-Trustee Fees | T119: 0 | V119: 0 | X119: 0 | Z119: 0 | AB119: 0 | AD119: 0 | AF119: 0 | AH119: 0 | AJ119: 0 | AL119: 0 | AN119: 0 | AP119: 0 | AQ119: 0
A120: Data+Auto | B120: Hide | I120: 53901 | K120: ="543022" -> 543022 | L120: 001 | M120: 10/1/2016..9/30/2017 | N120: HARMONY CDD | O120: 543022 53901 | P120: 543022 | R120: Utility - Meter Reading | T120: 0 | V120: 0 | X120: 0 | Z120: 0 | AB120: 0 | AD120: 0 | AF120: 0 | AH120: 0 | AJ120: 0 | AL120: 0 | AN120: 0 | AP120: 0 | AQ120: 0
A121: Data+Auto | B121: Hide | I121: 53901 | K121: ="546016" -> 546016 | L121: 001 | M121: 10/1/2016..9/30/2017 | N121: HARMONY CDD | O121: 546016 53901 | P121: 546016 | R121: R&M-Common Area | T121: 0 | V121: 0 | X121: 0 | Z121: 0 | AB121: 0 | AD121: 0 | AF121: 0 | AH121: 0 | AJ121: 0 | AL121: 0 | AN121: 0 | AP121: 0 | AQ121: 0
A122: Data+Auto | B122: Hide | I122: 53901 | K122: ="546074" -> 546074 | L122: 001 | M122: 10/1/2016..9/30/2017 | N122: HARMONY CDD | O122: 546074 53901 | P122: 546074 | R122: R&M-Pools | T122: 0 | V122: 0 | X122: 0 | Z122: 0 | AB122: 0 | AD122: 0 | AF122: 0 | AH122: 0 | AJ122: 0 | AL122: 0 | AN122: 0 | AP122: 0 | AQ122: 0
A123: Data+Auto | B123: Hide | I123: 53901 | K123: ="546084" -> 546084 | L123: 001 | M123: 10/1/2016..9/30/2017 | N123: HARMONY CDD | O123: 546084 53901 | P123: 546084 | R123: R&M-Sidewalks | T123: 0 | V123: 0 | X123: 0 | Z123: 0 | AB123: 0 | AD123: 0 | AF123: 0 | AH123: 0 | AJ123: 0 | AL123: 0 | AN123: 0 | AP123: 0 | AQ123: 0
A124: Data+Auto | B124: Hide | I124: 53901 | K124: ="549001" -> 549001 | L124: 001 | M124: 10/1/2016..9/30/2017 | N124: HARMONY CDD | O124: 549001 53901 | P124: 549001 | R124: Miscellaneous Services | T124: 0 | V124: 0 | X124: 0 | Z124: 0 | AB124: 0 | AD124: 0 | AF124: 0 | AH124: 0 | AJ124: 0 | AL124: 0 | AN124: 0 | AP124: 0 | AQ124: 0
A125: Data+Auto | B125: Hide | I125: 53901 | K125: ="549900" -> 549900 | L125: 001 | M125: 10/1/2016..9/30/2017 | N125: HARMONY CDD | O125: 549900 53901 | P125: 549900 | R125: Misc-Contingency | T125: 0 | V125: 0 | X125: 0 | Z125: 0 | AB125: 0 | AD125: 0 | AF125: 0 | AH125: 0 | AJ125: 0 | AL125: 0 | AN125: 0 | AP125: 0 | AQ125: 0
A126: Data+Auto | B126: Hide | I126: 53901 | K126: ="551002" -> 551002 | L126: 001 | M126: 10/1/2016..9/30/2017 | N126: HARMONY CDD | O126: 551002 53901 | P126: 551002 | R126: Office Supplies | T126: 0 | V126: 0 | X126: 0 | Z126: 0 | AB126: 0 | AD126: 0 | AF126: 0 | AH126: 0 | AJ126: 0 | AL126: 0 | AN126: 0 | AP126: 0 | AQ126: 0
A127: Data+Auto | B127: Show | I127: 53901 | K127: ="564002" -> 564002 | L127: 001 | M127: 10/1/2016..9/30/2017 | N127: HARMONY CDD | O127: 564002 53901 | P127: 564002 | R127: Cap Outlay - Other | T127: 0 | V127: 0 | X127: 0 | Z127: 0 | AB127: 2008 | AD127: 0 | AF127: 0 | AH127: 0 | AJ127: 0 | AL127: 0 | AN127: 0 | AP127: 0 | AQ127: 2008
A128: Auto | B128: Hide | I128: =I115 -> 53901
A129: Auto | B129: =IF(AQ129=0,"Hide","Show") -> Show | I129: =I128 -> 53901 | R129: ="Total " &($R114) -> Total Field | T129: =SUM(T115:T128) -> 75963 | V129: =SUM(V115:V128) -> 0 | X129: =SUM(X115:X128) -> 0 | Z129: =SUM(Z115:Z128) -> 0 | AB129: =SUM(AB115:AB128) -> 168006 | AD129: =SUM(AD115:AD128) -> 0 | AF129: =SUM(AF115:AF128) -> 200000 | AH129: =SUM(AH115:AH128) -> 104574 | AJ129: =SUM(AJ115:AJ128) -> 74695.71429 | AL129: =SUM(AL115:AL128) -> 179269.7143 | AN129: =SUM(AN115:AN128) -> 0 | AP129: =SUM(AP115:AP128) -> 200000 | AQ129: =ABS(SUMIF(V129:AP129,">0")-SUMIF(V129:AP129,"<0")) -> 926545.4286 | AU129: =SUM(T114:T128) -> 75963 | AV129: =SUM(V114:V128) -> 0 | AW129: =SUM(X114:X128) -> 0 | AX129: =SUM(Z114:Z128) -> 0 | AY129: =SUM(AB114:AB128) -> 168006 | AZ129: =SUM(AD114:AD128) -> 0 | BA129: =SUM(AF114:AF128) -> 200000 | BB129: =SUM(AH114:AH128) -> 104574 | BC129: =SUM(AJ114:AJ128) -> 74695.71429 | BD129: =SUM(AL114:AL128) -> 179269.7143 | BE129: =SUM(AN114:AN128) -> 0 | BF129: =SUM(AP114:AP128) -> 200000
A130: Auto | B130: =B129 -> Show | I130: =I129 -> 53901
A131: Auto | B131: Hide | H131: ORGUNIT | I131: ="53902" -> 53902
A132: Auto | B132: =IF(AQ154=0,"Hide","Show") -> Show | I132: =I131 -> 53902 | R132: Landscape Services | AU132: TEST | AV132: =$V$33 -> FY 2012 | AW132: =$X$33 -> FY 2013 | AX132: =$Z$33 -> FY 2014 | AY132: =$AB$33 -> FY - 2015 | AZ132: AB | BA132: AB1 | BB132: ACT | BC132: PROJ | BD132: TOTAL | BE132: NAV | BF132: NEW AB
A133: Data+Auto | B133: =IF(AQ133=0,"Hide","Show") -> Show | I133: =I132 -> 53902 | K133: 534085 | L133: =$F$22 -> 001 | M133: =$J$7 -> 10/1/2016..9/30/2017 | N133: =$D$6 -> HARMONY CDD | O133: =IF(I133="","500000 51800",K133&" "&I133) -> 534085 53902 | P133: =K133 -> 534085 | R133: Contracts-Trees & Trimming | T133: 8622 | V133: 0 | X133: 0 | Z133: 0 | AB133: 20286 | AD133: 0 | AF133: 20692 | AH133: 12070 | AJ133: =12*1724.33-AH133 -> 8621.96 | AL133: =IF(ISERROR(AH133+AJ133),0,(AH133+AJ133)) -> 20691.96 | AN133: 0 | AP133: =ROUND(1724.33*12,0) -> 20692 | AQ133: =ABS(SUMIF(V133:AP133,">0")-SUMIF(V133:AP133,"<0")) -> 103053.92
A134: Data+Auto | B134: =IF(AQ134=0,"Hide","Show") -> Hide | I134: =I133 -> 53902 | K134: ="534116" -> 534116 | L134: 001 | M134: 10/1/2016..9/30/2017 | N134: HARMONY CDD | O134: =IF(I134="","500000 51800",K134&" "&I134) -> 534116 53902 | P134: =K134 -> 534116 | R134: Contracts-Ground Maintenance | T134: 0 | V134: 0 | X134: 0 | Z134: 0 | AB134: 0 | AD134: 0 | AF134: 0 | AH134: 0 | AJ134: 0 | AL134: =IF(ISERROR(AH134+AJ134),0,(AH134+AJ134)) -> 0 | AN134: 0 | AP134: 0 | AQ134: =ABS(SUMIF(V134:AP134,">0")-SUMIF(V134:AP134,"<0")) -> 0
A135: Data+Auto | B135: Show | I135: 53902 | K135: ="534148" -> 534148 | L135: 001 | M135: 10/1/2016..9/30/2017 | N135: HARMONY CDD | O135: 534148 53902 | P135: 534148 | R135: Contracts-Shrub Care | T135: 50724 | V135: 0 | X135: 0 | Z135: 0 | AB135: 119351 | AD135: 0 | AF135: 121738 | AH135: 71014 | AJ135: =10144.83*12-AH135 -> 50723.96 | AL135: 121737.96 | AN135: 0 | AP135: =ROUND(10144.83*12,0) -> 121738 | AQ135: 606302.92
A136: Data+Auto | B136: Show | I136: 53902 | K136: ="534150" -> 534150 | L136: 001 | M136: 10/1/2016..9/30/2017 | N136: HARMONY CDD | O136: 534150 53902 | P136: 534150 | R136: Contracts-Ground | T136: 13389 | V136: 0 | X136: 0 | Z136: 0 | AB136: 21962 | AD136: 0 | AF136: 22400 | AH136: 21179 | AJ136: =+(1866.67*12+2028*9)-AH136 -> 19473.04 | AL136: 40652.04 | AN136: 0 | AP136: =ROUND((1866.67+2028)*12,0) -> 46736 | AQ136: 172402.08
A137: Data+Auto | B137: Show | I137: 53902 | K137: ="534155" -> 534155 | L137: 001 | M137: 10/1/2016..9/30/2017 | N137: HARMONY CDD | O137: 534155 53902 | P137: 534155 | R137: Contracts-Turf Care | T137: 110110 | V137: 0 | X137: 0 | Z137: 0 | AB137: 259866 | AD137: 0 | AF137: 265063 | AH137: 154120 | AJ137: =22005.25*12-AH137 -> 109943 | AL137: 264063 | AN137: 0 | AP137: =ROUND(22005.25*12,0) -> 264063 | AQ137: 1317118
A138: Data+Auto | B138: Hide | I138: 53902 | K138: ="543020" -> 543020 | L138: 001 | M138: 10/1/2016..9/30/2017 | N138: HARMONY CDD | O138: 543020 53902 | P138: 543020 | R138: Utility - Refuse Removal | T138: 0 | V138: 0 | X138: 0 | Z138: 0 | AB138: 0 | AD138: 0 | AF138: 0 | AH138: 0 | AJ138: 0 | AL138: 0 | AN138: 0 | AP138: 0 | AQ138: 0
A139: Data+Auto | B139: Hide | I139: 53902 | K139: ="546022" -> 546022 | L139: 001 | M139: 10/1/2016..9/30/2017 | N139: HARMONY CDD | O139: 546022 53902 | P139: 546022 | R139: R&M-Equipment | T139: 0 | V139: 0 | X139: 0 | Z139: 0 | AB139: 0 | AD139: 0 | AF139: 0 | AH139: 0 | AJ139: 0 | AL139: 0 | AN139: 0 | AP139: 0 | AQ139: 0
A140: Data+Auto | B140: Hide | I140: 53902 | K140: ="546031" -> 546031 | L140: 001 | M140: 10/1/2016..9/30/2017 | N140: HARMONY CDD | O140: 546031 53902 | P140: 546031 | R140: R&M-Flowers | T140: 0 | V140: 0 | X140: 0 | Z140: 0 | AB140: 0 | AD140: 0 | AF140: 0 | AH140: 0 | AJ140: 0 | AL140: 0 | AN140: 0 | AP140: 0 | AQ140: 0
A141: Data+Auto | B141: Hide | I141: 53902 | K141: ="546032" -> 546032 | L141: 001 | M141: 10/1/2016..9/30/2017 | N141: HARMONY CDD | O141: 546032 53902 | P141: 546032 | R141: R&M-Fountain | T141: 0 | V141: 0 | X141: 0 | Z141: 0 | AB141: 0 | AD141: 0 | AF141: 0 | AH141: 0 | AJ141: 0 | AL141: 0 | AN141: 0 | AP141: 0 | AQ141: 0
A142: Data+Auto | B142: Hide | I142: 53902 | K142: ="546037" -> 546037 | L142: 001 | M142: 10/1/2016..9/30/2017 | N142: HARMONY CDD | O142: 546037 53902 | P142: 546037 | R142: R&M-Grounds | T142: 0 | V142: 0 | X142: 0 | Z142: 0 | AB142: 0 | AD142: 0 | AF142: 0 | AH142: 0 | AJ142: 0 | AL142: 0 | AN142: 0 | AP142: 0 | AQ142: 0
A143: Data+Auto | B143: Show | I143: 53902 | K143: ="546041" -> 546041 | L143: 001 | M143: 10/1/2016..9/30/2017 | N143: HARMONY CDD | O143: 546041 53902 | P143: 546041 | R143: R&M-Irrigation | T143: 2837 | V143: 0 | X143: 0 | Z143: 0 | AB143: 8573 | AD143: 0 | AF143: 15000 | AH143: 3499 | AJ143: =+AF143-AH143 -> 11501 | AL143: 15000 | AN143: 0 | AP143: 15000 | AQ143: 68573
A144: Data+Auto | B144: Hide | I144: 53902 | K144: ="546094" -> 546094 | L144: 001 | M144: 10/1/2016..9/30/2017 | N144: HARMONY CDD | O144: 546094 53902 | P144: 546094 | R144: R&M-Streetlighting Equipment | T144: 0 | V144: 0 | X144: 0 | Z144: 0 | AB144: 0 | AD144: 0 | AF144: 0 | AH144: 0 | AJ144: 0 | AL144: 0 | AN144: 0 | AP144: 0 | AQ144: 0
A145: Data+Auto | B145: Hide | I145: 53902 | K145: ="546098" -> 546098 | L145: 001 | M145: 10/1/2016..9/30/2017 | N145: HARMONY CDD | O145: 546098 53902 | P145: 546098 | R145: R&M-Tree Trimming Services | T145: 0 | V145: 0 | X145: 0 | Z145: 0 | AB145: 0 | AD145: 0 | AF145: 0 | AH145: 0 | AJ145: 0 | AL145: 0 | AN145: 0 | AP145: 0 | AQ145: 0
A146: Data+Auto | B146: Show | I146: 53902 | K146: ="546099" -> 546099 | L146: 001 | M146: 10/1/2016..9/30/2017 | N146: HARMONY CDD | O146: 546099 53902 | P146: 546099 | R146: R&M-Trees and Trimming | T146: 0 | V146: 0 | X146: 0 | Z146: 0 | AB146: 0 | AD146: 0 | AF146: 15000 | AH146: 0 | AJ146: 15000 | AL146: 15000 | AN146: 0 | AP146: 15000 | AQ146: 60000
A147: Data+Auto | B147: Hide | I147: 53902 | K147: ="546130" -> 546130 | L147: 001 | M147: 10/1/2016..9/30/2017 | N147: HARMONY CDD | O147: 546130 53902 | P147: 546130 | R147: R&M-Turf Care | T147: 0 | V147: 0 | X147: 0 | Z147: 0 | AB147: 0 | AD147: 0 | AF147: 0 | AH147: 0 | AJ147: 0 | AL147: 0 | AN147: 0 | AP147: 0 | AQ147: 0
A148: Data+Auto | B148: Hide | I148: 53902 | K148: ="546131" -> 546131 | L148: 001 | M148: 10/1/2016..9/30/2017 | N148: HARMONY CDD | O148: 546131 53902 | P148: 546131 | R148: R&M-Shrub Care | T148: 0 | V148: 0 | X148: 0 | Z148: 0 | AB148: 0 | AD148: 0 | AF148: 0 | AH148: 0 | AJ148: 0 | AL148: 0 | AN148: 0 | AP148: 0 | AQ148: 0
A149: Data+Auto | B149: Hide | I149: 53902 | K149: ="546301" -> 546301 | L149: 001 | M149: 10/1/2016..9/30/2017 | N149: HARMONY CDD | O149: 546301 53902 | P149: 546301 | R149: R&M-Landscape Parc D-1 Park | T149: 0 | V149: 0 | X149: 0 | Z149: 0 | AB149: 0 | AD149: 0 | AF149: 0 | AH149: 0 | AJ149: 0 | AL149: 0 | AN149: 0 | AP149: 0 | AQ149: 0
A150: Data+Auto | B150: Show | I150: 53902 | K150: ="549001" -> 549001 | L150: 001 | M150: 10/1/2016..9/30/2017 | N150: HARMONY CDD | O150: 549001 53902 | P150: 549001 | R150: Miscellaneous Services | T150: 14805 | V150: 0 | X150: 0 | Z150: 0 | AB150: 35332 | AD150: 0 | AF150: 25000 | AH150: 14805 | AJ150: =+AF150-AH150 -> 10195 | AL150: 25000 | AN150: 0 | AP150: 25000 | AQ150: 135332
A151: Data+Auto | B151: Hide | I151: 53902 | K151: ="549015" -> 549015 | L151: 001 | M151: 10/1/2016..9/30/2017 | N151: HARMONY CDD | O151: 549015 53902 | P151: 549015 | R151: Misc-Employee Meals | T151: 0 | V151: 0 | X151: 0 | Z151: 0 | AB151: 0 | AD151: 0 | AF151: 0 | AH151: 0 | AJ151: 0 | AL151: 0 | AN151: 0 | AP151: =IF($F$13="YES",AF151,AN151) -> 0 | AQ151: 0
A152: Data+Auto | B152: Hide | I152: 53902 | K152: ="549900" -> 549900 | L152: 001 | M152: 10/1/2016..9/30/2017 | N152: HARMONY CDD | O152: 549900 53902 | P152: 549900 | R152: Misc-Contingency | T152: 0 | V152: 0 | X152: 0 | Z152: 0 | AB152: 0 | AD152: 0 | AF152: 0 | AH152: 0 | AJ152: 0 | AL152: 0 | AN152: 0 | AP152: 0 | AQ152: 0
A153: Auto | B153: Hide | I153: =I133 -> 53902
A154: Auto | B154: =IF(AQ154=0,"Hide","Show") -> Show | I154: =I153 -> 53902 | R154: ="Total " &($R132) -> Total Landscape Services | T154: =SUM(T133:T153) -> 200487 | V154: =SUM(V133:V153) -> 0 | X154: =SUM(X133:X153) -> 0 | Z154: =SUM(Z133:Z153) -> 0 | AB154: =SUM(AB133:AB153) -> 465370 | AD154: =SUM(AD133:AD153) -> 0 | AF154: =SUM(AF133:AF153) -> 484893 | AH154: =SUM(AH133:AH153) -> 276687 | AJ154: =SUM(AJ133:AJ153) -> 225457.96 | AL154: =SUM(AL133:AL153) -> 502144.96 | AN154: =SUM(AN133:AN153) -> 0 | AP154: =SUM(AP133:AP153) -> 508229 | AQ154: =ABS(SUMIF(V154:AP154,">0")-SUMIF(V154:AP154,"<0")) -> 2462781.92 | AU154: =SUM(T132:T153) -> 200487 | AV154: =SUM(V132:V153) -> 0 | AW154: =SUM(X132:X153) -> 0 | AX154: =SUM(Z132:Z153) -> 0 | AY154: =SUM(AB132:AB153) -> 465370 | AZ154: =SUM(AD132:AD153) -> 0 | BA154: =SUM(AF132:AF153) -> 484893 | BB154: =SUM(AH132:AH153) -> 276687 | BC154: =SUM(AJ132:AJ153) -> 225457.96 | BD154: =SUM(AL132:AL153) -> 502144.96 | BE154: =SUM(AN132:AN153) -> 0 | BF154: =SUM(AP132:AP153) -> 508229
A155: Auto | B155: =B154 -> Show | I155: =I154 -> 53902
A156: Auto | B156: Hide | H156: ORGUNIT | I156: ="53903" -> 53903
A157: Auto | B157: =IF(AQ166=0,"Hide","Show") -> Show | I157: =I156 -> 53903 | R157: Utilities | AU157: TEST | AV157: =$V$33 -> FY 2012 | AW157: =$X$33 -> FY 2013 | AX157: =$Z$33 -> FY 2014 | AY157: =$AB$33 -> FY - 2015 | AZ157: AB | BA157: AB1 | BB157: ACT | BC157: PROJ | BD157: TOTAL | BE157: NAV | BF157: NEW AB
A158: Data+Auto | B158: =IF(AQ158=0,"Hide","Show") -> Show | I158: =I157 -> 53903 | K158: 543006 | L158: =$F$22 -> 001 | M158: =$J$7 -> 10/1/2016..9/30/2017 | N158: =$D$6 -> HARMONY CDD | O158: =IF(I158="","500000 51800",K158&" "&I158) -> 543006 53903 | P158: =K158 -> 543006 | R158: Electricity - General | T158: 15673 | V158: 0 | X158: 0 | Z158: 0 | AB158: 29780 | AD158: 0 | AF158: 32000 | AH158: 21026 | AJ158: =+AF158-AH158 -> 10974 | AL158: =IF(ISERROR(AH158+AJ158),0,(AH158+AJ158)) -> 32000 | AN158: 0 | AP158: 32000 | AQ158: =ABS(SUMIF(V158:AP158,">0")-SUMIF(V158:AP158,"<0")) -> 157780
A159: Data+Auto | B159: =IF(AQ159=0,"Hide","Show") -> Show | I159: =I158 -> 53903 | K159: ="543013" -> 543013 | L159: 001 | M159: 10/1/2016..9/30/2017 | N159: HARMONY CDD | O159: =IF(I159="","500000 51800",K159&" "&I159) -> 543013 53903 | P159: =K159 -> 543013 | R159: Electricity - Streetlighting | T159: 30433 | V159: 0 | X159: 0 | Z159: 0 | AB159: 69866 | AD159: 0 | AF159: 90206 | AH159: 42563 | AJ159: =75000-AH159 -> 32437 | AL159: =IF(ISERROR(AH159+AJ159),0,(AH159+AJ159)) -> 75000 | AN159: 0 | AP159: 90000 | AQ159: =ABS(SUMIF(V159:AP159,">0")-SUMIF(V159:AP159,"<0")) -> 400072
A160: Data+Auto | B160: Show | I160: 53903 | K160: ="543021" -> 543021 | L160: 001 | M160: 10/1/2016..9/30/2017 | N160: HARMONY CDD | O160: 543021 53903 | P160: 543021 | R160: Utility - Water & Sewer | T160: 25486 | V160: 0 | X160: 0 | Z160: 0 | AB160: 93431 | AD160: 0 | AF160: 105000 | AH160: 43609 | AJ160: =95000-AH160 -> 51391 | AL160: 95000 | AN160: 0 | AP160: 105000 | AQ160: 493431
A161: Data+Auto | B161: Show | I161: 53903 | K161: ="544006" -> 544006 | L161: 001 | M161: 10/1/2016..9/30/2017 | N161: HARMONY CDD | O161: 544006 53903 | P161: 544006 | R161: Lease - Street Light | T161: 86861 | V161: 0 | X161: 0 | Z161: 0 | AB161: 284119 | AD161: 0 | AF161: 208467 | AH161: 121606 | AJ161: =17372.29*12-AH161 -> 86861.48 | AL161: 208467.48 | AN161: 0 | AP161: =ROUND(12*17372.29,0) -> 208467 | AQ161: 1117987.96
A162: Data+Auto | B162: Hide | I162: 53903 | K162: ="546006" -> 546006 | L162: 001 | M162: 10/1/2016..9/30/2017 | N162: HARMONY CDD | O162: 546006 53903 | P162: 546006 | R162: R&M-Aquascaping | T162: 0 | V162: 0 | X162: 0 | Z162: 0 | AB162: 0 | AD162: 0 | AF162: 0 | AH162: 0 | AJ162: 0 | AL162: 0 | AN162: 0 | AP162: 0 | AQ162: 0
A163: Data+Auto | B163: Hide | I163: 53903 | K163: ="549900" -> 549900 | L163: 001 | M163: 10/1/2016..9/30/2017 | N163: HARMONY CDD | O163: 549900 53903 | P163: 549900 | R163: Misc-Contingency | T163: 0 | V163: 0 | X163: 0 | Z163: 0 | AB163: 0 | AD163: 0 | AF163: 0 | AH163: 0 | AJ163: 0 | AL163: 0 | AN163: 0 | AP163: 0 | AQ163: 0
A164: Data+Auto | B164: Show | I164: 53903 | K164: ="564090" -> 564090 | L164: 001 | M164: 10/1/2016..9/30/2017 | N164: HARMONY CDD | O164: 564090 53903 | P164: 564090 | R164: Cap Outlay - Streetlights | T164: 0 | V164: 0 | X164: 0 | Z164: 0 | AB164: 679030 | AD164: 0 | AF164: 330638 | AH164: 0 | AJ164: 276000 | AL164: 276000 | AN164: 0 | AP164: 330000 | AQ164: 1891668 | AS164: Do unused FY2016 funds rollover to FY2017? Bond savings set-asides should!
A165: Auto | B165: Hide | I165: =I158 -> 53903
A166: Auto | B166: =IF(AQ166=0,"Hide","Show") -> Show | I166: =I165 -> 53903 | R166: ="Total " &($R157) -> Total Utilities | T166: =SUM(T158:T165) -> 158453 | V166: =SUM(V158:V165) -> 0 | X166: =SUM(X158:X165) -> 0 | Z166: =SUM(Z158:Z165) -> 0 | AB166: =SUM(AB158:AB165) -> 1156226 | AD166: =SUM(AD158:AD165) -> 0 | AF166: =SUM(AF158:AF165) -> 766311 | AH166: =SUM(AH158:AH165) -> 228804 | AJ166: =SUM(AJ158:AJ165) -> 457663.48 | AL166: =SUM(AL158:AL165) -> 686467.48 | AN166: =SUM(AN158:AN165) -> 0 | AP166: =SUM(AP158:AP165) -> 765467 | AQ166: =ABS(SUMIF(V166:AP166,">0")-SUMIF(V166:AP166,"<0")) -> 4060938.96 | AU166: =SUM(T157:T165) -> 158453 | AV166: =SUM(V157:V165) -> 0 | AW166: =SUM(X157:X165) -> 0 | AX166: =SUM(Z157:Z165) -> 0 | AY166: =SUM(AB157:AB165) -> 1156226 | AZ166: =SUM(AD157:AD165) -> 0 | BA166: =SUM(AF157:AF165) -> 766311 | BB166: =SUM(AH157:AH165) -> 228804 | BC166: =SUM(AJ157:AJ165) -> 457663.48 | BD166: =SUM(AL157:AL165) -> 686467.48 | BE166: =SUM(AN157:AN165) -> 0 | BF166: =SUM(AP157:AP165) -> 765467
A167: Auto | B167: =B166 -> Show | I167: =I166 -> 53903
A168: Auto | B168: Hide | H168: ORGUNIT | I168: ="53910" -> 53910
A169: Auto | B169: =IF(AQ206=0,"Hide","Show") -> Show | I169: =I168 -> 53910 | R169: Operation & Maintenance | AU169: TEST | AV169: =$V$33 -> FY 2012 | AW169: =$X$33 -> FY 2013 | AX169: =$Z$33 -> FY 2014 | AY169: =$AB$33 -> FY - 2015 | AZ169: AB | BA169: AB1 | BB169: ACT | BC169: PROJ | BD169: TOTAL | BE169: NAV | BF169: NEW AB
A170: Data+Auto | B170: =IF(AQ170=0,"Hide","Show") -> Hide | I170: =I169 -> 53910 | K170: 531016 | L170: =$F$22 -> 001 | M170: =$J$7 -> 10/1/2016..9/30/2017 | N170: =$D$6 -> HARMONY CDD | O170: =IF(I170="","500000 51800",K170&" "&I170) -> 531016 53910 | P170: =K170 -> 531016 | R170: ProfServ-Field Management | T170: 0 | V170: 0 | X170: 0 | Z170: 0 | AB170: 0 | AD170: 0 | AF170: 0 | AH170: 0 | AJ170: 0 | AL170: =IF(ISERROR(AH170+AJ170),0,(AH170+AJ170)) -> 0 | AN170: 0 | AP170: =IF($F$13="YES",AF170,AN170) -> 0 | AQ170: =ABS(SUMIF(V170:AP170,">0")-SUMIF(V170:AP170,"<0")) -> 0
A171: Data+Auto | B171: =IF(AQ171=0,"Hide","Show") -> Show | I171: =I170 -> 53910 | K171: ="534021" -> 534021 | L171: 001 | M171: 10/1/2016..9/30/2017 | N171: HARMONY CDD | O171: =IF(I171="","500000 51800",K171&" "&I171) -> 534021 53910 | P171: =K171 -> 534021 | R171: Contracts-Lake and Wetland | T171: 3924 | V171: 0 | X171: 0 | Z171: 0 | AB171: 15696 | AD171: 0 | AF171: 20000 | AH171: 3924 | AJ171: 0 | AL171: =IF(ISERROR(AH171+AJ171),0,(AH171+AJ171)) -> 3924 | AN171: 0 | AP171: 0 | AQ171: =ABS(SUMIF(V171:AP171,">0")-SUMIF(V171:AP171,"<0")) -> 43544
A172: Data+Auto | B172: Hide | I172: 53910 | K172: ="540003" -> 540003 | L172: 001 | M172: 10/1/2016..9/30/2017 | N172: HARMONY CDD | O172: 540003 53910 | P172: 540003 | R172: Expense Reimbursement | T172: 0 | V172: 0 | X172: 0 | Z172: 0 | AB172: 0 | AD172: 0 | AF172: 0 | AH172: 0 | AJ172: 0 | AL172: 0 | AN172: 0 | AP172: 0 | AQ172: 0
A173: Data+Auto | B173: Show | I173: 53910 | K173: ="541003" -> 541003 | L173: 001 | M173: 10/1/2016..9/30/2017 | N173: HARMONY CDD | O173: 541003 53910 | P173: 541003 | R173: Communication - Telephone | T173: 1525 | V173: 0 | X173: 0 | Z173: 0 | AB173: 3826 | AD173: 0 | AF173: 4000 | AH173: =305+1829 -> 2134 | AJ173: =305*12-AH173 -> 1526 | AL173: 3660 | AN173: 0 | AP173: =310*12 -> 3720 | AQ173: 18866
A174: Data+Auto | B174: Show | I174: 53910 | K174: ="543020" -> 543020 | L174: 001 | M174: 10/1/2016..9/30/2017 | N174: HARMONY CDD | O174: 543020 53910 | P174: 543020 | R174: Utility - Refuse Removal | T174: 1208 | V174: 0 | X174: 0 | Z174: 0 | AB174: 2857 | AD174: 0 | AF174: 3000 | AH174: 1677 | AJ174: =+AH174/5*7 -> 2347.8 | AL174: 4024.8 | AN174: 0 | AP174: =250*12 -> 3000 | AQ174: 16906.6
A175: Data+Auto | B175: Hide | I175: 53910 | K175: ="546002" -> 546002 | L175: 001 | M175: 10/1/2016..9/30/2017 | N175: HARMONY CDD | O175: 546002 53910 | P175: 546002 | R175: R&M-Renewal and Replacement | T175: 0 | V175: 0 | X175: 0 | Z175: 0 | AB175: 0 | AD175: 0 | AF175: 0 | AH175: 0 | AJ175: 0 | AL175: 0 | AN175: 0 | AP175: 0 | AQ175: 0
A176: Data+Auto | B176: Hide | I176: 53910 | K176: ="546015" -> 546015 | L176: 001 | M176: 10/1/2016..9/30/2017 | N176: HARMONY CDD | O176: 546015 53910 | P176: 546015 | R176: R&M-Clubhouse | T176: 0 | V176: 0 | X176: 0 | Z176: 0 | AB176: 0 | AD176: 0 | AF176: 0 | AH176: 0 | AJ176: 0 | AL176: 0 | AN176: 0 | AP176: 0 | AQ176: 0
A177: Data+Auto | B177: Hide | I177: 53910 | K177: ="546016" -> 546016 | L177: 001 | M177: 10/1/2016..9/30/2017 | N177: HARMONY CDD | O177: 546016 53910 | P177: 546016 | R177: R&M-Common Area | T177: 0 | V177: 0 | X177: 0 | Z177: 0 | AB177: 0 | AD177: 0 | AF177: 0 | AH177: 0 | AJ177: 0 | AL177: 0 | AN177: 0 | AP177: 0 | AQ177: 0
A178: Data+Auto | B178: Hide | I178: 53910 | K178: ="546022" -> 546022 | L178: 001 | M178: 10/1/2016..9/30/2017 | N178: HARMONY CDD | O178: 546022 53910 | P178: 546022 | R178: R&M-Equipment | T178: 0 | V178: 0 | X178: 0 | Z178: 0 | AB178: 0 | AD178: 0 | AF178: 0 | AH178: 0 | AJ178: 0 | AL178: 0 | AN178: 0 | AP178: 0 | AQ178: 0
A179: Data+Auto | B179: Hide | I179: 53910 | K179: ="546041" -> 546041 | L179: 001 | M179: 10/1/2016..9/30/2017 | N179: HARMONY CDD | O179: 546041 53910 | P179: 546041 | R179: R&M-Irrigation | T179: 0 | V179: 0 | X179: 0 | Z179: 0 | AB179: 0 | AD179: 0 | AF179: 0 | AH179: 0 | AJ179: 0 | AL179: 0 | AN179: 0 | AP179: 0 | AQ179: 0
A180: Data+Auto | B180: Hide | I180: 53910 | K180: ="546043" -> 546043 | L180: 001 | M180: 10/1/2016..9/30/2017 | N180: HARMONY CDD | O180: 546043 53910 | P180: 546043 | R180: R&M-Lake Bank Reserve | T180: 0 | V180: 0 | X180: 0 | Z180: 0 | AB180: 0 | AD180: 0 | AF180: 0 | AH180: 0 | AJ180: 0 | AL180: 0 | AN180: 0 | AP180: 0 | AQ180: 0
R181: R&M-Ponds | AB181: 0 | AF181: 0 | AH181: 1587 | AJ181: 0 | AL181: 1587 | AP181: 20000
A182: Data+Auto | B182: Show | I182: =I180 -> 53910 | K182: ="546074" -> 546074 | L182: 001 | M182: 10/1/2016..9/30/2017 | N182: HARMONY CDD | O182: 546074 53910 | P182: 546074 | R182: R&M-Pools | T182: 6791 | V182: 0 | X182: 0 | Z182: 0 | AB182: 25209 | AD182: 0 | AF182: 30000 | AH182: 9036 | AJ182: =+AF182-AH182 -> 20964 | AL182: 30000 | AN182: 0 | AP182: 30000 | AQ182: 145209
A183: Data+Auto | B183: Show | I183: 53910 | K183: ="546081" -> 546081 | L183: 001 | M183: 10/1/2016..9/30/2017 | N183: HARMONY CDD | O183: 546081 53910 | P183: 546081 | R183: R&M-Roads & Alleyways | T183: 0 | V183: 0 | X183: 0 | Z183: 0 | AB183: 61077 | AD183: 0 | AF183: 65000 | AH183: 168 | AJ183: =+AF183-AH183 -> 64832 | AL183: 65000 | AN183: 0 | AP183: 65000 | AQ183: 321077 | AS183: Which alleys worked in 2016, & which in 2017? Both FY's have $65K budget!
A184: Data+Auto | B184: Show | I184: 53910 | K184: ="546084" -> 546084 | L184: 001 | M184: 10/1/2016..9/30/2017 | N184: HARMONY CDD | O184: 546084 53910 | P184: 546084 | R184: R&M-Sidewalks | T184: 2685 | V184: 0 | X184: 0 | Z184: 0 | AB184: 3924 | AD184: 0 | AF184: 5000 | AH184: 2685 | AJ184: =+AF184-AH184 -> 2315 | AL184: 5000 | AN184: 0 | AP184: 5000 | AQ184: 23924
A185: Data+Auto | B185: Show | I185: 53910 | K185: ="546104" -> 546104 | L185: 001 | M185: 10/1/2016..9/30/2017 | N185: HARMONY CDD | O185: 546104 53910 | P185: 546104 | R185: R&M-Vehicles | T185: 5549 | V185: 0 | X185: 0 | Z185: 0 | AB185: 0 | AD185: 0 | AF185: 0 | AH185: 5549 | AJ185: =+AH185/7-5 -> 787.7142857 | AL185: 6336.714286 | AN185: 0 | AP185: 5000 | AQ185: 17673.42857
A186: Data+Auto | B186: Hide | I186: 53910 | K186: ="546135" -> 546135 | L186: 001 | M186: 10/1/2016..9/30/2017 | N186: HARMONY CDD | O186: 546135 53910 | P186: 546135 | R186: R&M-Parks & Amenities | T186: 0 | V186: 0 | X186: 0 | Z186: 0 | AB186: 0 | AD186: 0 | AF186: 0 | AH186: 0 | AJ186: 0 | AL186: 0 | AN186: 0 | AP186: 0 | AQ186: 0
A187: Data+Auto | B187: Show | I187: 53910 | K187: ="546223" -> 546223 | L187: 001 | M187: 10/1/2016..9/30/2017 | N187: HARMONY CDD | O187: 546223 53910 | P187: 546223 | R187: R&M-Equipment Boats | T187: 796 | V187: 0 | X187: 0 | Z187: 0 | AB187: 5169 | AD187: 0 | AF187: 7500 | AH187: 1546 | AJ187: =+AF187-AH187 -> 5954 | AL187: 7500 | AN187: 0 | AP187: 7500 | AQ187: 35169
A188: Data+Auto | B188: Show | I188: 53910 | K188: ="546224" -> 546224 | L188: 001 | M188: 10/1/2016..9/30/2017 | N188: HARMONY CDD | O188: 546224 53910 | P188: 546224 | R188: R&M-Equipment Vehicles | T188: 0 | V188: 0 | X188: 0 | Z188: 0 | AB188: 3701 | AD188: 0 | AF188: 5000 | AH188: 0 | AJ188: 0 | AL188: 0 | AN188: 0 | AP188: 0 | AQ188: 8701
A189: Data+Auto | B189: Show | I189: 53910 | K189: ="546225" -> 546225 | L189: 001 | M189: 10/1/2016..9/30/2017 | N189: HARMONY CDD | O189: 546225 53910 | P189: 546225 | R189: R&M-Parks & Facilities | T189: 10264 | V189: 0 | X189: 0 | Z189: 0 | AB189: 26218 | AD189: 0 | AF189: 37000 | AH189: 12579 | AJ189: =+AF189-AH189 -> 24421 | AL189: 37000 | AN189: 0 | AP189: 37000 | AQ189: 174218
A190: Data+Auto | B190: Show | I190: 53910 | K190: ="546312" -> 546312 | L190: 001 | M190: 10/1/2016..9/30/2017 | N190: HARMONY CDD | O190: 546312 53910 | P190: 546312 | R190: R&M-Hardscape Cleaning | T190: 0 | V190: 0 | X190: 0 | Z190: 0 | AB190: 1250 | AD190: 0 | AF190: 0 | AH190: 0 | AJ190: 1250 | AL190: 1250 | AN190: 0 | AP190: 0 | AQ190: 3750 | AS190: There has consistently been an expense; so why is there no assigned budget?
A191: Data+Auto | B191: Hide | I191: 53910 | K191: ="546325" -> 546325 | L191: 001 | M191: 10/1/2016..9/30/2017 | N191: HARMONY CDD | O191: 546325 53910 | P191: 546325 | R191: R&M-Irrigation Valve | T191: 0 | V191: 0 | X191: 0 | Z191: 0 | AB191: 0 | AD191: 0 | AF191: 0 | AH191: 0 | AJ191: 0 | AL191: 0 | AN191: 0 | AP191: 0 | AQ191: 0
A192: Data+Auto | B192: Show | I192: 53910 | K192: ="549001" -> 549001 | L192: 001 | M192: 10/1/2016..9/30/2017 | N192: HARMONY CDD | O192: 549001 53910 | P192: 549001 | R192: Miscellaneous Services | T192: 780 | V192: 0 | X192: 0 | Z192: 0 | AB192: 1600 | AD192: 0 | AF192: 2400 | AH192: 750 | AJ192: =125*7 -> 875 | AL192: 1625 | AN192: 0 | AP192: 2400 | AQ192: 9650
A193: Data+Auto | B193: Show | I193: 53910 | K193: ="549044" -> 549044 | L193: 001 | M193: 10/1/2016..9/30/2017 | N193: HARMONY CDD | O193: 549044 53910 | P193: 549044 | R193: Misc-Property Taxes | T193: 0 | V193: 0 | X193: 0 | Z193: 0 | AB193: 329 | AD193: 0 | AF193: 0 | AH193: 0 | AJ193: 0 | AL193: 0 | AN193: 0 | AP193: 0 | AQ193: 329
A194: Data+Auto | B194: Hide | I194: 53910 | K194: ="549066" -> 549066 | L194: 001 | M194: 10/1/2016..9/30/2017 | N194: HARMONY CDD | O194: 549066 53910 | P194: 549066 | R194: Misc-Licenses & Permits | T194: 0 | V194: 0 | X194: 0 | Z194: 0 | AB194: 0 | AD194: 0 | AF194: 0 | AH194: 0 | AJ194: 0 | AL194: 0 | AN194: 0 | AP194: 0 | AQ194: 0
A195: Data+Auto | B195: Hide | I195: 53910 | K195: ="549093" -> 549093 | L195: 001 | M195: 10/1/2016..9/30/2017 | N195: HARMONY CDD | O195: 549093 53910 | P195: 549093 | R195: Misc-Water Pressure Project | T195: 0 | V195: 0 | X195: 0 | Z195: 0 | AB195: 0 | AD195: 0 | AF195: 0 | AH195: 0 | AJ195: 0 | AL195: 0 | AN195: 0 | AP195: 0 | AQ195: 0
A196: Data+Auto | B196: Show | I196: 53910 | K196: ="549149" -> 549149 | L196: 001 | M196: 10/1/2016..9/30/2017 | N196: HARMONY CDD | O196: 549149 53910 | P196: 549149 | R196: Misc-Access Cards&Equipment | T196: 349 | V196: 0 | X196: 0 | Z196: 0 | AB196: 1652 | AD196: 0 | AF196: 2500 | AH196: 349 | AJ196: =+AH196/5*7 -> 488.6 | AL196: 837.6 | AN196: 0 | AP196: 2500 | AQ196: 8327.2
A197: Data+Auto | B197: Show | I197: 53910 | K197: ="549900" -> 549900 | L197: 001 | M197: 10/1/2016..9/30/2017 | N197: HARMONY CDD | O197: 549900 53910 | P197: 549900 | R197: Misc-Contingency | T197: 1466 | V197: 0 | X197: 0 | Z197: 0 | AB197: 6309 | AD197: 0 | AF197: 8000 | AH197: 3015 | AJ197: =+AF197-AH197 -> 4985 | AL197: 8000 | AN197: 0 | AP197: 8000 | AQ197: 38309
A198: Data+Auto | B198: Show | I198: 53910 | K198: ="549911" -> 549911 | L198: 001 | M198: 10/1/2016..9/30/2017 | N198: HARMONY CDD | O198: 549911 53910 | P198: 549911 | R198: Misc-Security Enhancements | T198: 1095 | V198: 0 | X198: 0 | Z198: 0 | AB198: 2116 | AD198: 0 | AF198: 2500 | AH198: 1949 | AJ198: =+AF198-AH198 -> 551 | AL198: 2500 | AN198: 0 | AP198: 2500 | AQ198: 12116
A199: Data+Auto | B199: Hide | I199: 53910 | K199: ="551002" -> 551002 | L199: 001 | M199: 10/1/2016..9/30/2017 | N199: HARMONY CDD | O199: 551002 53910 | P199: 551002 | R199: Office Supplies | T199: 0 | V199: 0 | X199: 0 | Z199: 0 | AB199: 0 | AD199: 0 | AF199: 0 | AH199: 0 | AJ199: 0 | AL199: 0 | AN199: 0 | AP199: 0 | AQ199: 0
A200: Data+Auto | B200: Show | I200: 53910 | K200: ="552030" -> 552030 | L200: 001 | M200: 10/1/2016..9/30/2017 | N200: HARMONY CDD | O200: 552030 53910 | P200: 552030 | R200: Op Supplies - Fuel, Oil | T200: 852 | V200: 0 | X200: 0 | Z200: 0 | AB200: 0 | AD200: 0 | AF200: 0 | AH200: 1282 | AJ200: =+AH200/5*7 -> 1794.8 | AL200: 3076.8 | AN200: 0 | AP200: 3500 | AQ200: 9653.6
A201: Data+Auto | B201: Show | I201: 53910 | K201: ="564002" -> 564002 | L201: 001 | M201: 10/1/2016..9/30/2017 | N201: HARMONY CDD | O201: 564002 53910 | P201: 564002 | R201: Cap Outlay - Other | T201: 2252 | V201: 0 | X201: 0 | Z201: 0 | AB201: 0 | AD201: 0 | AF201: 16000 | AH201: 2252 | AJ201: =+AF201-AH201 -> 13748 | AL201: 16000 | AN201: 0 | AP201: =-5000+13350 -> 8350 | AQ201: 56350
... 99 more rows

Sheet 201 (hidden)
A1: Auto+Hide+Values+Formulas=Sheet5,Sheet13,Sheet14+AutoSheet | B1: Hide+? | C1: Hide | D1: Hide | E1: Hide | F1: Hide | G1: Keyname+Hide | H1: Hide | I1: Hide | J1: Hide | K1: Hide | L1: Key+Hide | M1: Key+Hide | N1: Key+Hide | O1: Key+Hide | P1: =IF($F$9="no","Hide","Show") -> Hide | Q1: =P1 -> Hide | R1: Show | S1: Hide | T1: Hide | V1: =IF($F$7=4,"Show","Hide") -> Hide | W1: =V1 -> Hide | X1: =IF($F$7>=3,"Show","Hide") -> Hide | Y1: =X1 -> Hide | Z1: =IF($F$7>=2,"Show","Hide") -> Hide | AA1: =Z1 -> Hide | AB1: =IF($F$7>=1,"Show","Hide") -> Show | AC1: =AB1 -> Show | AD1: =IF($F$8>=2,"Show","Hide") -> Hide | AE1: =AD1 -> Hide | AF1: =IF($F$8>=1,"Show","Hide") -> Show | AG1: =AF1 -> Show | AH1: =IF($F$9="no","Show","hide") -> Show | AI1: =AH1 -> Show | AJ1: ="Data+"&AH1 -> Data+Show | AK1: =AH1 -> Show | AL1: Show | AM1: =AL1 -> Show | AN1: Hide | AO1: Hide | AP1: Data | AQ1: Hide | AS1: Data | AT1: HIDE | AU1: HIDE | AV1: HIDE | AW1: HIDE | AX1: HIDE | AY1: HIDE | AZ1: HIDE | BA1: HIDE | BB1: HIDE | BC1: HIDE | BD1: HIDE | BE1: HIDE | BF1: HIDE
B2: =IF(AQ131=0,"hidesheet","Hide") -> hidesheet | C2: Harmony | T2: =TEXT("..C"&$F$5,"MM/DD/YYYY") -> ..C02/29/2016 | V2: =I9 -> ..C9/30/2012 | X2: =I8 -> ..C9/30/2013 | Z2: =I7 -> ..C9/30/2014 | AB2: =I6 -> ..C9/30/2015 | AD2: =AB2 -> ..C9/30/2015 | AF2: =I5 -> ..C9/30/2016 | AH2: =TEXT("..C"&$F$5,"MM/DD/YYYY") -> ..C02/29/2016 | AJ2: =AH2 -> ..C02/29/2016
B3: Hide | C3: Community Development District | H3: Year | I3: FY_End_date | J3: FY_begin_Date | T3: =$J$4 -> 10/1/2015..02/29/2016 | V3: 10/1/2011..9/30/2012 | X3: 10/1/2012..9/30/2013 | Z3: 10/1/2013..9/30/2014 | AB3: 10/1/2014..9/30/2015 | AD3: 10/1/2014..9/30/2015 | AF3: 10/1/2015..9/30/2016 | AH3: =$J$4 -> 10/1/2015..02/29/2016 | AJ3: 3/1/2016..9/30/2016 | AN3: 10/1/2016..9/30/2017 | AP3: 10/1/2016..9/30/2017
B4: Hide | E4: Budget Fiscal Year | F4: 2017 | H4: =F4 -> 2017 | I4: ="..C9/30/"&H4 -> ..C9/30/2017 | J4: ="10/1/"&H6&".."&F5 -> 10/1/2015..02/29/2016 | T4: ACTUAL | V4: ACTUAL | X4: ACTUAL | Z4: ACTUAL | AB4: ACTUAL | AD4: BUDGET | AF4: BUDGET | AH4: ACTUAL | AJ4: BUDGET | AL4: BUDGET | AN4: BUDGET | AP4: BUDGET
B5: Hide | C5: No. | D5: 300000..599999 | E5: Actual Date | F5: 02/29/2016 | H5: =H4-1 -> 2016 | I5: ..C9/30/2016 | J5: 10/1/2010..9/30/2017 | T5: =AF5 -> ..C9/30/2015 | V5: =I10 -> ..C9/30/2011 | X5: =V2 -> ..C9/30/2012 | Z5: =X2 -> ..C9/30/2013 | AB5: =Z2 -> ..C9/30/2014 | AD5: =AB5 -> ..C9/30/2014 | AF5: =AD2 -> ..C9/30/2015 | AH5: =AF5 -> ..C9/30/2015 | AJ5: =I11 -> ..C9/30/2016 | AN5: =$I$4 -> ..C9/30/2017 | AP5: =$I$4 -> ..C9/30/2017
B6: Hide | C6: District Name | D6: HARMONY CDD | E6: Show Ttl w/o reserves | F6: No | H6: 2015 | I6: ..C9/30/2015 | J6: 10/1/2014..9/30/2017 | AD6: * | AF6: * | AJ6: * | AN6: * | AP6: *
B7: Hide | C7: Fund No. | D7: 001..299|400..450 | E7: PY_actuals | F7: 1 | H7: 2014 | I7: ..C9/30/2014 | J7: 10/1/2016..9/30/2017 | AD7: Budget Plan No. | AF7: Budget Plan No. | AN7: Budget Plan No. | AP7: Budget Plan No.
B8: Hide | C8: Department | D8: * | E8: PY_budgets | F8: 1 | H8: 2013 | I8: ..C9/30/2013 | AD8: =RIGHT(AD2,4)&"BUDA" -> 2015BUDA | AF8: =RIGHT(AF2,4)&"BUDA" -> 2016BUDA
B9: Hide | C9: Transaction Type | D9: Actual | E9: Hide Proj Total | F9: No | H9: 2012 | I9: ..C9/30/2012
B10: Hide | C10: DistrictName | D10: Harmony | E10: Show Gl | F10: No | H10: 2011 | I10: ..C9/30/2011
B11: Hide | C11: DistrictType | D11: Community Development District | E11: Bal Bud | F11: Yes | H11: =RIGHT(I11,4) -> 2016 | I11: ="..C9/30/"&IF(MONTH(F5)<10,YEAR(F5),YEAR(F5)+1) -> ..C9/30/2016
B12: Hide | E12: Subacct | F12: * | J12: Summary of Revenues, Expenditures and Changes in Fund Balances
B13: Hide | E13: Include nav bal | F13: Yes | J13: Summary of Revenues, Expenses and Changes in Net Assets
B14: Hide | E14: Show COGS | F14: No
B15: Hide | E15: Budget Draft | F15: No
B16: Hide | E16: Subtotal Revenue | F16: No
B17: Hide | E17: Fund No. | F17: ="201" -> 201
B18: Hide
B19: Hide | E19: Field Names | H19: SUBACCT
B20: Hide | E20: G/L Account No. | H20: 2001 Debt Service Fund
B21: Hide | E21: Orgunit code | H21: To be reclassed
B22: Hide | E22: Fund No. | F22: =IF(F17="",0,F17) -> 201 | H22: =IF(F12="*",H20,H21) -> 2001 Debt Service Fund
B23: Hide | E23: subacct
A24: Key+Hide | B24: Hide | E24: Fund Code | G24: ColumnNo | AJ24: Col1 | AP24: Col2 | AS24: Col3
B25: Show | O25: reporttitle1 | P25: =IF(ISERROR(IF(AND(VALUE($F$22)>399,VALUE($F$22)<500),$J$13,$J$12)),"",IF(AND(VALUE($F$22)>399,VALUE($F$22)<500),$J$13,$J$12)) -> Summary of Revenues, Expenditures and Changes in Fund Balances
O26: reporttitle2 | P26: =H22 -> 2001 Debt Service Fund
B27: Show | O27: reporttitle3 | P27: ="Fiscal Year " &F4& " Proposed Budget" -> Fiscal Year 2017 Proposed Budget
B29: =IF(F15="yes","show","Hide") -> Hide | P29: THIS TEMPLATE IS ONLY INTENDED TO BE USED AS A BUDGETING WORKSHEET
B30: =B29 -> Hide
B31: Show | AD31: =IF(AD148=0,"ADOPTED","AMENDED") -> ADOPTED | AF31: =IF(AF148=0,"ADOPTED","AMENDED") -> ADOPTED | AH31: ACTUAL | AJ31: PROJECTED | AL31: TOTAL | AN31: NAVIGATOR | AP31: ANNUAL
B32: Show | P32: Account | T32: ACTUAL | V32: ACTUAL | X32: ACTUAL | Z32: ACTUAL | AB32: ACTUAL | AD32: BUDGET | AF32: BUDGET | AH32: THRU | AJ32: ='001'!AJ32 -> MAY thru | AL32: PROJECTED | AN32: BALANCE | AP32: BUDGET
A33: Keyname | B33: Show | L33: Fund No. | M33: Date | N33: District Name | O33: No. | P33: # | R33: ACCOUNT DESCRIPTION | T33: TEST | V33: ="FY "&RIGHT(V2,4) -> FY 2012 | X33: ="FY "&RIGHT(X2,4) -> FY 2013 | Z33: ="FY "&RIGHT(Z2,4) -> FY 2014 | AB33: ='001'!AB33 -> FY - 2015 | AD33: ='001'!AD33 -> FY - 2015 | AF33: ='001'!AF33 -> FY - 2016 | AH33: ='001'!AH33 -> APR - 2016 | AJ33: ='001'!AJ33 -> EoFY - 2016 | AL33: ='001'!AL33 -> FY - 2016 | AN33: ='001'!AN33 -> FY - 2017 | AP33: ='001'!AP33 -> FY - 2017 | AS33: NOTES
B34: Show
B35: Show | O35: Remindermessage | P35: REMINDER! - Run the "Update Report" Macro.
B36: Show | R36: =IF(R142=0,IF(AND($F$22>"399",$F$22<"500"),"OPERATING REVENUES","REVENUES"),"THIS REPORT HAS AN ERROR, THIS REPORT HAS AN ERROR, THIS REPORT HAS AN ERROR") -> REVENUES
B37: Show
A38: Data | B38: Show | E38: =IF(OR($D$7=0,$F$16="YES"),0,"300001..361000|361002..369999") -> 300001..361000|361002..369999 | K38: 361001 | L38: =$F$22 -> 201 | M38: =$J$7 -> 10/1/2016..9/30/2017 | N38: =$D$6 -> HARMONY CDD | O38: =K38 -> 361001 | P38: =K38 -> 361001 | R38: Interest - Investments | T38: 0 | V38: 0 | X38: 0 | Z38: 0 | AB38: 0 | AD38: 0 | AF38: 0 | AH38: 0 | AJ38: =+AF38-AH38 -> 0 | AL38: =IF(ISERROR(AH38+AJ38),0,(AH38+AJ38)) -> 0 | AN38: 0 | AP38: =IF($F$13="YES",AF38,AN38) -> 0 | AQ38: =ABS(SUMIF(V38:AP38,">0")-SUMIF(V38:AP38,"<0")) -> 0
A39: Data | B39: =IF(AQ39=0,"Hide","Show") -> Hide | K39: 363010 | L39: 201 | M39: 10/1/2016..9/30/2017 | N39: HARMONY CDD | O39: =IF(K39="","8888888",K39) -> 363010 | P39: 363010 | R39: Special Assmnts- Tax Collector | T39: 0 | V39: 0 | X39: 0 | Z39: 0 | AB39: 0 | AD39: 0 | AF39: 0 | AH39: 0 | AJ39: 0 | AL39: 0 | AN39: 0 | AP39: 0 | AQ39: 0
A40: Data+Auto | B40: Hide | K40: ="363015" -> 363015 | L40: 201 | M40: 10/1/2016..9/30/2017 | N40: HARMONY CDD | O40: 363015 | P40: 363015 | R40: Special Assmnts- Other | T40: 0 | V40: 0 | X40: 0 | Z40: 0 | AB40: 0 | AD40: 0 | AF40: 0 | AH40: 0 | AJ40: 0 | AL40: 0 | AN40: 0 | AP40: 0 | AQ40: 0
A41: Data+Auto | B41: Hide | K41: ="363030" -> 363030 | L41: 201 | M41: 10/1/2016..9/30/2017 | N41: HARMONY CDD | O41: 363030 | P41: 363030 | R41: Special Assmnts- Prepayment | T41: 0 | V41: 0 | X41: 0 | Z41: 0 | AB41: 0 | AD41: 0 | AF41: 0 | AH41: 0 | AJ41: 0 | AL41: 0 | AN41: 0 | AP41: 0 | AQ41: 0
A42: Data+Auto | B42: Hide | K42: ="363040" -> 363040 | L42: 201 | M42: 10/1/2016..9/30/2017 | N42: HARMONY CDD | O42: 363040 | P42: 363040 | R42: Special Assmnts- CDD Collected | T42: 0 | V42: 0 | X42: 0 | Z42: 0 | AB42: 0 | AD42: 0 | AF42: 0 | AH42: 0 | AJ42: 0 | AL42: 0 | AN42: 0 | AP42: 0 | AQ42: 0
A43: Data+Auto | B43: Hide | K43: ="363050" -> 363050 | L43: 201 | M43: 10/1/2016..9/30/2017 | N43: HARMONY CDD | O43: 363050 | P43: 363050 | R43: Special Assmnts- Delinquent | T43: 0 | V43: 0 | X43: 0 | Z43: 0 | AB43: 0 | AD43: 0 | AF43: 0 | AH43: 0 | AJ43: 0 | AL43: 0 | AN43: 0 | AP43: 0 | AQ43: 0
A44: Data+Auto | B44: Hide | K44: ="363090" -> 363090 | L44: 201 | M44: 10/1/2016..9/30/2017 | N44: HARMONY CDD | O44: 363090 | P44: 363090 | R44: Special Assmnts- Discounts | T44: 0 | V44: 0 | X44: 0 | Z44: 0 | AB44: 0 | AD44: 0 | AF44: 0 | AH44: 0 | AJ44: 0 | AL44: 0 | AN44: 0 | AP44: 0 | AQ44: 0
B45: Show
B46: Hide | E46: =IF(OR($D$7=0,$F$16="NO"),0,"300001..361000|361002..369999") -> 0
B47: Hide
B48: =B51 -> Hide | I48: =IF(I47="","9999999",I47) -> 9999999 | AU48: TEST | AV48: =$V$33 -> FY 2012 | AW48: =$X$33 -> FY 2013 | AX48: =$Z$33 -> FY 2014 | AY48: =$AB$33 -> FY - 2015 | AZ48: AB | BA48: AB1 | BB48: ACT | BC48: PROJ | BD48: TOTAL | BE48: NAV | BF48: NEW AB
A49: Data | B49: =IF(AQ49=0,"Hide","Show") -> Hide | I49: =I48 -> 9999999 | L49: =$F$22 -> 201 | M49: =$J$7 -> 10/1/2016..9/30/2017 | N49: =$D$6 -> HARMONY CDD | O49: =K49 &" "&I49 -> 9999999 | P49: =K49 ->  | T49: 0 | V49: 0 | X49: 0 | Z49: 0 | AB49: 0 | AD49: 0 | AF49: 0 | AH49: 0 | AJ49: =+AF49-AH49 -> 0 | AL49: =IF(ISERROR(AH49+AJ49),0,(AH49+AJ49)) -> 0 | AN49: 0 | AP49: =IF($F$13="YES",AF49,AN49) -> 0 | AQ49: =ABS(SUMIF(V49:AP49,">0")-SUMIF(V49:AP49,"<0")) -> 0
B50: =B51 -> Hide | I50: =I49 -> 9999999
B51: =IF(AQ51=0,"Hide","Show") -> Hide | I51: =I50 -> 9999999 | R51: Total | T51: =SUM(T48:T50) -> 0 | V51: =SUM(V48:V50) -> 0 | X51: =SUM(X48:X50) -> 0 | Z51: =SUM(Z48:Z50) -> 0 | AB51: =SUM(AB48:AB50) -> 0 | AD51: =SUM(AD48:AD50) -> 0 | AF51: =SUM(AF48:AF50) -> 0 | AH51: =SUM(AH48:AH50) -> 0 | AJ51: =SUM(AJ48:AJ50) -> 0 | AL51: =SUM(AL48:AL50) -> 0 | AN51: =SUM(AN48:AN50) -> 0 | AP51: =SUM(AP48:AP50) -> 0 | AQ51: =ABS(SUMIF(V51:AP51,">0")-SUMIF(V51:AP51,"<0")) -> 0 | AU51: =SUM(T48:T50) -> 0 | AV51: =SUM(V48:V50) -> 0 | AW51: =SUM(X48:X50) -> 0 | AX51: =SUM(Z48:Z50) -> 0 | AY51: =SUM(AB48:AB50) -> 0 | AZ51: =SUM(AD48:AD50) -> 0 | BA51: =SUM(AF48:AF50) -> 0 | BB51: =SUM(AH48:AH50) -> 0 | BC51: =SUM(AJ48:AJ50) -> 0 | BD51: =SUM(AL48:AL50) -> 0 | BE51: =SUM(AN48:AN50) -> 0 | BF51: =SUM(AP48:AP50) -> 0
B52: =B51 -> Hide | I52: =I51 -> 9999999
B53: Show
B54: Show | R54: =IF(AND($F$22>"399",$F$22<"500"),"TOTAL OPERATING REVENUES","TOTAL REVENUES") -> TOTAL REVENUES | T54: =SUM(T37:T45)+SUM(AU49:AU53) -> 0 | V54: =SUM(V37:V45)+SUM(AV49:AV53) -> 0 | X54: =SUM(X37:X45)+SUM(AW49:AW53) -> 0 | Z54: =SUM(Z37:Z45)+SUM(AX49:AX53) -> 0 | AB54: =SUM(AB37:AB45)+SUM(AY49:AY53) -> 0 | AD54: =SUM(AD37:AD45)+SUM(AZ49:AZ53) -> 0 | AF54: =SUM(AF37:AF45)+SUM(BA49:BA53) -> 0 | AH54: =SUM(AH37:AH45)+SUM(BB49:BB53) -> 0 | AJ54: =SUM(AJ37:AJ45)+SUM(BC49:BC53) -> 0 | AL54: =SUM(AL37:AL45)+SUM(BD49:BD53) -> 0 | AN54: =SUM(AN37:AN45)+SUM(BE49:BE53) -> 0 | AP54: =SUM(AP37:AP45)+SUM(BF49:BF53) -> 0 | AQ54: =ABS(SUMIF(V54:AP54,">0")-SUMIF(V54:AP54,"<0")) -> 0
B55: Show
B56: =IF(AQ60=0,"Hide","Show") -> Hide | E56: =IF(OR($F$22=0,VALUE($F$22)<=399,VALUE($F$22)>499,$F$14="NO"),0,"552099..552199") -> 0 | R56: COST OF GOODS SOLD
B57: Hide
A58: Data | B58: =IF(AQ58=0,"Hide","Show") -> Hide | L58: =$F$22 -> 201 | M58: =$J$7 -> 10/1/2016..9/30/2017 | N58: =$D$6 -> HARMONY CDD | O58: =IF(K58="","500000 50000",K58&" "&"50000") -> 500000 50000 | P58: =K58 ->  | T58: 0 | V58: 0 | X58: 0 | Z58: 0 | AB58: 0 | AD58: 0 | AF58: 0 | AH58: 0 | AJ58: 0 | AL58: =IF(ISERROR(AH58+AJ58),0,(AH58+AJ58)) -> 0 | AN58: 0 | AP58: =IF($F$13="YES",AF58,AN58) -> 0 | AQ58: =ABS(SUMIF(V58:AP58,">0")-SUMIF(V58:AP58,"<0")) -> 0
B59: Hide
B60: =IF(AQ60=0,"Hide","Show") -> Hide | R60: =IF(AND($F$22>"399",$F$22<"500",$F$14="yes"),"Total Cost of Goods Sold","") ->  | T60: =SUM(T57:T59) -> 0 | V60: =SUM(V57:V59) -> 0 | X60: =SUM(X57:X59) -> 0 | Z60: =SUM(Z57:Z59) -> 0 | AB60: =SUM(AB57:AB59) -> 0 | AD60: =SUM(AD57:AD59) -> 0 | AF60: =SUM(AF57:AF59) -> 0 | AH60: =SUM(AH57:AH59) -> 0 | AJ60: =SUM(AJ57:AJ59) -> 0 | AL60: =SUM(AL57:AL59) -> 0 | AN60: =SUM(AN57:AN59) -> 0 | AP60: =SUM(AP57:AP59) -> 0 | AQ60: =ABS(SUMIF(V60:AP60,">0")-SUMIF(V60:AP60,"<0")) -> 0
B61: =B60 -> Hide
B62: =B61 -> Hide | R62: =IF(AND($F$22>"399",$F$22<"500",$F$14="yes"),"GROSS PROFIT","") ->  | T62: =IF(OR(VALUE($F$22)<=399,VALUE($F$22)>499,$F$14="NO"),0,T54-T60) -> 0 | V62: =IF(OR(VALUE($F$22)<=399,VALUE($F$22)>499,$F$14="NO"),0,V54-V60) -> 0 | X62: =IF(OR(VALUE($F$22)<=399,VALUE($F$22)>499,$F$14="NO"),0,X54-X60) -> 0 | Z62: =IF(OR(VALUE($F$22)<=399,VALUE($F$22)>499,$F$14="NO"),0,Z54-Z60) -> 0 | AB62: =IF(OR(VALUE($F$22)<=399,VALUE($F$22)>499,$F$14="NO"),0,AB54-AB60) -> 0 | AD62: =IF(OR(VALUE($F$22)<=399,VALUE($F$22)>499,$F$14="NO"),0,AD54-AD60) -> 0 | AF62: =IF(OR(VALUE($F$22)<=399,VALUE($F$22)>499,$F$14="NO"),0,AF54-AF60) -> 0 | AH62: =IF(OR(VALUE($F$22)<=399,VALUE($F$22)>499,$F$14="NO"),0,AH54-AH60) -> 0 | AJ62: =IF(OR(VALUE($F$22)<=399,VALUE($F$22)>499,$F$14="NO"),0,AJ54-AJ60) -> 0 | AL62: =IF(OR(VALUE($F$22)<=399,VALUE($F$22)>499,$F$14="NO"),0,AL54-AL60) -> 0 | AN62: =IF(OR(VALUE($F$22)<=399,VALUE($F$22)>499,$F$14="NO"),0,AN54-AN60) -> 0 | AP62: =IF(OR(VALUE($F$22)<=399,VALUE($F$22)>499,$F$14="NO"),0,AP54-AP60) -> 0 | AQ62: =ABS(SUMIF(V62:AP62,">0")-SUMIF(V62:AP62,"<0")) -> 0
B63: =B62 -> Hide
B64: Show | R64: =IF(AND($F$22>"399",$F$22<"500"),"OPERATING EXPENSES","EXPENDITURES") -> EXPENDITURES
B65: Show
B66: =B70 -> Hide | R66: =IF(AND($F$22>"399",$F$22<"500"),"Personnel and Administration","Administrative") -> Administrative
B67: Hide | E67: =IF($F$22=0,0,IF(OR($F$14="No",VALUE($F$22)<=399,VALUE($F$22)>499),"500000..564999|566000..579999","500000..552098|552200..564999|566000..579999")) -> 500000..564999|566000..579999 | H67: 51000..51699
A68: Data | B68: =IF(AQ68=0,"Hide","Show") -> Hide | K68: 549070 | L68: =$F$22 -> 201 | M68: =$J$7 -> 10/1/2016..9/30/2017 | N68: =$D$6 -> HARMONY CDD | O68: =IF(K68="","500000 51699",K68&" "&"51699") -> 549070 51699 | P68: =K68 -> 549070 | R68: Misc-Assessmnt Collection Cost | T68: 0 | V68: 0 | X68: 0 | Z68: 0 | AB68: 0 | AD68: 0 | AF68: 0 | AH68: 0 | AJ68: 0 | AL68: =IF(ISERROR(AH68+AJ68),0,(AH68+AJ68)) -> 0 | AN68: 0 | AP68: =IF($F$13="YES",AF68,AN68) -> 0 | AQ68: =ABS(SUMIF(V68:AP68,">0")-SUMIF(V68:AP68,"<0")) -> 0
B69: =B70 -> Hide
B70: =IF(AQ70=0,"Hide","Show") -> Hide | R70: ="Total "&R66 -> Total Administrative | T70: =SUM(T68:T69) -> 0 | V70: =SUM(V68:V69) -> 0 | X70: =SUM(X68:X69) -> 0 | Z70: =SUM(Z68:Z69) -> 0 | AB70: =SUM(AB68:AB69) -> 0 | AD70: =SUM(AD68:AD69) -> 0 | AF70: =SUM(AF68:AF69) -> 0 | AH70: =SUM(AH68:AH69) -> 0 | AJ70: =SUM(AJ68:AJ69) -> 0 | AL70: =SUM(AL68:AL69) -> 0 | AN70: =SUM(AN68:AN69) -> 0 | AP70: =SUM(AP68:AP69) -> 0 | AQ70: =ABS(SUMIF(V70:AP70,">0")-SUMIF(V70:AP70,"<0")) -> 0
B71: =B70 -> Hide
B72: Hide | E72: =IF($F$22=0,0,IF(OR($F$14="No",VALUE($F$22)<=399,VALUE($F$22)>499),"500000..564999|566000..579999","500000..552098|552200..564999|566000..579999")) -> 500000..564999|566000..579999 | H72: 51800..57999|58001|99999 | AH72: =$Z$152+$Z$153 -> 0
B73: Hide
B74: Hide | H74: ORGUNIT
B75: =IF(AQ78=0,"Hide","Show") -> Hide | I75: =I74 ->  | AU75: TEST | AV75: =$V$33 -> FY 2012 | AW75: =$X$33 -> FY 2013 | AX75: =$Z$33 -> FY 2014 | AY75: =$AB$33 -> FY - 2015 | AZ75: AB | BA75: AB1 | BB75: ACT | BC75: PROJ | BD75: TOTAL | BE75: NAV | BF75: NEW AB
A76: Data | B76: =IF(AQ76=0,"Hide","Show") -> Hide | I76: =I75 ->  | L76: =$F$22 -> 201 | M76: =$J$7 -> 10/1/2016..9/30/2017 | N76: =$D$6 -> HARMONY CDD | O76: =IF(I76="","500000 51800",K76&" "&I76) -> 500000 51800 | P76: =K76 ->  | T76: 0 | V76: 0 | X76: 0 | Z76: 0 | AB76: 0 | AD76: 0 | AF76: 0 | AH76: 0 | AJ76: 0 | AL76: =IF(ISERROR(AH76+AJ76),0,(AH76+AJ76)) -> 0 | AN76: 0 | AP76: =IF($F$13="YES",AF76,AN76) -> 0 | AQ76: =ABS(SUMIF(V76:AP76,">0")-SUMIF(V76:AP76,"<0")) -> 0
B77: Hide | I77: =I76 -> 
B78: =IF(AQ78=0,"Hide","Show") -> Hide | I78: =I77 ->  | R78: ="Total " &($R75) -> Total | T78: =SUM(T76:T77) -> 0 | V78: =SUM(V76:V77) -> 0 | X78: =SUM(X76:X77) -> 0 | Z78: =SUM(Z76:Z77) -> 0 | AB78: =SUM(AB76:AB77) -> 0 | AD78: =SUM(AD76:AD77) -> 0 | AF78: =SUM(AF76:AF77) -> 0 | AH78: =SUM(AH76:AH77) -> 0 | AJ78: =SUM(AJ76:AJ77) -> 0 | AL78: =SUM(AL76:AL77) -> 0 | AN78: =SUM(AN76:AN77) -> 0 | AP78: =SUM(AP76:AP77) -> 0 | AQ78: =ABS(SUMIF(V78:AP78,">0")-SUMIF(V78:AP78,"<0")) -> 0 | AU78: =SUM(T75:T77) -> 0 | AV78: =SUM(V75:V77) -> 0 | AW78: =SUM(X75:X77) -> 0 | AX78: =SUM(Z75:Z77) -> 0 | AY78: =SUM(AB75:AB77) -> 0 | AZ78: =SUM(AD75:AD77) -> 0 | BA78: =SUM(AF75:AF77) -> 0 | BB78: =SUM(AH75:AH77) -> 0 | BC78: =SUM(AJ75:AJ77) -> 0 | BD78: =SUM(AL75:AL77) -> 0 | BE78: =SUM(AN75:AN77) -> 0 | BF78: =SUM(AP75:AP77) -> 0
B79: =B78 -> Hide | I79: =I78 -> 
B80: Hide
B81: Hide | R81: TOTAL FOR O&M | T81: =SUM(AU77:AU80) -> 0 | V81: =SUM(AV77:AV80) -> 0 | X81: =SUM(AW77:AW80) -> 0 | Z81: =SUM(AX77:AX80) -> 0 | AB81: =SUM(AY77:AY80) -> 0 | AD81: =SUM(AZ77:AZ80) -> 0 | AF81: =SUM(BA77:BA80) -> 0 | AH81: =SUM(BB77:BB80) -> 0 | AJ81: =SUM(BC77:BC80) -> 0 | AL81: =SUM(BD77:BD80) -> 0 | AN81: =SUM(BE77:BE80) -> 0 | AP81: =SUM(BF77:BF80) -> 0
B82: Hide | E82: 565000..565999 | AH82: =$Z$154+$Z$155+$Z$156+$Z$157 -> 0
B83: =IF(AQ86=0,"Hide","Show") -> Hide | R83: Construction In Progress
A84: Data | B84: =IF(AQ84=0,"Hide","Show") -> Hide | L84: =$F$22 -> 201 | M84: =$J$7 -> 10/1/2016..9/30/2017 | N84: =$D$6 -> HARMONY CDD | O84: =IF(K84="","565999",K84) -> 565999 | P84: =K84 ->  | T84: 0 | V84: 0 | X84: 0 | Z84: 0 | AB84: 0 | AD84: 0 | AF84: 0 | AH84: 0 | AJ84: 0 | AL84: =IF(ISERROR(AH84+AJ84),0,(AH84+AJ84)) -> 0 | AN84: 0 | AP84: =IF($F$13="YES",AF84,AN84) -> 0 | AQ84: =ABS(SUMIF(V84:AP84,">0")-SUMIF(V84:AP84,"<0")) -> 0
B85: Hide
B86: =IF(AQ86=0,"Hide","Show") -> Hide | R86: Total Construction In Progress | T86: =SUM(T84:T85) -> 0 | V86: =SUM(V84:V85) -> 0 | X86: =SUM(X84:X85) -> 0 | Z86: =SUM(Z84:Z85) -> 0 | AB86: =SUM(AB84:AB85) -> 0 | AD86: =SUM(AD84:AD85) -> 0 | AF86: =SUM(AF84:AF85) -> 0 | AH86: =SUM(AH84:AH85) -> 0 | AJ86: =SUM(AJ84:AJ85) -> 0 | AL86: =SUM(AL84:AL85) -> 0 | AN86: =SUM(AN84:AN85) -> 0 | AP86: =SUM(AP84:AP85) -> 0 | AQ86: =ABS(SUMIF(V86:AP86,">0")-SUMIF(V86:AP86,"<0")) -> 0
B87: =B86 -> Hide | E87: =IF($F$22=0,0,IF(OR($F$14="No",VALUE($F$22)<=399,VALUE($F$22)>499),"500000..564999|566000..579999","500000..552016|552028..552039|552046..564999|566000..579999")) -> 500000..564999|566000..579999 | H87: 51700..51799
B88: =IF(AQ94=0,"Hide","Show") -> Hide | R88: Debt Service
A89: Data | B89: =IF(AQ89=0,"Hide","Show") -> Hide | K89: 571001 | L89: =$F$22 -> 201 | M89: =$J$7 -> 10/1/2016..9/30/2017 | N89: =$D$6 -> HARMONY CDD | O89: =IF(K89="","500000 51799",K89&" "&"51799") -> 571001 51799 | P89: =K89 -> 571001 | R89: Principal Debt Retirement | T89: 0 | V89: 0 | X89: 0 | Z89: 0 | AB89: 0 | AD89: 0 | AF89: 0 | AH89: 0 | AJ89: 0 | AL89: =IF(ISERROR(AH89+AJ89),0,(AH89+AJ89)) -> 0 | AN89: 0 | AP89: =IF($F$13="YES",AF89,AN89) -> 0 | AQ89: =ABS(SUMIF(V89:AP89,">0")-SUMIF(V89:AP89,"<0")) -> 0
A90: Data+Auto | B90: =IF(AQ90=0,"Hide","Show") -> Hide | K90: ="571006" -> 571006 | L90: =$F$22 -> 201 | M90: =$J$7 -> 10/1/2016..9/30/2017 | N90: =$D$6 -> HARMONY CDD | O90: =IF(K90="","500000 51799",K90&" "&"51799") -> 571006 51799 | P90: =K90 -> 571006 | R90: Principal Prepayments | T90: 0 | V90: 0 | X90: 0 | Z90: 0 | AB90: 0 | AD90: 0 | AF90: 0 | AH90: 0 | AJ90: 0 | AL90: =IF(ISERROR(AH90+AJ90),0,(AH90+AJ90)) -> 0 | AN90: 0 | AP90: =IF($F$13="YES",AF90,AN90) -> 0 | AQ90: =ABS(SUMIF(V90:AP90,">0")-SUMIF(V90:AP90,"<0")) -> 0
A91: Data+Auto | B91: =IF(AQ91=0,"Hide","Show") -> Hide | K91: ="572001" -> 572001 | L91: =$F$22 -> 201 | M91: =$J$7 -> 10/1/2016..9/30/2017 | N91: =$D$6 -> HARMONY CDD | O91: =IF(K91="","500000 51799",K91&" "&"51799") -> 572001 51799 | P91: =K91 -> 572001 | R91: Interest Expense | T91: 0 | V91: 0 | X91: 0 | Z91: 0 | AB91: 0 | AD91: 0 | AF91: 0 | AH91: 0 | AJ91: 0 | AL91: =IF(ISERROR(AH91+AJ91),0,(AH91+AJ91)) -> 0 | AN91: 0 | AP91: =IF($F$13="YES",AF91,AN91) -> 0 | AQ91: =ABS(SUMIF(V91:AP91,">0")-SUMIF(V91:AP91,"<0")) -> 0
A92: Data+Auto | B92: =IF(AQ92=0,"Hide","Show") -> Hide | K92: ="573001" -> 573001 | L92: =$F$22 -> 201 | M92: =$J$7 -> 10/1/2016..9/30/2017 | N92: =$D$6 -> HARMONY CDD | O92: =IF(K92="","500000 51799",K92&" "&"51799") -> 573001 51799 | P92: =K92 -> 573001 | R92: DS Costs-Miscellaneous | T92: 0 | V92: 0 | X92: 0 | Z92: 0 | AB92: 0 | AD92: 0 | AF92: 0 | AH92: 0 | AJ92: 0 | AL92: =IF(ISERROR(AH92+AJ92),0,(AH92+AJ92)) -> 0 | AN92: 0 | AP92: =IF($F$13="YES",AF92,AN92) -> 0 | AQ92: =ABS(SUMIF(V92:AP92,">0")-SUMIF(V92:AP92,"<0")) -> 0
B93: Hide
B94: =IF(AQ94=0,"Hide","Show") -> Hide | R94: Total Debt Service | T94: =SUM(T89:T93) -> 0 | V94: =SUM(V89:V93) -> 0 | X94: =SUM(X89:X93) -> 0 | Z94: =SUM(Z89:Z93) -> 0 | AB94: =SUM(AB89:AB93) -> 0 | AD94: =SUM(AD89:AD93) -> 0 | AF94: =SUM(AF89:AF93) -> 0 | AH94: =SUM(AH89:AH93) -> 0 | AJ94: =SUM(AJ89:AJ93) -> 0 | AL94: =SUM(AL89:AL93) -> 0 | AN94: =SUM(AN89:AN93) -> 0 | AP94: =SUM(AP89:AP93) -> 0 | AQ94: =ABS(SUMIF(V94:AP94,">0")-SUMIF(V94:AP94,"<0")) -> 0
B95: =B94 -> Hide
B96: =IF(AQ96=0,"Hide","Show") -> Hide | R96: =IF(AND($F$22>"399",$F$22<"500"),"TOTAL OPERATING EXPENSES","TOTAL EXPENDITURES") -> TOTAL EXPENDITURES | T96: =IF($F$6="no",0,SUM(T94+T86+T81+T70)) -> 0 | V96: =IF($F$6="no",0,SUM(V94+V86+V81+V70)) -> 0 | X96: =IF($F$6="no",0,SUM(X94+X86+X81+X70)) -> 0 | Z96: =IF($F$6="no",0,SUM(Z94+Z86+Z81+Z70)) -> 0 | AB96: =IF($F$6="no",0,SUM(AB94+AB86+AB81+AB70)) -> 0 | AD96: =IF($F$6="no",0,SUM(AD94+AD86+AD81+AD70)) -> 0 | AF96: =IF($F$6="no",0,SUM(AF94+AF86+AF81+AF70)) -> 0 | AH96: =IF($F$6="no",0,SUM(AH94+AH86+AH81+AH70)) -> 0 | AJ96: =IF($F$6="no",0,SUM(AJ94+AJ86+AJ81+AJ70)) -> 0 | AL96: =IF($F$6="no",0,SUM(AL94+AL86+AL81+AL70)) -> 0 | AN96: =IF($F$6="no",0,SUM(AN94+AN86+AN81+AN70)) -> 0 | AP96: =IF($F$6="no",0,SUM(AP94+AP86+AP81+AP70)) -> 0 | AQ96: =ABS(SUMIF(V96:AP96,">0")-SUMIF(V96:AP96,"<0")) -> 0
B97: =B96 -> Hide | E97: =IF($F$22=0,0,IF(OR($F$14="No",VALUE($F$22)<=399,VALUE($F$22)>499),"500000..564999|566000..579999","500000..552016|552028..552039|552046..564999|566000..579999")) -> 500000..564999|566000..579999 | H97: 58100
B98: =IF(AQ101=0,"Hide","Show") -> Hide | R98: Reserves
A99: Data | B99: =IF(AQ99=0,"Hide","Show") -> Hide | L99: =$F$22 -> 201 | M99: =$J$7 -> 10/1/2016..9/30/2017 | N99: =$D$6 -> HARMONY CDD | O99: =IF(K99="","500000 58100",K99&" "&"58100") -> 500000 58100 | P99: =K99 ->  | T99: 0 | V99: 0 | X99: 0 | Z99: 0 | AB99: 0 | AD99: 0 | AF99: 0 | AH99: 0 | AJ99: 0 | AL99: =IF(ISERROR(AH99+AJ99),0,(AH99+AJ99)) -> 0 | AN99: 0 | AP99: =IF($F$13="YES",AF99,AN99) -> 0 | AQ99: =ABS(SUMIF(V99:AP99,">0")-SUMIF(V99:AP99,"<0")) -> 0
B100: Hide
B101: =IF(AQ101=0,"Hide","Show") -> Hide | R101: Total Reserves | T101: =SUM(T99:T100) -> 0 | V101: =SUM(V99:V100) -> 0 | X101: =SUM(X99:X100) -> 0 | Z101: =SUM(Z99:Z100) -> 0 | AB101: =SUM(AB99:AB100) -> 0 | AD101: =SUM(AD99:AD100) -> 0 | AF101: =SUM(AF99:AF100) -> 0 | AH101: =SUM(AH99:AH100) -> 0 | AJ101: =SUM(AJ99:AJ100) -> 0 | AL101: =SUM(AL99:AL100) -> 0 | AN101: =SUM(AN99:AN100) -> 0 | AP101: =SUM(AP99:AP100) -> 0 | AQ101: =ABS(SUMIF(V101:AP101,">0")-SUMIF(V101:AP101,"<0")) -> 0
B102: =B101 -> Hide
B103: Show | N103: =IF(AQ101=0,""," & RESERVES") ->  | R103: =TRIM(IF(AND($F$22>"399",$F$22<"500"),"TOTAL OPERATING EXPENSES"&N103,"TOTAL EXPENDITURES"&N103)) -> TOTAL EXPENDITURES | T103: =SUM(T94+T86+T81+T70+T101) -> 0 | V103: =SUM(V94+V86+V81+V70+V101) -> 0 | X103: =SUM(X94+X86+X81+X70+X101) -> 0 | Z103: =SUM(Z94+Z86+Z81+Z70+Z101) -> 0 | AB103: =SUM(AB94+AB86+AB81+AB70+AB101) -> 0 | AD103: =SUM(AD94+AD86+AD81+AD70+AD101) -> 0 | AF103: =SUM(AF94+AF86+AF81+AF70+AF101) -> 0 | AH103: =SUM(AH94+AH86+AH81+AH70+AH101) -> 0 | AJ103: =SUM(AJ94+AJ86+AJ81+AJ70+AJ101) -> 0 | AL103: =SUM(AL94+AL86+AL81+AL70+AL101) -> 0 | AN103: =SUM(AN94+AN86+AN81+AN70+AN101) -> 0 | AP103: =SUM(AP94+AP86+AP81+AP70+AP101) -> 0 | AQ103: =ABS(SUMIF(V103:AP103,">0")-SUMIF(V103:AP103,"<0")) -> 0
B104: Show
B105: =IF(R105="","Hide","Show") -> Show | R105: =IF(AND($F$22>"399",$F$22<"500"),"","Excess (deficiency) of revenues") -> Excess (deficiency) of revenues
B106: Show | R106: =IF(AND($F$22>"399",$F$22<"500"),"Operating income (loss)","Over (under) expenditures") -> Over (under) expenditures | T106: =SUM(T54-T103-T60) -> 0 | V106: =SUM(V54-V103-V60) -> 0 | X106: =SUM(X54-X103-X60) -> 0 | Z106: =SUM(Z54-Z103-Z60) -> 0 | AB106: =SUM(AB54-AB103-AB60) -> 0 | AD106: =SUM(AD54-AD103-AD60) -> 0 | AF106: =SUM(AF54-AF103-AF60) -> 0 | AH106: =SUM(AH54-AH103-AH60) -> 0 | AJ106: =SUM(AJ54-AJ103-AJ60) -> 0 | AL106: =SUM(AL54-AL103-AL60) -> 0 | AN106: =SUM(AN54-AN103-AN60) -> 0 | AP106: =SUM(AP54-AP103-AP60) -> 0 | AQ106: =ABS(SUMIF(V106:AP106,">0")-SUMIF(V106:AP106,"<0")) -> 0
B107: Show
B108: Hide
B109: Hide | T109: =IF(AND(VALUE($F$22)>399,VALUE($F$22)<500),0,IF(OR($F$11="NO",T$1="HIDE",T$4="ACTUAL"),0,T106+T117)) -> 0 | V109: =IF(AND(VALUE($F$22)>399,VALUE($F$22)<500),0,IF(OR($F$11="NO",V$1="HIDE",V$4="ACTUAL"),0,V106+V117)) -> 0 | X109: =IF(AND(VALUE($F$22)>399,VALUE($F$22)<500),0,IF(OR($F$11="NO",X$1="HIDE",X$4="ACTUAL"),0,X106+X117)) -> 0 | Z109: =IF(AND(VALUE($F$22)>399,VALUE($F$22)<500),0,IF(OR($F$11="NO",Z$1="HIDE",Z$4="ACTUAL"),0,Z106+Z117)) -> 0 | AB109: =IF(AND(VALUE($F$22)>399,VALUE($F$22)<500),0,IF(OR($F$11="NO",AB$1="HIDE",AB$4="ACTUAL"),0,AB106+AB117)) -> 0 | AD109: =IF(AND(VALUE($F$22)>399,VALUE($F$22)<500),0,IF(OR($F$11="NO",AD$1="HIDE",AD$4="ACTUAL"),0,AD106+AD117)) -> 0 | AF109: =IF(AND(VALUE($F$22)>399,VALUE($F$22)<500),0,IF(OR($F$11="NO",AF$1="HIDE",AF$4="ACTUAL"),0,AF106+AF117)) -> 0 | AH109: =IF(AND(VALUE($F$22)>399,VALUE($F$22)<500),0,IF(OR($F$11="NO",AH$1="HIDE",AH$4="ACTUAL"),0,AH106+AH117)) -> 0 | AJ109: 0 | AL109: 0 | AN109: =IF(AND(VALUE($F$22)>399,VALUE($F$22)<500),0,IF(OR($F$11="NO",AN$1="HIDE",AN$4="ACTUAL"),0,AN106+AN117)) -> 0 | AP109: =IF(AND(VALUE($F$22)>399,VALUE($F$22)<500),0,IF(OR($F$11="NO",AP$1="HIDE",AP$4="ACTUAL"),0,AP106+AP117)) -> 0
B110: =IF(OR($F$11="Yes",$AQ118<>0),"Show",IF($AQ118=0,"Hide","Show")) -> Show | E110: 370000..381499|381551..390999|391001..399998|580000..590549|590551..599999 | R110: OTHER FINANCING SOURCES (USES)
B111: =B110 -> Show
A112: Data | B112: =IF(AQ112=0,"Hide","Show") -> Hide | K112: 381000 | L112: =$F$22 -> 201 | M112: =$J$7 -> 10/1/2016..9/30/2017 | N112: =$D$6 -> HARMONY CDD | O112: =IF(K112="","399998",K112) -> 381000 | P112: =K112 -> 381000 | R112: Interfund Transfer - In | T112: 0 | V112: 0 | X112: 0 | Z112: 0 | AB112: 0 | AD112: 0 | AF112: 0 | AH112: 0 | AJ112: 0 | AL112: =IF(ISERROR(AH112+AJ112),0,(AH112+AJ112)) -> 0 | AN112: 0 | AP112: =IF($F$13="YES",AF112,AN112) -> 0 | AQ112: =ABS(SUMIF(V112:AP112,">0")-SUMIF(V112:AP112,"<0")) -> 0
A113: Data+Auto | B113: =IF(AQ113=0,"Hide","Show") -> Hide | K113: ="591000" -> 591000 | L113: =$F$22 -> 201 | M113: =$J$7 -> 10/1/2016..9/30/2017 | N113: =$D$6 -> HARMONY CDD | O113: =IF(K113="","399998",K113) -> 591000 | P113: =K113 -> 591000 | R113: Operating Transfers-Out | T113: 0 | V113: 0 | X113: 0 | Z113: 0 | AB113: 0 | AD113: 0 | AF113: 0 | AH113: 0 | AJ113: 0 | AL113: =IF(ISERROR(AH113+AJ113),0,(AH113+AJ113)) -> 0 | AN113: 0 | AP113: =IF($F$13="YES",AF113,AN113) -> 0 | AQ113: =ABS(SUMIF(V113:AP113,">0")-SUMIF(V113:AP113,"<0")) -> 0
A114: Data+Auto | B114: =IF(AQ114=0,"Hide","Show") -> Hide | K114: ="591100" -> 591100 | L114: =$F$22 -> 201 | M114: =$J$7 -> 10/1/2016..9/30/2017 | N114: =$D$6 -> HARMONY CDD | O114: =IF(K114="","399998",K114) -> 591100 | P114: =K114 -> 591100 | R114: Pymt to Escrow Acct-Refunding | T114: 0 | V114: 0 | X114: 0 | Z114: 0 | AB114: 0 | AD114: 0 | AF114: 0 | AH114: 0 | AJ114: 0 | AL114: =IF(ISERROR(AH114+AJ114),0,(AH114+AJ114)) -> 0 | AN114: 0 | AP114: =IF($F$13="YES",AF114,AN114) -> 0 | AQ114: =ABS(SUMIF(V114:AP114,">0")-SUMIF(V114:AP114,"<0")) -> 0
A115: Data+Auto | B115: =IF(AQ115=0,"Hide","Show") -> Hide | K115: ="595000" -> 595000 | L115: =$F$22 -> 201 | M115: =$J$7 -> 10/1/2016..9/30/2017 | N115: =$D$6 -> HARMONY CDD | O115: =IF(K115="","399998",K115) -> 595000 | P115: =K115 -> 595000 | R115: Other NonOperating Uses | T115: 0 | V115: 0 | X115: 0 | Z115: 0 | AB115: 0 | AD115: 0 | AF115: 0 | AH115: 0 | AJ115: 0 | AL115: =IF(ISERROR(AH115+AJ115),0,(AH115+AJ115)) -> 0 | AN115: 0 | AP115: =IF($F$13="YES",AF115,AN115) -> 0 | AQ115: =ABS(SUMIF(V115:AP115,">0")-SUMIF(V115:AP115,"<0")) -> 0
B116: Hide
B117: Hide | T117: =SUM(T111:T116) -> 0 | V117: =SUM(V111:V116) -> 0 | X117: =SUM(X111:X116) -> 0 | Z117: =SUM(Z111:Z116) -> 0 | AB117: =SUM(AB111:AB116) -> 0 | AD117: =SUM(AD111:AD116) -> 0 | AF117: =SUM(AF111:AF116) -> 0 | AH117: =SUM(AH111:AH116) -> 0 | AJ117: =SUM(AJ111:AJ116) -> 0 | AL117: =SUM(AL111:AL116) -> 0 | AN117: =SUM(AN111:AN116) -> 0 | AP117: =SUM(AP111:AP116) -> 0 | AQ117: =ABS(SUMIF(V117:AP117,">0")-SUMIF(V117:AP117,"<0")) -> 0
A118: Data | B118: =IF(OR($F$11="Yes",$AQ118<>0),"Show",IF($AQ118=0,"Hide","Show")) -> Show | K118: 590550 | L118: =$F$22 -> 201 | M118: =$J$7 -> 10/1/2016..9/30/2017 | N118: =$D$6 -> HARMONY CDD | O118: =K118 -> 590550 | P118: 599999 | R118: Contribution to (Use of) Fund Balance | T118: =IF(OR(T$4="ACTUAL",T$1="hide"),0,T$109) -> 0 | V118: =IF(OR(V$4="ACTUAL",V$1="hide"),0,V$109) -> 0 | X118: =IF(OR(X$4="ACTUAL",X$1="hide"),0,X$109) -> 0 | Z118: =IF(OR(Z$4="ACTUAL",Z$1="hide"),0,Z$109) -> 0 | AB118: =IF(OR(AB$4="ACTUAL",AB$1="hide"),0,AB$109) -> 0 | AD118: =IF(OR(AD$4="ACTUAL",AD$1="hide"),0,AD$109) -> 0 | AF118: =IF(OR(AF$4="ACTUAL",AF$1="hide"),0,AF$109) -> 0 | AH118: =IF(OR(AH$4="ACTUAL",AH$1="hide"),0,AH$109) -> 0 | AJ118: =IF(OR(AJ$4="ACTUAL",AJ$1="hide"),0,AJ$109) -> 0 | AL118: =IF(ISERROR(AH118+AJ118),0,(AH118+AJ118)) -> 0 | AN118: =IF(OR(AN$4="ACTUAL",AN$1="hide"),0,AN$109) -> 0 | AP118: =IF(OR(AP$4="ACTUAL",AP$1="hide"),0,AP$109) -> 0 | AQ118: =ABS(SUMIF(V118:AP118,">0")-SUMIF(V118:AP118,"<0")) -> 0
B119: =B120 -> Show
B120: =IF(OR($F$11="Yes",$AQ120<>0),"Show",IF($AQ120=0,"Hide","Show")) -> Show | R120: TOTAL OTHER SOURCES (USES) | T120: =SUM(T117:T118) -> 0 | V120: =SUM(V117:V118) -> 0 | X120: =SUM(X117:X118) -> 0 | Z120: =SUM(Z117:Z118) -> 0 | AB120: =SUM(AB117:AB118) -> 0 | AD120: =SUM(AD117:AD118) -> 0 | AF120: =SUM(AF117:AF118) -> 0 | AH120: =SUM(AH117:AH118) -> 0 | AJ120: =SUM(AJ117:AJ118) -> 0 | AL120: =SUM(AL117:AL118) -> 0 | AN120: =SUM(AN117:AN118) -> 0 | AP120: =SUM(AP117:AP118) -> 0 | AQ120: =ABS(SUMIF(V120:AP120,">0")-SUMIF(V120:AP120,"<0")) -> 0
B121: =B120 -> Show
B122: Show | R122: =IF(AND($F$22>"399",$F$22<"500"),"Change in net assets","Net change in fund balance") -> Net change in fund balance | T122: =IF(T$4="ACTUAL",SUM(T120+T106),SUM(T120+T106+(IF(ABS(T109)<0.49,0,-T109)))) -> 0 | V122: =IF(V$4="ACTUAL",SUM(V120+V106),SUM(V120+V106+(IF(ABS(V109)<0.49,0,-V109)))) -> 0 | X122: =IF(X$4="ACTUAL",SUM(X120+X106),SUM(X120+X106+(IF(ABS(X109)<0.49,0,-X109)))) -> 0 | Z122: =IF(Z$4="ACTUAL",SUM(Z120+Z106),SUM(Z120+Z106+(IF(ABS(Z109)<0.49,0,-Z109)))) -> 0 | AB122: =IF(AB$4="ACTUAL",SUM(AB120+AB106),SUM(AB120+AB106+(IF(ABS(AB109)<0.49,0,-AB109)))) -> 0 | AD122: =IF(AD$4="ACTUAL",SUM(AD120+AD106),SUM(AD120+AD106+(IF(ABS(AD109)<0.49,0,-AD109)))) -> 0 | AF122: =IF(AF$4="ACTUAL",SUM(AF120+AF106),SUM(AF120+AF106+(IF(ABS(AF109)<0.49,0,-AF109)))) -> 0 | AH122: =IF(AH$4="ACTUAL",SUM(AH120+AH106),SUM(AH120+AH106+(IF(ABS(AH109)<0.49,0,-AH109)))) -> 0 | AJ122: =IF(AJ$4="ACTUAL",SUM(AJ120+AJ106),SUM(AJ120+AJ106+(IF(ABS(AJ109)<0.49,0,-AJ109)))) -> 0 | AL122: =IF(AL$4="ACTUAL",SUM(AL120+AL106),SUM(AL120+AL106+(IF(ABS(AL109)<0.49,0,-AL109)))) -> 0 | AN122: =IF(AN$4="ACTUAL",SUM(AN120+AN106),SUM(AN120+AN106+(IF(ABS(AN109)<0.49,0,-AN109)))) -> 0 | AP122: =IF(AP$4="ACTUAL",SUM(AP120+AP106),SUM(AP120+AP106+(IF(ABS(AP109)<0.49,0,-AP109)))) -> 0 | AQ122: =ABS(SUMIF(V122:AP122,">0")-SUMIF(V122:AP122,"<0")) -> 0
B123: Show
B124: Hide | O124: 240001..299997 | P124: 391000 | R124: Fund balance - audit adjustments | T124: 0 | V124: 0 | X124: 0 | Z124: 0 | AB124: 0 | AD124: 0 | AF124: 0 | AH124: 0 | AJ124: 0 | AL124: =AH124+AJ124 -> 0 | AN124: 0 | AP124: 0 | AQ124: =ABS(SUMIF(V124:AP124,">0")-SUMIF(V124:AP124,"<0")) -> 0
B125: Hide | R125: Rounding | T125: 0 | V125: 0 | X125: 0 | Z125: 0 | AB125: 0 | AF125: =AH125 -> 0 | AH125: =$Z$158 -> 0 | AJ125: 0 | AN125: 0 | AP125: 0 | AQ125: =ABS(SUMIF(V125:AP125,">0")-SUMIF(V125:AP125,"<0")) -> 0
B126: Hide | R126: Check Totals (rev,expense,other) | T126: =ABS(T54)+ABS(T103)+ABS(T120) -> 0 | V126: =ABS(V54)+ABS(V103)+ABS(V120) -> 0 | X126: =ABS(X54)+ABS(X103)+ABS(X120) -> 0 | Z126: =ABS(Z54)+ABS(Z103)+ABS(Z120) -> 0 | AB126: =ABS(AB54)+ABS(AB103)+ABS(AB120) -> 0 | AD126: =ABS(AD54)+ABS(AD103)+ABS(AD120) -> 0 | AF126: =ABS(AF54)+ABS(AF103)+ABS(AF120) -> 0 | AH126: =ABS(AH54)+ABS(AH103)+ABS(AH120) -> 0 | AJ126: 0 | AL126: =AH126+AJ126 -> 0 | AN126: 0 | AP126: 0 | AQ126: =ABS(SUMIF(V126:AP126,">0")-SUMIF(V126:AP126,"<0")) -> 0
B127: Show | O127: 240001..299997 | P127: 391000 | R127: =IF(AND($F$22>"399",$F$22<"500"),"TOTAL NET ASSETS, BEGINNING","FUND BALANCE, BEGINNING") -> FUND BALANCE, BEGINNING | T127: 0 | V127: =IF(V$1="Show",V129-V124-V122,0) -> 0 | X127: =IF(X$1="Show",X129-X124-X122,0) -> 0 | Z127: =IF(Z$1="Show",Z129-Z124-Z122,0) -> 0 | AB127: =IF(AB$1="Show",AB129-AB124-AB122,0) -> 0 | AD127: 0 | AF127: =IF(OR($O127="",AF$1="HIDE"),0,IF(AND(AF$4="BUDGET",AF$126=0),0,AH127)) -> 0 | AH127: 0 | AJ127: 0 | AL127: =AH127+AJ127 -> 0 | AN127: 0 | AP127: =AL129 -> 0 | AQ127: =ABS(SUMIF(V127:AP127,">0")-SUMIF(V127:AP127,"<0")) -> 0
B128: Show
B129: Show | R129: =IF(AND($F$22>"399",$F$22<"500"),"TOTAL NET ASSETS, ENDING","FUND BALANCE, ENDING") -> FUND BALANCE, ENDING | T129: =SUM(T122+T127) -> 0 | V129: =IF(V$1="Hide",0,X127) -> 0 | X129: =IF(X$1="Hide",0,Z127) -> 0 | Z129: =IF(Z$1="Hide",0,AB127) -> 0 | AB129: =IF(AB$1="Hide",0,AF127) -> 0 | AD129: =SUM(AD122+AD127) -> 0 | AF129: =SUM(AF122+AF127) -> 0 | AH129: =SUM(AH122+AH127) -> 0 | AJ129: =SUM(AJ122+AJ127) -> 0 | AL129: =SUM(AL122+AL127) -> 0 | AN129: =SUM(AN122+AN127) -> 0 | AP129: =SUM(AP122+AP127) -> 0 | AQ129: =ABS(SUMIF(V129:AP129,">0")-SUMIF(V129:AP129,"<0")) -> 0
B130: =B131 -> Hide
B131: Hide | AQ131: =SUM(AQ34:AQ129) -> 0
B132: Hide
B133: Hide | T133: TEST | V133: =IF($V31="","",$V31) ->  | X133: =IF($V31="","",$V31) ->  | Z133: =IF($V31="","",$V31) ->  | AB133: =IF(AB31="","",AB31) ->  | AD133: =IF(AD31="","",AD31) -> ADOPTED | AF133: =IF(AF31="","",AF31) -> ADOPTED | AH133: =IF(AH31="","",AH31) -> ACTUAL | AJ133: =IF(AJ31="","",AJ31) -> PROJECTED | AL133: =IF(AL31="","",AL31) -> TOTAL | AN133: =IF(AN31="","",AN31) -> NAVIGATOR | AP133: =IF(AP31="","",AP31) -> ANNUAL
B134: Hide | T134: =IF(T32="","",T32) -> ACTUAL | V134: =IF(V32="","",V32) -> ACTUAL | X134: =IF(X32="","",X32) -> ACTUAL | Z134: =IF(Z32="","",Z32) -> ACTUAL | AB134: =IF(AB32="","",AB32) -> ACTUAL | AD134: =IF(AD32="","",AD32) -> BUDGET | AF134: =IF(AF32="","",AF32) -> BUDGET | AH134: =IF(AH32="","",AH32) -> THRU | AJ134: =IF(AJ32="","",AJ32) -> MAY thru | AL134: =IF(AL32="","",AL32) -> PROJECTED | AN134: =IF(AN32="","",AN32) -> BALANCE | AP134: =IF(AP32="","",AP32) -> BUDGET
B135: Hide | T135: =IF(T33="","",T33) -> TEST | V135: =IF(V33="","",V33) -> FY 2012 | X135: =IF(X33="","",X33) -> FY 2013 | Z135: =IF(Z33="","",Z33) -> FY 2014 | AB135: =IF(AB33="","",AB33) -> FY - 2015 | AD135: =IF(AD33="","",AD33) -> FY - 2015 | AF135: =IF(AF33="","",AF33) -> FY - 2016 | AH135: =IF(AH33="","",AH33) -> APR - 2016 | AJ135: =IF(AJ33="","",AJ33) -> EoFY - 2016 | AL135: =IF(AL33="","",AL33) -> FY - 2016 | AN135: =IF(AN33="","",AN33) -> FY - 2017 | AP135: =IF(AP33="","",AP33) -> FY - 2017
B136: Hide
B137: Hide | P137: 300000..369999 | T137: 0 | V137: 0 | X137: 0 | Z137: 0 | AB137: 0 | AD137: 0 | AF137: 0 | AH137: 0 | AJ137: 0 | AL137: 0 | AN137: 0 | AP137: 0
B138: Hide | P138: 500000..579999 | T138: 0 | V138: 0 | X138: 0 | Z138: 0 | AB138: 0 | AD138: 0 | AF138: 0 | AH138: 0 | AJ138: 0 | AL138: 0 | AN138: 0 | AP138: 0
B139: Hide | P139: 370000..381499|381551..390999|391001..399998|580000..590549|590551..599999 | T139: 0 | V139: 0 | X139: 0 | Z139: 0 | AB139: 0 | AD139: 0 | AF139: 0 | AH139: 0 | AJ139: 0 | AL139: 0 | AN139: 0 | AP139: 0
B140: Hide | P140: 240001..299997|300000..599999 | T140: 0 | V140: 0 | X140: 0 | Z140: 0 | AB140: 0 | AD140: 0 | AF140: 0 | AH140: 0 | AJ140: 0 | AL140: 0 | AN140: 0 | AP140: 0
B141: Hide
B142: =IF(COUNTIF(V142:AP142,"ERROR")=0,"Hide","Show") -> Hide | R142: =COUNTIF(V142:AP142,"ERROR") -> 0 | V142: =IF(OR(ABS(V137)>10,ABS(V138)>10,ABS(V139)>10,ABS(V140)>10),"ERROR","") ->  | X142: =IF(OR(ABS(X137)>10,ABS(X138)>10,ABS(X139)>10,ABS(X140)>10),"ERROR","") ->  | Z142: =IF(OR(ABS(Z137)>10,ABS(Z138)>10,ABS(Z139)>10,ABS(Z140)>10),"ERROR","") ->  | AB142: =IF(OR(ABS(AB137)>10,ABS(AB138)>10,ABS(AB139)>10,ABS(AB140)>10),"ERROR","") ->  | AD142: =IF(OR(ABS(AD137)>10,ABS(AD138)>10,ABS(AD139)>10,ABS(AD140)>10),"ERROR","") ->  | AF142: =IF(OR(ABS(AF137)>10,ABS(AF138)>10,ABS(AF139)>10,ABS(AF140)>10),"ERROR","") ->  | AH142: =IF(OR(ABS(AH137)>10,ABS(AH138)>10,ABS(AH139)>10,ABS(AH140)>10),"ERROR","") ->  | AN142: =IF(OR(ABS(AN137)>10,ABS(AN138)>10,ABS(AN139)>10,ABS(AN140)>10),"ERROR","") -> 
B143: Hide
B144: Hide | T144: Rounding | AD144: Amended | AF144: Amended
B145: Hide | P145: 300000..369999 | T145: =T129 -> 0 | AD145: 0 | AF145: 0
B146: Hide | P146: 500000..579999 | T146: =IF(ISERROR(HLOOKUP(F22,Balance_Sheet!N10:AC11,2)),0,HLOOKUP(F22,Balance_Sheet!N10:AC11,2)) -> 0 | AD146: 0 | AF146: 0
B147: Hide | P147: 370000..381499|381551..390999|391001..399998|580000..590549|590551..599999 | T147: =T146-T145 -> 0 | AD147: 0 | AF147: 0
B148: Hide | AD148: =ABS(AD145)+ABS(AD146)+ABS(AD147) -> 0 | AF148: =ABS(AF145)+ABS(AF146)+ABS(AF147) -> 0
B149: =B148 -> Hide
B150: Hide
B151: Hide | P151: 361001 | R151: Interest Income | X151: 0 | Z151: =IF($X151=0,0,$AB151) -> 0 | AB151: =T147 -> 0
B152: Hide | P152: 549001 | R152: Miscellaneous | V152: 51301 | X152: 0 | Z152: =IF($X152=0,0,IF($Z151=0,$AB152,0)) -> 0 | AB152: =$AB151 -> 0
B153: Hide | P153: 549900 | R153: Contingency | V153: 51301 | X153: 0 | Z153: =IF($X153=0,0,IF(SUM($Z151:$Z152)=0,$AB153,0)) -> 0 | AB153: 0
B154: Hide | P154: 565001 | R154: Construction In Progress | V154: 50000..599999 | X154: 0 | Z154: =IF($X154=0,0,IF(SUM($Z151:$Z153)=0,$AB154,0)) -> 0 | AB154: 0
B155: Hide | P155: =P154+1 -> 565002 | R155: Construction In Progress | V155: 50000..599999 | X155: 0 | Z155: =IF($X155=0,0,IF(SUM($Z151:$Z154)=0,$AB155,0)) -> 0 | AB155: 0
B156: Hide | P156: =P155+1 -> 565003 | R156: Construction In Progress | V156: 50000..599999 | X156: 0 | Z156: =IF($X156=0,0,IF(SUM($Z151:$Z155)=0,$AB156,0)) -> 0 | AB156: 0
B157: Hide | P157: =P156+1 -> 565004 | R157: Construction In Progress | V157: 50000..599999 | X157: 0 | Z157: =IF($X157=0,0,IF(SUM($Z151:$Z156)=0,$AB157,0)) -> 0 | AB157: 0
B158: Hide | R158: Fund Balance - Beg Bal | Z158: =IF(SUM($Z151:$Z157)=0,$AB158,0) -> 0 | AB158: 0

Sheet Exhibit A
A1: Auto+Hide+Values | C1: hide
A2: hide
B6: =IF(OVERRIDE_DN="",CDD,OVERRIDE_DN) -> Harmony
B7: =IF(OVERRIDE_TYPE="",CDD_NAME,OVERRIDE_TYPE) -> Community Development District
B9: Exhibit "A"
B10: Allocation of Fund Balances
B13: AVAILABLE FUNDS
F14: Amount
B15: ="Beginning Fund Balance - Fiscal Year "&Budget_Fiscal_Year -> Beginning Fund Balance - Fiscal Year 2017 | F15: =+'001'!AP269 -> 699606.32
B17: ="Net Change in Fund Balance - Fiscal Year "&Budget_Fiscal_Year -> Net Change in Fund Balance - Fiscal Year 2017 | F17: =+'001'!AP264 -> 0
B19: ="Reserves - Fiscal Year "&Budget_Fiscal_Year&" "&"Additions" -> Reserves - Fiscal Year 2017 Additions | F19: 0
B21: ="Total Funds Available (Estimated) - 9/30/"&Budget_Fiscal_Year -> Total Funds Available (Estimated) - 9/30/2017 | F21: =SUM(F15:F19) -> 699606.32
B24: =UPPER("Allocation of Available Funds") -> ALLOCATION OF AVAILABLE FUNDS
B26: Nonspendable Fund Balance
B27: Prepaid Items | F27: 0
B28: Deposits | F28: 0
B29: Inventories | F29: 0
E30: Subtotal | F30: =SUM(F26:F29) -> 0
B32: Restricted Fund Balance
B33: Debt Service - Series XXXX | F33: 0
E34: Subtotal | F34: =SUM(F31:F33) -> 0
B36: Committed Fund Balance
B37: Capital Project - Series XXXX | F37: 0
E38: Subtotal | F38: =SUM(F35:F37) -> 0
B40: Assigned Fund Balance
B41: Operating Reserve - First Quarter Operating Capital | F41: =+H41 -> 388449.25 | G41: (1) | H41: =(+'001'!AP246-'001'!AP164)/4 -> 388449.25
B42: Reserves - Insurance | F42: 50000
B43: Reserves - Renewal & Replacement | F43: 99188
B44: Reserves - Sidewalk | F44: 60000
E46: Subtotal | F46: =SUM(F41:F45) -> 597637.25
B48: Total Allocation of Available Funds | F48: =+F46+F38+F34+F30 -> 597637.25
B51: Total Unassigned (undesignated) Cash | F51: =F21-F48 -> 101969.07
B56: Notes
B58: (1) Represents approximately 3 months of operating expenditures

Sheet 202 (hidden)
A1: Auto+Hide+Values+Formulas=Sheet6,Sheet13,Sheet14+AutoSheet | B1: Hide+? | C1: Hide | D1: Hide | E1: Hide | F1: Hide | G1: Keyname+Hide | H1: Hide | I1: Hide | J1: Hide | K1: Hide | L1: Key+Hide | M1: Key+Hide | N1: Key+Hide | O1: Key+Hide | P1: =IF($F$9="no","Hide","Show") -> Hide | Q1: =P1 -> Hide | R1: Show | S1: Hide | T1: Hide | V1: =IF($F$7=4,"Show","Hide") -> Hide | W1: =V1 -> Hide | X1: =IF($F$7>=3,"Show","Hide") -> Hide | Y1: =X1 -> Hide | Z1: =IF($F$7>=2,"Show","Hide") -> Hide | AA1: =Z1 -> Hide | AB1: =IF($F$7>=1,"Show","Hide") -> Show | AC1: =AB1 -> Show | AD1: =IF($F$8>=2,"Show","Hide") -> Hide | AE1: =AD1 -> Hide | AF1: =IF($F$8>=1,"Show","Hide") -> Show | AG1: =AF1 -> Show | AH1: =IF($F$9="no","Show","hide") -> Show | AI1: =AH1 -> Show | AJ1: ="Data+"&AH1 -> Data+Show | AK1: =AH1 -> Show | AL1: Show | AM1: =AL1 -> Show | AN1: Hide | AO1: Hide | AP1: Data | AQ1: Hide | AS1: Data | AT1: HIDE | AU1: HIDE | AV1: HIDE | AW1: HIDE | AX1: HIDE | AY1: HIDE | AZ1: HIDE | BA1: HIDE | BB1: HIDE | BC1: HIDE | BD1: HIDE | BE1: HIDE | BF1: HIDE
B2: =IF(AQ128=0,"hidesheet","Hide") -> Hide | C2: Harmony | T2: =TEXT("..C"&$F$5,"MM/DD/YYYY") -> ..C02/29/2016 | V2: =I9 -> ..C9/30/2012 | X2: =I8 -> ..C9/30/2013 | Z2: =I7 -> ..C9/30/2014 | AB2: =I6 -> ..C9/30/2015 | AD2: =AB2 -> ..C9/30/2015 | AF2: =I5 -> ..C9/30/2016 | AH2: =TEXT("..C"&$F$5,"MM/DD/YYYY") -> ..C02/29/2016 | AJ2: =AH2 -> ..C02/29/2016
B3: Hide | C3: Community Development District | H3: Year | I3: FY_End_date | J3: FY_begin_Date | T3: =$J$4 -> 10/1/2015..02/29/2016 | V3: 10/1/2011..9/30/2012 | X3: 10/1/2012..9/30/2013 | Z3: 10/1/2013..9/30/2014 | AB3: 10/1/2014..9/30/2015 | AD3: 10/1/2014..9/30/2015 | AF3: 10/1/2015..9/30/2016 | AH3: =$J$4 -> 10/1/2015..02/29/2016 | AJ3: 3/1/2016..9/30/2016 | AN3: 10/1/2016..9/30/2017 | AP3: 10/1/2016..9/30/2017
B4: Hide | E4: Budget Fiscal Year | F4: 2017 | H4: =F4 -> 2017 | I4: ="..C9/30/"&H4 -> ..C9/30/2017 | J4: ="10/1/"&H6&".."&F5 -> 10/1/2015..02/29/2016 | T4: ACTUAL | V4: ACTUAL | X4: ACTUAL | Z4: ACTUAL | AB4: ACTUAL | AD4: BUDGET | AF4: BUDGET | AH4: ACTUAL | AJ4: BUDGET | AL4: BUDGET | AN4: BUDGET | AP4: BUDGET
B5: Hide | C5: No. | D5: 300000..599999 | E5: Actual Date | F5: 02/29/2016 | H5: =H4-1 -> 2016 | I5: ..C9/30/2016 | J5: 10/1/2010..9/30/2017 | T5: =AF5 -> ..C9/30/2015 | V5: =I10 -> ..C9/30/2011 | X5: =V2 -> ..C9/30/2012 | Z5: =X2 -> ..C9/30/2013 | AB5: =Z2 -> ..C9/30/2014 | AD5: =AB5 -> ..C9/30/2014 | AF5: =AD2 -> ..C9/30/2015 | AH5: =AF5 -> ..C9/30/2015 | AJ5: =I11 -> ..C9/30/2016 | AN5: =$I$4 -> ..C9/30/2017 | AP5: =$I$4 -> ..C9/30/2017
B6: Hide | C6: District Name | D6: HARMONY CDD | E6: Show Ttl w/o reserves | F6: No | H6: 2015 | I6: ..C9/30/2015 | J6: 10/1/2014..9/30/2017 | AD6: * | AF6: * | AJ6: * | AN6: * | AP6: *
B7: Hide | C7: Fund No. | D7: 001..299|400..450 | E7: PY_actuals | F7: 1 | H7: 2014 | I7: ..C9/30/2014 | J7: 10/1/2016..9/30/2017 | AD7: Budget Plan No. | AF7: Budget Plan No. | AN7: Budget Plan No. | AP7: Budget Plan No.
B8: Hide | C8: Department | D8: * | E8: PY_budgets | F8: 1 | H8: 2013 | I8: ..C9/30/2013 | AD8: =RIGHT(AD2,4)&"BUDA" -> 2015BUDA | AF8: =RIGHT(AF2,4)&"BUDA" -> 2016BUDA
B9: Hide | C9: Transaction Type | D9: Actual | E9: Hide Proj Total | F9: No | H9: 2012 | I9: ..C9/30/2012
B10: Hide | C10: DistrictName | D10: Harmony | E10: Show Gl | F10: No | H10: 2011 | I10: ..C9/30/2011
B11: Hide | C11: DistrictType | D11: Community Development District | E11: Bal Bud | F11: Yes | H11: =RIGHT(I11,4) -> 2016 | I11: ="..C9/30/"&IF(MONTH(F5)<10,YEAR(F5),YEAR(F5)+1) -> ..C9/30/2016
B12: Hide | E12: Subacct | F12: * | J12: Summary of Revenues, Expenditures and Changes in Fund Balances
B13: Hide | E13: Include nav bal | F13: Yes | J13: Summary of Revenues, Expenses and Changes in Net Assets
B14: Hide | E14: Show COGS | F14: No
B15: Hide | E15: Budget Draft | F15: No
B16: Hide | E16: Subtotal Revenue | F16: No
B17: Hide | E17: Fund No. | F17: ="202" -> 202
B18: Hide
B19: Hide | E19: Field Names | H19: SUBACCT
B20: Hide | E20: G/L Account No. | H20: 2004 Debt Service Fund
B21: Hide | E21: Orgunit code | H21: To be reclassed
B22: Hide | E22: Fund No. | F22: =IF(F17="",0,F17) -> 202 | H22: =IF(F12="*",H20,H21) -> 2004 Debt Service Fund
B23: Hide | E23: subacct
A24: Key+Hide | B24: Hide | E24: Fund Code | G24: ColumnNo | AJ24: Col1 | AP24: Col2 | AS24: Col3
B25: Show | O25: reporttitle1 | P25: =IF(ISERROR(IF(AND(VALUE($F$22)>399,VALUE($F$22)<500),$J$13,$J$12)),"",IF(AND(VALUE($F$22)>399,VALUE($F$22)<500),$J$13,$J$12)) -> Summary of Revenues, Expenditures and Changes in Fund Balances
O26: reporttitle2 | P26: =H22 -> 2004 Debt Service Fund
B27: Show | O27: reporttitle3 | P27: ="Fiscal Year " &F4& " Proposed Budget" -> Fiscal Year 2017 Proposed Budget
B29: =IF(F15="yes","show","Hide") -> Hide | P29: THIS TEMPLATE IS ONLY INTENDED TO BE USED AS A BUDGETING WORKSHEET
B30: =B29 -> Hide
B31: Show | AD31: =IF(AD145=0,"ADOPTED","AMENDED") -> ADOPTED | AF31: =IF(AF145=0,"ADOPTED","AMENDED") -> ADOPTED | AH31: ACTUAL | AJ31: PROJECTED | AL31: TOTAL | AN31: NAVIGATOR | AP31: ANNUAL
B32: Show | P32: Account | T32: ACTUAL | V32: ACTUAL | X32: ACTUAL | Z32: ACTUAL | AB32: ACTUAL | AD32: BUDGET | AF32: BUDGET | AH32: THRU | AJ32: ='001'!AJ32 -> MAY thru | AL32: PROJECTED | AN32: BALANCE | AP32: BUDGET
A33: Keyname | B33: Show | L33: Fund No. | M33: Date | N33: District Name | O33: No. | P33: # | R33: ACCOUNT DESCRIPTION | T33: TEST | V33: ="FY "&RIGHT(V2,4) -> FY 2012 | X33: ="FY "&RIGHT(X2,4) -> FY 2013 | Z33: ="FY "&RIGHT(Z2,4) -> FY 2014 | AB33: ='001'!AB33 -> FY - 2015 | AD33: ='001'!AD33 -> FY - 2015 | AF33: ='001'!AF33 -> FY - 2016 | AH33: ='001'!AH33 -> APR - 2016 | AJ33: ='001'!AJ33 -> EoFY - 2016 | AL33: ='001'!AL33 -> FY - 2016 | AN33: ='001'!AN33 -> FY - 2017 | AP33: ='001'!AP33 -> FY - 2017 | AS33: NOTES
B34: Show
B35: Show | O35: Remindermessage | P35: REMINDER! - Run the "Update Report" Macro.
B36: Show | R36: =IF(R139=0,IF(AND($F$22>"399",$F$22<"500"),"OPERATING REVENUES","REVENUES"),"THIS REPORT HAS AN ERROR, THIS REPORT HAS AN ERROR, THIS REPORT HAS AN ERROR") -> REVENUES
B37: Show
A38: Data | B38: Show | E38: =IF(OR($D$7=0,$F$16="YES"),0,"300001..361000|361002..369999") -> 300001..361000|361002..369999 | K38: 361001 | L38: =$F$22 -> 202 | M38: =$J$7 -> 10/1/2016..9/30/2017 | N38: =$D$6 -> HARMONY CDD | O38: =K38 -> 361001 | P38: =K38 -> 361001 | R38: Interest - Investments | T38: 0 | V38: 0 | X38: 0 | Z38: 0 | AB38: 309 | AD38: 0 | AF38: 0 | AH38: 0 | AJ38: =+AF38-AH38 -> 0 | AL38: =IF(ISERROR(AH38+AJ38),0,(AH38+AJ38)) -> 0 | AN38: 0 | AP38: =IF($F$13="YES",AF38,AN38) -> 0 | AQ38: =ABS(SUMIF(V38:AP38,">0")-SUMIF(V38:AP38,"<0")) -> 309
A39: Data | B39: =IF(AQ39=0,"Hide","Show") -> Hide | K39: 361004 | L39: 202 | M39: 10/1/2016..9/30/2017 | N39: HARMONY CDD | O39: =IF(K39="","8888888",K39) -> 361004 | P39: 361004 | R39: Net Incr (Decr) In FMV-Invest | T39: 0 | V39: 0 | X39: 0 | Z39: 0 | AB39: 0 | AD39: 0 | AF39: 0 | AH39: 0 | AJ39: 0 | AL39: 0 | AN39: 0 | AP39: 0 | AQ39: 0
A40: Data+Auto | B40: =IF(AQ40=0,"Hide","Show") -> Show | K40: ="363010" -> 363010 | L40: 202 | M40: 10/1/2016..9/30/2017 | N40: HARMONY CDD | O40: =IF(K40="","8888888",K40) -> 363010 | P40: 363010 | R40: Special Assmnts- Tax Collector | T40: 0 | V40: 0 | X40: 0 | Z40: 0 | AB40: 66567 | AD40: 0 | AF40: 0 | AH40: 0 | AJ40: 0 | AL40: 0 | AN40: 0 | AP40: 0 | AQ40: 66567
A41: Data+Auto | B41: =IF(AQ41=0,"Hide","Show") -> Show | K41: ="363040" -> 363040 | L41: 202 | M41: 10/1/2016..9/30/2017 | N41: HARMONY CDD | O41: =IF(K41="","8888888",K41) -> 363040 | P41: 363040 | R41: Special Assmnts- CDD Collected | T41: 0 | V41: 0 | X41: 0 | Z41: 0 | AB41: 1099420 | AD41: 0 | AF41: 0 | AH41: 0 | AJ41: 0 | AL41: 0 | AN41: 0 | AP41: 0 | AQ41: 1099420
A42: Data+Auto | B42: =IF(AQ42=0,"Hide","Show") -> Hide | K42: ="363050" -> 363050 | L42: 202 | M42: 10/1/2016..9/30/2017 | N42: HARMONY CDD | O42: =IF(K42="","8888888",K42) -> 363050 | P42: 363050 | R42: Special Assmnts- Delinquent | T42: 0 | V42: 0 | X42: 0 | Z42: 0 | AB42: 0 | AD42: 0 | AF42: 0 | AH42: 0 | AJ42: 0 | AL42: 0 | AN42: 0 | AP42: 0 | AQ42: 0
A43: Data+Auto | B43: =IF(AQ43=0,"Hide","Show") -> Hide | K43: ="363090" -> 363090 | L43: 202 | M43: 10/1/2016..9/30/2017 | N43: HARMONY CDD | O43: =IF(K43="","8888888",K43) -> 363090 | P43: 363090 | R43: Special Assmnts- Discounts | T43: 0 | V43: 0 | X43: 0 | Z43: 0 | AB43: 0 | AD43: 0 | AF43: 0 | AH43: 0 | AJ43: 0 | AL43: 0 | AN43: 0 | AP43: 0 | AQ43: 0
B44: Show
B45: Hide | E45: =IF(OR($D$7=0,$F$16="NO"),0,"300001..361000|361002..369999") -> 0
B46: Hide
B47: =B50 -> Hide | I47: =IF(I46="","9999999",I46) -> 9999999 | AU47: TEST | AV47: =$V$33 -> FY 2012 | AW47: =$X$33 -> FY 2013 | AX47: =$Z$33 -> FY 2014 | AY47: =$AB$33 -> FY - 2015 | AZ47: AB | BA47: AB1 | BB47: ACT | BC47: PROJ | BD47: TOTAL | BE47: NAV | BF47: NEW AB
A48: Data | B48: =IF(AQ48=0,"Hide","Show") -> Hide | I48: =I47 -> 9999999 | L48: =$F$22 -> 202 | M48: =$J$7 -> 10/1/2016..9/30/2017 | N48: =$D$6 -> HARMONY CDD | O48: =K48 &" "&I48 -> 9999999 | P48: =K48 ->  | T48: 0 | V48: 0 | X48: 0 | Z48: 0 | AB48: 0 | AD48: 0 | AF48: 0 | AH48: 0 | AJ48: =+AF48-AH48 -> 0 | AL48: =IF(ISERROR(AH48+AJ48),0,(AH48+AJ48)) -> 0 | AN48: 0 | AP48: =IF($F$13="YES",AF48,AN48) -> 0 | AQ48: =ABS(SUMIF(V48:AP48,">0")-SUMIF(V48:AP48,"<0")) -> 0
B49: =B50 -> Hide | I49: =I48 -> 9999999
B50: =IF(AQ50=0,"Hide","Show") -> Hide | I50: =I49 -> 9999999 | R50: Total | T50: =SUM(T47:T49) -> 0 | V50: =SUM(V47:V49) -> 0 | X50: =SUM(X47:X49) -> 0 | Z50: =SUM(Z47:Z49) -> 0 | AB50: =SUM(AB47:AB49) -> 0 | AD50: =SUM(AD47:AD49) -> 0 | AF50: =SUM(AF47:AF49) -> 0 | AH50: =SUM(AH47:AH49) -> 0 | AJ50: =SUM(AJ47:AJ49) -> 0 | AL50: =SUM(AL47:AL49) -> 0 | AN50: =SUM(AN47:AN49) -> 0 | AP50: =SUM(AP47:AP49) -> 0 | AQ50: =ABS(SUMIF(V50:AP50,">0")-SUMIF(V50:AP50,"<0")) -> 0 | AU50: =SUM(T47:T49) -> 0 | AV50: =SUM(V47:V49) -> 0 | AW50: =SUM(X47:X49) -> 0 | AX50: =SUM(Z47:Z49) -> 0 | AY50: =SUM(AB47:AB49) -> 0 | AZ50: =SUM(AD47:AD49) -> 0 | BA50: =SUM(AF47:AF49) -> 0 | BB50: =SUM(AH47:AH49) -> 0 | BC50: =SUM(AJ47:AJ49) -> 0 | BD50: =SUM(AL47:AL49) -> 0 | BE50: =SUM(AN47:AN49) -> 0 | BF50: =SUM(AP47:AP49) -> 0
B51: =B50 -> Hide | I51: =I50 -> 9999999
B52: Show
B53: Show | R53: =IF(AND($F$22>"399",$F$22<"500"),"TOTAL OPERATING REVENUES","TOTAL REVENUES") -> TOTAL REVENUES | T53: =SUM(T37:T44)+SUM(AU48:AU52) -> 0 | V53: =SUM(V37:V44)+SUM(AV48:AV52) -> 0 | X53: =SUM(X37:X44)+SUM(AW48:AW52) -> 0 | Z53: =SUM(Z37:Z44)+SUM(AX48:AX52) -> 0 | AB53: =SUM(AB37:AB44)+SUM(AY48:AY52) -> 1166296 | AD53: =SUM(AD37:AD44)+SUM(AZ48:AZ52) -> 0 | AF53: =SUM(AF37:AF44)+SUM(BA48:BA52) -> 0 | AH53: =SUM(AH37:AH44)+SUM(BB48:BB52) -> 0 | AJ53: =SUM(AJ37:AJ44)+SUM(BC48:BC52) -> 0 | AL53: =SUM(AL37:AL44)+SUM(BD48:BD52) -> 0 | AN53: =SUM(AN37:AN44)+SUM(BE48:BE52) -> 0 | AP53: =SUM(AP37:AP44)+SUM(BF48:BF52) -> 0 | AQ53: =ABS(SUMIF(V53:AP53,">0")-SUMIF(V53:AP53,"<0")) -> 1166296
B54: Show
B55: =IF(AQ59=0,"Hide","Show") -> Hide | E55: =IF(OR($F$22=0,VALUE($F$22)<=399,VALUE($F$22)>499,$F$14="NO"),0,"552099..552199") -> 0 | R55: COST OF GOODS SOLD
B56: Hide
A57: Data | B57: =IF(AQ57=0,"Hide","Show") -> Hide | L57: =$F$22 -> 202 | M57: =$J$7 -> 10/1/2016..9/30/2017 | N57: =$D$6 -> HARMONY CDD | O57: =IF(K57="","500000 50000",K57&" "&"50000") -> 500000 50000 | P57: =K57 ->  | T57: 0 | V57: 0 | X57: 0 | Z57: 0 | AB57: 0 | AD57: 0 | AF57: 0 | AH57: 0 | AJ57: 0 | AL57: =IF(ISERROR(AH57+AJ57),0,(AH57+AJ57)) -> 0 | AN57: 0 | AP57: =IF($F$13="YES",AF57,AN57) -> 0 | AQ57: =ABS(SUMIF(V57:AP57,">0")-SUMIF(V57:AP57,"<0")) -> 0
B58: Hide
B59: =IF(AQ59=0,"Hide","Show") -> Hide | R59: =IF(AND($F$22>"399",$F$22<"500",$F$14="yes"),"Total Cost of Goods Sold","") ->  | T59: =SUM(T56:T58) -> 0 | V59: =SUM(V56:V58) -> 0 | X59: =SUM(X56:X58) -> 0 | Z59: =SUM(Z56:Z58) -> 0 | AB59: =SUM(AB56:AB58) -> 0 | AD59: =SUM(AD56:AD58) -> 0 | AF59: =SUM(AF56:AF58) -> 0 | AH59: =SUM(AH56:AH58) -> 0 | AJ59: =SUM(AJ56:AJ58) -> 0 | AL59: =SUM(AL56:AL58) -> 0 | AN59: =SUM(AN56:AN58) -> 0 | AP59: =SUM(AP56:AP58) -> 0 | AQ59: =ABS(SUMIF(V59:AP59,">0")-SUMIF(V59:AP59,"<0")) -> 0
B60: =B59 -> Hide
B61: =B60 -> Hide | R61: =IF(AND($F$22>"399",$F$22<"500",$F$14="yes"),"GROSS PROFIT","") ->  | T61: =IF(OR(VALUE($F$22)<=399,VALUE($F$22)>499,$F$14="NO"),0,T53-T59) -> 0 | V61: =IF(OR(VALUE($F$22)<=399,VALUE($F$22)>499,$F$14="NO"),0,V53-V59) -> 0 | X61: =IF(OR(VALUE($F$22)<=399,VALUE($F$22)>499,$F$14="NO"),0,X53-X59) -> 0 | Z61: =IF(OR(VALUE($F$22)<=399,VALUE($F$22)>499,$F$14="NO"),0,Z53-Z59) -> 0 | AB61: =IF(OR(VALUE($F$22)<=399,VALUE($F$22)>499,$F$14="NO"),0,AB53-AB59) -> 0 | AD61: =IF(OR(VALUE($F$22)<=399,VALUE($F$22)>499,$F$14="NO"),0,AD53-AD59) -> 0 | AF61: =IF(OR(VALUE($F$22)<=399,VALUE($F$22)>499,$F$14="NO"),0,AF53-AF59) -> 0 | AH61: =IF(OR(VALUE($F$22)<=399,VALUE($F$22)>499,$F$14="NO"),0,AH53-AH59) -> 0 | AJ61: =IF(OR(VALUE($F$22)<=399,VALUE($F$22)>499,$F$14="NO"),0,AJ53-AJ59) -> 0 | AL61: =IF(OR(VALUE($F$22)<=399,VALUE($F$22)>499,$F$14="NO"),0,AL53-AL59) -> 0 | AN61: =IF(OR(VALUE($F$22)<=399,VALUE($F$22)>499,$F$14="NO"),0,AN53-AN59) -> 0 | AP61: =IF(OR(VALUE($F$22)<=399,VALUE($F$22)>499,$F$14="NO"),0,AP53-AP59) -> 0 | AQ61: =ABS(SUMIF(V61:AP61,">0")-SUMIF(V61:AP61,"<0")) -> 0
B62: =B61 -> Hide
B63: Show | R63: =IF(AND($F$22>"399",$F$22<"500"),"OPERATING EXPENSES","EXPENDITURES") -> EXPENDITURES
B64: Show
B65: =B69 -> Show | R65: =IF(AND($F$22>"399",$F$22<"500"),"Personnel and Administration","Administrative") -> Administrative
B66: Hide | E66: =IF($F$22=0,0,IF(OR($F$14="No",VALUE($F$22)<=399,VALUE($F$22)>499),"500000..564999|566000..579999","500000..552098|552200..564999|566000..579999")) -> 500000..564999|566000..579999 | H66: 51000..51699
A67: Data | B67: =IF(AQ67=0,"Hide","Show") -> Show | K67: 549070 | L67: =$F$22 -> 202 | M67: =$J$7 -> 10/1/2016..9/30/2017 | N67: =$D$6 -> HARMONY CDD | O67: =IF(K67="","500000 51699",K67&" "&"51699") -> 549070 51699 | P67: =K67 -> 549070 | R67: Misc-Assessmnt Collection Cost | T67: 0 | V67: 0 | X67: 0 | Z67: 0 | AB67: 1331 | AD67: 0 | AF67: 0 | AH67: 0 | AJ67: 0 | AL67: =IF(ISERROR(AH67+AJ67),0,(AH67+AJ67)) -> 0 | AN67: 0 | AP67: =IF($F$13="YES",AF67,AN67) -> 0 | AQ67: =ABS(SUMIF(V67:AP67,">0")-SUMIF(V67:AP67,"<0")) -> 1331
B68: =B69 -> Show
B69: =IF(AQ69=0,"Hide","Show") -> Show | R69: ="Total "&R65 -> Total Administrative | T69: =SUM(T67:T68) -> 0 | V69: =SUM(V67:V68) -> 0 | X69: =SUM(X67:X68) -> 0 | Z69: =SUM(Z67:Z68) -> 0 | AB69: =SUM(AB67:AB68) -> 1331 | AD69: =SUM(AD67:AD68) -> 0 | AF69: =SUM(AF67:AF68) -> 0 | AH69: =SUM(AH67:AH68) -> 0 | AJ69: =SUM(AJ67:AJ68) -> 0 | AL69: =SUM(AL67:AL68) -> 0 | AN69: =SUM(AN67:AN68) -> 0 | AP69: =SUM(AP67:AP68) -> 0 | AQ69: =ABS(SUMIF(V69:AP69,">0")-SUMIF(V69:AP69,"<0")) -> 1331
B70: =B69 -> Show
B71: Hide | E71: =IF($F$22=0,0,IF(OR($F$14="No",VALUE($F$22)<=399,VALUE($F$22)>499),"500000..564999|566000..579999","500000..552098|552200..564999|566000..579999")) -> 500000..564999|566000..579999 | H71: 51800..57999|58001|99999 | AH71: =$Z$149+$Z$150 -> 0
B72: Hide
B73: Hide | H73: ORGUNIT
B74: =IF(AQ77=0,"Hide","Show") -> Hide | I74: =I73 ->  | AU74: TEST | AV74: =$V$33 -> FY 2012 | AW74: =$X$33 -> FY 2013 | AX74: =$Z$33 -> FY 2014 | AY74: =$AB$33 -> FY - 2015 | AZ74: AB | BA74: AB1 | BB74: ACT | BC74: PROJ | BD74: TOTAL | BE74: NAV | BF74: NEW AB
A75: Data | B75: =IF(AQ75=0,"Hide","Show") -> Hide | I75: =I74 ->  | L75: =$F$22 -> 202 | M75: =$J$7 -> 10/1/2016..9/30/2017 | N75: =$D$6 -> HARMONY CDD | O75: =IF(I75="","500000 51800",K75&" "&I75) -> 500000 51800 | P75: =K75 ->  | T75: 0 | V75: 0 | X75: 0 | Z75: 0 | AB75: 0 | AD75: 0 | AF75: 0 | AH75: 0 | AJ75: 0 | AL75: =IF(ISERROR(AH75+AJ75),0,(AH75+AJ75)) -> 0 | AN75: 0 | AP75: =IF($F$13="YES",AF75,AN75) -> 0 | AQ75: =ABS(SUMIF(V75:AP75,">0")-SUMIF(V75:AP75,"<0")) -> 0
B76: Hide | I76: =I75 -> 
B77: =IF(AQ77=0,"Hide","Show") -> Hide | I77: =I76 ->  | R77: ="Total " &($R74) -> Total | T77: =SUM(T75:T76) -> 0 | V77: =SUM(V75:V76) -> 0 | X77: =SUM(X75:X76) -> 0 | Z77: =SUM(Z75:Z76) -> 0 | AB77: =SUM(AB75:AB76) -> 0 | AD77: =SUM(AD75:AD76) -> 0 | AF77: =SUM(AF75:AF76) -> 0 | AH77: =SUM(AH75:AH76) -> 0 | AJ77: =SUM(AJ75:AJ76) -> 0 | AL77: =SUM(AL75:AL76) -> 0 | AN77: =SUM(AN75:AN76) -> 0 | AP77: =SUM(AP75:AP76) -> 0 | AQ77: =ABS(SUMIF(V77:AP77,">0")-SUMIF(V77:AP77,"<0")) -> 0 | AU77: =SUM(T74:T76) -> 0 | AV77: =SUM(V74:V76) -> 0 | AW77: =SUM(X74:X76) -> 0 | AX77: =SUM(Z74:Z76) -> 0 | AY77: =SUM(AB74:AB76) -> 0 | AZ77: =SUM(AD74:AD76) -> 0 | BA77: =SUM(AF74:AF76) -> 0 | BB77: =SUM(AH74:AH76) -> 0 | BC77: =SUM(AJ74:AJ76) -> 0 | BD77: =SUM(AL74:AL76) -> 0 | BE77: =SUM(AN74:AN76) -> 0 | BF77: =SUM(AP74:AP76) -> 0
B78: =B77 -> Hide | I78: =I77 -> 
B79: Hide
B80: Hide | R80: TOTAL FOR O&M | T80: =SUM(AU76:AU79) -> 0 | V80: =SUM(AV76:AV79) -> 0 | X80: =SUM(AW76:AW79) -> 0 | Z80: =SUM(AX76:AX79) -> 0 | AB80: =SUM(AY76:AY79) -> 0 | AD80: =SUM(AZ76:AZ79) -> 0 | AF80: =SUM(BA76:BA79) -> 0 | AH80: =SUM(BB76:BB79) -> 0 | AJ80: =SUM(BC76:BC79) -> 0 | AL80: =SUM(BD76:BD79) -> 0 | AN80: =SUM(BE76:BE79) -> 0 | AP80: =SUM(BF76:BF79) -> 0
B81: Hide | E81: 565000..565999 | AH81: =$Z$151+$Z$152+$Z$153+$Z$154 -> 0
B82: =IF(AQ85=0,"Hide","Show") -> Hide | R82: Construction In Progress
A83: Data | B83: =IF(AQ83=0,"Hide","Show") -> Hide | L83: =$F$22 -> 202 | M83: =$J$7 -> 10/1/2016..9/30/2017 | N83: =$D$6 -> HARMONY CDD | O83: =IF(K83="","565999",K83) -> 565999 | P83: =K83 ->  | T83: 0 | V83: 0 | X83: 0 | Z83: 0 | AB83: 0 | AD83: 0 | AF83: 0 | AH83: 0 | AJ83: 0 | AL83: =IF(ISERROR(AH83+AJ83),0,(AH83+AJ83)) -> 0 | AN83: 0 | AP83: =IF($F$13="YES",AF83,AN83) -> 0 | AQ83: =ABS(SUMIF(V83:AP83,">0")-SUMIF(V83:AP83,"<0")) -> 0
B84: Hide
B85: =IF(AQ85=0,"Hide","Show") -> Hide | R85: Total Construction In Progress | T85: =SUM(T83:T84) -> 0 | V85: =SUM(V83:V84) -> 0 | X85: =SUM(X83:X84) -> 0 | Z85: =SUM(Z83:Z84) -> 0 | AB85: =SUM(AB83:AB84) -> 0 | AD85: =SUM(AD83:AD84) -> 0 | AF85: =SUM(AF83:AF84) -> 0 | AH85: =SUM(AH83:AH84) -> 0 | AJ85: =SUM(AJ83:AJ84) -> 0 | AL85: =SUM(AL83:AL84) -> 0 | AN85: =SUM(AN83:AN84) -> 0 | AP85: =SUM(AP83:AP84) -> 0 | AQ85: =ABS(SUMIF(V85:AP85,">0")-SUMIF(V85:AP85,"<0")) -> 0
B86: =B85 -> Hide | E86: =IF($F$22=0,0,IF(OR($F$14="No",VALUE($F$22)<=399,VALUE($F$22)>499),"500000..564999|566000..579999","500000..552016|552028..552039|552046..564999|566000..579999")) -> 500000..564999|566000..579999 | H86: 51700..51799
B87: =IF(AQ92=0,"Hide","Show") -> Show | R87: Debt Service
A88: Data | B88: =IF(AQ88=0,"Hide","Show") -> Show | K88: 571001 | L88: =$F$22 -> 202 | M88: =$J$7 -> 10/1/2016..9/30/2017 | N88: =$D$6 -> HARMONY CDD | O88: =IF(K88="","500000 51799",K88&" "&"51799") -> 571001 51799 | P88: =K88 -> 571001 | R88: Principal Debt Retirement | T88: 0 | V88: 0 | X88: 0 | Z88: 0 | AB88: 290000 | AD88: 0 | AF88: 0 | AH88: 0 | AJ88: 0 | AL88: =IF(ISERROR(AH88+AJ88),0,(AH88+AJ88)) -> 0 | AN88: 0 | AP88: =IF($F$13="YES",AF88,AN88) -> 0 | AQ88: =ABS(SUMIF(V88:AP88,">0")-SUMIF(V88:AP88,"<0")) -> 290000
A89: Data+Auto | B89: =IF(AQ89=0,"Hide","Show") -> Show | K89: ="571006" -> 571006 | L89: =$F$22 -> 202 | M89: =$J$7 -> 10/1/2016..9/30/2017 | N89: =$D$6 -> HARMONY CDD | O89: =IF(K89="","500000 51799",K89&" "&"51799") -> 571006 51799 | P89: =K89 -> 571006 | R89: Principal Prepayments | T89: 0 | V89: 0 | X89: 0 | Z89: 0 | AB89: 5000 | AD89: 0 | AF89: 0 | AH89: 0 | AJ89: 0 | AL89: =IF(ISERROR(AH89+AJ89),0,(AH89+AJ89)) -> 0 | AN89: 0 | AP89: =IF($F$13="YES",AF89,AN89) -> 0 | AQ89: =ABS(SUMIF(V89:AP89,">0")-SUMIF(V89:AP89,"<0")) -> 5000
A90: Data+Auto | B90: =IF(AQ90=0,"Hide","Show") -> Show | K90: ="572001" -> 572001 | L90: =$F$22 -> 202 | M90: =$J$7 -> 10/1/2016..9/30/2017 | N90: =$D$6 -> HARMONY CDD | O90: =IF(K90="","500000 51799",K90&" "&"51799") -> 572001 51799 | P90: =K90 -> 572001 | R90: Interest Expense | T90: 0 | V90: 0 | X90: 0 | Z90: 0 | AB90: 933188 | AD90: 0 | AF90: 0 | AH90: 0 | AJ90: 0 | AL90: =IF(ISERROR(AH90+AJ90),0,(AH90+AJ90)) -> 0 | AN90: 0 | AP90: =IF($F$13="YES",AF90,AN90) -> 0 | AQ90: =ABS(SUMIF(V90:AP90,">0")-SUMIF(V90:AP90,"<0")) -> 933188
B91: Hide
B92: =IF(AQ92=0,"Hide","Show") -> Show | R92: Total Debt Service | T92: =SUM(T88:T91) -> 0 | V92: =SUM(V88:V91) -> 0 | X92: =SUM(X88:X91) -> 0 | Z92: =SUM(Z88:Z91) -> 0 | AB92: =SUM(AB88:AB91) -> 1228188 | AD92: =SUM(AD88:AD91) -> 0 | AF92: =SUM(AF88:AF91) -> 0 | AH92: =SUM(AH88:AH91) -> 0 | AJ92: =SUM(AJ88:AJ91) -> 0 | AL92: =SUM(AL88:AL91) -> 0 | AN92: =SUM(AN88:AN91) -> 0 | AP92: =SUM(AP88:AP91) -> 0 | AQ92: =ABS(SUMIF(V92:AP92,">0")-SUMIF(V92:AP92,"<0")) -> 1228188
B93: =B92 -> Show
B94: =IF(AQ94=0,"Hide","Show") -> Hide | R94: =IF(AND($F$22>"399",$F$22<"500"),"TOTAL OPERATING EXPENSES","TOTAL EXPENDITURES") -> TOTAL EXPENDITURES | T94: =IF($F$6="no",0,SUM(T92+T85+T80+T69)) -> 0 | V94: =IF($F$6="no",0,SUM(V92+V85+V80+V69)) -> 0 | X94: =IF($F$6="no",0,SUM(X92+X85+X80+X69)) -> 0 | Z94: =IF($F$6="no",0,SUM(Z92+Z85+Z80+Z69)) -> 0 | AB94: =IF($F$6="no",0,SUM(AB92+AB85+AB80+AB69)) -> 0 | AD94: =IF($F$6="no",0,SUM(AD92+AD85+AD80+AD69)) -> 0 | AF94: =IF($F$6="no",0,SUM(AF92+AF85+AF80+AF69)) -> 0 | AH94: =IF($F$6="no",0,SUM(AH92+AH85+AH80+AH69)) -> 0 | AJ94: =IF($F$6="no",0,SUM(AJ92+AJ85+AJ80+AJ69)) -> 0 | AL94: =IF($F$6="no",0,SUM(AL92+AL85+AL80+AL69)) -> 0 | AN94: =IF($F$6="no",0,SUM(AN92+AN85+AN80+AN69)) -> 0 | AP94: =IF($F$6="no",0,SUM(AP92+AP85+AP80+AP69)) -> 0 | AQ94: =ABS(SUMIF(V94:AP94,">0")-SUMIF(V94:AP94,"<0")) -> 0
B95: =B94 -> Hide | E95: =IF($F$22=0,0,IF(OR($F$14="No",VALUE($F$22)<=399,VALUE($F$22)>499),"500000..564999|566000..579999","500000..552016|552028..552039|552046..564999|566000..579999")) -> 500000..564999|566000..579999 | H95: 58100
B96: =IF(AQ99=0,"Hide","Show") -> Hide | R96: Reserves
A97: Data | B97: =IF(AQ97=0,"Hide","Show") -> Hide | L97: =$F$22 -> 202 | M97: =$J$7 -> 10/1/2016..9/30/2017 | N97: =$D$6 -> HARMONY CDD | O97: =IF(K97="","500000 58100",K97&" "&"58100") -> 500000 58100 | P97: =K97 ->  | T97: 0 | V97: 0 | X97: 0 | Z97: 0 | AB97: 0 | AD97: 0 | AF97: 0 | AH97: 0 | AJ97: 0 | AL97: =IF(ISERROR(AH97+AJ97),0,(AH97+AJ97)) -> 0 | AN97: 0 | AP97: =IF($F$13="YES",AF97,AN97) -> 0 | AQ97: =ABS(SUMIF(V97:AP97,">0")-SUMIF(V97:AP97,"<0")) -> 0
B98: Hide
B99: =IF(AQ99=0,"Hide","Show") -> Hide | R99: Total Reserves | T99: =SUM(T97:T98) -> 0 | V99: =SUM(V97:V98) -> 0 | X99: =SUM(X97:X98) -> 0 | Z99: =SUM(Z97:Z98) -> 0 | AB99: =SUM(AB97:AB98) -> 0 | AD99: =SUM(AD97:AD98) -> 0 | AF99: =SUM(AF97:AF98) -> 0 | AH99: =SUM(AH97:AH98) -> 0 | AJ99: =SUM(AJ97:AJ98) -> 0 | AL99: =SUM(AL97:AL98) -> 0 | AN99: =SUM(AN97:AN98) -> 0 | AP99: =SUM(AP97:AP98) -> 0 | AQ99: =ABS(SUMIF(V99:AP99,">0")-SUMIF(V99:AP99,"<0")) -> 0
B100: =B99 -> Hide
B101: Show | N101: =IF(AQ99=0,""," & RESERVES") ->  | R101: =TRIM(IF(AND($F$22>"399",$F$22<"500"),"TOTAL OPERATING EXPENSES"&N101,"TOTAL EXPENDITURES"&N101)) -> TOTAL EXPENDITURES | T101: =SUM(T92+T85+T80+T69+T99) -> 0 | V101: =SUM(V92+V85+V80+V69+V99) -> 0 | X101: =SUM(X92+X85+X80+X69+X99) -> 0 | Z101: =SUM(Z92+Z85+Z80+Z69+Z99) -> 0 | AB101: =SUM(AB92+AB85+AB80+AB69+AB99) -> 1229519 | AD101: =SUM(AD92+AD85+AD80+AD69+AD99) -> 0 | AF101: =SUM(AF92+AF85+AF80+AF69+AF99) -> 0 | AH101: =SUM(AH92+AH85+AH80+AH69+AH99) -> 0 | AJ101: =SUM(AJ92+AJ85+AJ80+AJ69+AJ99) -> 0 | AL101: =SUM(AL92+AL85+AL80+AL69+AL99) -> 0 | AN101: =SUM(AN92+AN85+AN80+AN69+AN99) -> 0 | AP101: =SUM(AP92+AP85+AP80+AP69+AP99) -> 0 | AQ101: =ABS(SUMIF(V101:AP101,">0")-SUMIF(V101:AP101,"<0")) -> 1229519
B102: Show
B103: =IF(R103="","Hide","Show") -> Show | R103: =IF(AND($F$22>"399",$F$22<"500"),"","Excess (deficiency) of revenues") -> Excess (deficiency) of revenues
B104: Show | R104: =IF(AND($F$22>"399",$F$22<"500"),"Operating income (loss)","Over (under) expenditures") -> Over (under) expenditures | T104: =SUM(T53-T101-T59) -> 0 | V104: =SUM(V53-V101-V59) -> 0 | X104: =SUM(X53-X101-X59) -> 0 | Z104: =SUM(Z53-Z101-Z59) -> 0 | AB104: =SUM(AB53-AB101-AB59) -> -63223 | AD104: =SUM(AD53-AD101-AD59) -> 0 | AF104: =SUM(AF53-AF101-AF59) -> 0 | AH104: =SUM(AH53-AH101-AH59) -> 0 | AJ104: =SUM(AJ53-AJ101-AJ59) -> 0 | AL104: =SUM(AL53-AL101-AL59) -> 0 | AN104: =SUM(AN53-AN101-AN59) -> 0 | AP104: =SUM(AP53-AP101-AP59) -> 0 | AQ104: =ABS(SUMIF(V104:AP104,">0")-SUMIF(V104:AP104,"<0")) -> 63223
B105: Show
B106: Hide
B107: Hide | T107: =IF(AND(VALUE($F$22)>399,VALUE($F$22)<500),0,IF(OR($F$11="NO",T$1="HIDE",T$4="ACTUAL"),0,T104+T114)) -> 0 | V107: =IF(AND(VALUE($F$22)>399,VALUE($F$22)<500),0,IF(OR($F$11="NO",V$1="HIDE",V$4="ACTUAL"),0,V104+V114)) -> 0 | X107: =IF(AND(VALUE($F$22)>399,VALUE($F$22)<500),0,IF(OR($F$11="NO",X$1="HIDE",X$4="ACTUAL"),0,X104+X114)) -> 0 | Z107: =IF(AND(VALUE($F$22)>399,VALUE($F$22)<500),0,IF(OR($F$11="NO",Z$1="HIDE",Z$4="ACTUAL"),0,Z104+Z114)) -> 0 | AB107: =IF(AND(VALUE($F$22)>399,VALUE($F$22)<500),0,IF(OR($F$11="NO",AB$1="HIDE",AB$4="ACTUAL"),0,AB104+AB114)) -> 0 | AD107: =IF(AND(VALUE($F$22)>399,VALUE($F$22)<500),0,IF(OR($F$11="NO",AD$1="HIDE",AD$4="ACTUAL"),0,AD104+AD114)) -> 0 | AF107: =IF(AND(VALUE($F$22)>399,VALUE($F$22)<500),0,IF(OR($F$11="NO",AF$1="HIDE",AF$4="ACTUAL"),0,AF104+AF114)) -> 0 | AH107: =IF(AND(VALUE($F$22)>399,VALUE($F$22)<500),0,IF(OR($F$11="NO",AH$1="HIDE",AH$4="ACTUAL"),0,AH104+AH114)) -> 0 | AJ107: 0 | AL107: 0 | AN107: =IF(AND(VALUE($F$22)>399,VALUE($F$22)<500),0,IF(OR($F$11="NO",AN$1="HIDE",AN$4="ACTUAL"),0,AN104+AN114)) -> 0 | AP107: =IF(AND(VALUE($F$22)>399,VALUE($F$22)<500),0,IF(OR($F$11="NO",AP$1="HIDE",AP$4="ACTUAL"),0,AP104+AP114)) -> 0
B108: =IF(OR($F$11="Yes",$AQ115<>0),"Show",IF($AQ115=0,"Hide","Show")) -> Show | E108: 370000..381499|381551..390999|391001..399998|580000..590549|590551..599999 | R108: OTHER FINANCING SOURCES (USES)
B109: =B108 -> Show
A110: Data | B110: =IF(AQ110=0,"Hide","Show") -> Show | K110: 381000 | L110: =$F$22 -> 202 | M110: =$J$7 -> 10/1/2016..9/30/2017 | N110: =$D$6 -> HARMONY CDD | O110: =IF(K110="","399998",K110) -> 381000 | P110: =K110 -> 381000 | R110: Interfund Transfer - In | T110: 0 | V110: 0 | X110: 0 | Z110: 0 | AB110: 56011 | AD110: 0 | AF110: 0 | AH110: 0 | AJ110: 0 | AL110: =IF(ISERROR(AH110+AJ110),0,(AH110+AJ110)) -> 0 | AN110: 0 | AP110: =IF($F$13="YES",AF110,AN110) -> 0 | AQ110: =ABS(SUMIF(V110:AP110,">0")-SUMIF(V110:AP110,"<0")) -> 56011
A111: Data+Auto | B111: =IF(AQ111=0,"Hide","Show") -> Show | K111: ="591000" -> 591000 | L111: =$F$22 -> 202 | M111: =$J$7 -> 10/1/2016..9/30/2017 | N111: =$D$6 -> HARMONY CDD | O111: =IF(K111="","399998",K111) -> 591000 | P111: =K111 -> 591000 | R111: Operating Transfers-Out | T111: 0 | V111: 0 | X111: 0 | Z111: 0 | AB111: -14807 | AD111: 0 | AF111: 0 | AH111: 0 | AJ111: 0 | AL111: =IF(ISERROR(AH111+AJ111),0,(AH111+AJ111)) -> 0 | AN111: 0 | AP111: =IF($F$13="YES",AF111,AN111) -> 0 | AQ111: =ABS(SUMIF(V111:AP111,">0")-SUMIF(V111:AP111,"<0")) -> 14807
A112: Data+Auto | B112: =IF(AQ112=0,"Hide","Show") -> Show | K112: ="591100" -> 591100 | L112: =$F$22 -> 202 | M112: =$J$7 -> 10/1/2016..9/30/2017 | N112: =$D$6 -> HARMONY CDD | O112: =IF(K112="","399998",K112) -> 591100 | P112: =K112 -> 591100 | R112: Pymt to Escrow Acct-Refunding | T112: 0 | V112: 0 | X112: 0 | Z112: 0 | AB112: -861168 | AD112: 0 | AF112: 0 | AH112: 0 | AJ112: 0 | AL112: =IF(ISERROR(AH112+AJ112),0,(AH112+AJ112)) -> 0 | AN112: 0 | AP112: =IF($F$13="YES",AF112,AN112) -> 0 | AQ112: =ABS(SUMIF(V112:AP112,">0")-SUMIF(V112:AP112,"<0")) -> 861168
B113: Hide
B114: Hide | T114: =SUM(T109:T113) -> 0 | V114: =SUM(V109:V113) -> 0 | X114: =SUM(X109:X113) -> 0 | Z114: =SUM(Z109:Z113) -> 0 | AB114: =SUM(AB109:AB113) -> -819964 | AD114: =SUM(AD109:AD113) -> 0 | AF114: =SUM(AF109:AF113) -> 0 | AH114: =SUM(AH109:AH113) -> 0 | AJ114: =SUM(AJ109:AJ113) -> 0 | AL114: =SUM(AL109:AL113) -> 0 | AN114: =SUM(AN109:AN113) -> 0 | AP114: =SUM(AP109:AP113) -> 0 | AQ114: =ABS(SUMIF(V114:AP114,">0")-SUMIF(V114:AP114,"<0")) -> 819964
A115: Data | B115: =IF(OR($F$11="Yes",$AQ115<>0),"Show",IF($AQ115=0,"Hide","Show")) -> Show | K115: 590550 | L115: =$F$22 -> 202 | M115: =$J$7 -> 10/1/2016..9/30/2017 | N115: =$D$6 -> HARMONY CDD | O115: =K115 -> 590550 | P115: 599999 | R115: Contribution to (Use of) Fund Balance | T115: =IF(OR(T$4="ACTUAL",T$1="hide"),0,T$107) -> 0 | V115: =IF(OR(V$4="ACTUAL",V$1="hide"),0,V$107) -> 0 | X115: =IF(OR(X$4="ACTUAL",X$1="hide"),0,X$107) -> 0 | Z115: =IF(OR(Z$4="ACTUAL",Z$1="hide"),0,Z$107) -> 0 | AB115: =IF(OR(AB$4="ACTUAL",AB$1="hide"),0,AB$107) -> 0 | AD115: =IF(OR(AD$4="ACTUAL",AD$1="hide"),0,AD$107) -> 0 | AF115: =IF(OR(AF$4="ACTUAL",AF$1="hide"),0,AF$107) -> 0 | AH115: =IF(OR(AH$4="ACTUAL",AH$1="hide"),0,AH$107) -> 0 | AJ115: =IF(OR(AJ$4="ACTUAL",AJ$1="hide"),0,AJ$107) -> 0 | AL115: =IF(ISERROR(AH115+AJ115),0,(AH115+AJ115)) -> 0 | AN115: =IF(OR(AN$4="ACTUAL",AN$1="hide"),0,AN$107) -> 0 | AP115: =IF(OR(AP$4="ACTUAL",AP$1="hide"),0,AP$107) -> 0 | AQ115: =ABS(SUMIF(V115:AP115,">0")-SUMIF(V115:AP115,"<0")) -> 0
B116: =B117 -> Show
B117: =IF(OR($F$11="Yes",$AQ117<>0),"Show",IF($AQ117=0,"Hide","Show")) -> Show | R117: TOTAL OTHER SOURCES (USES) | T117: =SUM(T114:T115) -> 0 | V117: =SUM(V114:V115) -> 0 | X117: =SUM(X114:X115) -> 0 | Z117: =SUM(Z114:Z115) -> 0 | AB117: =SUM(AB114:AB115) -> -819964 | AD117: =SUM(AD114:AD115) -> 0 | AF117: =SUM(AF114:AF115) -> 0 | AH117: =SUM(AH114:AH115) -> 0 | AJ117: =SUM(AJ114:AJ115) -> 0 | AL117: =SUM(AL114:AL115) -> 0 | AN117: =SUM(AN114:AN115) -> 0 | AP117: =SUM(AP114:AP115) -> 0 | AQ117: =ABS(SUMIF(V117:AP117,">0")-SUMIF(V117:AP117,"<0")) -> 819964
B118: =B117 -> Show
B119: Show | R119: =IF(AND($F$22>"399",$F$22<"500"),"Change in net assets","Net change in fund balance") -> Net change in fund balance | T119: =IF(T$4="ACTUAL",SUM(T117+T104),SUM(T117+T104+(IF(ABS(T107)<0.49,0,-T107)))) -> 0 | V119: =IF(V$4="ACTUAL",SUM(V117+V104),SUM(V117+V104+(IF(ABS(V107)<0.49,0,-V107)))) -> 0 | X119: =IF(X$4="ACTUAL",SUM(X117+X104),SUM(X117+X104+(IF(ABS(X107)<0.49,0,-X107)))) -> 0 | Z119: =IF(Z$4="ACTUAL",SUM(Z117+Z104),SUM(Z117+Z104+(IF(ABS(Z107)<0.49,0,-Z107)))) -> 0 | AB119: =IF(AB$4="ACTUAL",SUM(AB117+AB104),SUM(AB117+AB104+(IF(ABS(AB107)<0.49,0,-AB107)))) -> -883187 | AD119: =IF(AD$4="ACTUAL",SUM(AD117+AD104),SUM(AD117+AD104+(IF(ABS(AD107)<0.49,0,-AD107)))) -> 0 | AF119: =IF(AF$4="ACTUAL",SUM(AF117+AF104),SUM(AF117+AF104+(IF(ABS(AF107)<0.49,0,-AF107)))) -> 0 | AH119: =IF(AH$4="ACTUAL",SUM(AH117+AH104),SUM(AH117+AH104+(IF(ABS(AH107)<0.49,0,-AH107)))) -> 0 | AJ119: =IF(AJ$4="ACTUAL",SUM(AJ117+AJ104),SUM(AJ117+AJ104+(IF(ABS(AJ107)<0.49,0,-AJ107)))) -> 0 | AL119: =IF(AL$4="ACTUAL",SUM(AL117+AL104),SUM(AL117+AL104+(IF(ABS(AL107)<0.49,0,-AL107)))) -> 0 | AN119: =IF(AN$4="ACTUAL",SUM(AN117+AN104),SUM(AN117+AN104+(IF(ABS(AN107)<0.49,0,-AN107)))) -> 0 | AP119: =IF(AP$4="ACTUAL",SUM(AP117+AP104),SUM(AP117+AP104+(IF(ABS(AP107)<0.49,0,-AP107)))) -> 0 | AQ119: =ABS(SUMIF(V119:AP119,">0")-SUMIF(V119:AP119,"<0")) -> 883187
B120: Show
B121: Hide | O121: 240001..299997 | P121: 391000 | R121: Fund balance - audit adjustments | T121: 0 | V121: 0 | X121: 0 | Z121: 0 | AB121: 0 | AD121: 0 | AF121: 0 | AH121: 0 | AJ121: 0 | AL121: =AH121+AJ121 -> 0 | AN121: 0 | AP121: 0 | AQ121: =ABS(SUMIF(V121:AP121,">0")-SUMIF(V121:AP121,"<0")) -> 0
B122: Hide | R122: Rounding | T122: 0 | V122: 0 | X122: 0 | Z122: 0 | AB122: 0 | AF122: =AH122 -> 0 | AH122: =$Z$155 -> 0 | AJ122: 0 | AN122: 0 | AP122: 0 | AQ122: =ABS(SUMIF(V122:AP122,">0")-SUMIF(V122:AP122,"<0")) -> 0
B123: Hide | R123: Check Totals (rev,expense,other) | T123: =ABS(T53)+ABS(T101)+ABS(T117) -> 0 | V123: =ABS(V53)+ABS(V101)+ABS(V117) -> 0 | X123: =ABS(X53)+ABS(X101)+ABS(X117) -> 0 | Z123: =ABS(Z53)+ABS(Z101)+ABS(Z117) -> 0 | AB123: =ABS(AB53)+ABS(AB101)+ABS(AB117) -> 3215779 | AD123: =ABS(AD53)+ABS(AD101)+ABS(AD117) -> 0 | AF123: =ABS(AF53)+ABS(AF101)+ABS(AF117) -> 0 | AH123: =ABS(AH53)+ABS(AH101)+ABS(AH117) -> 0 | AJ123: 0 | AL123: =AH123+AJ123 -> 0 | AN123: 0 | AP123: 0 | AQ123: =ABS(SUMIF(V123:AP123,">0")-SUMIF(V123:AP123,"<0")) -> 3215779
B124: Show | O124: 240001..299997 | P124: 391000 | R124: =IF(AND($F$22>"399",$F$22<"500"),"TOTAL NET ASSETS, BEGINNING","FUND BALANCE, BEGINNING") -> FUND BALANCE, BEGINNING | T124: 0 | V124: =IF(V$1="Show",V126-V121-V119,0) -> 0 | X124: =IF(X$1="Show",X126-X121-X119,0) -> 0 | Z124: =IF(Z$1="Show",Z126-Z121-Z119,0) -> 0 | AB124: =IF(AB$1="Show",AB126-AB121-AB119,0) -> 883187 | AD124: 0 | AF124: =IF(OR($O124="",AF$1="HIDE"),0,IF(AND(AF$4="BUDGET",AF$123=0),0,AH124)) -> 0 | AH124: 0 | AJ124: 0 | AL124: =AH124+AJ124 -> 0 | AN124: 0 | AP124: =AL126 -> 0 | AQ124: =ABS(SUMIF(V124:AP124,">0")-SUMIF(V124:AP124,"<0")) -> 883187
B125: Show
B126: Show | R126: =IF(AND($F$22>"399",$F$22<"500"),"TOTAL NET ASSETS, ENDING","FUND BALANCE, ENDING") -> FUND BALANCE, ENDING | T126: =SUM(T119+T124) -> 0 | V126: =IF(V$1="Hide",0,X124) -> 0 | X126: =IF(X$1="Hide",0,Z124) -> 0 | Z126: =IF(Z$1="Hide",0,AB124) -> 0 | AB126: =IF(AB$1="Hide",0,AF124) -> 0 | AD126: =SUM(AD119+AD124) -> 0 | AF126: =SUM(AF119+AF124) -> 0 | AH126: =SUM(AH119+AH124) -> 0 | AJ126: =SUM(AJ119+AJ124) -> 0 | AL126: =SUM(AL119+AL124) -> 0 | AN126: =SUM(AN119+AN124) -> 0 | AP126: =SUM(AP119+AP124) -> 0 | AQ126: =ABS(SUMIF(V126:AP126,">0")-SUMIF(V126:AP126,"<0")) -> 0
B127: =B128 -> Hide
B128: Hide | AQ128: =SUM(AQ34:AQ126) -> 13638439
B129: Hide
B130: Hide | T130: TEST | V130: =IF($V31="","",$V31) ->  | X130: =IF($V31="","",$V31) ->  | Z130: =IF($V31="","",$V31) ->  | AB130: =IF(AB31="","",AB31) ->  | AD130: =IF(AD31="","",AD31) -> ADOPTED | AF130: =IF(AF31="","",AF31) -> ADOPTED | AH130: =IF(AH31="","",AH31) -> ACTUAL | AJ130: =IF(AJ31="","",AJ31) -> PROJECTED | AL130: =IF(AL31="","",AL31) -> TOTAL | AN130: =IF(AN31="","",AN31) -> NAVIGATOR | AP130: =IF(AP31="","",AP31) -> ANNUAL
B131: Hide | T131: =IF(T32="","",T32) -> ACTUAL | V131: =IF(V32="","",V32) -> ACTUAL | X131: =IF(X32="","",X32) -> ACTUAL | Z131: =IF(Z32="","",Z32) -> ACTUAL | AB131: =IF(AB32="","",AB32) -> ACTUAL | AD131: =IF(AD32="","",AD32) -> BUDGET | AF131: =IF(AF32="","",AF32) -> BUDGET | AH131: =IF(AH32="","",AH32) -> THRU | AJ131: =IF(AJ32="","",AJ32) -> MAY thru | AL131: =IF(AL32="","",AL32) -> PROJECTED | AN131: =IF(AN32="","",AN32) -> BALANCE | AP131: =IF(AP32="","",AP32) -> BUDGET
B132: Hide | T132: =IF(T33="","",T33) -> TEST | V132: =IF(V33="","",V33) -> FY 2012 | X132: =IF(X33="","",X33) -> FY 2013 | Z132: =IF(Z33="","",Z33) -> FY 2014 | AB132: =IF(AB33="","",AB33) -> FY - 2015 | AD132: =IF(AD33="","",AD33) -> FY - 2015 | AF132: =IF(AF33="","",AF33) -> FY - 2016 | AH132: =IF(AH33="","",AH33) -> APR - 2016 | AJ132: =IF(AJ33="","",AJ33) -> EoFY - 2016 | AL132: =IF(AL33="","",AL33) -> FY - 2016 | AN132: =IF(AN33="","",AN33) -> FY - 2017 | AP132: =IF(AP33="","",AP33) -> FY - 2017
B133: Hide
B134: Hide | P134: 300000..369999 | T134: 0 | V134: 0 | X134: 0 | Z134: 0 | AB134: -0.1000000001 | AD134: 0 | AF134: 0 | AH134: 0 | AJ134: 0 | AL134: 0 | AN134: 0 | AP134: 0
B135: Hide | P135: 500000..579999 | T135: 0 | V135: 0 | X135: 0 | Z135: 0 | AB135: -0.1599999999 | AD135: 0 | AF135: 0 | AH135: 0 | AJ135: 0 | AL135: 0 | AN135: 0 | AP135: 0
B136: Hide | P136: 370000..381499|381551..390999|391001..399998|580000..590549|590551..599999 | T136: 0 | V136: 0 | X136: 0 | Z136: 0 | AB136: 0.13 | AD136: 0 | AF136: 0 | AH136: 0 | AJ136: 0 | AL136: 0 | AN136: 0 | AP136: 0
B137: Hide | P137: 240001..299997|300000..599999 | T137: 0 | V137: 0 | X137: 0 | Z137: 0 | AB137: 0 | AD137: 0 | AF137: 0 | AH137: 0 | AJ137: 0 | AL137: 0 | AN137: 0 | AP137: 0
B138: Hide
B139: =IF(COUNTIF(V139:AP139,"ERROR")=0,"Hide","Show") -> Hide | R139: =COUNTIF(V139:AP139,"ERROR") -> 0 | V139: =IF(OR(ABS(V134)>10,ABS(V135)>10,ABS(V136)>10,ABS(V137)>10),"ERROR","") ->  | X139: =IF(OR(ABS(X134)>10,ABS(X135)>10,ABS(X136)>10,ABS(X137)>10),"ERROR","") ->  | Z139: =IF(OR(ABS(Z134)>10,ABS(Z135)>10,ABS(Z136)>10,ABS(Z137)>10),"ERROR","") ->  | AB139: =IF(OR(ABS(AB134)>10,ABS(AB135)>10,ABS(AB136)>10,ABS(AB137)>10),"ERROR","") ->  | AD139: =IF(OR(ABS(AD134)>10,ABS(AD135)>10,ABS(AD136)>10,ABS(AD137)>10),"ERROR","") ->  | AF139: =IF(OR(ABS(AF134)>10,ABS(AF135)>10,ABS(AF136)>10,ABS(AF137)>10),"ERROR","") ->  | AH139: =IF(OR(ABS(AH134)>10,ABS(AH135)>10,ABS(AH136)>10,ABS(AH137)>10),"ERROR","") ->  | AN139: =IF(OR(ABS(AN134)>10,ABS(AN135)>10,ABS(AN136)>10,ABS(AN137)>10),"ERROR","") -> 
B140: Hide
B141: Hide | T141: Rounding | AD141: Amended | AF141: Amended
B142: Hide | P142: 300000..369999 | T142: =T126 -> 0 | AD142: 0 | AF142: 0
B143: Hide | P143: 500000..579999 | T143: =IF(ISERROR(HLOOKUP(F22,Balance_Sheet!N10:AC11,2)),0,HLOOKUP(F22,Balance_Sheet!N10:AC11,2)) -> 0 | AD143: 0 | AF143: 0
B144: Hide | P144: 370000..381499|381551..390999|391001..399998|580000..590549|590551..599999 | T144: =T143-T142 -> 0 | AD144: 0 | AF144: 0
B145: Hide | AD145: =ABS(AD142)+ABS(AD143)+ABS(AD144) -> 0 | AF145: =ABS(AF142)+ABS(AF143)+ABS(AF144) -> 0
B146: =B145 -> Hide
B147: Hide
B148: Hide | P148: 361001 | R148: Interest Income | X148: 0 | Z148: =IF($X148=0,0,$AB148) -> 0 | AB148: =T144 -> 0
B149: Hide | P149: 549001 | R149: Miscellaneous | V149: 51301 | X149: 0 | Z149: =IF($X149=0,0,IF($Z148=0,$AB149,0)) -> 0 | AB149: =$AB148 -> 0
B150: Hide | P150: 549900 | R150: Contingency | V150: 51301 | X150: 0 | Z150: =IF($X150=0,0,IF(SUM($Z148:$Z149)=0,$AB150,0)) -> 0 | AB150: 0
B151: Hide | P151: 565001 | R151: Construction In Progress | V151: 50000..599999 | X151: 0 | Z151: =IF($X151=0,0,IF(SUM($Z148:$Z150)=0,$AB151,0)) -> 0 | AB151: 0
B152: Hide | P152: =P151+1 -> 565002 | R152: Construction In Progress | V152: 50000..599999 | X152: 0 | Z152: =IF($X152=0,0,IF(SUM($Z148:$Z151)=0,$AB152,0)) -> 0 | AB152: 0
B153: Hide | P153: =P152+1 -> 565003 | R153: Construction In Progress | V153: 50000..599999 | X153: 0 | Z153: =IF($X153=0,0,IF(SUM($Z148:$Z152)=0,$AB153,0)) -> 0 | AB153: 0
B154: Hide | P154: =P153+1 -> 565004 | R154: Construction In Progress | V154: 50000..599999 | X154: 0 | Z154: =IF($X154=0,0,IF(SUM($Z148:$Z153)=0,$AB154,0)) -> 0 | AB154: 0
B155: Hide | R155: Fund Balance - Beg Bal | Z155: =IF(SUM($Z148:$Z154)=0,$AB155,0) -> 0 | AB155: 0

Sheet 203
A1: Auto+Hide+Values+Formulas=Sheet15,Sheet13,Sheet14+AutoSheet | B1: Hide+? | C1: Hide | D1: Hide | E1: Hide | F1: Hide | G1: Keyname+Hide | H1: Hide | I1: Hide | J1: Hide | K1: Hide | L1: Key+Hide | M1: Key+Hide | N1: Key+Hide | O1: Key+Hide | P1: =IF($F$9="no","Hide","Show") -> Hide | Q1: =P1 -> Hide | R1: Show | S1: Hide | T1: Hide | V1: =IF($F$7=4,"Show","Hide") -> Hide | W1: =V1 -> Hide | X1: =IF($F$7>=3,"Show","Hide") -> Hide | Y1: =X1 -> Hide | Z1: =IF($F$7>=2,"Show","Hide") -> Hide | AA1: =Z1 -> Hide | AB1: =IF($F$7>=1,"Show","Hide") -> Show | AC1: =AB1 -> Show | AD1: =IF($F$8>=2,"Show","Hide") -> Hide | AE1: =AD1 -> Hide | AF1: =IF($F$8>=1,"Show","Hide") -> Show | AG1: =AF1 -> Show | AH1: =IF($F$9="no","Show","hide") -> Show | AI1: =AH1 -> Show | AJ1: ="Data+"&AH1 -> Data+Show | AK1: =AH1 -> Show | AL1: Show | AM1: =AL1 -> Show | AN1: Hide | AO1: Hide | AP1: Data | AQ1: Hide | AS1: Data | AT1: HIDE | AU1: HIDE | AV1: HIDE | AW1: HIDE | AX1: HIDE | AY1: HIDE | AZ1: HIDE | BA1: HIDE | BB1: HIDE | BC1: HIDE | BD1: HIDE | BE1: HIDE | BF1: HIDE
B2: =IF(AQ130=0,"hidesheet","Hide") -> Hide | C2: Harmony | T2: =TEXT("..C"&$F$5,"MM/DD/YYYY") -> ..C02/29/2016 | V2: =I9 -> ..C9/30/2012 | X2: =I8 -> ..C9/30/2013 | Z2: =I7 -> ..C9/30/2014 | AB2: =I6 -> ..C9/30/2015 | AD2: =AB2 -> ..C9/30/2015 | AF2: =I5 -> ..C9/30/2016 | AH2: =TEXT("..C"&$F$5,"MM/DD/YYYY") -> ..C02/29/2016 | AJ2: =AH2 -> ..C02/29/2016
B3: Hide | C3: Community Development District | H3: Year | I3: FY_End_date | J3: FY_begin_Date | T3: =$J$4 -> 10/1/2015..02/29/2016 | V3: 10/1/2011..9/30/2012 | X3: 10/1/2012..9/30/2013 | Z3: 10/1/2013..9/30/2014 | AB3: 10/1/2014..9/30/2015 | AD3: 10/1/2014..9/30/2015 | AF3: 10/1/2015..9/30/2016 | AH3: =$J$4 -> 10/1/2015..02/29/2016 | AJ3: 3/1/2016..9/30/2016 | AN3: 10/1/2016..9/30/2017 | AP3: 10/1/2016..9/30/2017
B4: Hide | E4: Budget Fiscal Year | F4: 2017 | H4: =F4 -> 2017 | I4: ="..C9/30/"&H4 -> ..C9/30/2017 | J4: ="10/1/"&H6&".."&F5 -> 10/1/2015..02/29/2016 | T4: ACTUAL | V4: ACTUAL | X4: ACTUAL | Z4: ACTUAL | AB4: ACTUAL | AD4: BUDGET | AF4: BUDGET | AH4: ACTUAL | AJ4: BUDGET | AL4: BUDGET | AN4: BUDGET | AP4: BUDGET
B5: Hide | C5: No. | D5: 300000..599999 | E5: Actual Date | F5: 02/29/2016 | H5: =H4-1 -> 2016 | I5: ..C9/30/2016 | J5: 10/1/2010..9/30/2017 | T5: =AF5 -> ..C9/30/2015 | V5: =I10 -> ..C9/30/2011 | X5: =V2 -> ..C9/30/2012 | Z5: =X2 -> ..C9/30/2013 | AB5: =Z2 -> ..C9/30/2014 | AD5: =AB5 -> ..C9/30/2014 | AF5: =AD2 -> ..C9/30/2015 | AH5: =AF5 -> ..C9/30/2015 | AJ5: =I11 -> ..C9/30/2016 | AN5: =$I$4 -> ..C9/30/2017 | AP5: =$I$4 -> ..C9/30/2017
B6: Hide | C6: District Name | D6: HARMONY CDD | E6: Show Ttl w/o reserves | F6: No | H6: 2015 | I6: ..C9/30/2015 | J6: 10/1/2014..9/30/2017 | AD6: * | AF6: * | AJ6: * | AN6: * | AP6: *
B7: Hide | C7: Fund No. | D7: 001..299|400..450 | E7: PY_actuals | F7: 1 | H7: 2014 | I7: ..C9/30/2014 | J7: 10/1/2016..9/30/2017 | AD7: Budget Plan No. | AF7: Budget Plan No. | AN7: Budget Plan No. | AP7: Budget Plan No.
B8: Hide | C8: Department | D8: * | E8: PY_budgets | F8: 1 | H8: 2013 | I8: ..C9/30/2013 | AD8: =RIGHT(AD2,4)&"BUDA" -> 2015BUDA | AF8: =RIGHT(AF2,4)&"BUDA" -> 2016BUDA
B9: Hide | C9: Transaction Type | D9: Actual | E9: Hide Proj Total | F9: No | H9: 2012 | I9: ..C9/30/2012
B10: Hide | C10: DistrictName | D10: Harmony | E10: Show Gl | F10: No | H10: 2011 | I10: ..C9/30/2011
B11: Hide | C11: DistrictType | D11: Community Development District | E11: Bal Bud | F11: Yes | H11: =RIGHT(I11,4) -> 2016 | I11: ="..C9/30/"&IF(MONTH(F5)<10,YEAR(F5),YEAR(F5)+1) -> ..C9/30/2016
B12: Hide | E12: Subacct | F12: * | J12: Summary of Revenues, Expenditures and Changes in Fund Balances
B13: Hide | E13: Include nav bal | F13: Yes | J13: Summary of Revenues, Expenses and Changes in Net Assets
B14: Hide | E14: Show COGS | F14: No
B15: Hide | E15: Budget Draft | F15: No
B16: Hide | E16: Subtotal Revenue | F16: No
B17: Hide | E17: Fund No. | F17: ="203" -> 203
B18: Hide
B19: Hide | E19: Field Names | H19: SUBACCT
B20: Hide | E20: G/L Account No. | H20: 2014 Debt Service Fund
B21: Hide | E21: Orgunit code | H21: To be reclassed
B22: Hide | E22: Fund No. | F22: =IF(F17="",0,F17) -> 203 | H22: =IF(F12="*",H20,H21) -> 2014 Debt Service Fund
B23: Hide | E23: subacct
A24: Key+Hide | B24: Hide | E24: Fund Code | G24: ColumnNo | AJ24: Col1 | AP24: Col2 | AS24: Col3
B25: Show | O25: reporttitle1 | R25: =IF(ISERROR(IF(AND(VALUE($F$22)>399,VALUE($F$22)<500),$J$13,$J$12)),"",IF(AND(VALUE($F$22)>399,VALUE($F$22)<500),$J$13,$J$12)) -> Summary of Revenues, Expenditures and Changes in Fund Balances
O26: reporttitle2 | R26: =H22 -> 2014 Debt Service Fund
B27: Show | O27: reporttitle3 | R27: ="Fiscal Year " &F4& " Proposed Budget" -> Fiscal Year 2017 Proposed Budget
B29: =IF(F15="yes","show","Hide") -> Hide | P29: THIS TEMPLATE IS ONLY INTENDED TO BE USED AS A BUDGETING WORKSHEET
B30: =B29 -> Hide
B31: Show | AD31: =IF(AD147=0,"ADOPTED","AMENDED") -> ADOPTED | AF31: =IF(AF147=0,"ADOPTED","AMENDED") -> ADOPTED | AH31: ACTUAL | AJ31: PROJECTED | AL31: TOTAL | AN31: NAVIGATOR | AP31: ANNUAL
B32: Show | P32: Account | T32: ACTUAL | V32: ACTUAL | X32: ACTUAL | Z32: ACTUAL | AB32: ACTUAL | AD32: BUDGET | AF32: BUDGET | AH32: THRU | AJ32: ='001'!AJ32 -> MAY thru | AL32: PROJECTED | AN32: BALANCE | AP32: BUDGET
A33: Keyname | B33: Show | L33: Fund No. | M33: Date | N33: District Name | O33: No. | P33: # | R33: ACCOUNT DESCRIPTION | T33: TEST | V33: ="FY "&RIGHT(V2,4) -> FY 2012 | X33: ="FY "&RIGHT(X2,4) -> FY 2013 | Z33: ="FY "&RIGHT(Z2,4) -> FY 2014 | AB33: ='001'!AB33 -> FY - 2015 | AD33: ='001'!AD33 -> FY - 2015 | AF33: ='001'!AF33 -> FY - 2016 | AH33: ='001'!AH33 -> APR - 2016 | AJ33: ='001'!AJ33 -> EoFY - 2016 | AL33: ='001'!AL33 -> FY - 2016 | AN33: ='001'!AN33 -> FY - 2017 | AP33: ='001'!AP33 -> FY - 2017 | AS33: NOTES
B34: Show
B35: Show | O35: Remindermessage | P35: REMINDER! - Run the "Update Report" Macro.
B36: Show | R36: =IF(R141=0,IF(AND($F$22>"399",$F$22<"500"),"OPERATING REVENUES","REVENUES"),"THIS REPORT HAS AN ERROR, THIS REPORT HAS AN ERROR, THIS REPORT HAS AN ERROR") -> REVENUES
B37: Show
A38: Data | B38: Show | E38: =IF(OR($D$7=0,$F$16="YES"),0,"300001..361000|361002..369999") -> 300001..361000|361002..369999 | K38: 361001 | L38: =$F$22 -> 203 | M38: =$J$7 -> 10/1/2016..9/30/2017 | N38: =$D$6 -> HARMONY CDD | O38: =K38 -> 361001 | P38: =K38 -> 361001 | R38: Interest - Investments | T38: 224 | V38: 0 | X38: 0 | Z38: 0 | AB38: 75 | AD38: 0 | AF38: 50 | AH38: 729 | AJ38: =900-AH38 -> 171 | AL38: =IF(ISERROR(AH38+AJ38),0,(AH38+AJ38)) -> 900 | AN38: 0 | AP38: 1000 | AQ38: =ABS(SUMIF(V38:AP38,">0")-SUMIF(V38:AP38,"<0")) -> 2925
A39: Data | B39: =IF(AQ39=0,"Hide","Show") -> Show | K39: 363010 | L39: =$F$22 -> 203 | M39: =$J$7 -> 10/1/2016..9/30/2017 | N39: =$D$6 -> HARMONY CDD | O39: =IF(K39="","8888888",K39) -> 363010 | P39: =K39 -> 363010 | R39: Special Assmnts- Tax Collector | T39: 942379 | V39: 0 | X39: 0 | Z39: 0 | AB39: 1065433 | AD39: 0 | AF39: 1207426 | AH39: 1162166 | AJ39: =+AF39-AH39 -> 45260 | AL39: =IF(ISERROR(AH39+AJ39),0,(AH39+AJ39)) -> 1207426 | AN39: 0 | AP39: ='Assess_Detail Revised'!AD61 -> 1176226.768 | AQ39: =ABS(SUMIF(V39:AP39,">0")-SUMIF(V39:AP39,"<0")) -> 5863937.768 | AS39: *Note- reduction in on-roll due revenue to merging of A-2, M, F, and H-2.
A40: Data+Auto | B40: =IF(AQ40=0,"Hide","Show") -> Show | K40: ="363030" -> 363030 | L40: =$F$22 -> 203 | M40: =$J$7 -> 10/1/2016..9/30/2017 | N40: =$D$6 -> HARMONY CDD | O40: =IF(K40="","8888888",K40) -> 363030 | P40: =K40 -> 363030 | R40: Special Assmnts- Prepayment | T40: 12338 | V40: 0 | X40: 0 | Z40: 0 | AB40: 102018 | AD40: 0 | AF40: 0 | AH40: 12338 | AJ40: 0 | AL40: =IF(ISERROR(AH40+AJ40),0,(AH40+AJ40)) -> 12338 | AN40: 0 | AP40: 0 | AQ40: =ABS(SUMIF(V40:AP40,">0")-SUMIF(V40:AP40,"<0")) -> 126694 | AS40: More acreage and units allocated to off-roll parcels and A-2 and M
A41: Data+Auto | B41: =IF(AQ41=0,"Hide","Show") -> Show | K41: ="363040" -> 363040 | L41: =$F$22 -> 203 | M41: =$J$7 -> 10/1/2016..9/30/2017 | N41: =$D$6 -> HARMONY CDD | O41: =IF(K41="","8888888",K41) -> 363040 | P41: =K41 -> 363040 | R41: Special Assmnts- CDD Collected | T41: 76436 | V41: 0 | X41: 0 | Z41: 0 | AB41: 255886 | AD41: 0 | AF41: 63546 | AH41: 114564 | AJ41: 0 | AL41: =IF(ISERROR(AH41+AJ41),0,(AH41+AJ41)) -> 114564 | AN41: 0 | AP41: ='Assess_Detail Revised'!AD62 -> 86844.28768 | AQ41: =ABS(SUMIF(V41:AP41,">0")-SUMIF(V41:AP41,"<0")) -> 635404.2877
A42: Data+Auto | B42: =IF(AQ42=0,"Hide","Show") -> Show | K42: ="363090" -> 363090 | L42: =$F$22 -> 203 | M42: =$J$7 -> 10/1/2016..9/30/2017 | N42: =$D$6 -> HARMONY CDD | O42: =IF(K42="","8888888",K42) -> 363090 | P42: =K42 -> 363090 | R42: Special Assmnts- Discounts | T42: -35607 | V42: 0 | X42: 0 | Z42: 0 | AB42: -28827 | AD42: 0 | AF42: -48297 | AH42: -35850 | AJ42: 0 | AL42: =IF(ISERROR(AH42+AJ42),0,(AH42+AJ42)) -> -35850 | AN42: 0 | AP42: =ROUND(-AP39*0.04,0) -> -47049 | AQ42: =ABS(SUMIF(V42:AP42,">0")-SUMIF(V42:AP42,"<0")) -> 195873
B43: Show
B44: Hide | E44: =IF(OR($D$7=0,$F$16="NO"),0,"300001..361000|361002..369999") -> 0
B45: Hide
B46: =B49 -> Hide | I46: =IF(I45="","9999999",I45) -> 9999999 | AU46: TEST | AV46: =$V$33 -> FY 2012 | AW46: =$X$33 -> FY 2013 | AX46: =$Z$33 -> FY 2014 | AY46: =$AB$33 -> FY - 2015 | AZ46: AB | BA46: AB1 | BB46: ACT | BC46: PROJ | BD46: TOTAL | BE46: NAV | BF46: NEW AB
A47: Data | B47: =IF(AQ47=0,"Hide","Show") -> Hide | I47: =I46 -> 9999999 | L47: =$F$22 -> 203 | M47: =$J$7 -> 10/1/2016..9/30/2017 | N47: =$D$6 -> HARMONY CDD | O47: =K47 &" "&I47 -> 9999999 | P47: =K47 ->  | T47: 0 | V47: 0 | X47: 0 | Z47: 0 | AB47: 0 | AD47: 0 | AF47: 0 | AH47: 0 | AJ47: =+AF47-AH47 -> 0 | AL47: =IF(ISERROR(AH47+AJ47),0,(AH47+AJ47)) -> 0 | AN47: 0 | AP47: =IF($F$13="YES",AF47,AN47) -> 0 | AQ47: =ABS(SUMIF(V47:AP47,">0")-SUMIF(V47:AP47,"<0")) -> 0
B48: =B49 -> Hide | I48: =I47 -> 9999999
B49: =IF(AQ49=0,"Hide","Show") -> Hide | I49: =I48 -> 9999999 | R49: Total | T49: =SUM(T46:T48) -> 0 | V49: =SUM(V46:V48) -> 0 | X49: =SUM(X46:X48) -> 0 | Z49: =SUM(Z46:Z48) -> 0 | AB49: =SUM(AB46:AB48) -> 0 | AD49: =SUM(AD46:AD48) -> 0 | AF49: =SUM(AF46:AF48) -> 0 | AH49: =SUM(AH46:AH48) -> 0 | AJ49: =SUM(AJ46:AJ48) -> 0 | AL49: =SUM(AL46:AL48) -> 0 | AN49: =SUM(AN46:AN48) -> 0 | AP49: =SUM(AP46:AP48) -> 0 | AQ49: =ABS(SUMIF(V49:AP49,">0")-SUMIF(V49:AP49,"<0")) -> 0 | AU49: =SUM(T46:T48) -> 0 | AV49: =SUM(V46:V48) -> 0 | AW49: =SUM(X46:X48) -> 0 | AX49: =SUM(Z46:Z48) -> 0 | AY49: =SUM(AB46:AB48) -> 0 | AZ49: =SUM(AD46:AD48) -> 0 | BA49: =SUM(AF46:AF48) -> 0 | BB49: =SUM(AH46:AH48) -> 0 | BC49: =SUM(AJ46:AJ48) -> 0 | BD49: =SUM(AL46:AL48) -> 0 | BE49: =SUM(AN46:AN48) -> 0 | BF49: =SUM(AP46:AP48) -> 0
B50: =B49 -> Hide | I50: =I49 -> 9999999
B51: Show
B52: Show | R52: =IF(AND($F$22>"399",$F$22<"500"),"TOTAL OPERATING REVENUES","TOTAL REVENUES") -> TOTAL REVENUES | T52: =SUM(T37:T43)+SUM(AU47:AU51) -> 995770 | V52: =SUM(V37:V43)+SUM(AV47:AV51) -> 0 | X52: =SUM(X37:X43)+SUM(AW47:AW51) -> 0 | Z52: =SUM(Z37:Z43)+SUM(AX47:AX51) -> 0 | AB52: =SUM(AB37:AB43)+SUM(AY47:AY51) -> 1394585 | AD52: =SUM(AD37:AD43)+SUM(AZ47:AZ51) -> 0 | AF52: =SUM(AF37:AF43)+SUM(BA47:BA51) -> 1222725 | AH52: =SUM(AH37:AH43)+SUM(BB47:BB51) -> 1253947 | AJ52: =SUM(AJ37:AJ43)+SUM(BC47:BC51) -> 45431 | AL52: =SUM(AL37:AL43)+SUM(BD47:BD51) -> 1299378 | AN52: =SUM(AN37:AN43)+SUM(BE47:BE51) -> 0 | AP52: =SUM(AP37:AP43)+SUM(BF47:BF51) -> 1217022.055 | AQ52: =ABS(SUMIF(V52:AP52,">0")-SUMIF(V52:AP52,"<0")) -> 6433088.055
B53: Show
B54: =IF(AQ58=0,"Hide","Show") -> Hide | E54: =IF(OR($F$22=0,VALUE($F$22)<=399,VALUE($F$22)>499,$F$14="NO"),0,"552099..552199") -> 0 | R54: COST OF GOODS SOLD
B55: Hide
A56: Data | B56: =IF(AQ56=0,"Hide","Show") -> Hide | L56: =$F$22 -> 203 | M56: =$J$7 -> 10/1/2016..9/30/2017 | N56: =$D$6 -> HARMONY CDD | O56: =IF(K56="","500000 50000",K56&" "&"50000") -> 500000 50000 | P56: =K56 ->  | T56: 0 | V56: 0 | X56: 0 | Z56: 0 | AB56: 0 | AD56: 0 | AF56: 0 | AH56: 0 | AJ56: 0 | AL56: =IF(ISERROR(AH56+AJ56),0,(AH56+AJ56)) -> 0 | AN56: 0 | AP56: =IF($F$13="YES",AF56,AN56) -> 0 | AQ56: =ABS(SUMIF(V56:AP56,">0")-SUMIF(V56:AP56,"<0")) -> 0
B57: Hide
B58: =IF(AQ58=0,"Hide","Show") -> Hide | R58: =IF(AND($F$22>"399",$F$22<"500",$F$14="yes"),"Total Cost of Goods Sold","") ->  | T58: =SUM(T55:T57) -> 0 | V58: =SUM(V55:V57) -> 0 | X58: =SUM(X55:X57) -> 0 | Z58: =SUM(Z55:Z57) -> 0 | AB58: =SUM(AB55:AB57) -> 0 | AD58: =SUM(AD55:AD57) -> 0 | AF58: =SUM(AF55:AF57) -> 0 | AH58: =SUM(AH55:AH57) -> 0 | AJ58: =SUM(AJ55:AJ57) -> 0 | AL58: =SUM(AL55:AL57) -> 0 | AN58: =SUM(AN55:AN57) -> 0 | AP58: =SUM(AP55:AP57) -> 0 | AQ58: =ABS(SUMIF(V58:AP58,">0")-SUMIF(V58:AP58,"<0")) -> 0
B59: =B58 -> Hide
B60: =B59 -> Hide | R60: =IF(AND($F$22>"399",$F$22<"500",$F$14="yes"),"GROSS PROFIT","") ->  | T60: =IF(OR(VALUE($F$22)<=399,VALUE($F$22)>499,$F$14="NO"),0,T52-T58) -> 0 | V60: =IF(OR(VALUE($F$22)<=399,VALUE($F$22)>499,$F$14="NO"),0,V52-V58) -> 0 | X60: =IF(OR(VALUE($F$22)<=399,VALUE($F$22)>499,$F$14="NO"),0,X52-X58) -> 0 | Z60: =IF(OR(VALUE($F$22)<=399,VALUE($F$22)>499,$F$14="NO"),0,Z52-Z58) -> 0 | AB60: =IF(OR(VALUE($F$22)<=399,VALUE($F$22)>499,$F$14="NO"),0,AB52-AB58) -> 0 | AD60: =IF(OR(VALUE($F$22)<=399,VALUE($F$22)>499,$F$14="NO"),0,AD52-AD58) -> 0 | AF60: =IF(OR(VALUE($F$22)<=399,VALUE($F$22)>499,$F$14="NO"),0,AF52-AF58) -> 0 | AH60: =IF(OR(VALUE($F$22)<=399,VALUE($F$22)>499,$F$14="NO"),0,AH52-AH58) -> 0 | AJ60: =IF(OR(VALUE($F$22)<=399,VALUE($F$22)>499,$F$14="NO"),0,AJ52-AJ58) -> 0 | AL60: =IF(OR(VALUE($F$22)<=399,VALUE($F$22)>499,$F$14="NO"),0,AL52-AL58) -> 0 | AN60: =IF(OR(VALUE($F$22)<=399,VALUE($F$22)>499,$F$14="NO"),0,AN52-AN58) -> 0 | AP60: =IF(OR(VALUE($F$22)<=399,VALUE($F$22)>499,$F$14="NO"),0,AP52-AP58) -> 0 | AQ60: =ABS(SUMIF(V60:AP60,">0")-SUMIF(V60:AP60,"<0")) -> 0
B61: =B60 -> Hide
B62: Show | R62: =IF(AND($F$22>"399",$F$22<"500"),"OPERATING EXPENSES","EXPENDITURES") -> EXPENDITURES
B63: Show
B64: =B68 -> Show | R64: =IF(AND($F$22>"399",$F$22<"500"),"Personnel and Administration","Administrative") -> Administrative
B65: Hide | E65: =IF($F$22=0,0,IF(OR($F$14="No",VALUE($F$22)<=399,VALUE($F$22)>499),"500000..564999|566000..579999","500000..552098|552200..564999|566000..579999")) -> 500000..564999|566000..579999 | H65: 51000..51699
A66: Data | B66: =IF(AQ66=0,"Hide","Show") -> Show | K66: 549070 | L66: =$F$22 -> 203 | M66: =$J$7 -> 10/1/2016..9/30/2017 | N66: =$D$6 -> HARMONY CDD | O66: =IF(K66="","500000 51699",K66&" "&"51699") -> 549070 51699 | P66: =K66 -> 549070 | R66: Misc-Assessmnt Collection Cost | T66: 18135 | V66: 0 | X66: 0 | Z66: 0 | AB66: 14378 | AD66: 0 | AF66: 24149 | AH66: 22526 | AJ66: =+AJ39*0.02 -> 905.2 | AL66: =IF(ISERROR(AH66+AJ66),0,(AH66+AJ66)) -> 23431.2 | AN66: 0 | AP66: =ROUND(+AP39*0.02,) -> 23525 | AQ66: =ABS(SUMIF(V66:AP66,">0")-SUMIF(V66:AP66,"<0")) -> 108914.4
B67: =B68 -> Show
B68: =IF(AQ68=0,"Hide","Show") -> Show | R68: ="Total "&R64 -> Total Administrative | T68: =SUM(T66:T67) -> 18135 | V68: =SUM(V66:V67) -> 0 | X68: =SUM(X66:X67) -> 0 | Z68: =SUM(Z66:Z67) -> 0 | AB68: =SUM(AB66:AB67) -> 14378 | AD68: =SUM(AD66:AD67) -> 0 | AF68: =SUM(AF66:AF67) -> 24149 | AH68: =SUM(AH66:AH67) -> 22526 | AJ68: =SUM(AJ66:AJ67) -> 905.2 | AL68: =SUM(AL66:AL67) -> 23431.2 | AN68: =SUM(AN66:AN67) -> 0 | AP68: =SUM(AP66:AP67) -> 23525 | AQ68: =ABS(SUMIF(V68:AP68,">0")-SUMIF(V68:AP68,"<0")) -> 108914.4
B69: =B68 -> Show
B70: Hide | E70: =IF($F$22=0,0,IF(OR($F$14="No",VALUE($F$22)<=399,VALUE($F$22)>499),"500000..564999|566000..579999","500000..552098|552200..564999|566000..579999")) -> 500000..564999|566000..579999 | H70: 51800..57999|58001|99999 | AH70: =$Z$151+$Z$152 -> 0
B71: Hide
B72: Hide | H72: ORGUNIT | I72: 58001
B73: =IF(AQ77=0,"Hide","Show") -> Hide | I73: =I72 -> 58001 | R73: Non-Operating | AU73: TEST | AV73: =$V$33 -> FY 2012 | AW73: =$X$33 -> FY 2013 | AX73: =$Z$33 -> FY 2014 | AY73: =$AB$33 -> FY - 2015 | AZ73: AB | BA73: AB1 | BB73: ACT | BC73: PROJ | BD73: TOTAL | BE73: NAV | BF73: NEW AB
A74: Data | B74: =IF(AQ74=0,"Hide","Show") -> Hide | I74: =I73 -> 58001 | K74: 573010 | L74: =$F$22 -> 203 | M74: =$J$7 -> 10/1/2016..9/30/2017 | N74: =$D$6 -> HARMONY CDD | O74: =IF(I74="","500000 51800",K74&" "&I74) -> 573010 58001 | P74: =K74 -> 573010 | R74: DS Bond Discount | T74: 0 | V74: 0 | X74: 0 | Z74: 0 | AB74: 0 | AD74: 0 | AF74: 0 | AH74: 0 | AJ74: 0 | AL74: =IF(ISERROR(AH74+AJ74),0,(AH74+AJ74)) -> 0 | AN74: 0 | AP74: =IF($F$13="YES",AF74,AN74) -> 0 | AQ74: =ABS(SUMIF(V74:AP74,">0")-SUMIF(V74:AP74,"<0")) -> 0
A75: Data+Auto | B75: =IF(AQ75=0,"Hide","Show") -> Hide | I75: =I74 -> 58001 | K75: ="573012" -> 573012 | L75: =$F$22 -> 203 | M75: =$J$7 -> 10/1/2016..9/30/2017 | N75: =$D$6 -> HARMONY CDD | O75: =IF(I75="","500000 51800",K75&" "&I75) -> 573012 58001 | P75: =K75 -> 573012 | R75: Underwriter | T75: 0 | V75: 0 | X75: 0 | Z75: 0 | AB75: 0 | AD75: 0 | AF75: 0 | AH75: 0 | AJ75: 0 | AL75: =IF(ISERROR(AH75+AJ75),0,(AH75+AJ75)) -> 0 | AN75: 0 | AP75: =IF($F$13="YES",AF75,AN75) -> 0 | AQ75: =ABS(SUMIF(V75:AP75,">0")-SUMIF(V75:AP75,"<0")) -> 0
B76: Hide | I76: =I74 -> 58001
B77: =IF(AQ77=0,"Hide","Show") -> Hide | I77: =I76 -> 58001 | R77: ="Total " &($R73) -> Total Non-Operating | T77: =SUM(T74:T76) -> 0 | V77: =SUM(V74:V76) -> 0 | X77: =SUM(X74:X76) -> 0 | Z77: =SUM(Z74:Z76) -> 0 | AB77: =SUM(AB74:AB76) -> 0 | AD77: =SUM(AD74:AD76) -> 0 | AF77: =SUM(AF74:AF76) -> 0 | AH77: =SUM(AH74:AH76) -> 0 | AJ77: =SUM(AJ74:AJ76) -> 0 | AL77: =SUM(AL74:AL76) -> 0 | AN77: =SUM(AN74:AN76) -> 0 | AP77: =SUM(AP74:AP76) -> 0 | AQ77: =ABS(SUMIF(V77:AP77,">0")-SUMIF(V77:AP77,"<0")) -> 0 | AU77: =SUM(T73:T76) -> 0 | AV77: =SUM(V73:V76) -> 0 | AW77: =SUM(X73:X76) -> 0 | AX77: =SUM(Z73:Z76) -> 0 | AY77: =SUM(AB73:AB76) -> 0 | AZ77: =SUM(AD73:AD76) -> 0 | BA77: =SUM(AF73:AF76) -> 0 | BB77: =SUM(AH73:AH76) -> 0 | BC77: =SUM(AJ73:AJ76) -> 0 | BD77: =SUM(AL73:AL76) -> 0 | BE77: =SUM(AN73:AN76) -> 0 | BF77: =SUM(AP73:AP76) -> 0
B78: =B77 -> Hide | I78: =I77 -> 58001
B79: Hide
B80: Hide | R80: TOTAL FOR O&M | T80: =SUM(AU76:AU79) -> 0 | V80: =SUM(AV76:AV79) -> 0 | X80: =SUM(AW76:AW79) -> 0 | Z80: =SUM(AX76:AX79) -> 0 | AB80: =SUM(AY76:AY79) -> 0 | AD80: =SUM(AZ76:AZ79) -> 0 | AF80: =SUM(BA76:BA79) -> 0 | AH80: =SUM(BB76:BB79) -> 0 | AJ80: =SUM(BC76:BC79) -> 0 | AL80: =SUM(BD76:BD79) -> 0 | AN80: =SUM(BE76:BE79) -> 0 | AP80: =SUM(BF76:BF79) -> 0
B81: Hide | E81: 565000..565999 | AH81: =$Z$153+$Z$154+$Z$155+$Z$156 -> 0
B82: =IF(AQ85=0,"Hide","Show") -> Hide | R82: Construction In Progress
A83: Data | B83: =IF(AQ83=0,"Hide","Show") -> Hide | L83: =$F$22 -> 203 | M83: =$J$7 -> 10/1/2016..9/30/2017 | N83: =$D$6 -> HARMONY CDD | O83: =IF(K83="","565999",K83) -> 565999 | P83: =K83 ->  | T83: 0 | V83: 0 | X83: 0 | Z83: 0 | AB83: 0 | AD83: 0 | AF83: 0 | AH83: 0 | AJ83: 0 | AL83: =IF(ISERROR(AH83+AJ83),0,(AH83+AJ83)) -> 0 | AN83: 0 | AP83: =IF($F$13="YES",AF83,AN83) -> 0 | AQ83: =ABS(SUMIF(V83:AP83,">0")-SUMIF(V83:AP83,"<0")) -> 0
B84: Hide
B85: =IF(AQ85=0,"Hide","Show") -> Hide | R85: Total Construction In Progress | T85: =SUM(T83:T84) -> 0 | V85: =SUM(V83:V84) -> 0 | X85: =SUM(X83:X84) -> 0 | Z85: =SUM(Z83:Z84) -> 0 | AB85: =SUM(AB83:AB84) -> 0 | AD85: =SUM(AD83:AD84) -> 0 | AF85: =SUM(AF83:AF84) -> 0 | AH85: =SUM(AH83:AH84) -> 0 | AJ85: =SUM(AJ83:AJ84) -> 0 | AL85: =SUM(AL83:AL84) -> 0 | AN85: =SUM(AN83:AN84) -> 0 | AP85: =SUM(AP83:AP84) -> 0 | AQ85: =ABS(SUMIF(V85:AP85,">0")-SUMIF(V85:AP85,"<0")) -> 0
B86: =B85 -> Hide | E86: =IF($F$22=0,0,IF(OR($F$14="No",VALUE($F$22)<=399,VALUE($F$22)>499),"500000..564999|566000..579999","500000..552016|552028..552039|552046..564999|566000..579999")) -> 500000..564999|566000..579999 | H86: 51700..51799
B87: =IF(AQ93=0,"Hide","Show") -> Show | R87: Debt Service
A88: Data | B88: =IF(AQ88=0,"Hide","Show") -> Show | K88: 571001 | L88: =$F$22 -> 203 | M88: =$J$7 -> 10/1/2016..9/30/2017 | N88: =$D$6 -> HARMONY CDD | O88: =IF(K88="","500000 51799",K88&" "&"51799") -> 571001 51799 | P88: =K88 -> 571001 | R88: Principal Debt Retirement | T88: 0 | V88: 0 | X88: 0 | Z88: 0 | AB88: 260000 | AD88: 0 | AF88: 520000 | AH88: 0 | AJ88: ='Amort 2014'!D10 -> 520000 | AL88: =IF(ISERROR(AH88+AJ88),0,(AH88+AJ88)) -> 520000 | AN88: 0 | AP88: ='Amort 2014'!D12 -> 535000 | AQ88: =ABS(SUMIF(V88:AP88,">0")-SUMIF(V88:AP88,"<0")) -> 2355000
A89: Data+Auto | B89: =IF(AQ89=0,"Hide","Show") -> Show | K89: ="571006" -> 571006 | L89: =$F$22 -> 203 | M89: =$J$7 -> 10/1/2016..9/30/2017 | N89: =$D$6 -> HARMONY CDD | O89: =IF(K89="","500000 51799",K89&" "&"51799") -> 571006 51799 | P89: =K89 -> 571006 | R89: Principal Prepayments | T89: 70000 | V89: 0 | X89: 0 | Z89: 0 | AB89: 185000 | AD89: 0 | AF89: 0 | AH89: 70000 | AJ89: 15000 | AL89: 85000 | AN89: 0 | AP89: =IF($F$13="YES",AF89,AN89) -> 0 | AQ89: =ABS(SUMIF(V89:AP89,">0")-SUMIF(V89:AP89,"<0")) -> 355000
A90: Data+Auto | B90: =IF(AQ90=0,"Hide","Show") -> Show | K90: ="572001" -> 572001 | L90: =$F$22 -> 203 | M90: =$J$7 -> 10/1/2016..9/30/2017 | N90: =$D$6 -> HARMONY CDD | O90: =IF(K90="","500000 51799",K90&" "&"51799") -> 572001 51799 | P90: =K90 -> 572001 | R90: Interest Expense | T90: 346250 | V90: 0 | X90: 0 | Z90: 0 | AB90: 597819 | AD90: 0 | AF90: 692350 | AH90: 346250 | AJ90: ='Amort 2014'!F10 -> 334450 | AL90: =IF(ISERROR(AH90+AJ90),0,(AH90+AJ90)) -> 680700 | AN90: 0 | AP90: ='Amort 2014'!F11+'Amort 2014'!F12 -> 662125 | AQ90: =ABS(SUMIF(V90:AP90,">0")-SUMIF(V90:AP90,"<0")) -> 3313694
A91: Data+Auto | B91: =IF(AQ91=0,"Hide","Show") -> Hide | K91: ="573005" -> 573005 | L91: =$F$22 -> 203 | M91: =$J$7 -> 10/1/2016..9/30/2017 | N91: =$D$6 -> HARMONY CDD | O91: =IF(K91="","500000 51799",K91&" "&"51799") -> 573005 51799 | P91: =K91 -> 573005 | R91: Cost of Issuance | T91: 0 | V91: 0 | X91: 0 | Z91: 0 | AB91: 0 | AD91: 0 | AF91: 0 | AH91: 0 | AJ91: 0 | AL91: =IF(ISERROR(AH91+AJ91),0,(AH91+AJ91)) -> 0 | AN91: 0 | AP91: =IF($F$13="YES",AF91,AN91) -> 0 | AQ91: =ABS(SUMIF(V91:AP91,">0")-SUMIF(V91:AP91,"<0")) -> 0
B92: Hide
B93: =IF(AQ93=0,"Hide","Show") -> Show | R93: Total Debt Service | T93: =SUM(T88:T92) -> 416250 | V93: =SUM(V88:V92) -> 0 | X93: =SUM(X88:X92) -> 0 | Z93: =SUM(Z88:Z92) -> 0 | AB93: =SUM(AB88:AB92) -> 1042819 | AD93: =SUM(AD88:AD92) -> 0 | AF93: =SUM(AF88:AF92) -> 1212350 | AH93: =SUM(AH88:AH92) -> 416250 | AJ93: =SUM(AJ88:AJ92) -> 869450 | AL93: =SUM(AL88:AL92) -> 1285700 | AN93: =SUM(AN88:AN92) -> 0 | AP93: =SUM(AP88:AP92) -> 1197125 | AQ93: =ABS(SUMIF(V93:AP93,">0")-SUMIF(V93:AP93,"<0")) -> 6023694
B94: =B93 -> Show
B95: =IF(AQ95=0,"Hide","Show") -> Hide | R95: =IF(AND($F$22>"399",$F$22<"500"),"TOTAL OPERATING EXPENSES","TOTAL EXPENDITURES") -> TOTAL EXPENDITURES | T95: =IF($F$6="no",0,SUM(T93+T85+T80+T68)) -> 0 | V95: =IF($F$6="no",0,SUM(V93+V85+V80+V68)) -> 0 | X95: =IF($F$6="no",0,SUM(X93+X85+X80+X68)) -> 0 | Z95: =IF($F$6="no",0,SUM(Z93+Z85+Z80+Z68)) -> 0 | AB95: =IF($F$6="no",0,SUM(AB93+AB85+AB80+AB68)) -> 0 | AD95: =IF($F$6="no",0,SUM(AD93+AD85+AD80+AD68)) -> 0 | AF95: =IF($F$6="no",0,SUM(AF93+AF85+AF80+AF68)) -> 0 | AH95: =IF($F$6="no",0,SUM(AH93+AH85+AH80+AH68)) -> 0 | AJ95: =IF($F$6="no",0,SUM(AJ93+AJ85+AJ80+AJ68)) -> 0 | AL95: =IF($F$6="no",0,SUM(AL93+AL85+AL80+AL68)) -> 0 | AN95: =IF($F$6="no",0,SUM(AN93+AN85+AN80+AN68)) -> 0 | AP95: =IF($F$6="no",0,SUM(AP93+AP85+AP80+AP68)) -> 0 | AQ95: =ABS(SUMIF(V95:AP95,">0")-SUMIF(V95:AP95,"<0")) -> 0
B96: =B95 -> Hide | E96: =IF($F$22=0,0,IF(OR($F$14="No",VALUE($F$22)<=399,VALUE($F$22)>499),"500000..564999|566000..579999","500000..552016|552028..552039|552046..564999|566000..579999")) -> 500000..564999|566000..579999 | H96: 58100
B97: =IF(AQ100=0,"Hide","Show") -> Hide | R97: Reserves
A98: Data | B98: =IF(AQ98=0,"Hide","Show") -> Hide | L98: =$F$22 -> 203 | M98: =$J$7 -> 10/1/2016..9/30/2017 | N98: =$D$6 -> HARMONY CDD | O98: =IF(K98="","500000 58100",K98&" "&"58100") -> 500000 58100 | P98: =K98 ->  | T98: 0 | V98: 0 | X98: 0 | Z98: 0 | AB98: 0 | AD98: 0 | AF98: 0 | AH98: 0 | AJ98: 0 | AL98: =IF(ISERROR(AH98+AJ98),0,(AH98+AJ98)) -> 0 | AN98: 0 | AP98: =IF($F$13="YES",AF98,AN98) -> 0 | AQ98: =ABS(SUMIF(V98:AP98,">0")-SUMIF(V98:AP98,"<0")) -> 0
B99: Hide
B100: =IF(AQ100=0,"Hide","Show") -> Hide | R100: Total Reserves | T100: =SUM(T98:T99) -> 0 | V100: =SUM(V98:V99) -> 0 | X100: =SUM(X98:X99) -> 0 | Z100: =SUM(Z98:Z99) -> 0 | AB100: =SUM(AB98:AB99) -> 0 | AD100: =SUM(AD98:AD99) -> 0 | AF100: =SUM(AF98:AF99) -> 0 | AH100: =SUM(AH98:AH99) -> 0 | AJ100: =SUM(AJ98:AJ99) -> 0 | AL100: =SUM(AL98:AL99) -> 0 | AN100: =SUM(AN98:AN99) -> 0 | AP100: =SUM(AP98:AP99) -> 0 | AQ100: =ABS(SUMIF(V100:AP100,">0")-SUMIF(V100:AP100,"<0")) -> 0
B101: =B100 -> Hide
B102: Show | N102: =IF(AQ100=0,""," & RESERVES") ->  | R102: =TRIM(IF(AND($F$22>"399",$F$22<"500"),"TOTAL OPERATING EXPENSES"&N102,"TOTAL EXPENDITURES"&N102)) -> TOTAL EXPENDITURES | T102: =SUM(T93+T85+T80+T68+T100) -> 434385 | V102: =SUM(V93+V85+V80+V68+V100) -> 0 | X102: =SUM(X93+X85+X80+X68+X100) -> 0 | Z102: =SUM(Z93+Z85+Z80+Z68+Z100) -> 0 | AB102: =SUM(AB93+AB85+AB80+AB68+AB100) -> 1057197 | AD102: =SUM(AD93+AD85+AD80+AD68+AD100) -> 0 | AF102: =SUM(AF93+AF85+AF80+AF68+AF100) -> 1236499 | AH102: =SUM(AH93+AH85+AH80+AH68+AH100) -> 438776 | AJ102: =SUM(AJ93+AJ85+AJ80+AJ68+AJ100) -> 870355.2 | AL102: =SUM(AL93+AL85+AL80+AL68+AL100) -> 1309131.2 | AN102: =SUM(AN93+AN85+AN80+AN68+AN100) -> 0 | AP102: =SUM(AP93+AP85+AP80+AP68+AP100) -> 1220650 | AQ102: =ABS(SUMIF(V102:AP102,">0")-SUMIF(V102:AP102,"<0")) -> 6132608.4
B103: Show
B104: =IF(R104="","Hide","Show") -> Show | R104: =IF(AND($F$22>"399",$F$22<"500"),"","Excess (deficiency) of revenues") -> Excess (deficiency) of revenues
B105: Show | R105: =IF(AND($F$22>"399",$F$22<"500"),"Operating income (loss)","Over (under) expenditures") -> Over (under) expenditures | T105: =SUM(T52-T102-T58) -> 561385 | V105: =SUM(V52-V102-V58) -> 0 | X105: =SUM(X52-X102-X58) -> 0 | Z105: =SUM(Z52-Z102-Z58) -> 0 | AB105: =SUM(AB52-AB102-AB58) -> 337388 | AD105: =SUM(AD52-AD102-AD58) -> 0 | AF105: =SUM(AF52-AF102-AF58) -> -13774 | AH105: =SUM(AH52-AH102-AH58) -> 815171 | AJ105: =SUM(AJ52-AJ102-AJ58) -> -824924.2 | AL105: =SUM(AL52-AL102-AL58) -> -9753.2 | AN105: =SUM(AN52-AN102-AN58) -> 0 | AP105: =SUM(AP52-AP102-AP58) -> -3627.944705 | AQ105: =ABS(SUMIF(V105:AP105,">0")-SUMIF(V105:AP105,"<0")) -> 2004638.345
B106: Show
B107: Hide
B108: Hide | T108: =IF(AND(VALUE($F$22)>399,VALUE($F$22)<500),0,IF(OR($F$11="NO",T$1="HIDE",T$4="ACTUAL"),0,T105+T116)) -> 0 | V108: =IF(AND(VALUE($F$22)>399,VALUE($F$22)<500),0,IF(OR($F$11="NO",V$1="HIDE",V$4="ACTUAL"),0,V105+V116)) -> 0 | X108: =IF(AND(VALUE($F$22)>399,VALUE($F$22)<500),0,IF(OR($F$11="NO",X$1="HIDE",X$4="ACTUAL"),0,X105+X116)) -> 0 | Z108: =IF(AND(VALUE($F$22)>399,VALUE($F$22)<500),0,IF(OR($F$11="NO",Z$1="HIDE",Z$4="ACTUAL"),0,Z105+Z116)) -> 0 | AB108: =IF(AND(VALUE($F$22)>399,VALUE($F$22)<500),0,IF(OR($F$11="NO",AB$1="HIDE",AB$4="ACTUAL"),0,AB105+AB116)) -> 0 | AD108: =IF(AND(VALUE($F$22)>399,VALUE($F$22)<500),0,IF(OR($F$11="NO",AD$1="HIDE",AD$4="ACTUAL"),0,AD105+AD116)) -> 0 | AF108: =IF(AND(VALUE($F$22)>399,VALUE($F$22)<500),0,IF(OR($F$11="NO",AF$1="HIDE",AF$4="ACTUAL"),0,AF105+AF116)) -> -13774 | AH108: =IF(AND(VALUE($F$22)>399,VALUE($F$22)<500),0,IF(OR($F$11="NO",AH$1="HIDE",AH$4="ACTUAL"),0,AH105+AH116)) -> 0 | AJ108: 0 | AL108: 0 | AN108: =IF(AND(VALUE($F$22)>399,VALUE($F$22)<500),0,IF(OR($F$11="NO",AN$1="HIDE",AN$4="ACTUAL"),0,AN105+AN116)) -> 0 | AP108: =IF(AND(VALUE($F$22)>399,VALUE($F$22)<500),0,IF(OR($F$11="NO",AP$1="HIDE",AP$4="ACTUAL"),0,AP105+AP116)) -> -3627.944705
B109: =IF(OR($F$11="Yes",$AQ117<>0),"Show",IF($AQ117=0,"Hide","Show")) -> Show | E109: 370000..381499|381551..390999|391001..399998|580000..590549|590551..599999 | R109: OTHER FINANCING SOURCES (USES)
B110: =B109 -> Show
A111: Data | B111: =IF(AQ111=0,"Hide","Show") -> Hide | K111: 381000 | L111: =$F$22 -> 203 | M111: =$J$7 -> 10/1/2016..9/30/2017 | N111: =$D$6 -> HARMONY CDD | O111: =IF(K111="","399998",K111) -> 381000 | P111: =K111 -> 381000 | R111: Interfund Transfer - In | T111: 0 | V111: 0 | X111: 0 | Z111: 0 | AB111: 0 | AD111: 0 | AF111: 0 | AH111: 0 | AJ111: 0 | AL111: =IF(ISERROR(AH111+AJ111),0,(AH111+AJ111)) -> 0 | AN111: 0 | AP111: =IF($F$13="YES",AF111,AN111) -> 0 | AQ111: =ABS(SUMIF(V111:AP111,">0")-SUMIF(V111:AP111,"<0")) -> 0
A112: Data+Auto | B112: =IF(AQ112=0,"Hide","Show") -> Hide | K112: ="385000" -> 385000 | L112: =$F$22 -> 203 | M112: =$J$7 -> 10/1/2016..9/30/2017 | N112: =$D$6 -> HARMONY CDD | O112: =IF(K112="","399998",K112) -> 385000 | P112: =K112 -> 385000 | R112: Proceeds of Refunding Bonds | T112: 0 | V112: 0 | X112: 0 | Z112: 0 | AB112: 0 | AD112: 0 | AF112: 0 | AH112: 0 | AJ112: 0 | AL112: =IF(ISERROR(AH112+AJ112),0,(AH112+AJ112)) -> 0 | AN112: 0 | AP112: =IF($F$13="YES",AF112,AN112) -> 0 | AQ112: =ABS(SUMIF(V112:AP112,">0")-SUMIF(V112:AP112,"<0")) -> 0
A113: Data+Auto | B113: =IF(AQ113=0,"Hide","Show") -> Show | K113: ="591000" -> 591000 | L113: =$F$22 -> 203 | M113: =$J$7 -> 10/1/2016..9/30/2017 | N113: =$D$6 -> HARMONY CDD | O113: =IF(K113="","399998",K113) -> 591000 | P113: =K113 -> 591000 | R113: Operating Transfers-Out | T113: 0 | V113: 0 | X113: 0 | Z113: 0 | AB113: -56011 | AD113: 0 | AF113: 0 | AH113: 0 | AJ113: 0 | AL113: =IF(ISERROR(AH113+AJ113),0,(AH113+AJ113)) -> 0 | AN113: 0 | AP113: =IF($F$13="YES",AF113,AN113) -> 0 | AQ113: =ABS(SUMIF(V113:AP113,">0")-SUMIF(V113:AP113,"<0")) -> 56011
A114: Data+Auto | B114: =IF(AQ114=0,"Hide","Show") -> Hide | K114: ="591100" -> 591100 | L114: =$F$22 -> 203 | M114: =$J$7 -> 10/1/2016..9/30/2017 | N114: =$D$6 -> HARMONY CDD | O114: =IF(K114="","399998",K114) -> 591100 | P114: =K114 -> 591100 | R114: Pymt to Escrow Acct-Refunding | T114: 0 | V114: 0 | X114: 0 | Z114: 0 | AB114: 0 | AD114: 0 | AF114: 0 | AH114: 0 | AJ114: 0 | AL114: =IF(ISERROR(AH114+AJ114),0,(AH114+AJ114)) -> 0 | AN114: 0 | AP114: =IF($F$13="YES",AF114,AN114) -> 0 | AQ114: =ABS(SUMIF(V114:AP114,">0")-SUMIF(V114:AP114,"<0")) -> 0
B115: Hide
B116: Hide | T116: =SUM(T110:T115) -> 0 | V116: =SUM(V110:V115) -> 0 | X116: =SUM(X110:X115) -> 0 | Z116: =SUM(Z110:Z115) -> 0 | AB116: =SUM(AB110:AB115) -> -56011 | AD116: =SUM(AD110:AD115) -> 0 | AF116: =SUM(AF110:AF115) -> 0 | AH116: =SUM(AH110:AH115) -> 0 | AJ116: =SUM(AJ110:AJ115) -> 0 | AL116: =SUM(AL110:AL115) -> 0 | AN116: =SUM(AN110:AN115) -> 0 | AP116: =SUM(AP110:AP115) -> 0 | AQ116: =ABS(SUMIF(V116:AP116,">0")-SUMIF(V116:AP116,"<0")) -> 56011
A117: Data | B117: =IF(OR($F$11="Yes",$AQ117<>0),"Show",IF($AQ117=0,"Hide","Show")) -> Show | K117: 590550 | L117: =$F$22 -> 203 | M117: =$J$7 -> 10/1/2016..9/30/2017 | N117: =$D$6 -> HARMONY CDD | O117: =K117 -> 590550 | P117: 599999 | R117: Contribution to (Use of) Fund Balance | T117: =IF(OR(T$4="ACTUAL",T$1="hide"),0,T$108) -> 0 | V117: =IF(OR(V$4="ACTUAL",V$1="hide"),0,V$108) -> 0 | X117: =IF(OR(X$4="ACTUAL",X$1="hide"),0,X$108) -> 0 | Z117: =IF(OR(Z$4="ACTUAL",Z$1="hide"),0,Z$108) -> 0 | AB117: =IF(OR(AB$4="ACTUAL",AB$1="hide"),0,AB$108) -> 0 | AD117: =IF(OR(AD$4="ACTUAL",AD$1="hide"),0,AD$108) -> 0 | AF117: =IF(OR(AF$4="ACTUAL",AF$1="hide"),0,AF$108) -> -13774 | AH117: =IF(OR(AH$4="ACTUAL",AH$1="hide"),0,AH$108) -> 0 | AJ117: =IF(OR(AJ$4="ACTUAL",AJ$1="hide"),0,AJ$108) -> 0 | AL117: =IF(ISERROR(AH117+AJ117),0,(AH117+AJ117)) -> 0 | AN117: =IF(OR(AN$4="ACTUAL",AN$1="hide"),0,AN$108) -> 0 | AP117: =IF(OR(AP$4="ACTUAL",AP$1="hide"),0,AP$108) -> -3627.944705 | AQ117: =ABS(SUMIF(V117:AP117,">0")-SUMIF(V117:AP117,"<0")) -> 17401.9447
B118: =B119 -> Show
B119: =IF(OR($F$11="Yes",$AQ119<>0),"Show",IF($AQ119=0,"Hide","Show")) -> Show | R119: TOTAL OTHER SOURCES (USES) | T119: =SUM(T116:T117) -> 0 | V119: =SUM(V116:V117) -> 0 | X119: =SUM(X116:X117) -> 0 | Z119: =SUM(Z116:Z117) -> 0 | AB119: =SUM(AB116:AB117) -> -56011 | AD119: =SUM(AD116:AD117) -> 0 | AF119: =SUM(AF116:AF117) -> -13774 | AH119: =SUM(AH116:AH117) -> 0 | AJ119: =SUM(AJ116:AJ117) -> 0 | AL119: =SUM(AL116:AL117) -> 0 | AN119: =SUM(AN116:AN117) -> 0 | AP119: =SUM(AP116:AP117) -> -3627.944705 | AQ119: =ABS(SUMIF(V119:AP119,">0")-SUMIF(V119:AP119,"<0")) -> 73412.9447
B120: =B119 -> Show
B121: Show | R121: =IF(AND($F$22>"399",$F$22<"500"),"Change in net assets","Net change in fund balance") -> Net change in fund balance | T121: =IF(T$4="ACTUAL",SUM(T119+T105),SUM(T119+T105+(IF(ABS(T108)<0.49,0,-T108)))) -> 561385 | V121: =IF(V$4="ACTUAL",SUM(V119+V105),SUM(V119+V105+(IF(ABS(V108)<0.49,0,-V108)))) -> 0 | X121: =IF(X$4="ACTUAL",SUM(X119+X105),SUM(X119+X105+(IF(ABS(X108)<0.49,0,-X108)))) -> 0 | Z121: =IF(Z$4="ACTUAL",SUM(Z119+Z105),SUM(Z119+Z105+(IF(ABS(Z108)<0.49,0,-Z108)))) -> 0 | AB121: =IF(AB$4="ACTUAL",SUM(AB119+AB105),SUM(AB119+AB105+(IF(ABS(AB108)<0.49,0,-AB108)))) -> 281377 | AD121: =IF(AD$4="ACTUAL",SUM(AD119+AD105),SUM(AD119+AD105+(IF(ABS(AD108)<0.49,0,-AD108)))) -> 0 | AF121: =IF(AF$4="ACTUAL",SUM(AF119+AF105),SUM(AF119+AF105+(IF(ABS(AF108)<0.49,0,-AF108)))) -> -13774 | AH121: =IF(AH$4="ACTUAL",SUM(AH119+AH105),SUM(AH119+AH105+(IF(ABS(AH108)<0.49,0,-AH108)))) -> 815171 | AJ121: =IF(AJ$4="ACTUAL",SUM(AJ119+AJ105),SUM(AJ119+AJ105+(IF(ABS(AJ108)<0.49,0,-AJ108)))) -> -824924.2 | AL121: =IF(AL$4="ACTUAL",SUM(AL119+AL105),SUM(AL119+AL105+(IF(ABS(AL108)<0.49,0,-AL108)))) -> -9753.2 | AN121: =IF(AN$4="ACTUAL",SUM(AN119+AN105),SUM(AN119+AN105+(IF(ABS(AN108)<0.49,0,-AN108)))) -> 0 | AP121: =IF(AP$4="ACTUAL",SUM(AP119+AP105),SUM(AP119+AP105+(IF(ABS(AP108)<0.49,0,-AP108)))) -> -3627.944705 | AQ121: =ABS(SUMIF(V121:AP121,">0")-SUMIF(V121:AP121,"<0")) -> 1948627.345
B122: Show
B123: Hide | O123: 240001..299997 | P123: 391000 | R123: Fund balance - audit adjustments | T123: 0 | V123: 0 | X123: 0 | Z123: 0 | AB123: 0 | AD123: 0 | AF123: 0 | AH123: 0 | AJ123: 0 | AL123: =AH123+AJ123 -> 0 | AN123: 0 | AP123: 0 | AQ123: =ABS(SUMIF(V123:AP123,">0")-SUMIF(V123:AP123,"<0")) -> 0
B124: Hide | R124: Rounding | T124: 0 | V124: 0 | X124: 0 | Z124: 0 | AB124: 0 | AF124: =AH124 -> 0 | AH124: =$Z$157 -> 0 | AJ124: 0 | AN124: 0 | AP124: 0 | AQ124: =ABS(SUMIF(V124:AP124,">0")-SUMIF(V124:AP124,"<0")) -> 0
B125: Hide | R125: Check Totals (rev,expense,other) | T125: =ABS(T52)+ABS(T102)+ABS(T119) -> 1430155 | V125: =ABS(V52)+ABS(V102)+ABS(V119) -> 0 | X125: =ABS(X52)+ABS(X102)+ABS(X119) -> 0 | Z125: =ABS(Z52)+ABS(Z102)+ABS(Z119) -> 0 | AB125: =ABS(AB52)+ABS(AB102)+ABS(AB119) -> 2507793 | AD125: =ABS(AD52)+ABS(AD102)+ABS(AD119) -> 0 | AF125: =ABS(AF52)+ABS(AF102)+ABS(AF119) -> 2472998 | AH125: =ABS(AH52)+ABS(AH102)+ABS(AH119) -> 1692723 | AJ125: 0 | AL125: =AH125+AJ125 -> 1692723 | AN125: 0 | AP125: 0 | AQ125: =ABS(SUMIF(V125:AP125,">0")-SUMIF(V125:AP125,"<0")) -> 8366237
B126: Show | O126: 240001..299997 | P126: 391000 | R126: =IF(AND($F$22>"399",$F$22<"500"),"TOTAL NET ASSETS, BEGINNING","FUND BALANCE, BEGINNING") -> FUND BALANCE, BEGINNING | T126: 1129554 | V126: =IF(V$1="Show",V128-V123-V121,0) -> 0 | X126: =IF(X$1="Show",X128-X123-X121,0) -> 0 | Z126: =IF(Z$1="Show",Z128-Z123-Z121,0) -> 0 | AB126: =IF(AB$1="Show",AB128-AB123-AB121,0) -> 848177 | AD126: 0 | AF126: =IF(OR($O126="",AF$1="HIDE"),0,IF(AND(AF$4="BUDGET",AF$125=0),0,AH126)) -> 1129554 | AH126: 1129554 | AJ126: 0 | AL126: =AH126+AJ126 -> 1129554 | AN126: 0 | AP126: =AL128 -> 1119800.8 | AQ126: =ABS(SUMIF(V126:AP126,">0")-SUMIF(V126:AP126,"<0")) -> 5356639.8
B127: Show
B128: Show | R128: =IF(AND($F$22>"399",$F$22<"500"),"TOTAL NET ASSETS, ENDING","FUND BALANCE, ENDING") -> FUND BALANCE, ENDING | T128: =SUM(T121+T126) -> 1690939 | V128: =IF(V$1="Hide",0,X126) -> 0 | X128: =IF(X$1="Hide",0,Z126) -> 0 | Z128: =IF(Z$1="Hide",0,AB126) -> 0 | AB128: =IF(AB$1="Hide",0,AF126) -> 1129554 | AD128: =SUM(AD121+AD126) -> 0 | AF128: =SUM(AF121+AF126) -> 1115780 | AH128: =SUM(AH121+AH126) -> 1944725 | AJ128: =SUM(AJ121+AJ126) -> -824924.2 | AL128: =SUM(AL121+AL126) -> 1119800.8 | AN128: =SUM(AN121+AN126) -> 0 | AP128: =SUM(AP121+AP126) -> 1116172.855 | AQ128: =ABS(SUMIF(V128:AP128,">0")-SUMIF(V128:AP128,"<0")) -> 7250956.855
B129: =B130 -> Hide
B130: Hide | AQ130: =SUM(AQ34:AQ128) -> 56785683.54
B131: Hide
B132: Hide | T132: TEST | V132: =IF($V31="","",$V31) ->  | X132: =IF($V31="","",$V31) ->  | Z132: =IF($V31="","",$V31) ->  | AB132: =IF(AB31="","",AB31) ->  | AD132: =IF(AD31="","",AD31) -> ADOPTED | AF132: =IF(AF31="","",AF31) -> ADOPTED | AH132: =IF(AH31="","",AH31) -> ACTUAL | AJ132: =IF(AJ31="","",AJ31) -> PROJECTED | AL132: =IF(AL31="","",AL31) -> TOTAL | AN132: =IF(AN31="","",AN31) -> NAVIGATOR | AP132: =IF(AP31="","",AP31) -> ANNUAL
B133: Hide | T133: =IF(T32="","",T32) -> ACTUAL | V133: =IF(V32="","",V32) -> ACTUAL | X133: =IF(X32="","",X32) -> ACTUAL | Z133: =IF(Z32="","",Z32) -> ACTUAL | AB133: =IF(AB32="","",AB32) -> ACTUAL | AD133: =IF(AD32="","",AD32) -> BUDGET | AF133: =IF(AF32="","",AF32) -> BUDGET | AH133: =IF(AH32="","",AH32) -> THRU | AJ133: =IF(AJ32="","",AJ32) -> MAY thru | AL133: =IF(AL32="","",AL32) -> PROJECTED | AN133: =IF(AN32="","",AN32) -> BALANCE | AP133: =IF(AP32="","",AP32) -> BUDGET
B134: Hide | T134: =IF(T33="","",T33) -> TEST | V134: =IF(V33="","",V33) -> FY 2012 | X134: =IF(X33="","",X33) -> FY 2013 | Z134: =IF(Z33="","",Z33) -> FY 2014 | AB134: =IF(AB33="","",AB33) -> FY - 2015 | AD134: =IF(AD33="","",AD33) -> FY - 2015 | AF134: =IF(AF33="","",AF33) -> FY - 2016 | AH134: =IF(AH33="","",AH33) -> APR - 2016 | AJ134: =IF(AJ33="","",AJ33) -> EoFY - 2016 | AL134: =IF(AL33="","",AL33) -> FY - 2016 | AN134: =IF(AN33="","",AN33) -> FY - 2017 | AP134: =IF(AP33="","",AP33) -> FY - 2017
B135: Hide
B136: Hide | P136: 300000..369999 | T136: 0 | V136: 0 | X136: 0 | Z136: 0 | AB136: 0.1399999999 | AD136: 0 | AF136: 0 | AH136: 0.17 | AJ136: 0 | AL136: 0 | AN136: 0 | AP136: 0
B137: Hide | P137: 500000..579999 | T137: 0 | V137: 0 | X137: 0 | Z137: 0 | AB137: 0.9099999999 | AD137: 0 | AF137: 0 | AH137: 0.45 | AJ137: 0 | AL137: 0 | AN137: 0 | AP137: 0
B138: Hide | P138: 370000..381499|381551..390999|391001..399998|580000..590549|590551..599999 | T138: 0 | V138: 0 | X138: 0 | Z138: 0 | AB138: -0.1 | AD138: 0 | AF138: 0 | AH138: 0 | AJ138: 0 | AL138: 0 | AN138: 0 | AP138: 0
B139: Hide | P139: 240001..299997|300000..599999 | T139: 0 | V139: 0 | X139: 0 | Z139: 0 | AB139: 0 | AD139: 0 | AF139: 0 | AH139: 0 | AJ139: 0 | AL139: 0 | AN139: 0 | AP139: 0
B140: Hide
B141: =IF(COUNTIF(V141:AP141,"ERROR")=0,"Hide","Show") -> Hide | R141: =COUNTIF(V141:AP141,"ERROR") -> 0 | V141: =IF(OR(ABS(V136)>10,ABS(V137)>10,ABS(V138)>10,ABS(V139)>10),"ERROR","") ->  | X141: =IF(OR(ABS(X136)>10,ABS(X137)>10,ABS(X138)>10,ABS(X139)>10),"ERROR","") ->  | Z141: =IF(OR(ABS(Z136)>10,ABS(Z137)>10,ABS(Z138)>10,ABS(Z139)>10),"ERROR","") ->  | AB141: =IF(OR(ABS(AB136)>10,ABS(AB137)>10,ABS(AB138)>10,ABS(AB139)>10),"ERROR","") ->  | AD141: =IF(OR(ABS(AD136)>10,ABS(AD137)>10,ABS(AD138)>10,ABS(AD139)>10),"ERROR","") ->  | AF141: =IF(OR(ABS(AF136)>10,ABS(AF137)>10,ABS(AF138)>10,ABS(AF139)>10),"ERROR","") ->  | AH141: =IF(OR(ABS(AH136)>10,ABS(AH137)>10,ABS(AH138)>10,ABS(AH139)>10),"ERROR","") ->  | AN141: =IF(OR(ABS(AN136)>10,ABS(AN137)>10,ABS(AN138)>10,ABS(AN139)>10),"ERROR","") -> 
B142: Hide
B143: Hide | T143: Rounding | AD143: Amended | AF143: Amended
B144: Hide | P144: 300000..369999 | T144: =T128 -> 1690939 | AD144: 0 | AF144: 0
B145: Hide | P145: 500000..579999 | T145: =IF(ISERROR(HLOOKUP(F22,Balance_Sheet!N10:AC11,2)),0,HLOOKUP(F22,Balance_Sheet!N10:AC11,2)) -> 1690940 | AD145: 0 | AF145: 0
B146: Hide | P146: 370000..381499|381551..390999|391001..399998|580000..590549|590551..599999 | T146: =T145-T144 -> 1 | AD146: 0 | AF146: 0
B147: Hide | AD147: =ABS(AD144)+ABS(AD145)+ABS(AD146) -> 0 | AF147: =ABS(AF144)+ABS(AF145)+ABS(AF146) -> 0
B148: =B147 -> Hide
B149: Hide
B150: Hide | P150: 361001 | R150: Interest Income | X150: 224 | Z150: =IF($X150=0,0,$AB150) -> 1 | AB150: =T146 -> 1
B151: Hide | P151: 549001 | R151: Miscellaneous | V151: 51301 | X151: 0 | Z151: =IF($X151=0,0,IF($Z150=0,$AB151,0)) -> 0 | AB151: =$AB150 -> 1
B152: Hide | P152: 549900 | R152: Contingency | V152: 51301 | X152: 0 | Z152: =IF($X152=0,0,IF(SUM($Z150:$Z151)=0,$AB152,0)) -> 0 | AB152: 1
B153: Hide | P153: 565001 | R153: Construction In Progress | V153: 50000..599999 | X153: 0 | Z153: =IF($X153=0,0,IF(SUM($Z150:$Z152)=0,$AB153,0)) -> 0 | AB153: 1
B154: Hide | P154: =P153+1 -> 565002 | R154: Construction In Progress | V154: 50000..599999 | X154: 0 | Z154: =IF($X154=0,0,IF(SUM($Z150:$Z153)=0,$AB154,0)) -> 0 | AB154: 1
B155: Hide | P155: =P154+1 -> 565003 | R155: Construction In Progress | V155: 50000..599999 | X155: 0 | Z155: =IF($X155=0,0,IF(SUM($Z150:$Z154)=0,$AB155,0)) -> 0 | AB155: 1
B156: Hide | P156: =P155+1 -> 565004 | R156: Construction In Progress | V156: 50000..599999 | X156: 0 | Z156: =IF($X156=0,0,IF(SUM($Z150:$Z155)=0,$AB156,0)) -> 0 | AB156: 1
B157: Hide | R157: Fund Balance - Beg Bal | Z157: =IF(SUM($Z150:$Z156)=0,$AB157,0) -> 0 | AB157: 1

Sheet Amort 2014
A1: Harmony
A2: Community Development District
A3: Series 2001 Special Assessment Bonds
A5: AMORTIZATION SCHEDULE
B7: Period | C7: Outstanding | E7: Coupon | H7: Annual Debt
B8: Ending | C8: Balance | D8: Principal | E8: Rate | F8: Interest | H8: Service
B10: 2016-05-01 | C10: 13415000 | D10: 520000 | E10: 0.05 | F10: 334450 | G10: =D10+F10 -> 854450
B11: 2016-11-01 | C11: =+C10-D10 -> 12895000 | F11: 331062.5 | G11: 331062.5
B12: 2017-05-01 | C12: =+C11-D11 -> 12895000 | D12: 535000 | E12: 0.05 | F12: 331062.5 | G12: 866062.5 | H12: =+G12+G11 -> 1197125
B13: 2017-11-01 | C13: =+C12-D12 -> 12360000 | F13: 317687.5 | G13: 317687.5
B14: 2018-05-01 | C14: =+C13-D13 -> 12360000 | D14: 565000 | E14: 0.05 | F14: 317687.5 | G14: 882687.5 | H14: =+G14+G13 -> 1200375
B15: 2018-11-01 | C15: =+C14-D14 -> 11795000 | F15: 303562.5 | G15: 303562.5
B16: 2019-05-01 | C16: 11795000 | D16: 590000 | E16: 0.05 | F16: 303562.5 | G16: 893562.5 | H16: =+G16+G15 -> 1197125
B17: 2019-11-01 | C17: 11205000 | F17: 288812.5 | G17: 288812.5
B18: 2020-05-01 | C18: 11205000 | D18: 625000 | E18: 0.05 | F18: 288812.5 | G18: 913812.5 | H18: =+G18+G17 -> 1202625
B19: 2020-11-01 | C19: 10580000 | F19: 273187.5 | G19: 273187.5
B20: 2021-05-01 | C20: 10580000 | D20: 655000 | E20: 0.05 | F20: 273187.5 | G20: 928187.5 | H20: =+G20+G19 -> 1201375
B21: 2021-11-01 | C21: 9925000 | F21: 256812.5 | G21: 256812.5
B22: 2022-05-01 | C22: 9925000 | D22: 690000 | E22: 0.05 | F22: 256812.5 | G22: 946812.5 | H22: =+G22+G21 -> 1203625
B23: 2022-11-01 | C23: 9235000 | F23: 239562.5 | G23: 239562.5
B24: 2023-05-01 | C24: 9235000 | D24: 725000 | E24: 0.05 | F24: 239562.5 | G24: 964562.5 | H24: =+G24+G23 -> 1204125
B25: 2023-11-01 | C25: 8510000 | F25: 221437.5 | G25: 221437.5
B26: 2024-05-01 | C26: 8510000 | D26: 760000 | E26: 0.05 | F26: 221437.5 | G26: 981437.5 | H26: =+G26+G25 -> 1202875
B27: 2024-11-01 | C27: 7750000 | F27: 202437.5 | G27: 202437.5
B28: 2025-05-01 | C28: 7750000 | D28: 800000 | E28: 0.05 | F28: 202437.5 | G28: 1002437.5 | H28: =+G28+G27 -> 1204875
B29: 2025-11-01 | C29: 6950000 | F29: 182437.5 | G29: 182437.5
B30: 2026-05-01 | C30: 6950000 | D30: 845000 | E30: 0.0525 | F30: 182437.5 | G30: 1027437.5 | H30: =+G30+G29 -> 1209875
B31: 2026-11-01 | C31: 6105000 | F31: 160256.25 | G31: 160256.25
B32: 2027-05-01 | C32: 6105000 | D32: 890000 | E32: 0.0525 | F32: 160256.25 | G32: 1050256.25 | H32: =+G32+G31 -> 1210512.5
B33: 2027-11-01 | C33: 5215000 | F33: 136893.75 | G33: 136893.75
B34: 2028-05-01 | C34: 5215000 | D34: 935000 | E34: 0.0525 | F34: 136893.75 | G34: 1071893.75 | H34: =+G34+G33 -> 1208787.5
B35: 2028-11-01 | C35: 4280000 | F35: 112350 | G35: 112350
B36: 2029-05-01 | C36: 4280000 | D36: 990000 | E36: 0.0525 | F36: 112350 | G36: 1102350 | H36: =+G36+G35 -> 1214700
B37: 2029-11-01 | C37: 3290000 | F37: 86362.5 | G37: 86362.5
B38: 2030-05-01 | C38: 3290000 | D38: 1040000 | E38: 0.0525 | F38: 86362.5 | G38: 1126362.5 | H38: =+G38+G37 -> 1212725
B39: 2030-11-01 | C39: 2250000 | F39: 59062.5 | G39: 59062.5
B40: 2031-05-01 | C40: 2250000 | D40: 1095000 | E40: 0.0525 | F40: 59062.5 | G40: 1154062.5 | H40: =+G40+G39 -> 1213125
B41: 2031-11-01 | C41: 1155000 | F41: 30318.75 | G41: 30318.75
B42: 2032-05-01 | C42: 1155000 | D42: 1155000 | E42: 0.0525 | F42: 30318.75 | G42: 1185318.75 | H42: =+G42+G41 -> 1215637.5
D44: =SUM(D11:D42) -> 12895000 | F44: =SUM(F11:F42) -> 6404487.5 | G44: =SUM(G11:G42) -> 19299487.5 | H44: =SUM(H11:H42) -> 19299487.5

Sheet 204
A1: Auto+Hide+Values+Formulas=Sheet16,Sheet13,Sheet14+AutoSheet | B1: Hide+? | C1: Hide | D1: Hide | E1: Hide | F1: Hide | G1: Keyname+Hide | H1: Hide | I1: Hide | J1: Hide | K1: Hide | L1: Key+Hide | M1: Key+Hide | N1: Key+Hide | O1: Key+Hide | P1: =IF($F$9="no","Hide","Show") -> Hide | Q1: =P1 -> Hide | R1: Show | S1: Hide | T1: Hide | V1: =IF($F$7=4,"Show","Hide") -> Hide | W1: =V1 -> Hide | X1: =IF($F$7>=3,"Show","Hide") -> Hide | Y1: =X1 -> Hide | Z1: =IF($F$7>=2,"Show","Hide") -> Hide | AA1: =Z1 -> Hide | AB1: =IF($F$7>=1,"Show","Hide") -> Show | AC1: =AB1 -> Show | AD1: =IF($F$8>=2,"Show","Hide") -> Hide | AE1: =AD1 -> Hide | AF1: =IF($F$8>=1,"Show","Hide") -> Show | AG1: =AF1 -> Show | AH1: =IF($F$9="no","Show","hide") -> Show | AI1: =AH1 -> Show | AJ1: ="Data+"&AH1 -> Data+Show | AK1: =AH1 -> Show | AL1: Show | AM1: =AL1 -> Show | AN1: Hide | AO1: Hide | AP1: Data | AQ1: Hide | AS1: Data | AT1: HIDE | AU1: HIDE | AV1: HIDE | AW1: HIDE | AX1: HIDE | AY1: HIDE | AZ1: HIDE | BA1: HIDE | BB1: HIDE | BC1: HIDE | BD1: HIDE | BE1: HIDE | BF1: HIDE
B2: =IF(AQ133=0,"hidesheet","Hide") -> Hide | C2: Harmony | T2: =TEXT("..C"&$F$5,"MM/DD/YYYY") -> ..C02/29/2016 | V2: =I9 -> ..C9/30/2012 | X2: =I8 -> ..C9/30/2013 | Z2: =I7 -> ..C9/30/2014 | AB2: =I6 -> ..C9/30/2015 | AD2: =AB2 -> ..C9/30/2015 | AF2: =I5 -> ..C9/30/2016 | AH2: =TEXT("..C"&$F$5,"MM/DD/YYYY") -> ..C02/29/2016 | AJ2: =AH2 -> ..C02/29/2016
B3: Hide | C3: Community Development District | H3: Year | I3: FY_End_date | J3: FY_begin_Date | T3: =$J$4 -> 10/1/2015..02/29/2016 | V3: 10/1/2011..9/30/2012 | X3: 10/1/2012..9/30/2013 | Z3: 10/1/2013..9/30/2014 | AB3: 10/1/2014..9/30/2015 | AD3: 10/1/2014..9/30/2015 | AF3: 10/1/2015..9/30/2016 | AH3: =$J$4 -> 10/1/2015..02/29/2016 | AJ3: 3/1/2016..9/30/2016 | AN3: 10/1/2016..9/30/2017 | AP3: 10/1/2016..9/30/2017
B4: Hide | E4: Budget Fiscal Year | F4: 2017 | H4: =F4 -> 2017 | I4: ="..C9/30/"&H4 -> ..C9/30/2017 | J4: ="10/1/"&H6&".."&F5 -> 10/1/2015..02/29/2016 | T4: ACTUAL | V4: ACTUAL | X4: ACTUAL | Z4: ACTUAL | AB4: ACTUAL | AD4: BUDGET | AF4: BUDGET | AH4: ACTUAL | AJ4: BUDGET | AL4: BUDGET | AN4: BUDGET | AP4: BUDGET
B5: Hide | C5: No. | D5: 300000..599999 | E5: Actual Date | F5: 02/29/2016 | H5: =H4-1 -> 2016 | I5: ..C9/30/2016 | J5: 10/1/2010..9/30/2017 | T5: =AF5 -> ..C9/30/2015 | V5: =I10 -> ..C9/30/2011 | X5: =V2 -> ..C9/30/2012 | Z5: =X2 -> ..C9/30/2013 | AB5: =Z2 -> ..C9/30/2014 | AD5: =AB5 -> ..C9/30/2014 | AF5: =AD2 -> ..C9/30/2015 | AH5: =AF5 -> ..C9/30/2015 | AJ5: =I11 -> ..C9/30/2016 | AN5: =$I$4 -> ..C9/30/2017 | AP5: =$I$4 -> ..C9/30/2017
B6: Hide | C6: District Name | D6: HARMONY CDD | E6: Show Ttl w/o reserves | F6: No | H6: 2015 | I6: ..C9/30/2015 | J6: 10/1/2014..9/30/2017 | AD6: * | AF6: * | AJ6: * | AN6: * | AP6: *
B7: Hide | C7: Fund No. | D7: 001..299|400..450 | E7: PY_actuals | F7: 1 | H7: 2014 | I7: ..C9/30/2014 | J7: 10/1/2016..9/30/2017 | AD7: Budget Plan No. | AF7: Budget Plan No. | AN7: Budget Plan No. | AP7: Budget Plan No.
B8: Hide | C8: Department | D8: * | E8: PY_budgets | F8: 1 | H8: 2013 | I8: ..C9/30/2013 | AD8: =RIGHT(AD2,4)&"BUDA" -> 2015BUDA | AF8: =RIGHT(AF2,4)&"BUDA" -> 2016BUDA
B9: Hide | C9: Transaction Type | D9: Actual | E9: Hide Proj Total | F9: No | H9: 2012 | I9: ..C9/30/2012
B10: Hide | C10: DistrictName | D10: Harmony | E10: Show Gl | F10: No | H10: 2011 | I10: ..C9/30/2011
B11: Hide | C11: DistrictType | D11: Community Development District | E11: Bal Bud | F11: Yes | H11: =RIGHT(I11,4) -> 2016 | I11: ="..C9/30/"&IF(MONTH(F5)<10,YEAR(F5),YEAR(F5)+1) -> ..C9/30/2016
B12: Hide | E12: Subacct | F12: * | J12: Summary of Revenues, Expenditures and Changes in Fund Balances
B13: Hide | E13: Include nav bal | F13: Yes | J13: Summary of Revenues, Expenses and Changes in Net Assets
B14: Hide | E14: Show COGS | F14: No
B15: Hide | E15: Budget Draft | F15: No
B16: Hide | E16: Subtotal Revenue | F16: No
B17: Hide | E17: Fund No. | F17: ="204" -> 204
B18: Hide
B19: Hide | E19: Field Names | H19: SUBACCT
B20: Hide | E20: G/L Account No. | H20: 2015 Debt Service Fund
B21: Hide | E21: Orgunit code | H21: To be reclassed
B22: Hide | E22: Fund No. | F22: =IF(F17="",0,F17) -> 204 | H22: =IF(F12="*",H20,H21) -> 2015 Debt Service Fund
B23: Hide | E23: subacct
A24: Key+Hide | B24: Hide | E24: Fund Code | G24: ColumnNo | AJ24: Col1 | AP24: Col2 | AS24: Col3
B25: Show | O25: reporttitle1 | P25: =IF(ISERROR(IF(AND(VALUE($F$22)>399,VALUE($F$22)<500),$J$13,$J$12)),"",IF(AND(VALUE($F$22)>399,VALUE($F$22)<500),$J$13,$J$12)) -> Summary of Revenues, Expenditures and Changes in Fund Balances | R25: =IF(ISERROR(IF(AND(VALUE($F$22)>399,VALUE($F$22)<500),$J$13,$J$12)),"",IF(AND(VALUE($F$22)>399,VALUE($F$22)<500),$J$13,$J$12)) -> Summary of Revenues, Expenditures and Changes in Fund Balances
O26: reporttitle2 | R26: =H22 -> 2015 Debt Service Fund
B27: Show | O27: reporttitle3 | R27: ="Fiscal Year " &F4& " Proposed Budget" -> Fiscal Year 2017 Proposed Budget
B29: =IF(F15="yes","show","Hide") -> Hide | P29: THIS TEMPLATE IS ONLY INTENDED TO BE USED AS A BUDGETING WORKSHEET
B30: =B29 -> Hide
B31: Show | AD31: =IF(AD150=0,"ADOPTED","AMENDED") -> ADOPTED | AF31: =IF(AF150=0,"ADOPTED","AMENDED") -> ADOPTED | AH31: ACTUAL | AJ31: PROJECTED | AL31: TOTAL | AN31: NAVIGATOR | AP31: ANNUAL
B32: Show | P32: Account | T32: ACTUAL | V32: ACTUAL | X32: ACTUAL | Z32: ACTUAL | AB32: ACTUAL | AD32: BUDGET | AF32: BUDGET | AH32: THRU | AJ32: ='001'!AJ32 -> MAY thru | AL32: PROJECTED | AN32: BALANCE | AP32: BUDGET
A33: Keyname | B33: Show | L33: Fund No. | M33: Date | N33: District Name | O33: No. | P33: # | R33: ACCOUNT DESCRIPTION | T33: TEST | V33: ="FY "&RIGHT(V2,4) -> FY 2012 | X33: ="FY "&RIGHT(X2,4) -> FY 2013 | Z33: ="FY "&RIGHT(Z2,4) -> FY 2014 | AB33: ='001'!AB33 -> FY - 2015 | AD33: ='001'!AD33 -> FY - 2015 | AF33: ='001'!AF33 -> FY - 2016 | AH33: ='001'!AH33 -> APR - 2016 | AJ33: ='001'!AJ33 -> EoFY - 2016 | AL33: ='001'!AL33 -> FY - 2016 | AN33: ='001'!AN33 -> FY - 2017 | AP33: ='001'!AP33 -> FY - 2017 | AS33: NOTES
B34: Show
B35: Show | O35: Remindermessage | P35: REMINDER! - Run the "Update Report" Macro.
B36: Show | R36: =IF(R144=0,IF(AND($F$22>"399",$F$22<"500"),"OPERATING REVENUES","REVENUES"),"THIS REPORT HAS AN ERROR, THIS REPORT HAS AN ERROR, THIS REPORT HAS AN ERROR") -> REVENUES
B37: Show
A38: Data | B38: Show | E38: =IF(OR($D$7=0,$F$16="YES"),0,"300001..361000|361002..369999") -> 300001..361000|361002..369999 | K38: 361001 | L38: =$F$22 -> 204 | M38: =$J$7 -> 10/1/2016..9/30/2017 | N38: =$D$6 -> HARMONY CDD | O38: =K38 -> 361001 | P38: =K38 -> 361001 | R38: Interest - Investments | T38: 101 | V38: 0 | X38: 0 | Z38: 0 | AB38: 62 | AD38: 0 | AF38: 0 | AH38: 181 | AJ38: =300-AH38 -> 119 | AL38: =IF(ISERROR(AH38+AJ38),0,(AH38+AJ38)) -> 300 | AN38: 0 | AP38: 300 | AQ38: =ABS(SUMIF(V38:AP38,">0")-SUMIF(V38:AP38,"<0")) -> 962
A39: Data | B39: =IF(AQ39=0,"Hide","Show") -> Show | K39: 363010 | L39: =$F$22 -> 204 | M39: =$J$7 -> 10/1/2016..9/30/2017 | N39: =$D$6 -> HARMONY CDD | O39: =IF(K39="","8888888",K39) -> 363010 | P39: =K39 -> 363010 | R39: Special Assmnts- Tax Collector | T39: 0 | V39: 0 | X39: 0 | Z39: 0 | AB39: 0 | AD39: 0 | AF39: 54166 | AH39: 54166 | AJ39: =+AF39-AH39 -> 0 | AL39: =IF(ISERROR(AH39+AJ39),0,(AH39+AJ39)) -> 54166 | AN39: 0 | AP39: ='Assess_Detail Revised'!AE61 -> 360344.7272 | AQ39: =ABS(SUMIF(V39:AP39,">0")-SUMIF(V39:AP39,"<0")) -> 522842.7272
A40: Data+Auto | B40: =IF(AQ40=0,"Hide","Show") -> Show | K40: ="363040" -> 363040 | L40: =$F$22 -> 204 | M40: =$J$7 -> 10/1/2016..9/30/2017 | N40: =$D$6 -> HARMONY CDD | O40: =IF(K40="","8888888",K40) -> 363040 | P40: =K40 -> 363040 | R40: Special Assmnts- CDD Collected | T40: 465494 | V40: 0 | X40: 0 | Z40: 0 | AB40: 0 | AD40: 0 | AF40: 1013028 | AH40: 1029815 | AJ40: 0 | AL40: =IF(ISERROR(AH40+AJ40),0,(AH40+AJ40)) -> 1029815 | AN40: 0 | AP40: ='Assess_Detail Revised'!AE62 -> 725219.7164 | AQ40: =ABS(SUMIF(V40:AP40,">0")-SUMIF(V40:AP40,"<0")) -> 3797877.716
A41: Data+Auto | B41: =IF(AQ41=0,"Hide","Show") -> Show | K41: ="363090" -> 363090 | L41: =$F$22 -> 204 | M41: =$J$7 -> 10/1/2016..9/30/2017 | N41: =$D$6 -> HARMONY CDD | O41: =IF(K41="","8888888",K41) -> 363090 | P41: =K41 -> 363090 | R41: Special Assmnts- Discounts | T41: 0 | V41: 0 | X41: 0 | Z41: 0 | AB41: 0 | AD41: 0 | AF41: -2167 | AH41: 0 | AJ41: 0 | AL41: =IF(ISERROR(AH41+AJ41),0,(AH41+AJ41)) -> 0 | AN41: 0 | AP41: =ROUND(-AP39*0.04,0) -> -14414 | AQ41: =ABS(SUMIF(V41:AP41,">0")-SUMIF(V41:AP41,"<0")) -> 16581
B42: Show
B43: Hide | E43: =IF(OR($D$7=0,$F$16="NO"),0,"300001..361000|361002..369999") -> 0
B44: Hide
B45: =B48 -> Hide | I45: =IF(I44="","9999999",I44) -> 9999999 | AU45: TEST | AV45: =$V$33 -> FY 2012 | AW45: =$X$33 -> FY 2013 | AX45: =$Z$33 -> FY 2014 | AY45: =$AB$33 -> FY - 2015 | AZ45: AB | BA45: AB1 | BB45: ACT | BC45: PROJ | BD45: TOTAL | BE45: NAV | BF45: NEW AB
A46: Data | B46: =IF(AQ46=0,"Hide","Show") -> Hide | I46: =I45 -> 9999999 | L46: =$F$22 -> 204 | M46: =$J$7 -> 10/1/2016..9/30/2017 | N46: =$D$6 -> HARMONY CDD | O46: =K46 &" "&I46 -> 9999999 | P46: =K46 ->  | T46: 0 | V46: 0 | X46: 0 | Z46: 0 | AB46: 0 | AD46: 0 | AF46: 0 | AH46: 0 | AJ46: =+AF46-AH46 -> 0 | AL46: =IF(ISERROR(AH46+AJ46),0,(AH46+AJ46)) -> 0 | AN46: 0 | AP46: =IF($F$13="YES",AF46,AN46) -> 0 | AQ46: =ABS(SUMIF(V46:AP46,">0")-SUMIF(V46:AP46,"<0")) -> 0
B47: =B48 -> Hide | I47: =I46 -> 9999999
B48: =IF(AQ48=0,"Hide","Show") -> Hide | I48: =I47 -> 9999999 | R48: Total | T48: =SUM(T45:T47) -> 0 | V48: =SUM(V45:V47) -> 0 | X48: =SUM(X45:X47) -> 0 | Z48: =SUM(Z45:Z47) -> 0 | AB48: =SUM(AB45:AB47) -> 0 | AD48: =SUM(AD45:AD47) -> 0 | AF48: =SUM(AF45:AF47) -> 0 | AH48: =SUM(AH45:AH47) -> 0 | AJ48: =SUM(AJ45:AJ47) -> 0 | AL48: =SUM(AL45:AL47) -> 0 | AN48: =SUM(AN45:AN47) -> 0 | AP48: =SUM(AP45:AP47) -> 0 | AQ48: =ABS(SUMIF(V48:AP48,">0")-SUMIF(V48:AP48,"<0")) -> 0 | AU48: =SUM(T45:T47) -> 0 | AV48: =SUM(V45:V47) -> 0 | AW48: =SUM(X45:X47) -> 0 | AX48: =SUM(Z45:Z47) -> 0 | AY48: =SUM(AB45:AB47) -> 0 | AZ48: =SUM(AD45:AD47) -> 0 | BA48: =SUM(AF45:AF47) -> 0 | BB48: =SUM(AH45:AH47) -> 0 | BC48: =SUM(AJ45:AJ47) -> 0 | BD48: =SUM(AL45:AL47) -> 0 | BE48: =SUM(AN45:AN47) -> 0 | BF48: =SUM(AP45:AP47) -> 0
B49: =B48 -> Hide | I49: =I48 -> 9999999
B50: Show
B51: Show | R51: =IF(AND($F$22>"399",$F$22<"500"),"TOTAL OPERATING REVENUES","TOTAL REVENUES") -> TOTAL REVENUES | T51: =SUM(T37:T42)+SUM(AU46:AU50) -> 465595 | V51: =SUM(V37:V42)+SUM(AV46:AV50) -> 0 | X51: =SUM(X37:X42)+SUM(AW46:AW50) -> 0 | Z51: =SUM(Z37:Z42)+SUM(AX46:AX50) -> 0 | AB51: =SUM(AB37:AB42)+SUM(AY46:AY50) -> 62 | AD51: =SUM(AD37:AD42)+SUM(AZ46:AZ50) -> 0 | AF51: =SUM(AF37:AF42)+SUM(BA46:BA50) -> 1065027 | AH51: =SUM(AH37:AH42)+SUM(BB46:BB50) -> 1084162 | AJ51: =SUM(AJ37:AJ42)+SUM(BC46:BC50) -> 119 | AL51: =SUM(AL37:AL42)+SUM(BD46:BD50) -> 1084281 | AN51: =SUM(AN37:AN42)+SUM(BE46:BE50) -> 0 | AP51: =SUM(AP37:AP42)+SUM(BF46:BF50) -> 1071450.444 | AQ51: =ABS(SUMIF(V51:AP51,">0")-SUMIF(V51:AP51,"<0")) -> 4305101.444
B52: Show
B53: =IF(AQ57=0,"Hide","Show") -> Hide | E53: =IF(OR($F$22=0,VALUE($F$22)<=399,VALUE($F$22)>499,$F$14="NO"),0,"552099..552199") -> 0 | R53: COST OF GOODS SOLD
B54: Hide
A55: Data | B55: =IF(AQ55=0,"Hide","Show") -> Hide | L55: =$F$22 -> 204 | M55: =$J$7 -> 10/1/2016..9/30/2017 | N55: =$D$6 -> HARMONY CDD | O55: =IF(K55="","500000 50000",K55&" "&"50000") -> 500000 50000 | P55: =K55 ->  | T55: 0 | V55: 0 | X55: 0 | Z55: 0 | AB55: 0 | AD55: 0 | AF55: 0 | AH55: 0 | AJ55: 0 | AL55: =IF(ISERROR(AH55+AJ55),0,(AH55+AJ55)) -> 0 | AN55: 0 | AP55: =IF($F$13="YES",AF55,AN55) -> 0 | AQ55: =ABS(SUMIF(V55:AP55,">0")-SUMIF(V55:AP55,"<0")) -> 0
B56: Hide
B57: =IF(AQ57=0,"Hide","Show") -> Hide | R57: =IF(AND($F$22>"399",$F$22<"500",$F$14="yes"),"Total Cost of Goods Sold","") ->  | T57: =SUM(T54:T56) -> 0 | V57: =SUM(V54:V56) -> 0 | X57: =SUM(X54:X56) -> 0 | Z57: =SUM(Z54:Z56) -> 0 | AB57: =SUM(AB54:AB56) -> 0 | AD57: =SUM(AD54:AD56) -> 0 | AF57: =SUM(AF54:AF56) -> 0 | AH57: =SUM(AH54:AH56) -> 0 | AJ57: =SUM(AJ54:AJ56) -> 0 | AL57: =SUM(AL54:AL56) -> 0 | AN57: =SUM(AN54:AN56) -> 0 | AP57: =SUM(AP54:AP56) -> 0 | AQ57: =ABS(SUMIF(V57:AP57,">0")-SUMIF(V57:AP57,"<0")) -> 0
B58: =B57 -> Hide
B59: =B58 -> Hide | R59: =IF(AND($F$22>"399",$F$22<"500",$F$14="yes"),"GROSS PROFIT","") ->  | T59: =IF(OR(VALUE($F$22)<=399,VALUE($F$22)>499,$F$14="NO"),0,T51-T57) -> 0 | V59: =IF(OR(VALUE($F$22)<=399,VALUE($F$22)>499,$F$14="NO"),0,V51-V57) -> 0 | X59: =IF(OR(VALUE($F$22)<=399,VALUE($F$22)>499,$F$14="NO"),0,X51-X57) -> 0 | Z59: =IF(OR(VALUE($F$22)<=399,VALUE($F$22)>499,$F$14="NO"),0,Z51-Z57) -> 0 | AB59: =IF(OR(VALUE($F$22)<=399,VALUE($F$22)>499,$F$14="NO"),0,AB51-AB57) -> 0 | AD59: =IF(OR(VALUE($F$22)<=399,VALUE($F$22)>499,$F$14="NO"),0,AD51-AD57) -> 0 | AF59: =IF(OR(VALUE($F$22)<=399,VALUE($F$22)>499,$F$14="NO"),0,AF51-AF57) -> 0 | AH59: =IF(OR(VALUE($F$22)<=399,VALUE($F$22)>499,$F$14="NO"),0,AH51-AH57) -> 0 | AJ59: =IF(OR(VALUE($F$22)<=399,VALUE($F$22)>499,$F$14="NO"),0,AJ51-AJ57) -> 0 | AL59: =IF(OR(VALUE($F$22)<=399,VALUE($F$22)>499,$F$14="NO"),0,AL51-AL57) -> 0 | AN59: =IF(OR(VALUE($F$22)<=399,VALUE($F$22)>499,$F$14="NO"),0,AN51-AN57) -> 0 | AP59: =IF(OR(VALUE($F$22)<=399,VALUE($F$22)>499,$F$14="NO"),0,AP51-AP57) -> 0 | AQ59: =ABS(SUMIF(V59:AP59,">0")-SUMIF(V59:AP59,"<0")) -> 0
B60: =B59 -> Hide
B61: Show | R61: =IF(AND($F$22>"399",$F$22<"500"),"OPERATING EXPENSES","EXPENDITURES") -> EXPENDITURES
B62: Show
B63: =B67 -> Show | R63: =IF(AND($F$22>"399",$F$22<"500"),"Personnel and Administration","Administrative") -> Administrative
B64: Hide | E64: =IF($F$22=0,0,IF(OR($F$14="No",VALUE($F$22)<=399,VALUE($F$22)>499),"500000..564999|566000..579999","500000..552098|552200..564999|566000..579999")) -> 500000..564999|566000..579999 | H64: 51000..51699
A65: Data | B65: =IF(AQ65=0,"Hide","Show") -> Show | K65: 549070 | L65: =$F$22 -> 204 | M65: =$J$7 -> 10/1/2016..9/30/2017 | N65: =$D$6 -> HARMONY CDD | O65: =IF(K65="","500000 51699",K65&" "&"51699") -> 549070 51699 | P65: =K65 -> 549070 | R65: Misc-Assessmnt Collection Cost | T65: 0 | V65: 0 | X65: 0 | Z65: 0 | AB65: 0 | AD65: 0 | AF65: 1083 | AH65: 1083 | AJ65: =+AJ39*0.02 -> 0 | AL65: =IF(ISERROR(AH65+AJ65),0,(AH65+AJ65)) -> 1083 | AN65: 0 | AP65: =ROUND(+AP39*0.02,0) -> 7207 | AQ65: =ABS(SUMIF(V65:AP65,">0")-SUMIF(V65:AP65,"<0")) -> 10456
B66: =B67 -> Show
B67: =IF(AQ67=0,"Hide","Show") -> Show | R67: ="Total "&R63 -> Total Administrative | T67: =SUM(T65:T66) -> 0 | V67: =SUM(V65:V66) -> 0 | X67: =SUM(X65:X66) -> 0 | Z67: =SUM(Z65:Z66) -> 0 | AB67: =SUM(AB65:AB66) -> 0 | AD67: =SUM(AD65:AD66) -> 0 | AF67: =SUM(AF65:AF66) -> 1083 | AH67: =SUM(AH65:AH66) -> 1083 | AJ67: =SUM(AJ65:AJ66) -> 0 | AL67: =SUM(AL65:AL66) -> 1083 | AN67: =SUM(AN65:AN66) -> 0 | AP67: =SUM(AP65:AP66) -> 7207 | AQ67: =ABS(SUMIF(V67:AP67,">0")-SUMIF(V67:AP67,"<0")) -> 10456
B68: =B67 -> Show
B69: Hide | E69: =IF($F$22=0,0,IF(OR($F$14="No",VALUE($F$22)<=399,VALUE($F$22)>499),"500000..564999|566000..579999","500000..552098|552200..564999|566000..579999")) -> 500000..564999|566000..579999 | H69: 51800..57999|58001|99999 | AH69: =$Z$154+$Z$155 -> 0
B70: Hide
B71: Hide | H71: ORGUNIT | I71: 53910
B72: =IF(AQ75=0,"Hide","Show") -> Hide | I72: =I71 -> 53910 | R72: Operation & Maintenance | AU72: TEST | AV72: =$V$33 -> FY 2012 | AW72: =$X$33 -> FY 2013 | AX72: =$Z$33 -> FY 2014 | AY72: =$AB$33 -> FY - 2015 | AZ72: AB | BA72: AB1 | BB72: ACT | BC72: PROJ | BD72: TOTAL | BE72: NAV | BF72: NEW AB
A73: Data | B73: =IF(AQ73=0,"Hide","Show") -> Hide | I73: =I72 -> 53910 | K73: 549900 | L73: =$F$22 -> 204 | M73: =$J$7 -> 10/1/2016..9/30/2017 | N73: =$D$6 -> HARMONY CDD | O73: =IF(I73="","500000 51800",K73&" "&I73) -> 549900 53910 | P73: =K73 -> 549900 | R73: Misc-Contingency | T73: 0 | V73: 0 | X73: 0 | Z73: 0 | AB73: 0 | AD73: 0 | AF73: 0 | AH73: 0 | AJ73: 0 | AL73: =IF(ISERROR(AH73+AJ73),0,(AH73+AJ73)) -> 0 | AN73: 0 | AP73: =IF($F$13="YES",AF73,AN73) -> 0 | AQ73: =ABS(SUMIF(V73:AP73,">0")-SUMIF(V73:AP73,"<0")) -> 0
B74: Hide | I74: =I73 -> 53910
B75: =IF(AQ75=0,"Hide","Show") -> Hide | I75: =I74 -> 53910 | R75: ="Total " &($R72) -> Total Operation & Maintenance | T75: =SUM(T73:T74) -> 0 | V75: =SUM(V73:V74) -> 0 | X75: =SUM(X73:X74) -> 0 | Z75: =SUM(Z73:Z74) -> 0 | AB75: =SUM(AB73:AB74) -> 0 | AD75: =SUM(AD73:AD74) -> 0 | AF75: =SUM(AF73:AF74) -> 0 | AH75: =SUM(AH73:AH74) -> 0 | AJ75: =SUM(AJ73:AJ74) -> 0 | AL75: =SUM(AL73:AL74) -> 0 | AN75: =SUM(AN73:AN74) -> 0 | AP75: =SUM(AP73:AP74) -> 0 | AQ75: =ABS(SUMIF(V75:AP75,">0")-SUMIF(V75:AP75,"<0")) -> 0 | AU75: =SUM(T72:T74) -> 0 | AV75: =SUM(V72:V74) -> 0 | AW75: =SUM(X72:X74) -> 0 | AX75: =SUM(Z72:Z74) -> 0 | AY75: =SUM(AB72:AB74) -> 0 | AZ75: =SUM(AD72:AD74) -> 0 | BA75: =SUM(AF72:AF74) -> 0 | BB75: =SUM(AH72:AH74) -> 0 | BC75: =SUM(AJ72:AJ74) -> 0 | BD75: =SUM(AL72:AL74) -> 0 | BE75: =SUM(AN72:AN74) -> 0 | BF75: =SUM(AP72:AP74) -> 0
B76: =B75 -> Hide | I76: =I75 -> 53910
A77: Auto | B77: Hide | H77: ORGUNIT | I77: ="58001" -> 58001
A78: Auto | B78: =IF(AQ81=0,"Hide","Show") -> Show | I78: =I77 -> 58001 | R78: Non-Operating | AU78: TEST | AV78: =$V$33 -> FY 2012 | AW78: =$X$33 -> FY 2013 | AX78: =$Z$33 -> FY 2014 | AY78: =$AB$33 -> FY - 2015 | AZ78: AB | BA78: AB1 | BB78: ACT | BC78: PROJ | BD78: TOTAL | BE78: NAV | BF78: NEW AB
A79: Data+Auto | B79: =IF(AQ79=0,"Hide","Show") -> Show | I79: =I78 -> 58001 | K79: 573012 | L79: =$F$22 -> 204 | M79: =$J$7 -> 10/1/2016..9/30/2017 | N79: =$D$6 -> HARMONY CDD | O79: =IF(I79="","500000 51800",K79&" "&I79) -> 573012 58001 | P79: =K79 -> 573012 | R79: Underwriter | T79: 0 | V79: 0 | X79: 0 | Z79: 0 | AB79: 338250 | AD79: 0 | AF79: 0 | AH79: 0 | AJ79: 0 | AL79: =IF(ISERROR(AH79+AJ79),0,(AH79+AJ79)) -> 0 | AN79: 0 | AP79: =IF($F$13="YES",AF79,AN79) -> 0 | AQ79: =ABS(SUMIF(V79:AP79,">0")-SUMIF(V79:AP79,"<0")) -> 338250
A80: Auto | B80: Hide | I80: =I79 -> 58001
A81: Auto | B81: =IF(AQ81=0,"Hide","Show") -> Show | I81: =I80 -> 58001 | R81: ="Total " &($R78) -> Total Non-Operating | T81: =SUM(T79:T80) -> 0 | V81: =SUM(V79:V80) -> 0 | X81: =SUM(X79:X80) -> 0 | Z81: =SUM(Z79:Z80) -> 0 | AB81: =SUM(AB79:AB80) -> 338250 | AD81: =SUM(AD79:AD80) -> 0 | AF81: =SUM(AF79:AF80) -> 0 | AH81: =SUM(AH79:AH80) -> 0 | AJ81: =SUM(AJ79:AJ80) -> 0 | AL81: =SUM(AL79:AL80) -> 0 | AN81: =SUM(AN79:AN80) -> 0 | AP81: =SUM(AP79:AP80) -> 0 | AQ81: =ABS(SUMIF(V81:AP81,">0")-SUMIF(V81:AP81,"<0")) -> 338250 | AU81: =SUM(T78:T80) -> 0 | AV81: =SUM(V78:V80) -> 0 | AW81: =SUM(X78:X80) -> 0 | AX81: =SUM(Z78:Z80) -> 0 | AY81: =SUM(AB78:AB80) -> 338250 | AZ81: =SUM(AD78:AD80) -> 0 | BA81: =SUM(AF78:AF80) -> 0 | BB81: =SUM(AH78:AH80) -> 0 | BC81: =SUM(AJ78:AJ80) -> 0 | BD81: =SUM(AL78:AL80) -> 0 | BE81: =SUM(AN78:AN80) -> 0 | BF81: =SUM(AP78:AP80) -> 0
A82: Auto | B82: =B81 -> Show | I82: =I81 -> 58001
B83: Hide
B84: Hide | R84: TOTAL FOR O&M | T84: =SUM(AU74:AU83) -> 0 | V84: =SUM(AV74:AV83) -> 0 | X84: =SUM(AW74:AW83) -> 0 | Z84: =SUM(AX74:AX83) -> 0 | AB84: =SUM(AY74:AY83) -> 338250 | AD84: =SUM(AZ74:AZ83) -> 0 | AF84: =SUM(BA74:BA83) -> 0 | AH84: =SUM(BB74:BB83) -> 0 | AJ84: =SUM(BC74:BC83) -> 0 | AL84: =SUM(BD74:BD83) -> 0 | AN84: =SUM(BE74:BE83) -> 0 | AP84: =SUM(BF74:BF83) -> 0
B85: Hide | E85: 565000..565999 | AH85: =$Z$156+$Z$157+$Z$158+$Z$159 -> 0
B86: =IF(AQ89=0,"Hide","Show") -> Hide | R86: Construction In Progress
